Workbook

Sheet Параметры (hidden)
J2: Опция "Ставка ниже"
K3: Расчетные параметры:
K5: Плательщик комиссии за снижение ставки | O5: ФИЗИЧЕСКОЕ ЛИЦО
K7: Продукт | O7: Приобретение квартиры на этапе строительства
K9: Дата выдачи кредита (займа) | O9: 2022-08-19
K11: Цена недвижимости, руб. | O11: 7,800,000.00 ₽
K13: Первоначальный взнос, руб. | O13: 2,340,000.00 ₽
K15: Срок кредита, мес. | O15: 360
K17: Ставка по кредиту без снижения, % годовых | O17: 10.30%
K19: Срок снижения ставки, мес. | O19: на_весь_срок
K21: Размер снижения ставки, п.п. | O21: 10.00%
K23: Вариант расчета комиссии | O23: от_суммы_кредита
K25: Отсрочка уплаты компенсации, мес. | O25: Без отсрочки | Q25: Застройщик на ПФ
K27: =IF($O$5=Справочник!$C$3,"Плата застройщика за снижение, %","Плата клиента за снижение, %") -> Плата клиента за снижение, % | O27: =IFERROR(IF(OR(O25="Без отсрочки",O7="Дальневосточная ипотека"),Справочник!$F$3,IF(AND(Q25="Застройщик на ПФ",OR(O7=Справочник!J11,O7=Справочник!J12,O7=Справочник!J13,O7=Справочник!J14,O7=Справочник!J15,O7=Справочник!J16,O7=Справочник!J17,O7=Справочник!J18)),Справочник!$F$3*VLOOKUP(O25,Справочник!M12:O46,2,0),Справочник!$F$3*VLOOKUP(O25,Справочник!M12:O46,3,0))),"изменить срок/размер опции/вариант расчета") -> 0.00% | Q27: =IF(O27="изменить срок/размер опции/вариант расчета","Внимание!","") -> 
K29: Ставка на период субсидирования, % годовых | O29: =$O$17-$O$21 -> 0.30% | Q29: =IF(O29<=0%,"субсидированная ставка не может быть равна или менее 0 п.п.","") -> 
K31: Ставка после периода субсидирования, % годовых
K33: =IF($O$5=Справочник!C3,"Плата застройщика за снижение, руб.","Плата клиента за снижение, руб.") -> Плата клиента за снижение, руб. | O33: =IFERROR(ROUND($O$27*IF($O$23=Справочник!$A$3,$K$38,SubsCredSumm),2),"-") -> 0.00 ₽
K36: Условия опции "Ставка ниже"
K37: Цена недвижимости | M37: Первоначальный взнос | O37: Первоначальный взнос, % цены недвижимости | Q37: Сумма кредита | S37: Срок кредита
K38: =$O$11 -> 7,800,000.00 ₽ | M38: =$O$13 -> 2,340,000.00 ₽ | O38: =1-SubsCredSumm/$K$38 -> 30.00% | Q38: =$K$38-$M$38 -> 5,460,000.00 ₽ | S38: =$O$15 -> 360
K40: Стандартные условия (без применения опции)
K41: Ставка по кредиту | O41: Ежемесячный платеж | S41: Переплата за весь срок кредита
K42: =$O$17 -> 10.30% | O42: ='Без изменений'!$D$5 -> 49,151.00 ₽ | S42: ='Без изменений'!$D$13 -> 12,190,751.70 ₽
K44: С использованием опции "Ставка ниже"
K45: ="Ставка "&(IF($O$19<>"на_весь_срок","на "&Параметры!O19&" мес.","на весь срок кредита")) -> Ставка на весь срок кредита | M45: Ставка после периода снижения | O45: ="Платеж "&(IF($O$19<>"на_весь_срок","на "&Параметры!O19&" мес.","на весь срок кредита")) -> Платеж на весь срок кредита | Q45: Платеж после периода снижения ставки | S45: Переплата за весь срок кредита
K46: =$O$17-$O$21 -> 0.30% | M46: =IF(O19="на_весь_срок","-",'Со снижением'!$D$9) -> - | O46: ='Со снижением'!$D$5 -> 15,946.00 ₽ | Q46: ='Со снижением'!$D$8 -> 0.00 ₽ | S46: ='Со снижением'!$D$13 -> 249,181.56 ₽
K47: Снижение ставки на | M47: Снижение ставки после периода снижения | O47: Снижение платежа в период снижения ставки | Q47: Снижение платежа после периода снижения ставки | S47: Снижение переплаты за весь срок кредита
K48: =K42-K46 -> 10.00% | M48: =IFERROR(K42-M46,"-") -> - | O48: =O42-O46 -> 33,205.00 ₽ | Q48: =IF($O$19="на_весь_срок","-",$O$42-$Q$46) -> - | S48: ='Без изменений'!$D$13-'Со снижением'!$D$13 -> 11,941,570.14 ₽
K50: Плата за снижение ставки | O50: =IF($O$51>=0,"Выгода клиента за весь срок кредита","Потери клиента за весь срок кредита") -> Выгода клиента за весь срок кредита
K51: =$O$33 -> 0.00 ₽ | O51: =IFERROR($S$48-$K$51,"-") -> 11,941,570.14 ₽

Sheet Печать графика (hidden)
A1: ИНФОРМАЦИОННЫЙ РАСЧЕТ
D3: ФИО заемщика
D4: Договор №
D5: Дата договора
D6: Сумма кредита (займа) | H6: =SubsCredSumm -> 5,460,000 | J6: руб.
D7: Дата выдачи кредита (займа) | H7: =GiveDate -> 2022-08-19
D8: Ставка на льготный период | H8: ='Со снижением'!I17 -> 0.30% | J8: годовых
D9: Ставка после льготного периода
D10: Срок кредита (займа) | H10: =Параметры!S38 -> 360 | J10: мес.
D12: Расчетная дата | H12: ???
D13: Нак. взнос в 2017 году | H13: 0.00 | J13: руб.
D14: Размер ежемесячного платежа на льготный период | H14: ='Со снижением'!D5 -> 15,946.00 | J14: руб.
A16: Процентный период | B16: Последняя дата процентного периода | C16: Количес-тво дней в процент-ном периоде | D16: Процентная ставка на период | E16: Остаток долга на начало периода, руб. | G16: Ежемесяч-ный платеж | H16: Начислено процентов за период, руб. | I16: Погашение процентов, руб. | J16: Погашение, руб. | L16: Накоплено процентов за период, руб. | M16: Остаток долга на конец периода, руб. | N16: Остаток долга на конец периода, руб.
J17: Основного долга | K17: Накопленных процентов
A18: 1 | B18: 2 | C18: 3 | D18: 4 | E18: 5 | F18: 6 | G18: 7 | H18: 8 | I18: 9 | J18: 10 | K18: 11 | L18: 12 | M18: 13 | N18: 14 | O18: 15
A19: 1 | B19: ='Со снижением'!G17 -> 2022-08-31 | C19: ='Со снижением'!H17 -> 12 | D19: ='Со снижением'!I17 -> 0.30% | E19: ='Со снижением'!L17 -> 5,460,000.00 | F19: ='Со снижением'!M17 -> 0.00 | G19: ='Со снижением'!J17 -> 0.00 | H19: ='Со снижением'!N17 -> 538.52 | I19: ='Со снижением'!P17 -> 0.00 | J19: ='Со снижением'!O17 -> 0.00 | K19: ='Со снижением'!Q17 -> 0.00 | L19: ='Со снижением'!R17 -> 538.52 | M19: ='Со снижением'!S17 -> 5,460,000.00 | N19: ='Со снижением'!T17 -> 538.52 | O19: =M19+N19 -> 5,460,538.52
A20: =IF(O19=0,"",A19+1) -> 2 | B20: =IF(O19=0,"",'Со снижением'!G18) -> 2022-09-30 | C20: =IF(O19=0,"",'Со снижением'!H18) -> 30 | D20: =IF(O19=0,"",'Со снижением'!I18) -> 0.30% | E20: =IF(O19=0,"",'Со снижением'!L18) -> 5,460,000.00 | F20: =IF(O19=0,"",'Со снижением'!M18) -> 538.52 | G20: =IF(O19=0,"",'Со снижением'!J18) -> 16,484.52 | H20: =IF(O19=0,"",'Со снижением'!N18) -> 1,346.30 | I20: =IF(O19=0,"",'Со снижением'!P18) -> 1,346.30 | J20: =IF(O19=0,"",'Со снижением'!O18) -> 14,599.70 | K20: =IF(O19=0,"",'Со снижением'!Q18) -> 538.52 | L20: =IF(O19=0,"",'Со снижением'!R18) -> 0.00 | M20: =IF(O19=0,"",'Со снижением'!S18) -> 5,445,400.30 | N20: =IF(O19=0,"",'Со снижением'!T18) -> 0.00 | O20: =IFERROR(M20+N20,0) -> 5,445,400.30
A21: =IF(O20=0,"",A20+1) -> 3 | B21: =IF(O20=0,"",'Со снижением'!G19) -> 2022-10-31 | C21: =IF(O20=0,"",'Со снижением'!H19) -> 31 | D21: =IF(O20=0,"",'Со снижением'!I19) -> 0.30% | E21: =IF(O20=0,"",'Со снижением'!L19) -> 5,445,400.30 | F21: =IF(O20=0,"",'Со снижением'!M19) -> 0.00 | G21: =IF(O20=0,"",'Со снижением'!J19) -> 15,946.00 | H21: =IF(O20=0,"",'Со снижением'!N19) -> 1,387.46 | I21: =IF(O20=0,"",'Со снижением'!P19) -> 1,387.46 | J21: =IF(O20=0,"",'Со снижением'!O19) -> 14,558.54 | K21: =IF(O20=0,"",'Со снижением'!Q19) -> 0.00 | L21: =IF(O20=0,"",'Со снижением'!R19) -> 0.00 | M21: =IF(O20=0,"",'Со снижением'!S19) -> 5,430,841.76 | N21: =IF(O20=0,"",'Со снижением'!T19) -> 0.00 | O21: =IFERROR(M21+N21,0) -> 5,430,841.76
A22: 4 | B22: =IF(O21=0,"",'Со снижением'!G20) -> 2022-11-30 | C22: =IF(O21=0,"",'Со снижением'!H20) -> 30 | D22: =IF(O21=0,"",'Со снижением'!I20) -> 0.30% | E22: =IF(O21=0,"",'Со снижением'!L20) -> 5,430,841.76 | F22: =IF(O21=0,"",'Со снижением'!M20) -> 0.00 | G22: =IF(O21=0,"",'Со снижением'!J20) -> 15,946.00 | H22: =IF(O21=0,"",'Со снижением'!N20) -> 1,339.11 | I22: =IF(O21=0,"",'Со снижением'!P20) -> 1,339.11 | J22: =IF(O21=0,"",'Со снижением'!O20) -> 14,606.89 | K22: =IF(O21=0,"",'Со снижением'!Q20) -> 0.00 | L22: =IF(O21=0,"",'Со снижением'!R20) -> 0.00 | M22: =IF(O21=0,"",'Со снижением'!S20) -> 5,416,234.87 | N22: =IF(O21=0,"",'Со снижением'!T20) -> 0.00 | O22: 5,416,234.87
A23: 5 | B23: =IF(O22=0,"",'Со снижением'!G21) -> 2022-12-31 | C23: =IF(O22=0,"",'Со снижением'!H21) -> 31 | D23: =IF(O22=0,"",'Со снижением'!I21) -> 0.30% | E23: =IF(O22=0,"",'Со снижением'!L21) -> 5,416,234.87 | F23: =IF(O22=0,"",'Со снижением'!M21) -> 0.00 | G23: =IF(O22=0,"",'Со снижением'!J21) -> 15,946.00 | H23: =IF(O22=0,"",'Со снижением'!N21) -> 1,380.03 | I23: =IF(O22=0,"",'Со снижением'!P21) -> 1,380.03 | J23: =IF(O22=0,"",'Со снижением'!O21) -> 14,565.97 | K23: =IF(O22=0,"",'Со снижением'!Q21) -> 0.00 | L23: =IF(O22=0,"",'Со снижением'!R21) -> 0.00 | M23: =IF(O22=0,"",'Со снижением'!S21) -> 5,401,668.90 | N23: =IF(O22=0,"",'Со снижением'!T21) -> 0.00 | O23: 5,401,668.90
A24: 6 | B24: =IF(O23=0,"",'Со снижением'!G22) -> 2023-01-31 | C24: =IF(O23=0,"",'Со снижением'!H22) -> 31 | D24: =IF(O23=0,"",'Со снижением'!I22) -> 0.30% | E24: =IF(O23=0,"",'Со снижением'!L22) -> 5,401,668.90 | F24: =IF(O23=0,"",'Со снижением'!M22) -> 0.00 | G24: =IF(O23=0,"",'Со снижением'!J22) -> 15,946.00 | H24: =IF(O23=0,"",'Со снижением'!N22) -> 1,376.32 | I24: =IF(O23=0,"",'Со снижением'!P22) -> 1,376.32 | J24: =IF(O23=0,"",'Со снижением'!O22) -> 14,569.68 | K24: =IF(O23=0,"",'Со снижением'!Q22) -> 0.00 | L24: =IF(O23=0,"",'Со снижением'!R22) -> 0.00 | M24: =IF(O23=0,"",'Со снижением'!S22) -> 5,387,099.22 | N24: =IF(O23=0,"",'Со снижением'!T22) -> 0.00 | O24: 5,387,099.22
A25: 7 | B25: =IF(O24=0,"",'Со снижением'!G23) -> 2023-02-28 | C25: =IF(O24=0,"",'Со снижением'!H23) -> 28 | D25: =IF(O24=0,"",'Со снижением'!I23) -> 0.30% | E25: =IF(O24=0,"",'Со снижением'!L23) -> 5,387,099.22 | F25: =IF(O24=0,"",'Со снижением'!M23) -> 0.00 | G25: =IF(O24=0,"",'Со снижением'!J23) -> 15,946.00 | H25: =IF(O24=0,"",'Со снижением'!N23) -> 1,239.77 | I25: =IF(O24=0,"",'Со снижением'!P23) -> 1,239.77 | J25: =IF(O24=0,"",'Со снижением'!O23) -> 14,706.23 | K25: =IF(O24=0,"",'Со снижением'!Q23) -> 0.00 | L25: =IF(O24=0,"",'Со снижением'!R23) -> 0.00 | M25: =IF(O24=0,"",'Со снижением'!S23) -> 5,372,392.99 | N25: =IF(O24=0,"",'Со снижением'!T23) -> 0.00 | O25: 5,372,392.99
A26: 8 | B26: =IF(O25=0,"",'Со снижением'!G24) -> 2023-03-31 | C26: =IF(O25=0,"",'Со снижением'!H24) -> 31 | D26: =IF(O25=0,"",'Со снижением'!I24) -> 0.30% | E26: =IF(O25=0,"",'Со снижением'!L24) -> 5,372,392.99 | F26: =IF(O25=0,"",'Со снижением'!M24) -> 0.00 | G26: =IF(O25=0,"",'Со снижением'!J24) -> 15,946.00 | H26: =IF(O25=0,"",'Со снижением'!N24) -> 1,368.86 | I26: =IF(O25=0,"",'Со снижением'!P24) -> 1,368.86 | J26: =IF(O25=0,"",'Со снижением'!O24) -> 14,577.14 | K26: =IF(O25=0,"",'Со снижением'!Q24) -> 0.00 | L26: =IF(O25=0,"",'Со снижением'!R24) -> 0.00 | M26: =IF(O25=0,"",'Со снижением'!S24) -> 5,357,815.85 | N26: =IF(O25=0,"",'Со снижением'!T24) -> 0.00 | O26: 5,357,815.85
A27: 9 | B27: =IF(O26=0,"",'Со снижением'!G25) -> 2023-04-30 | C27: =IF(O26=0,"",'Со снижением'!H25) -> 30 | D27: =IF(O26=0,"",'Со снижением'!I25) -> 0.30% | E27: =IF(O26=0,"",'Со снижением'!L25) -> 5,357,815.85 | F27: =IF(O26=0,"",'Со снижением'!M25) -> 0.00 | G27: =IF(O26=0,"",'Со снижением'!J25) -> 15,946.00 | H27: =IF(O26=0,"",'Со снижением'!N25) -> 1,321.11 | I27: =IF(O26=0,"",'Со снижением'!P25) -> 1,321.11 | J27: =IF(O26=0,"",'Со снижением'!O25) -> 14,624.89 | K27: =IF(O26=0,"",'Со снижением'!Q25) -> 0.00 | L27: =IF(O26=0,"",'Со снижением'!R25) -> 0.00 | M27: =IF(O26=0,"",'Со снижением'!S25) -> 5,343,190.96 | N27: =IF(O26=0,"",'Со снижением'!T25) -> 0.00 | O27: 5,343,190.96
A28: 10 | B28: =IF(O27=0,"",'Со снижением'!G26) -> 2023-05-31 | C28: =IF(O27=0,"",'Со снижением'!H26) -> 31 | D28: =IF(O27=0,"",'Со снижением'!I26) -> 0.30% | E28: =IF(O27=0,"",'Со снижением'!L26) -> 5,343,190.96 | F28: =IF(O27=0,"",'Со снижением'!M26) -> 0.00 | G28: =IF(O27=0,"",'Со снижением'!J26) -> 15,946.00 | H28: =IF(O27=0,"",'Со снижением'!N26) -> 1,361.42 | I28: =IF(O27=0,"",'Со снижением'!P26) -> 1,361.42 | J28: =IF(O27=0,"",'Со снижением'!O26) -> 14,584.58 | K28: =IF(O27=0,"",'Со снижением'!Q26) -> 0.00 | L28: =IF(O27=0,"",'Со снижением'!R26) -> 0.00 | M28: =IF(O27=0,"",'Со снижением'!S26) -> 5,328,606.38 | N28: =IF(O27=0,"",'Со снижением'!T26) -> 0.00 | O28: 5,328,606.38
A29: 11 | B29: =IF(O28=0,"",'Со снижением'!G27) -> 2023-06-30 | C29: =IF(O28=0,"",'Со снижением'!H27) -> 30 | D29: =IF(O28=0,"",'Со снижением'!I27) -> 0.30% | E29: =IF(O28=0,"",'Со снижением'!L27) -> 5,328,606.38 | F29: =IF(O28=0,"",'Со снижением'!M27) -> 0.00 | G29: =IF(O28=0,"",'Со снижением'!J27) -> 15,946.00 | H29: =IF(O28=0,"",'Со снижением'!N27) -> 1,313.90 | I29: =IF(O28=0,"",'Со снижением'!P27) -> 1,313.90 | J29: =IF(O28=0,"",'Со снижением'!O27) -> 14,632.10 | K29: =IF(O28=0,"",'Со снижением'!Q27) -> 0.00 | L29: =IF(O28=0,"",'Со снижением'!R27) -> 0.00 | M29: =IF(O28=0,"",'Со снижением'!S27) -> 5,313,974.28 | N29: =IF(O28=0,"",'Со снижением'!T27) -> 0.00 | O29: 5,313,974.28
A30: 12 | B30: =IF(O29=0,"",'Со снижением'!G28) -> 2023-07-31 | C30: =IF(O29=0,"",'Со снижением'!H28) -> 31 | D30: =IF(O29=0,"",'Со снижением'!I28) -> 0.30% | E30: =IF(O29=0,"",'Со снижением'!L28) -> 5,313,974.28 | F30: =IF(O29=0,"",'Со снижением'!M28) -> 0.00 | G30: =IF(O29=0,"",'Со снижением'!J28) -> 15,946.00 | H30: =IF(O29=0,"",'Со снижением'!N28) -> 1,353.97 | I30: =IF(O29=0,"",'Со снижением'!P28) -> 1,353.97 | J30: =IF(O29=0,"",'Со снижением'!O28) -> 14,592.03 | K30: =IF(O29=0,"",'Со снижением'!Q28) -> 0.00 | L30: =IF(O29=0,"",'Со снижением'!R28) -> 0.00 | M30: =IF(O29=0,"",'Со снижением'!S28) -> 5,299,382.25 | N30: =IF(O29=0,"",'Со снижением'!T28) -> 0.00 | O30: 5,299,382.25
A31: 13 | B31: =IF(O30=0,"",'Со снижением'!G29) -> 2023-08-31 | C31: =IF(O30=0,"",'Со снижением'!H29) -> 31 | D31: =IF(O30=0,"",'Со снижением'!I29) -> 0.30% | E31: =IF(O30=0,"",'Со снижением'!L29) -> 5,299,382.25 | F31: =IF(O30=0,"",'Со снижением'!M29) -> 0.00 | G31: =IF(O30=0,"",'Со снижением'!J29) -> 15,946.00 | H31: =IF(O30=0,"",'Со снижением'!N29) -> 1,350.25 | I31: =IF(O30=0,"",'Со снижением'!P29) -> 1,350.25 | J31: =IF(O30=0,"",'Со снижением'!O29) -> 14,595.75 | K31: =IF(O30=0,"",'Со снижением'!Q29) -> 0.00 | L31: =IF(O30=0,"",'Со снижением'!R29) -> 0.00 | M31: =IF(O30=0,"",'Со снижением'!S29) -> 5,284,786.50 | N31: =IF(O30=0,"",'Со снижением'!T29) -> 0.00 | O31: 5,284,786.50
A32: 14 | B32: =IF(O31=0,"",'Со снижением'!G30) -> 2023-09-30 | C32: =IF(O31=0,"",'Со снижением'!H30) -> 30 | D32: =IF(O31=0,"",'Со снижением'!I30) -> 0.30% | E32: =IF(O31=0,"",'Со снижением'!L30) -> 5,284,786.50 | F32: =IF(O31=0,"",'Со снижением'!M30) -> 0.00 | G32: =IF(O31=0,"",'Со снижением'!J30) -> 15,946.00 | H32: =IF(O31=0,"",'Со снижением'!N30) -> 1,303.10 | I32: =IF(O31=0,"",'Со снижением'!P30) -> 1,303.10 | J32: =IF(O31=0,"",'Со снижением'!O30) -> 14,642.90 | K32: =IF(O31=0,"",'Со снижением'!Q30) -> 0.00 | L32: =IF(O31=0,"",'Со снижением'!R30) -> 0.00 | M32: =IF(O31=0,"",'Со снижением'!S30) -> 5,270,143.60 | N32: =IF(O31=0,"",'Со снижением'!T30) -> 0.00 | O32: 5,270,143.60
A33: 15 | B33: =IF(O32=0,"",'Со снижением'!G31) -> 2023-10-31 | C33: =IF(O32=0,"",'Со снижением'!H31) -> 31 | D33: =IF(O32=0,"",'Со снижением'!I31) -> 0.30% | E33: =IF(O32=0,"",'Со снижением'!L31) -> 5,270,143.60 | F33: =IF(O32=0,"",'Со снижением'!M31) -> 0.00 | G33: =IF(O32=0,"",'Со снижением'!J31) -> 15,946.00 | H33: =IF(O32=0,"",'Со снижением'!N31) -> 1,342.80 | I33: =IF(O32=0,"",'Со снижением'!P31) -> 1,342.80 | J33: =IF(O32=0,"",'Со снижением'!O31) -> 14,603.20 | K33: =IF(O32=0,"",'Со снижением'!Q31) -> 0.00 | L33: =IF(O32=0,"",'Со снижением'!R31) -> 0.00 | M33: =IF(O32=0,"",'Со снижением'!S31) -> 5,255,540.40 | N33: =IF(O32=0,"",'Со снижением'!T31) -> 0.00 | O33: 5,255,540.40
A34: 16 | B34: =IF(O33=0,"",'Со снижением'!G32) -> 2023-11-30 | C34: =IF(O33=0,"",'Со снижением'!H32) -> 30 | D34: =IF(O33=0,"",'Со снижением'!I32) -> 0.30% | E34: =IF(O33=0,"",'Со снижением'!L32) -> 5,255,540.40 | F34: =IF(O33=0,"",'Со снижением'!M32) -> 0.00 | G34: =IF(O33=0,"",'Со снижением'!J32) -> 15,946.00 | H34: =IF(O33=0,"",'Со снижением'!N32) -> 1,295.89 | I34: =IF(O33=0,"",'Со снижением'!P32) -> 1,295.89 | J34: =IF(O33=0,"",'Со снижением'!O32) -> 14,650.11 | K34: =IF(O33=0,"",'Со снижением'!Q32) -> 0.00 | L34: =IF(O33=0,"",'Со снижением'!R32) -> 0.00 | M34: =IF(O33=0,"",'Со снижением'!S32) -> 5,240,890.29 | N34: =IF(O33=0,"",'Со снижением'!T32) -> 0.00 | O34: 5,240,890.29
A35: 17 | B35: =IF(O34=0,"",'Со снижением'!G33) -> 2023-12-31 | C35: =IF(O34=0,"",'Со снижением'!H33) -> 31 | D35: =IF(O34=0,"",'Со снижением'!I33) -> 0.30% | E35: =IF(O34=0,"",'Со снижением'!L33) -> 5,240,890.29 | F35: =IF(O34=0,"",'Со снижением'!M33) -> 0.00 | G35: =IF(O34=0,"",'Со снижением'!J33) -> 15,946.00 | H35: =IF(O34=0,"",'Со снижением'!N33) -> 1,335.35 | I35: =IF(O34=0,"",'Со снижением'!P33) -> 1,335.35 | J35: =IF(O34=0,"",'Со снижением'!O33) -> 14,610.65 | K35: =IF(O34=0,"",'Со снижением'!Q33) -> 0.00 | L35: =IF(O34=0,"",'Со снижением'!R33) -> 0.00 | M35: =IF(O34=0,"",'Со снижением'!S33) -> 5,226,279.64 | N35: =IF(O34=0,"",'Со снижением'!T33) -> 0.00 | O35: 5,226,279.64
A36: 18 | B36: =IF(O35=0,"",'Со снижением'!G34) -> 2024-01-31 | C36: =IF(O35=0,"",'Со снижением'!H34) -> 31 | D36: =IF(O35=0,"",'Со снижением'!I34) -> 0.30% | E36: =IF(O35=0,"",'Со снижением'!L34) -> 5,226,279.64 | F36: =IF(O35=0,"",'Со снижением'!M34) -> 0.00 | G36: =IF(O35=0,"",'Со снижением'!J34) -> 15,946.00 | H36: =IF(O35=0,"",'Со снижением'!N34) -> 1,327.99 | I36: =IF(O35=0,"",'Со снижением'!P34) -> 1,327.99 | J36: =IF(O35=0,"",'Со снижением'!O34) -> 14,618.01 | K36: =IF(O35=0,"",'Со снижением'!Q34) -> 0.00 | L36: =IF(O35=0,"",'Со снижением'!R34) -> 0.00 | M36: =IF(O35=0,"",'Со снижением'!S34) -> 5,211,661.63 | N36: =IF(O35=0,"",'Со снижением'!T34) -> 0.00 | O36: 5,211,661.63
A37: 19 | B37: =IF(O36=0,"",'Со снижением'!G35) -> 2024-02-29 | C37: =IF(O36=0,"",'Со снижением'!H35) -> 29 | D37: =IF(O36=0,"",'Со снижением'!I35) -> 0.30% | E37: =IF(O36=0,"",'Со снижением'!L35) -> 5,211,661.63 | F37: =IF(O36=0,"",'Со снижением'!M35) -> 0.00 | G37: =IF(O36=0,"",'Со снижением'!J35) -> 15,946.00 | H37: =IF(O36=0,"",'Со снижением'!N35) -> 1,238.84 | I37: =IF(O36=0,"",'Со снижением'!P35) -> 1,238.84 | J37: =IF(O36=0,"",'Со снижением'!O35) -> 14,707.16 | K37: =IF(O36=0,"",'Со снижением'!Q35) -> 0.00 | L37: =IF(O36=0,"",'Со снижением'!R35) -> 0.00 | M37: =IF(O36=0,"",'Со снижением'!S35) -> 5,196,954.47 | N37: =IF(O36=0,"",'Со снижением'!T35) -> 0.00 | O37: 5,196,954.47
A38: 20 | B38: =IF(O37=0,"",'Со снижением'!G36) -> 2024-03-31 | C38: =IF(O37=0,"",'Со снижением'!H36) -> 31 | D38: =IF(O37=0,"",'Со снижением'!I36) -> 0.30% | E38: =IF(O37=0,"",'Со снижением'!L36) -> 5,196,954.47 | F38: =IF(O37=0,"",'Со снижением'!M36) -> 0.00 | G38: =IF(O37=0,"",'Со снижением'!J36) -> 15,946.00 | H38: =IF(O37=0,"",'Со снижением'!N36) -> 1,320.54 | I38: =IF(O37=0,"",'Со снижением'!P36) -> 1,320.54 | J38: =IF(O37=0,"",'Со снижением'!O36) -> 14,625.46 | K38: =IF(O37=0,"",'Со снижением'!Q36) -> 0.00 | L38: =IF(O37=0,"",'Со снижением'!R36) -> 0.00 | M38: =IF(O37=0,"",'Со снижением'!S36) -> 5,182,329.01 | N38: =IF(O37=0,"",'Со снижением'!T36) -> 0.00 | O38: 5,182,329.01
A39: 21 | B39: =IF(O38=0,"",'Со снижением'!G37) -> 2024-04-30 | C39: =IF(O38=0,"",'Со снижением'!H37) -> 30 | D39: =IF(O38=0,"",'Со снижением'!I37) -> 0.30% | E39: =IF(O38=0,"",'Со снижением'!L37) -> 5,182,329.01 | F39: =IF(O38=0,"",'Со снижением'!M37) -> 0.00 | G39: =IF(O38=0,"",'Со снижением'!J37) -> 15,946.00 | H39: =IF(O38=0,"",'Со снижением'!N37) -> 1,274.34 | I39: =IF(O38=0,"",'Со снижением'!P37) -> 1,274.34 | J39: =IF(O38=0,"",'Со снижением'!O37) -> 14,671.66 | K39: =IF(O38=0,"",'Со снижением'!Q37) -> 0.00 | L39: =IF(O38=0,"",'Со снижением'!R37) -> 0.00 | M39: =IF(O38=0,"",'Со снижением'!S37) -> 5,167,657.35 | N39: =IF(O38=0,"",'Со снижением'!T37) -> 0.00 | O39: 5,167,657.35
A40: 22 | B40: =IF(O39=0,"",'Со снижением'!G38) -> 2024-05-31 | C40: =IF(O39=0,"",'Со снижением'!H38) -> 31 | D40: =IF(O39=0,"",'Со снижением'!I38) -> 0.30% | E40: =IF(O39=0,"",'Со снижением'!L38) -> 5,167,657.35 | F40: =IF(O39=0,"",'Со снижением'!M38) -> 0.00 | G40: =IF(O39=0,"",'Со снижением'!J38) -> 15,946.00 | H40: =IF(O39=0,"",'Со снижением'!N38) -> 1,313.09 | I40: =IF(O39=0,"",'Со снижением'!P38) -> 1,313.09 | J40: =IF(O39=0,"",'Со снижением'!O38) -> 14,632.91 | K40: =IF(O39=0,"",'Со снижением'!Q38) -> 0.00 | L40: =IF(O39=0,"",'Со снижением'!R38) -> 0.00 | M40: =IF(O39=0,"",'Со снижением'!S38) -> 5,153,024.44 | N40: =IF(O39=0,"",'Со снижением'!T38) -> 0.00 | O40: 5,153,024.44
A41: 23 | B41: =IF(O40=0,"",'Со снижением'!G39) -> 2024-06-30 | C41: =IF(O40=0,"",'Со снижением'!H39) -> 30 | D41: =IF(O40=0,"",'Со снижением'!I39) -> 0.30% | E41: =IF(O40=0,"",'Со снижением'!L39) -> 5,153,024.44 | F41: =IF(O40=0,"",'Со снижением'!M39) -> 0.00 | G41: =IF(O40=0,"",'Со снижением'!J39) -> 15,946.00 | H41: =IF(O40=0,"",'Со снижением'!N39) -> 1,267.14 | I41: =IF(O40=0,"",'Со снижением'!P39) -> 1,267.14 | J41: =IF(O40=0,"",'Со снижением'!O39) -> 14,678.86 | K41: =IF(O40=0,"",'Со снижением'!Q39) -> 0.00 | L41: =IF(O40=0,"",'Со снижением'!R39) -> 0.00 | M41: =IF(O40=0,"",'Со снижением'!S39) -> 5,138,345.58 | N41: =IF(O40=0,"",'Со снижением'!T39) -> 0.00 | O41: 5,138,345.58
A42: 24 | B42: =IF(O41=0,"",'Со снижением'!G40) -> 2024-07-31 | C42: =IF(O41=0,"",'Со снижением'!H40) -> 31 | D42: =IF(O41=0,"",'Со снижением'!I40) -> 0.30% | E42: =IF(O41=0,"",'Со снижением'!L40) -> 5,138,345.58 | F42: =IF(O41=0,"",'Со снижением'!M40) -> 0.00 | G42: =IF(O41=0,"",'Со снижением'!J40) -> 15,946.00 | H42: =IF(O41=0,"",'Со снижением'!N40) -> 1,305.65 | I42: =IF(O41=0,"",'Со снижением'!P40) -> 1,305.65 | J42: =IF(O41=0,"",'Со снижением'!O40) -> 14,640.35 | K42: =IF(O41=0,"",'Со снижением'!Q40) -> 0.00 | L42: =IF(O41=0,"",'Со снижением'!R40) -> 0.00 | M42: =IF(O41=0,"",'Со снижением'!S40) -> 5,123,705.23 | N42: =IF(O41=0,"",'Со снижением'!T40) -> 0.00 | O42: 5,123,705.23
A43: 25 | B43: =IF(O42=0,"",'Со снижением'!G41) -> 2024-08-31 | C43: =IF(O42=0,"",'Со снижением'!H41) -> 31 | D43: =IF(O42=0,"",'Со снижением'!I41) -> 0.30% | E43: =IF(O42=0,"",'Со снижением'!L41) -> 5,123,705.23 | F43: =IF(O42=0,"",'Со снижением'!M41) -> 0.00 | G43: =IF(O42=0,"",'Со снижением'!J41) -> 15,946.00 | H43: =IF(O42=0,"",'Со снижением'!N41) -> 1,301.93 | I43: =IF(O42=0,"",'Со снижением'!P41) -> 1,301.93 | J43: =IF(O42=0,"",'Со снижением'!O41) -> 14,644.07 | K43: =IF(O42=0,"",'Со снижением'!Q41) -> 0.00 | L43: =IF(O42=0,"",'Со снижением'!R41) -> 0.00 | M43: =IF(O42=0,"",'Со снижением'!S41) -> 5,109,061.16 | N43: =IF(O42=0,"",'Со снижением'!T41) -> 0.00 | O43: 5,109,061.16
A44: 26 | B44: =IF(O43=0,"",'Со снижением'!G42) -> 2024-09-30 | C44: =IF(O43=0,"",'Со снижением'!H42) -> 30 | D44: =IF(O43=0,"",'Со снижением'!I42) -> 0.30% | E44: =IF(O43=0,"",'Со снижением'!L42) -> 5,109,061.16 | F44: =IF(O43=0,"",'Со снижением'!M42) -> 0.00 | G44: =IF(O43=0,"",'Со снижением'!J42) -> 15,946.00 | H44: =IF(O43=0,"",'Со снижением'!N42) -> 1,256.33 | I44: =IF(O43=0,"",'Со снижением'!P42) -> 1,256.33 | J44: =IF(O43=0,"",'Со снижением'!O42) -> 14,689.67 | K44: =IF(O43=0,"",'Со снижением'!Q42) -> 0.00 | L44: =IF(O43=0,"",'Со снижением'!R42) -> 0.00 | M44: =IF(O43=0,"",'Со снижением'!S42) -> 5,094,371.49 | N44: =IF(O43=0,"",'Со снижением'!T42) -> 0.00 | O44: 5,094,371.49
A45: 27 | B45: =IF(O44=0,"",'Со снижением'!G43) -> 2024-10-31 | C45: =IF(O44=0,"",'Со снижением'!H43) -> 31 | D45: =IF(O44=0,"",'Со снижением'!I43) -> 0.30% | E45: =IF(O44=0,"",'Со снижением'!L43) -> 5,094,371.49 | F45: =IF(O44=0,"",'Со снижением'!M43) -> 0.00 | G45: =IF(O44=0,"",'Со снижением'!J43) -> 15,946.00 | H45: =IF(O44=0,"",'Со снижением'!N43) -> 1,294.47 | I45: =IF(O44=0,"",'Со снижением'!P43) -> 1,294.47 | J45: =IF(O44=0,"",'Со снижением'!O43) -> 14,651.53 | K45: =IF(O44=0,"",'Со снижением'!Q43) -> 0.00 | L45: =IF(O44=0,"",'Со снижением'!R43) -> 0.00 | M45: =IF(O44=0,"",'Со снижением'!S43) -> 5,079,719.96 | N45: =IF(O44=0,"",'Со снижением'!T43) -> 0.00 | O45: 5,079,719.96
A46: 28 | B46: =IF(O45=0,"",'Со снижением'!G44) -> 2024-11-30 | C46: =IF(O45=0,"",'Со снижением'!H44) -> 30 | D46: =IF(O45=0,"",'Со снижением'!I44) -> 0.30% | E46: =IF(O45=0,"",'Со снижением'!L44) -> 5,079,719.96 | F46: =IF(O45=0,"",'Со снижением'!M44) -> 0.00 | G46: =IF(O45=0,"",'Со снижением'!J44) -> 15,946.00 | H46: =IF(O45=0,"",'Со снижением'!N44) -> 1,249.11 | I46: =IF(O45=0,"",'Со снижением'!P44) -> 1,249.11 | J46: =IF(O45=0,"",'Со снижением'!O44) -> 14,696.89 | K46: =IF(O45=0,"",'Со снижением'!Q44) -> 0.00 | L46: =IF(O45=0,"",'Со снижением'!R44) -> 0.00 | M46: =IF(O45=0,"",'Со снижением'!S44) -> 5,065,023.07 | N46: =IF(O45=0,"",'Со снижением'!T44) -> 0.00 | O46: 5,065,023.07
A47: 29 | B47: =IF(O46=0,"",'Со снижением'!G45) -> 2024-12-31 | C47: =IF(O46=0,"",'Со снижением'!H45) -> 31 | D47: =IF(O46=0,"",'Со снижением'!I45) -> 0.30% | E47: =IF(O46=0,"",'Со снижением'!L45) -> 5,065,023.07 | F47: =IF(O46=0,"",'Со снижением'!M45) -> 0.00 | G47: =IF(O46=0,"",'Со снижением'!J45) -> 15,946.00 | H47: =IF(O46=0,"",'Со снижением'!N45) -> 1,287.01 | I47: =IF(O46=0,"",'Со снижением'!P45) -> 1,287.01 | J47: =IF(O46=0,"",'Со снижением'!O45) -> 14,658.99 | K47: =IF(O46=0,"",'Со снижением'!Q45) -> 0.00 | L47: =IF(O46=0,"",'Со снижением'!R45) -> 0.00 | M47: =IF(O46=0,"",'Со снижением'!S45) -> 5,050,364.08 | N47: =IF(O46=0,"",'Со снижением'!T45) -> 0.00 | O47: 5,050,364.08
A48: 30 | B48: =IF(O47=0,"",'Со снижением'!G46) -> 2025-01-31 | C48: =IF(O47=0,"",'Со снижением'!H46) -> 31 | D48: =IF(O47=0,"",'Со снижением'!I46) -> 0.30% | E48: =IF(O47=0,"",'Со снижением'!L46) -> 5,050,364.08 | F48: =IF(O47=0,"",'Со снижением'!M46) -> 0.00 | G48: =IF(O47=0,"",'Со снижением'!J46) -> 15,946.00 | H48: =IF(O47=0,"",'Со снижением'!N46) -> 1,286.81 | I48: =IF(O47=0,"",'Со снижением'!P46) -> 1,286.81 | J48: =IF(O47=0,"",'Со снижением'!O46) -> 14,659.19 | K48: =IF(O47=0,"",'Со снижением'!Q46) -> 0.00 | L48: =IF(O47=0,"",'Со снижением'!R46) -> 0.00 | M48: =IF(O47=0,"",'Со снижением'!S46) -> 5,035,704.89 | N48: =IF(O47=0,"",'Со снижением'!T46) -> 0.00 | O48: 5,035,704.89
A49: 31 | B49: =IF(O48=0,"",'Со снижением'!G47) -> 2025-02-28 | C49: =IF(O48=0,"",'Со снижением'!H47) -> 28 | D49: =IF(O48=0,"",'Со снижением'!I47) -> 0.30% | E49: =IF(O48=0,"",'Со снижением'!L47) -> 5,035,704.89 | F49: =IF(O48=0,"",'Со снижением'!M47) -> 0.00 | G49: =IF(O48=0,"",'Со снижением'!J47) -> 15,946.00 | H49: =IF(O48=0,"",'Со снижением'!N47) -> 1,158.90 | I49: =IF(O48=0,"",'Со снижением'!P47) -> 1,158.90 | J49: =IF(O48=0,"",'Со снижением'!O47) -> 14,787.10 | K49: =IF(O48=0,"",'Со снижением'!Q47) -> 0.00 | L49: =IF(O48=0,"",'Со снижением'!R47) -> 0.00 | M49: =IF(O48=0,"",'Со снижением'!S47) -> 5,020,917.79 | N49: =IF(O48=0,"",'Со снижением'!T47) -> 0.00 | O49: 5,020,917.79
A50: 32 | B50: =IF(O49=0,"",'Со снижением'!G48) -> 2025-03-31 | C50: =IF(O49=0,"",'Со снижением'!H48) -> 31 | D50: =IF(O49=0,"",'Со снижением'!I48) -> 0.30% | E50: =IF(O49=0,"",'Со снижением'!L48) -> 5,020,917.79 | F50: =IF(O49=0,"",'Со снижением'!M48) -> 0.00 | G50: =IF(O49=0,"",'Со снижением'!J48) -> 15,946.00 | H50: =IF(O49=0,"",'Со снижением'!N48) -> 1,279.30 | I50: =IF(O49=0,"",'Со снижением'!P48) -> 1,279.30 | J50: =IF(O49=0,"",'Со снижением'!O48) -> 14,666.70 | K50: =IF(O49=0,"",'Со снижением'!Q48) -> 0.00 | L50: =IF(O49=0,"",'Со снижением'!R48) -> 0.00 | M50: =IF(O49=0,"",'Со снижением'!S48) -> 5,006,251.09 | N50: =IF(O49=0,"",'Со снижением'!T48) -> 0.00 | O50: 5,006,251.09
A51: 33 | B51: =IF(O50=0,"",'Со снижением'!G49) -> 2025-04-30 | C51: =IF(O50=0,"",'Со снижением'!H49) -> 30 | D51: =IF(O50=0,"",'Со снижением'!I49) -> 0.30% | E51: =IF(O50=0,"",'Со снижением'!L49) -> 5,006,251.09 | F51: =IF(O50=0,"",'Со снижением'!M49) -> 0.00 | G51: =IF(O50=0,"",'Со снижением'!J49) -> 15,946.00 | H51: =IF(O50=0,"",'Со снижением'!N49) -> 1,234.42 | I51: =IF(O50=0,"",'Со снижением'!P49) -> 1,234.42 | J51: =IF(O50=0,"",'Со снижением'!O49) -> 14,711.58 | K51: =IF(O50=0,"",'Со снижением'!Q49) -> 0.00 | L51: =IF(O50=0,"",'Со снижением'!R49) -> 0.00 | M51: =IF(O50=0,"",'Со снижением'!S49) -> 4,991,539.51 | N51: =IF(O50=0,"",'Со снижением'!T49) -> 0.00 | O51: 4,991,539.51
A52: 34 | B52: =IF(O51=0,"",'Со снижением'!G50) -> 2025-05-31 | C52: =IF(O51=0,"",'Со снижением'!H50) -> 31 | D52: =IF(O51=0,"",'Со снижением'!I50) -> 0.30% | E52: =IF(O51=0,"",'Со снижением'!L50) -> 4,991,539.51 | F52: =IF(O51=0,"",'Со снижением'!M50) -> 0.00 | G52: =IF(O51=0,"",'Со снижением'!J50) -> 15,946.00 | H52: =IF(O51=0,"",'Со снижением'!N50) -> 1,271.82 | I52: =IF(O51=0,"",'Со снижением'!P50) -> 1,271.82 | J52: =IF(O51=0,"",'Со снижением'!O50) -> 14,674.18 | K52: =IF(O51=0,"",'Со снижением'!Q50) -> 0.00 | L52: =IF(O51=0,"",'Со снижением'!R50) -> 0.00 | M52: =IF(O51=0,"",'Со снижением'!S50) -> 4,976,865.33 | N52: =IF(O51=0,"",'Со снижением'!T50) -> 0.00 | O52: 4,976,865.33
A53: 35 | B53: =IF(O52=0,"",'Со снижением'!G51) -> 2025-06-30 | C53: =IF(O52=0,"",'Со снижением'!H51) -> 30 | D53: =IF(O52=0,"",'Со снижением'!I51) -> 0.30% | E53: =IF(O52=0,"",'Со снижением'!L51) -> 4,976,865.33 | F53: =IF(O52=0,"",'Со снижением'!M51) -> 0.00 | G53: =IF(O52=0,"",'Со снижением'!J51) -> 15,946.00 | H53: =IF(O52=0,"",'Со снижением'!N51) -> 1,227.17 | I53: =IF(O52=0,"",'Со снижением'!P51) -> 1,227.17 | J53: =IF(O52=0,"",'Со снижением'!O51) -> 14,718.83 | K53: =IF(O52=0,"",'Со снижением'!Q51) -> 0.00 | L53: =IF(O52=0,"",'Со снижением'!R51) -> 0.00 | M53: =IF(O52=0,"",'Со снижением'!S51) -> 4,962,146.50 | N53: =IF(O52=0,"",'Со снижением'!T51) -> 0.00 | O53: 4,962,146.50
A54: 36 | B54: =IF(O53=0,"",'Со снижением'!G52) -> 2025-07-31 | C54: =IF(O53=0,"",'Со снижением'!H52) -> 31 | D54: =IF(O53=0,"",'Со снижением'!I52) -> 0.30% | E54: =IF(O53=0,"",'Со снижением'!L52) -> 4,962,146.50 | F54: =IF(O53=0,"",'Со снижением'!M52) -> 0.00 | G54: =IF(O53=0,"",'Со снижением'!J52) -> 15,946.00 | H54: =IF(O53=0,"",'Со снижением'!N52) -> 1,264.33 | I54: =IF(O53=0,"",'Со снижением'!P52) -> 1,264.33 | J54: =IF(O53=0,"",'Со снижением'!O52) -> 14,681.67 | K54: =IF(O53=0,"",'Со снижением'!Q52) -> 0.00 | L54: =IF(O53=0,"",'Со снижением'!R52) -> 0.00 | M54: =IF(O53=0,"",'Со снижением'!S52) -> 4,947,464.83 | N54: =IF(O53=0,"",'Со снижением'!T52) -> 0.00 | O54: 4,947,464.83
A55: 37 | B55: =IF(O54=0,"",'Со снижением'!G53) -> 2025-08-31 | C55: =IF(O54=0,"",'Со снижением'!H53) -> 31 | D55: =IF(O54=0,"",'Со снижением'!I53) -> 0.30% | E55: =IF(O54=0,"",'Со снижением'!L53) -> 4,947,464.83 | F55: =IF(O54=0,"",'Со снижением'!M53) -> 0.00 | G55: =IF(O54=0,"",'Со снижением'!J53) -> 15,946.00 | H55: =IF(O54=0,"",'Со снижением'!N53) -> 1,260.59 | I55: =IF(O54=0,"",'Со снижением'!P53) -> 1,260.59 | J55: =IF(O54=0,"",'Со снижением'!O53) -> 14,685.41 | K55: =IF(O54=0,"",'Со снижением'!Q53) -> 0.00 | L55: =IF(O54=0,"",'Со снижением'!R53) -> 0.00 | M55: =IF(O54=0,"",'Со снижением'!S53) -> 4,932,779.42 | N55: =IF(O54=0,"",'Со снижением'!T53) -> 0.00 | O55: 4,932,779.42
A56: 38 | B56: =IF(O55=0,"",'Со снижением'!G54) -> 2025-09-30 | C56: =IF(O55=0,"",'Со снижением'!H54) -> 30 | D56: =IF(O55=0,"",'Со снижением'!I54) -> 0.30% | E56: =IF(O55=0,"",'Со снижением'!L54) -> 4,932,779.42 | F56: =IF(O55=0,"",'Со снижением'!M54) -> 0.00 | G56: =IF(O55=0,"",'Со снижением'!J54) -> 15,946.00 | H56: =IF(O55=0,"",'Со снижением'!N54) -> 1,216.30 | I56: =IF(O55=0,"",'Со снижением'!P54) -> 1,216.30 | J56: =IF(O55=0,"",'Со снижением'!O54) -> 14,729.70 | K56: =IF(O55=0,"",'Со снижением'!Q54) -> 0.00 | L56: =IF(O55=0,"",'Со снижением'!R54) -> 0.00 | M56: =IF(O55=0,"",'Со снижением'!S54) -> 4,918,049.72 | N56: =IF(O55=0,"",'Со снижением'!T54) -> 0.00 | O56: 4,918,049.72
A57: 39 | B57: =IF(O56=0,"",'Со снижением'!G55) -> 2025-10-31 | C57: =IF(O56=0,"",'Со снижением'!H55) -> 31 | D57: =IF(O56=0,"",'Со снижением'!I55) -> 0.30% | E57: =IF(O56=0,"",'Со снижением'!L55) -> 4,918,049.72 | F57: =IF(O56=0,"",'Со снижением'!M55) -> 0.00 | G57: =IF(O56=0,"",'Со снижением'!J55) -> 15,946.00 | H57: =IF(O56=0,"",'Со снижением'!N55) -> 1,253.09 | I57: =IF(O56=0,"",'Со снижением'!P55) -> 1,253.09 | J57: =IF(O56=0,"",'Со снижением'!O55) -> 14,692.91 | K57: =IF(O56=0,"",'Со снижением'!Q55) -> 0.00 | L57: =IF(O56=0,"",'Со снижением'!R55) -> 0.00 | M57: =IF(O56=0,"",'Со снижением'!S55) -> 4,903,356.81 | N57: =IF(O56=0,"",'Со снижением'!T55) -> 0.00 | O57: 4,903,356.81
A58: 40 | B58: =IF(O57=0,"",'Со снижением'!G56) -> 2025-11-30 | C58: =IF(O57=0,"",'Со снижением'!H56) -> 30 | D58: =IF(O57=0,"",'Со снижением'!I56) -> 0.30% | E58: =IF(O57=0,"",'Со снижением'!L56) -> 4,903,356.81 | F58: =IF(O57=0,"",'Со снижением'!M56) -> 0.00 | G58: =IF(O57=0,"",'Со снижением'!J56) -> 15,946.00 | H58: =IF(O57=0,"",'Со снижением'!N56) -> 1,209.05 | I58: =IF(O57=0,"",'Со снижением'!P56) -> 1,209.05 | J58: =IF(O57=0,"",'Со снижением'!O56) -> 14,736.95 | K58: =IF(O57=0,"",'Со снижением'!Q56) -> 0.00 | L58: =IF(O57=0,"",'Со снижением'!R56) -> 0.00 | M58: =IF(O57=0,"",'Со снижением'!S56) -> 4,888,619.86 | N58: =IF(O57=0,"",'Со снижением'!T56) -> 0.00 | O58: 4,888,619.86
A59: 41 | B59: =IF(O58=0,"",'Со снижением'!G57) -> 2025-12-31 | C59: =IF(O58=0,"",'Со снижением'!H57) -> 31 | D59: =IF(O58=0,"",'Со снижением'!I57) -> 0.30% | E59: =IF(O58=0,"",'Со снижением'!L57) -> 4,888,619.86 | F59: =IF(O58=0,"",'Со снижением'!M57) -> 0.00 | G59: =IF(O58=0,"",'Со снижением'!J57) -> 15,946.00 | H59: =IF(O58=0,"",'Со снижением'!N57) -> 1,245.59 | I59: =IF(O58=0,"",'Со снижением'!P57) -> 1,245.59 | J59: =IF(O58=0,"",'Со снижением'!O57) -> 14,700.41 | K59: =IF(O58=0,"",'Со снижением'!Q57) -> 0.00 | L59: =IF(O58=0,"",'Со снижением'!R57) -> 0.00 | M59: =IF(O58=0,"",'Со снижением'!S57) -> 4,873,919.45 | N59: =IF(O58=0,"",'Со снижением'!T57) -> 0.00 | O59: 4,873,919.45
A60: 42 | B60: =IF(O59=0,"",'Со снижением'!G58) -> 2026-01-31 | C60: =IF(O59=0,"",'Со снижением'!H58) -> 31 | D60: =IF(O59=0,"",'Со снижением'!I58) -> 0.30% | E60: =IF(O59=0,"",'Со снижением'!L58) -> 4,873,919.45 | F60: =IF(O59=0,"",'Со снижением'!M58) -> 0.00 | G60: =IF(O59=0,"",'Со снижением'!J58) -> 15,946.00 | H60: =IF(O59=0,"",'Со снижением'!N58) -> 1,241.85 | I60: =IF(O59=0,"",'Со снижением'!P58) -> 1,241.85 | J60: =IF(O59=0,"",'Со снижением'!O58) -> 14,704.15 | K60: =IF(O59=0,"",'Со снижением'!Q58) -> 0.00 | L60: =IF(O59=0,"",'Со снижением'!R58) -> 0.00 | M60: =IF(O59=0,"",'Со снижением'!S58) -> 4,859,215.30 | N60: =IF(O59=0,"",'Со снижением'!T58) -> 0.00 | O60: 4,859,215.30
A61: 43 | B61: =IF(O60=0,"",'Со снижением'!G59) -> 2026-02-28 | C61: =IF(O60=0,"",'Со снижением'!H59) -> 28 | D61: =IF(O60=0,"",'Со снижением'!I59) -> 0.30% | E61: =IF(O60=0,"",'Со снижением'!L59) -> 4,859,215.30 | F61: =IF(O60=0,"",'Со снижением'!M59) -> 0.00 | G61: =IF(O60=0,"",'Со снижением'!J59) -> 15,946.00 | H61: =IF(O60=0,"",'Со снижением'!N59) -> 1,118.29 | I61: =IF(O60=0,"",'Со снижением'!P59) -> 1,118.29 | J61: =IF(O60=0,"",'Со снижением'!O59) -> 14,827.71 | K61: =IF(O60=0,"",'Со снижением'!Q59) -> 0.00 | L61: =IF(O60=0,"",'Со снижением'!R59) -> 0.00 | M61: =IF(O60=0,"",'Со снижением'!S59) -> 4,844,387.59 | N61: =IF(O60=0,"",'Со снижением'!T59) -> 0.00 | O61: 4,844,387.59
A62: 44 | B62: =IF(O61=0,"",'Со снижением'!G60) -> 2026-03-31 | C62: =IF(O61=0,"",'Со снижением'!H60) -> 31 | D62: =IF(O61=0,"",'Со снижением'!I60) -> 0.30% | E62: =IF(O61=0,"",'Со снижением'!L60) -> 4,844,387.59 | F62: =IF(O61=0,"",'Со снижением'!M60) -> 0.00 | G62: =IF(O61=0,"",'Со снижением'!J60) -> 15,946.00 | H62: =IF(O61=0,"",'Со снижением'!N60) -> 1,234.32 | I62: =IF(O61=0,"",'Со снижением'!P60) -> 1,234.32 | J62: =IF(O61=0,"",'Со снижением'!O60) -> 14,711.68 | K62: =IF(O61=0,"",'Со снижением'!Q60) -> 0.00 | L62: =IF(O61=0,"",'Со снижением'!R60) -> 0.00 | M62: =IF(O61=0,"",'Со снижением'!S60) -> 4,829,675.91 | N62: =IF(O61=0,"",'Со снижением'!T60) -> 0.00 | O62: 4,829,675.91
A63: 45 | B63: =IF(O62=0,"",'Со снижением'!G61) -> 2026-04-30 | C63: =IF(O62=0,"",'Со снижением'!H61) -> 30 | D63: =IF(O62=0,"",'Со снижением'!I61) -> 0.30% | E63: =IF(O62=0,"",'Со снижением'!L61) -> 4,829,675.91 | F63: =IF(O62=0,"",'Со снижением'!M61) -> 0.00 | G63: =IF(O62=0,"",'Со снижением'!J61) -> 15,946.00 | H63: =IF(O62=0,"",'Со снижением'!N61) -> 1,190.88 | I63: =IF(O62=0,"",'Со снижением'!P61) -> 1,190.88 | J63: =IF(O62=0,"",'Со снижением'!O61) -> 14,755.12 | K63: =IF(O62=0,"",'Со снижением'!Q61) -> 0.00 | L63: =IF(O62=0,"",'Со снижением'!R61) -> 0.00 | M63: =IF(O62=0,"",'Со снижением'!S61) -> 4,814,920.79 | N63: =IF(O62=0,"",'Со снижением'!T61) -> 0.00 | O63: 4,814,920.79
A64: 46 | B64: =IF(O63=0,"",'Со снижением'!G62) -> 2026-05-31 | C64: =IF(O63=0,"",'Со снижением'!H62) -> 31 | D64: =IF(O63=0,"",'Со снижением'!I62) -> 0.30% | E64: =IF(O63=0,"",'Со снижением'!L62) -> 4,814,920.79 | F64: =IF(O63=0,"",'Со снижением'!M62) -> 0.00 | G64: =IF(O63=0,"",'Со снижением'!J62) -> 15,946.00 | H64: =IF(O63=0,"",'Со снижением'!N62) -> 1,226.82 | I64: =IF(O63=0,"",'Со снижением'!P62) -> 1,226.82 | J64: =IF(O63=0,"",'Со снижением'!O62) -> 14,719.18 | K64: =IF(O63=0,"",'Со снижением'!Q62) -> 0.00 | L64: =IF(O63=0,"",'Со снижением'!R62) -> 0.00 | M64: =IF(O63=0,"",'Со снижением'!S62) -> 4,800,201.61 | N64: =IF(O63=0,"",'Со снижением'!T62) -> 0.00 | O64: 4,800,201.61
A65: 47 | B65: =IF(O64=0,"",'Со снижением'!G63) -> 2026-06-30 | C65: =IF(O64=0,"",'Со снижением'!H63) -> 30 | D65: =IF(O64=0,"",'Со снижением'!I63) -> 0.30% | E65: =IF(O64=0,"",'Со снижением'!L63) -> 4,800,201.61 | F65: =IF(O64=0,"",'Со снижением'!M63) -> 0.00 | G65: =IF(O64=0,"",'Со снижением'!J63) -> 15,946.00 | H65: =IF(O64=0,"",'Со снижением'!N63) -> 1,183.61 | I65: =IF(O64=0,"",'Со снижением'!P63) -> 1,183.61 | J65: =IF(O64=0,"",'Со снижением'!O63) -> 14,762.39 | K65: =IF(O64=0,"",'Со снижением'!Q63) -> 0.00 | L65: =IF(O64=0,"",'Со снижением'!R63) -> 0.00 | M65: =IF(O64=0,"",'Со снижением'!S63) -> 4,785,439.22 | N65: =IF(O64=0,"",'Со снижением'!T63) -> 0.00 | O65: 4,785,439.22
A66: 48 | B66: =IF(O65=0,"",'Со снижением'!G64) -> 2026-07-31 | C66: =IF(O65=0,"",'Со снижением'!H64) -> 31 | D66: =IF(O65=0,"",'Со снижением'!I64) -> 0.30% | E66: =IF(O65=0,"",'Со снижением'!L64) -> 4,785,439.22 | F66: =IF(O65=0,"",'Со снижением'!M64) -> 0.00 | G66: =IF(O65=0,"",'Со снижением'!J64) -> 15,946.00 | H66: =IF(O65=0,"",'Со снижением'!N64) -> 1,219.30 | I66: =IF(O65=0,"",'Со снижением'!P64) -> 1,219.30 | J66: =IF(O65=0,"",'Со снижением'!O64) -> 14,726.70 | K66: =IF(O65=0,"",'Со снижением'!Q64) -> 0.00 | L66: =IF(O65=0,"",'Со снижением'!R64) -> 0.00 | M66: =IF(O65=0,"",'Со снижением'!S64) -> 4,770,712.52 | N66: =IF(O65=0,"",'Со снижением'!T64) -> 0.00 | O66: 4,770,712.52
A67: 49 | B67: =IF(O66=0,"",'Со снижением'!G65) -> 2026-08-31 | C67: =IF(O66=0,"",'Со снижением'!H65) -> 31 | D67: =IF(O66=0,"",'Со снижением'!I65) -> 0.30% | E67: =IF(O66=0,"",'Со снижением'!L65) -> 4,770,712.52 | F67: =IF(O66=0,"",'Со снижением'!M65) -> 0.00 | G67: =IF(O66=0,"",'Со снижением'!J65) -> 15,946.00 | H67: =IF(O66=0,"",'Со снижением'!N65) -> 1,215.55 | I67: =IF(O66=0,"",'Со снижением'!P65) -> 1,215.55 | J67: =IF(O66=0,"",'Со снижением'!O65) -> 14,730.45 | K67: =IF(O66=0,"",'Со снижением'!Q65) -> 0.00 | L67: =IF(O66=0,"",'Со снижением'!R65) -> 0.00 | M67: =IF(O66=0,"",'Со снижением'!S65) -> 4,755,982.07 | N67: =IF(O66=0,"",'Со снижением'!T65) -> 0.00 | O67: 4,755,982.07
A68: 50 | B68: =IF(O67=0,"",'Со снижением'!G66) -> 2026-09-30 | C68: =IF(O67=0,"",'Со снижением'!H66) -> 30 | D68: =IF(O67=0,"",'Со снижением'!I66) -> 0.30% | E68: =IF(O67=0,"",'Со снижением'!L66) -> 4,755,982.07 | F68: =IF(O67=0,"",'Со снижением'!M66) -> 0.00 | G68: =IF(O67=0,"",'Со снижением'!J66) -> 15,946.00 | H68: =IF(O67=0,"",'Со снижением'!N66) -> 1,172.71 | I68: =IF(O67=0,"",'Со снижением'!P66) -> 1,172.71 | J68: =IF(O67=0,"",'Со снижением'!O66) -> 14,773.29 | K68: =IF(O67=0,"",'Со снижением'!Q66) -> 0.00 | L68: =IF(O67=0,"",'Со снижением'!R66) -> 0.00 | M68: =IF(O67=0,"",'Со снижением'!S66) -> 4,741,208.78 | N68: =IF(O67=0,"",'Со снижением'!T66) -> 0.00 | O68: 4,741,208.78
A69: 51 | B69: =IF(O68=0,"",'Со снижением'!G67) -> 2026-10-31 | C69: =IF(O68=0,"",'Со снижением'!H67) -> 31 | D69: =IF(O68=0,"",'Со снижением'!I67) -> 0.30% | E69: =IF(O68=0,"",'Со снижением'!L67) -> 4,741,208.78 | F69: =IF(O68=0,"",'Со снижением'!M67) -> 0.00 | G69: =IF(O68=0,"",'Со снижением'!J67) -> 15,946.00 | H69: =IF(O68=0,"",'Со снижением'!N67) -> 1,208.03 | I69: =IF(O68=0,"",'Со снижением'!P67) -> 1,208.03 | J69: =IF(O68=0,"",'Со снижением'!O67) -> 14,737.97 | K69: =IF(O68=0,"",'Со снижением'!Q67) -> 0.00 | L69: =IF(O68=0,"",'Со снижением'!R67) -> 0.00 | M69: =IF(O68=0,"",'Со снижением'!S67) -> 4,726,470.81 | N69: =IF(O68=0,"",'Со снижением'!T67) -> 0.00 | O69: 4,726,470.81
A70: 52 | B70: =IF(O69=0,"",'Со снижением'!G68) -> 2026-11-30 | C70: =IF(O69=0,"",'Со снижением'!H68) -> 30 | D70: =IF(O69=0,"",'Со снижением'!I68) -> 0.30% | E70: =IF(O69=0,"",'Со снижением'!L68) -> 4,726,470.81 | F70: =IF(O69=0,"",'Со снижением'!M68) -> 0.00 | G70: =IF(O69=0,"",'Со снижением'!J68) -> 15,946.00 | H70: =IF(O69=0,"",'Со снижением'!N68) -> 1,165.43 | I70: =IF(O69=0,"",'Со снижением'!P68) -> 1,165.43 | J70: =IF(O69=0,"",'Со снижением'!O68) -> 14,780.57 | K70: =IF(O69=0,"",'Со снижением'!Q68) -> 0.00 | L70: =IF(O69=0,"",'Со снижением'!R68) -> 0.00 | M70: =IF(O69=0,"",'Со снижением'!S68) -> 4,711,690.24 | N70: =IF(O69=0,"",'Со снижением'!T68) -> 0.00 | O70: 4,711,690.24
A71: 53 | B71: =IF(O70=0,"",'Со снижением'!G69) -> 2026-12-31 | C71: =IF(O70=0,"",'Со снижением'!H69) -> 31 | D71: =IF(O70=0,"",'Со снижением'!I69) -> 0.30% | E71: =IF(O70=0,"",'Со снижением'!L69) -> 4,711,690.24 | F71: =IF(O70=0,"",'Со снижением'!M69) -> 0.00 | G71: =IF(O70=0,"",'Со снижением'!J69) -> 15,946.00 | H71: =IF(O70=0,"",'Со снижением'!N69) -> 1,200.51 | I71: =IF(O70=0,"",'Со снижением'!P69) -> 1,200.51 | J71: =IF(O70=0,"",'Со снижением'!O69) -> 14,745.49 | K71: =IF(O70=0,"",'Со снижением'!Q69) -> 0.00 | L71: =IF(O70=0,"",'Со снижением'!R69) -> 0.00 | M71: =IF(O70=0,"",'Со снижением'!S69) -> 4,696,944.75 | N71: =IF(O70=0,"",'Со снижением'!T69) -> 0.00 | O71: 4,696,944.75
A72: 54 | B72: =IF(O71=0,"",'Со снижением'!G70) -> 2027-01-31 | C72: =IF(O71=0,"",'Со снижением'!H70) -> 31 | D72: =IF(O71=0,"",'Со снижением'!I70) -> 0.30% | E72: =IF(O71=0,"",'Со снижением'!L70) -> 4,696,944.75 | F72: =IF(O71=0,"",'Со снижением'!M70) -> 0.00 | G72: =IF(O71=0,"",'Со снижением'!J70) -> 15,946.00 | H72: =IF(O71=0,"",'Со снижением'!N70) -> 1,196.76 | I72: =IF(O71=0,"",'Со снижением'!P70) -> 1,196.76 | J72: =IF(O71=0,"",'Со снижением'!O70) -> 14,749.24 | K72: =IF(O71=0,"",'Со снижением'!Q70) -> 0.00 | L72: =IF(O71=0,"",'Со снижением'!R70) -> 0.00 | M72: =IF(O71=0,"",'Со снижением'!S70) -> 4,682,195.51 | N72: =IF(O71=0,"",'Со снижением'!T70) -> 0.00 | O72: 4,682,195.51
A73: 55 | B73: =IF(O72=0,"",'Со снижением'!G71) -> 2027-02-28 | C73: =IF(O72=0,"",'Со снижением'!H71) -> 28 | D73: =IF(O72=0,"",'Со снижением'!I71) -> 0.30% | E73: =IF(O72=0,"",'Со снижением'!L71) -> 4,682,195.51 | F73: =IF(O72=0,"",'Со снижением'!M71) -> 0.00 | G73: =IF(O72=0,"",'Со снижением'!J71) -> 15,946.00 | H73: =IF(O72=0,"",'Со снижением'!N71) -> 1,077.55 | I73: =IF(O72=0,"",'Со снижением'!P71) -> 1,077.55 | J73: =IF(O72=0,"",'Со снижением'!O71) -> 14,868.45 | K73: =IF(O72=0,"",'Со снижением'!Q71) -> 0.00 | L73: =IF(O72=0,"",'Со снижением'!R71) -> 0.00 | M73: =IF(O72=0,"",'Со снижением'!S71) -> 4,667,327.06 | N73: =IF(O72=0,"",'Со снижением'!T71) -> 0.00 | O73: 4,667,327.06
A74: 56 | B74: =IF(O73=0,"",'Со снижением'!G72) -> 2027-03-31 | C74: =IF(O73=0,"",'Со снижением'!H72) -> 31 | D74: =IF(O73=0,"",'Со снижением'!I72) -> 0.30% | E74: =IF(O73=0,"",'Со снижением'!L72) -> 4,667,327.06 | F74: =IF(O73=0,"",'Со снижением'!M72) -> 0.00 | G74: =IF(O73=0,"",'Со снижением'!J72) -> 15,946.00 | H74: =IF(O73=0,"",'Со снижением'!N72) -> 1,189.21 | I74: =IF(O73=0,"",'Со снижением'!P72) -> 1,189.21 | J74: =IF(O73=0,"",'Со снижением'!O72) -> 14,756.79 | K74: =IF(O73=0,"",'Со снижением'!Q72) -> 0.00 | L74: =IF(O73=0,"",'Со снижением'!R72) -> 0.00 | M74: =IF(O73=0,"",'Со снижением'!S72) -> 4,652,570.27 | N74: =IF(O73=0,"",'Со снижением'!T72) -> 0.00 | O74: 4,652,570.27
A75: 57 | B75: =IF(O74=0,"",'Со снижением'!G73) -> 2027-04-30 | C75: =IF(O74=0,"",'Со снижением'!H73) -> 30 | D75: =IF(O74=0,"",'Со снижением'!I73) -> 0.30% | E75: =IF(O74=0,"",'Со снижением'!L73) -> 4,652,570.27 | F75: =IF(O74=0,"",'Со снижением'!M73) -> 0.00 | G75: =IF(O74=0,"",'Со снижением'!J73) -> 15,946.00 | H75: =IF(O74=0,"",'Со снижением'!N73) -> 1,147.21 | I75: =IF(O74=0,"",'Со снижением'!P73) -> 1,147.21 | J75: =IF(O74=0,"",'Со снижением'!O73) -> 14,798.79 | K75: =IF(O74=0,"",'Со снижением'!Q73) -> 0.00 | L75: =IF(O74=0,"",'Со снижением'!R73) -> 0.00 | M75: =IF(O74=0,"",'Со снижением'!S73) -> 4,637,771.48 | N75: =IF(O74=0,"",'Со снижением'!T73) -> 0.00 | O75: 4,637,771.48
A76: 58 | B76: =IF(O75=0,"",'Со снижением'!G74) -> 2027-05-31 | C76: =IF(O75=0,"",'Со снижением'!H74) -> 31 | D76: =IF(O75=0,"",'Со снижением'!I74) -> 0.30% | E76: =IF(O75=0,"",'Со снижением'!L74) -> 4,637,771.48 | F76: =IF(O75=0,"",'Со снижением'!M74) -> 0.00 | G76: =IF(O75=0,"",'Со снижением'!J74) -> 15,946.00 | H76: =IF(O75=0,"",'Со снижением'!N74) -> 1,181.68 | I76: =IF(O75=0,"",'Со снижением'!P74) -> 1,181.68 | J76: =IF(O75=0,"",'Со снижением'!O74) -> 14,764.32 | K76: =IF(O75=0,"",'Со снижением'!Q74) -> 0.00 | L76: =IF(O75=0,"",'Со снижением'!R74) -> 0.00 | M76: =IF(O75=0,"",'Со снижением'!S74) -> 4,623,007.16 | N76: =IF(O75=0,"",'Со снижением'!T74) -> 0.00 | O76: 4,623,007.16
A77: 59 | B77: =IF(O76=0,"",'Со снижением'!G75) -> 2027-06-30 | C77: =IF(O76=0,"",'Со снижением'!H75) -> 30 | D77: =IF(O76=0,"",'Со снижением'!I75) -> 0.30% | E77: =IF(O76=0,"",'Со снижением'!L75) -> 4,623,007.16 | F77: =IF(O76=0,"",'Со снижением'!M75) -> 0.00 | G77: =IF(O76=0,"",'Со снижением'!J75) -> 15,946.00 | H77: =IF(O76=0,"",'Со снижением'!N75) -> 1,139.92 | I77: =IF(O76=0,"",'Со снижением'!P75) -> 1,139.92 | J77: =IF(O76=0,"",'Со снижением'!O75) -> 14,806.08 | K77: =IF(O76=0,"",'Со снижением'!Q75) -> 0.00 | L77: =IF(O76=0,"",'Со снижением'!R75) -> 0.00 | M77: =IF(O76=0,"",'Со снижением'!S75) -> 4,608,201.08 | N77: =IF(O76=0,"",'Со снижением'!T75) -> 0.00 | O77: 4,608,201.08
A78: 60 | B78: =IF(O77=0,"",'Со снижением'!G76) -> 2027-07-31 | C78: =IF(O77=0,"",'Со снижением'!H76) -> 31 | D78: =IF(O77=0,"",'Со снижением'!I76) -> 0.30% | E78: =IF(O77=0,"",'Со снижением'!L76) -> 4,608,201.08 | F78: =IF(O77=0,"",'Со снижением'!M76) -> 0.00 | G78: =IF(O77=0,"",'Со снижением'!J76) -> 15,946.00 | H78: =IF(O77=0,"",'Со снижением'!N76) -> 1,174.14 | I78: =IF(O77=0,"",'Со снижением'!P76) -> 1,174.14 | J78: =IF(O77=0,"",'Со снижением'!O76) -> 14,771.86 | K78: =IF(O77=0,"",'Со снижением'!Q76) -> 0.00 | L78: =IF(O77=0,"",'Со снижением'!R76) -> 0.00 | M78: =IF(O77=0,"",'Со снижением'!S76) -> 4,593,429.22 | N78: =IF(O77=0,"",'Со снижением'!T76) -> 0.00 | O78: 4,593,429.22
A79: 61 | B79: =IF(O78=0,"",'Со снижением'!G77) -> 2027-08-31 | C79: =IF(O78=0,"",'Со снижением'!H77) -> 31 | D79: =IF(O78=0,"",'Со снижением'!I77) -> 0.30% | E79: =IF(O78=0,"",'Со снижением'!L77) -> 4,593,429.22 | F79: =IF(O78=0,"",'Со снижением'!M77) -> 0.00 | G79: =IF(O78=0,"",'Со снижением'!J77) -> 15,946.00 | H79: =IF(O78=0,"",'Со снижением'!N77) -> 1,170.38 | I79: =IF(O78=0,"",'Со снижением'!P77) -> 1,170.38 | J79: =IF(O78=0,"",'Со снижением'!O77) -> 14,775.62 | K79: =IF(O78=0,"",'Со снижением'!Q77) -> 0.00 | L79: =IF(O78=0,"",'Со снижением'!R77) -> 0.00 | M79: =IF(O78=0,"",'Со снижением'!S77) -> 4,578,653.60 | N79: =IF(O78=0,"",'Со снижением'!T77) -> 0.00 | O79: 4,578,653.60
A80: 62 | B80: =IF(O79=0,"",'Со снижением'!G78) -> 2027-09-30 | C80: =IF(O79=0,"",'Со снижением'!H78) -> 30 | D80: =IF(O79=0,"",'Со снижением'!I78) -> 0.30% | E80: =IF(O79=0,"",'Со снижением'!L78) -> 4,578,653.60 | F80: =IF(O79=0,"",'Со снижением'!M78) -> 0.00 | G80: =IF(O79=0,"",'Со снижением'!J78) -> 15,946.00 | H80: =IF(O79=0,"",'Со снижением'!N78) -> 1,128.98 | I80: =IF(O79=0,"",'Со снижением'!P78) -> 1,128.98 | J80: =IF(O79=0,"",'Со снижением'!O78) -> 14,817.02 | K80: =IF(O79=0,"",'Со снижением'!Q78) -> 0.00 | L80: =IF(O79=0,"",'Со снижением'!R78) -> 0.00 | M80: =IF(O79=0,"",'Со снижением'!S78) -> 4,563,836.58 | N80: =IF(O79=0,"",'Со снижением'!T78) -> 0.00 | O80: 4,563,836.58
A81: 63 | B81: =IF(O80=0,"",'Со снижением'!G79) -> 2027-10-31 | C81: =IF(O80=0,"",'Со снижением'!H79) -> 31 | D81: =IF(O80=0,"",'Со снижением'!I79) -> 0.30% | E81: =IF(O80=0,"",'Со снижением'!L79) -> 4,563,836.58 | F81: =IF(O80=0,"",'Со снижением'!M79) -> 0.00 | G81: =IF(O80=0,"",'Со снижением'!J79) -> 15,946.00 | H81: =IF(O80=0,"",'Со снижением'!N79) -> 1,162.84 | I81: =IF(O80=0,"",'Со снижением'!P79) -> 1,162.84 | J81: =IF(O80=0,"",'Со снижением'!O79) -> 14,783.16 | K81: =IF(O80=0,"",'Со снижением'!Q79) -> 0.00 | L81: =IF(O80=0,"",'Со снижением'!R79) -> 0.00 | M81: =IF(O80=0,"",'Со снижением'!S79) -> 4,549,053.42 | N81: =IF(O80=0,"",'Со снижением'!T79) -> 0.00 | O81: 4,549,053.42
A82: 64 | B82: =IF(O81=0,"",'Со снижением'!G80) -> 2027-11-30 | C82: =IF(O81=0,"",'Со снижением'!H80) -> 30 | D82: =IF(O81=0,"",'Со снижением'!I80) -> 0.30% | E82: =IF(O81=0,"",'Со снижением'!L80) -> 4,549,053.42 | F82: =IF(O81=0,"",'Со снижением'!M80) -> 0.00 | G82: =IF(O81=0,"",'Со снижением'!J80) -> 15,946.00 | H82: =IF(O81=0,"",'Со снижением'!N80) -> 1,121.68 | I82: =IF(O81=0,"",'Со снижением'!P80) -> 1,121.68 | J82: =IF(O81=0,"",'Со снижением'!O80) -> 14,824.32 | K82: =IF(O81=0,"",'Со снижением'!Q80) -> 0.00 | L82: =IF(O81=0,"",'Со снижением'!R80) -> 0.00 | M82: =IF(O81=0,"",'Со снижением'!S80) -> 4,534,229.10 | N82: =IF(O81=0,"",'Со снижением'!T80) -> 0.00 | O82: 4,534,229.10
A83: 65 | B83: =IF(O82=0,"",'Со снижением'!G81) -> 2027-12-31 | C83: =IF(O82=0,"",'Со снижением'!H81) -> 31 | D83: =IF(O82=0,"",'Со снижением'!I81) -> 0.30% | E83: =IF(O82=0,"",'Со снижением'!L81) -> 4,534,229.10 | F83: =IF(O82=0,"",'Со снижением'!M81) -> 0.00 | G83: =IF(O82=0,"",'Со снижением'!J81) -> 15,946.00 | H83: =IF(O82=0,"",'Со снижением'!N81) -> 1,155.30 | I83: =IF(O82=0,"",'Со снижением'!P81) -> 1,155.30 | J83: =IF(O82=0,"",'Со снижением'!O81) -> 14,790.70 | K83: =IF(O82=0,"",'Со снижением'!Q81) -> 0.00 | L83: =IF(O82=0,"",'Со снижением'!R81) -> 0.00 | M83: =IF(O82=0,"",'Со снижением'!S81) -> 4,519,438.40 | N83: =IF(O82=0,"",'Со снижением'!T81) -> 0.00 | O83: 4,519,438.40
A84: 66 | B84: =IF(O83=0,"",'Со снижением'!G82) -> 2028-01-31 | C84: =IF(O83=0,"",'Со снижением'!H82) -> 31 | D84: =IF(O83=0,"",'Со снижением'!I82) -> 0.30% | E84: =IF(O83=0,"",'Со снижением'!L82) -> 4,519,438.40 | F84: =IF(O83=0,"",'Со снижением'!M82) -> 0.00 | G84: =IF(O83=0,"",'Со снижением'!J82) -> 15,946.00 | H84: =IF(O83=0,"",'Со снижением'!N82) -> 1,148.38 | I84: =IF(O83=0,"",'Со снижением'!P82) -> 1,148.38 | J84: =IF(O83=0,"",'Со снижением'!O82) -> 14,797.62 | K84: =IF(O83=0,"",'Со снижением'!Q82) -> 0.00 | L84: =IF(O83=0,"",'Со снижением'!R82) -> 0.00 | M84: =IF(O83=0,"",'Со снижением'!S82) -> 4,504,640.78 | N84: =IF(O83=0,"",'Со снижением'!T82) -> 0.00 | O84: 4,504,640.78
A85: =IF(O84=0,"",A84+1) -> 67 | B85: =IF(O84=0,"",'Со снижением'!G83) -> 2028-02-29 | C85: =IF(O84=0,"",'Со снижением'!H83) -> 29 | D85: =IF(O84=0,"",'Со снижением'!I83) -> 0.30% | E85: =IF(O84=0,"",'Со снижением'!L83) -> 4,504,640.78 | F85: =IF(O84=0,"",'Со снижением'!M83) -> 0.00 | G85: =IF(O84=0,"",'Со снижением'!J83) -> 15,946.00 | H85: =IF(O84=0,"",'Со снижением'!N83) -> 1,070.78 | I85: =IF(O84=0,"",'Со снижением'!P83) -> 1,070.78 | J85: =IF(O84=0,"",'Со снижением'!O83) -> 14,875.22 | K85: =IF(O84=0,"",'Со снижением'!Q83) -> 0.00 | L85: =IF(O84=0,"",'Со снижением'!R83) -> 0.00 | M85: =IF(O84=0,"",'Со снижением'!S83) -> 4,489,765.56 | N85: =IF(O84=0,"",'Со снижением'!T83) -> 0.00 | O85: =IFERROR(M85+N85,0) -> 4,489,765.56
A86: 68 | B86: =IF(O85=0,"",'Со снижением'!G84) -> 2028-03-31 | C86: =IF(O85=0,"",'Со снижением'!H84) -> 31 | D86: =IF(O85=0,"",'Со снижением'!I84) -> 0.30% | E86: =IF(O85=0,"",'Со снижением'!L84) -> 4,489,765.56 | F86: =IF(O85=0,"",'Со снижением'!M84) -> 0.00 | G86: =IF(O85=0,"",'Со снижением'!J84) -> 15,946.00 | H86: =IF(O85=0,"",'Со снижением'!N84) -> 1,140.84 | I86: =IF(O85=0,"",'Со снижением'!P84) -> 1,140.84 | J86: =IF(O85=0,"",'Со снижением'!O84) -> 14,805.16 | K86: =IF(O85=0,"",'Со снижением'!Q84) -> 0.00 | L86: =IF(O85=0,"",'Со снижением'!R84) -> 0.00 | M86: =IF(O85=0,"",'Со снижением'!S84) -> 4,474,960.40 | N86: =IF(O85=0,"",'Со снижением'!T84) -> 0.00 | O86: 4,474,960.40
A87: 69 | B87: =IF(O86=0,"",'Со снижением'!G85) -> 2028-04-30 | C87: =IF(O86=0,"",'Со снижением'!H85) -> 30 | D87: =IF(O86=0,"",'Со снижением'!I85) -> 0.30% | E87: =IF(O86=0,"",'Со снижением'!L85) -> 4,474,960.40 | F87: =IF(O86=0,"",'Со снижением'!M85) -> 0.00 | G87: =IF(O86=0,"",'Со снижением'!J85) -> 15,946.00 | H87: =IF(O86=0,"",'Со снижением'!N85) -> 1,100.40 | I87: =IF(O86=0,"",'Со снижением'!P85) -> 1,100.40 | J87: =IF(O86=0,"",'Со снижением'!O85) -> 14,845.60 | K87: =IF(O86=0,"",'Со снижением'!Q85) -> 0.00 | L87: =IF(O86=0,"",'Со снижением'!R85) -> 0.00 | M87: =IF(O86=0,"",'Со снижением'!S85) -> 4,460,114.80 | N87: =IF(O86=0,"",'Со снижением'!T85) -> 0.00 | O87: 4,460,114.80
A88: 70 | B88: =IF(O87=0,"",'Со снижением'!G86) -> 2028-05-31 | C88: =IF(O87=0,"",'Со снижением'!H86) -> 31 | D88: =IF(O87=0,"",'Со снижением'!I86) -> 0.30% | E88: =IF(O87=0,"",'Со снижением'!L86) -> 4,460,114.80 | F88: =IF(O87=0,"",'Со снижением'!M86) -> 0.00 | G88: =IF(O87=0,"",'Со снижением'!J86) -> 15,946.00 | H88: =IF(O87=0,"",'Со снижением'!N86) -> 1,133.31 | I88: =IF(O87=0,"",'Со снижением'!P86) -> 1,133.31 | J88: =IF(O87=0,"",'Со снижением'!O86) -> 14,812.69 | K88: =IF(O87=0,"",'Со снижением'!Q86) -> 0.00 | L88: =IF(O87=0,"",'Со снижением'!R86) -> 0.00 | M88: =IF(O87=0,"",'Со снижением'!S86) -> 4,445,302.11 | N88: =IF(O87=0,"",'Со снижением'!T86) -> 0.00 | O88: 4,445,302.11
A89: 71 | B89: =IF(O88=0,"",'Со снижением'!G87) -> 2028-06-30 | C89: =IF(O88=0,"",'Со снижением'!H87) -> 30 | D89: =IF(O88=0,"",'Со снижением'!I87) -> 0.30% | E89: =IF(O88=0,"",'Со снижением'!L87) -> 4,445,302.11 | F89: =IF(O88=0,"",'Со снижением'!M87) -> 0.00 | G89: =IF(O88=0,"",'Со снижением'!J87) -> 15,946.00 | H89: =IF(O88=0,"",'Со снижением'!N87) -> 1,093.11 | I89: =IF(O88=0,"",'Со снижением'!P87) -> 1,093.11 | J89: =IF(O88=0,"",'Со снижением'!O87) -> 14,852.89 | K89: =IF(O88=0,"",'Со снижением'!Q87) -> 0.00 | L89: =IF(O88=0,"",'Со снижением'!R87) -> 0.00 | M89: =IF(O88=0,"",'Со снижением'!S87) -> 4,430,449.22 | N89: =IF(O88=0,"",'Со снижением'!T87) -> 0.00 | O89: 4,430,449.22
A90: 72 | B90: =IF(O89=0,"",'Со снижением'!G88) -> 2028-07-31 | C90: =IF(O89=0,"",'Со снижением'!H88) -> 31 | D90: =IF(O89=0,"",'Со снижением'!I88) -> 0.30% | E90: =IF(O89=0,"",'Со снижением'!L88) -> 4,430,449.22 | F90: =IF(O89=0,"",'Со снижением'!M88) -> 0.00 | G90: =IF(O89=0,"",'Со снижением'!J88) -> 15,946.00 | H90: =IF(O89=0,"",'Со снижением'!N88) -> 1,125.77 | I90: =IF(O89=0,"",'Со снижением'!P88) -> 1,125.77 | J90: =IF(O89=0,"",'Со снижением'!O88) -> 14,820.23 | K90: =IF(O89=0,"",'Со снижением'!Q88) -> 0.00 | L90: =IF(O89=0,"",'Со снижением'!R88) -> 0.00 | M90: =IF(O89=0,"",'Со снижением'!S88) -> 4,415,628.99 | N90: =IF(O89=0,"",'Со снижением'!T88) -> 0.00 | O90: 4,415,628.99
A91: 73 | B91: =IF(O90=0,"",'Со снижением'!G89) -> 2028-08-31 | C91: =IF(O90=0,"",'Со снижением'!H89) -> 31 | D91: =IF(O90=0,"",'Со снижением'!I89) -> 0.30% | E91: =IF(O90=0,"",'Со снижением'!L89) -> 4,415,628.99 | F91: =IF(O90=0,"",'Со снижением'!M89) -> 0.00 | G91: =IF(O90=0,"",'Со снижением'!J89) -> 15,946.00 | H91: =IF(O90=0,"",'Со снижением'!N89) -> 1,122.00 | I91: =IF(O90=0,"",'Со снижением'!P89) -> 1,122.00 | J91: =IF(O90=0,"",'Со снижением'!O89) -> 14,824.00 | K91: =IF(O90=0,"",'Со снижением'!Q89) -> 0.00 | L91: =IF(O90=0,"",'Со снижением'!R89) -> 0.00 | M91: =IF(O90=0,"",'Со снижением'!S89) -> 4,400,804.99 | N91: =IF(O90=0,"",'Со снижением'!T89) -> 0.00 | O91: 4,400,804.99
A92: 74 | B92: =IF(O91=0,"",'Со снижением'!G90) -> 2028-09-30 | C92: =IF(O91=0,"",'Со снижением'!H90) -> 30 | D92: =IF(O91=0,"",'Со снижением'!I90) -> 0.30% | E92: =IF(O91=0,"",'Со снижением'!L90) -> 4,400,804.99 | F92: =IF(O91=0,"",'Со снижением'!M90) -> 0.00 | G92: =IF(O91=0,"",'Со снижением'!J90) -> 15,946.00 | H92: =IF(O91=0,"",'Со снижением'!N90) -> 1,082.17 | I92: =IF(O91=0,"",'Со снижением'!P90) -> 1,082.17 | J92: =IF(O91=0,"",'Со снижением'!O90) -> 14,863.83 | K92: =IF(O91=0,"",'Со снижением'!Q90) -> 0.00 | L92: =IF(O91=0,"",'Со снижением'!R90) -> 0.00 | M92: =IF(O91=0,"",'Со снижением'!S90) -> 4,385,941.16 | N92: =IF(O91=0,"",'Со снижением'!T90) -> 0.00 | O92: 4,385,941.16
A93: 75 | B93: =IF(O92=0,"",'Со снижением'!G91) -> 2028-10-31 | C93: =IF(O92=0,"",'Со снижением'!H91) -> 31 | D93: =IF(O92=0,"",'Со снижением'!I91) -> 0.30% | E93: =IF(O92=0,"",'Со снижением'!L91) -> 4,385,941.16 | F93: =IF(O92=0,"",'Со снижением'!M91) -> 0.00 | G93: =IF(O92=0,"",'Со снижением'!J91) -> 15,946.00 | H93: =IF(O92=0,"",'Со снижением'!N91) -> 1,114.46 | I93: =IF(O92=0,"",'Со снижением'!P91) -> 1,114.46 | J93: =IF(O92=0,"",'Со снижением'!O91) -> 14,831.54 | K93: =IF(O92=0,"",'Со снижением'!Q91) -> 0.00 | L93: =IF(O92=0,"",'Со снижением'!R91) -> 0.00 | M93: =IF(O92=0,"",'Со снижением'!S91) -> 4,371,109.62 | N93: =IF(O92=0,"",'Со снижением'!T91) -> 0.00 | O93: 4,371,109.62
A94: 76 | B94: =IF(O93=0,"",'Со снижением'!G92) -> 2028-11-30 | C94: =IF(O93=0,"",'Со снижением'!H92) -> 30 | D94: =IF(O93=0,"",'Со снижением'!I92) -> 0.30% | E94: =IF(O93=0,"",'Со снижением'!L92) -> 4,371,109.62 | F94: =IF(O93=0,"",'Со снижением'!M92) -> 0.00 | G94: =IF(O93=0,"",'Со снижением'!J92) -> 15,946.00 | H94: =IF(O93=0,"",'Со снижением'!N92) -> 1,074.86 | I94: =IF(O93=0,"",'Со снижением'!P92) -> 1,074.86 | J94: =IF(O93=0,"",'Со снижением'!O92) -> 14,871.14 | K94: =IF(O93=0,"",'Со снижением'!Q92) -> 0.00 | L94: =IF(O93=0,"",'Со снижением'!R92) -> 0.00 | M94: =IF(O93=0,"",'Со снижением'!S92) -> 4,356,238.48 | N94: =IF(O93=0,"",'Со снижением'!T92) -> 0.00 | O94: 4,356,238.48
A95: 77 | B95: =IF(O94=0,"",'Со снижением'!G93) -> 2028-12-31 | C95: =IF(O94=0,"",'Со снижением'!H93) -> 31 | D95: =IF(O94=0,"",'Со снижением'!I93) -> 0.30% | E95: =IF(O94=0,"",'Со снижением'!L93) -> 4,356,238.48 | F95: =IF(O94=0,"",'Со снижением'!M93) -> 0.00 | G95: =IF(O94=0,"",'Со снижением'!J93) -> 15,946.00 | H95: =IF(O94=0,"",'Со снижением'!N93) -> 1,106.91 | I95: =IF(O94=0,"",'Со снижением'!P93) -> 1,106.91 | J95: =IF(O94=0,"",'Со снижением'!O93) -> 14,839.09 | K95: =IF(O94=0,"",'Со снижением'!Q93) -> 0.00 | L95: =IF(O94=0,"",'Со снижением'!R93) -> 0.00 | M95: =IF(O94=0,"",'Со снижением'!S93) -> 4,341,399.39 | N95: =IF(O94=0,"",'Со снижением'!T93) -> 0.00 | O95: 4,341,399.39
A96: 78 | B96: =IF(O95=0,"",'Со снижением'!G94) -> 2029-01-31 | C96: =IF(O95=0,"",'Со снижением'!H94) -> 31 | D96: =IF(O95=0,"",'Со снижением'!I94) -> 0.30% | E96: =IF(O95=0,"",'Со снижением'!L94) -> 4,341,399.39 | F96: =IF(O95=0,"",'Со снижением'!M94) -> 0.00 | G96: =IF(O95=0,"",'Со снижением'!J94) -> 15,946.00 | H96: =IF(O95=0,"",'Со снижением'!N94) -> 1,106.16 | I96: =IF(O95=0,"",'Со снижением'!P94) -> 1,106.16 | J96: =IF(O95=0,"",'Со снижением'!O94) -> 14,839.84 | K96: =IF(O95=0,"",'Со снижением'!Q94) -> 0.00 | L96: =IF(O95=0,"",'Со снижением'!R94) -> 0.00 | M96: =IF(O95=0,"",'Со снижением'!S94) -> 4,326,559.55 | N96: =IF(O95=0,"",'Со снижением'!T94) -> 0.00 | O96: 4,326,559.55
A97: 79 | B97: =IF(O96=0,"",'Со снижением'!G95) -> 2029-02-28 | C97: =IF(O96=0,"",'Со снижением'!H95) -> 28 | D97: =IF(O96=0,"",'Со снижением'!I95) -> 0.30% | E97: =IF(O96=0,"",'Со снижением'!L95) -> 4,326,559.55 | F97: =IF(O96=0,"",'Со снижением'!M95) -> 0.00 | G97: =IF(O96=0,"",'Со снижением'!J95) -> 15,946.00 | H97: =IF(O96=0,"",'Со снижением'!N95) -> 995.70 | I97: =IF(O96=0,"",'Со снижением'!P95) -> 995.70 | J97: =IF(O96=0,"",'Со снижением'!O95) -> 14,950.30 | K97: =IF(O96=0,"",'Со снижением'!Q95) -> 0.00 | L97: =IF(O96=0,"",'Со снижением'!R95) -> 0.00 | M97: =IF(O96=0,"",'Со снижением'!S95) -> 4,311,609.25 | N97: =IF(O96=0,"",'Со снижением'!T95) -> 0.00 | O97: 4,311,609.25
A98: 80 | B98: =IF(O97=0,"",'Со снижением'!G96) -> 2029-03-31 | C98: =IF(O97=0,"",'Со снижением'!H96) -> 31 | D98: =IF(O97=0,"",'Со снижением'!I96) -> 0.30% | E98: =IF(O97=0,"",'Со снижением'!L96) -> 4,311,609.25 | F98: =IF(O97=0,"",'Со снижением'!M96) -> 0.00 | G98: =IF(O97=0,"",'Со снижением'!J96) -> 15,946.00 | H98: =IF(O97=0,"",'Со снижением'!N96) -> 1,098.57 | I98: =IF(O97=0,"",'Со снижением'!P96) -> 1,098.57 | J98: =IF(O97=0,"",'Со снижением'!O96) -> 14,847.43 | K98: =IF(O97=0,"",'Со снижением'!Q96) -> 0.00 | L98: =IF(O97=0,"",'Со снижением'!R96) -> 0.00 | M98: =IF(O97=0,"",'Со снижением'!S96) -> 4,296,761.82 | N98: =IF(O97=0,"",'Со снижением'!T96) -> 0.00 | O98: 4,296,761.82
A99: 81 | B99: =IF(O98=0,"",'Со снижением'!G97) -> 2029-04-30 | C99: =IF(O98=0,"",'Со снижением'!H97) -> 30 | D99: =IF(O98=0,"",'Со снижением'!I97) -> 0.30% | E99: =IF(O98=0,"",'Со снижением'!L97) -> 4,296,761.82 | F99: =IF(O98=0,"",'Со снижением'!M97) -> 0.00 | G99: =IF(O98=0,"",'Со снижением'!J97) -> 15,946.00 | H99: =IF(O98=0,"",'Со снижением'!N97) -> 1,059.48 | I99: =IF(O98=0,"",'Со снижением'!P97) -> 1,059.48 | J99: =IF(O98=0,"",'Со снижением'!O97) -> 14,886.52 | K99: =IF(O98=0,"",'Со снижением'!Q97) -> 0.00 | L99: =IF(O98=0,"",'Со снижением'!R97) -> 0.00 | M99: =IF(O98=0,"",'Со снижением'!S97) -> 4,281,875.30 | N99: =IF(O98=0,"",'Со снижением'!T97) -> 0.00 | O99: 4,281,875.30
A100: 82 | B100: =IF(O99=0,"",'Со снижением'!G98) -> 2029-05-31 | C100: =IF(O99=0,"",'Со снижением'!H98) -> 31 | D100: =IF(O99=0,"",'Со снижением'!I98) -> 0.30% | E100: =IF(O99=0,"",'Со снижением'!L98) -> 4,281,875.30 | F100: =IF(O99=0,"",'Со снижением'!M98) -> 0.00 | G100: =IF(O99=0,"",'Со снижением'!J98) -> 15,946.00 | H100: =IF(O99=0,"",'Со снижением'!N98) -> 1,091.00 | I100: =IF(O99=0,"",'Со снижением'!P98) -> 1,091.00 | J100: =IF(O99=0,"",'Со снижением'!O98) -> 14,855.00 | K100: =IF(O99=0,"",'Со снижением'!Q98) -> 0.00 | L100: =IF(O99=0,"",'Со снижением'!R98) -> 0.00 | M100: =IF(O99=0,"",'Со снижением'!S98) -> 4,267,020.30 | N100: =IF(O99=0,"",'Со снижением'!T98) -> 0.00 | O100: 4,267,020.30
A101: 83 | B101: =IF(O100=0,"",'Со снижением'!G99) -> 2029-06-30 | C101: =IF(O100=0,"",'Со снижением'!H99) -> 30 | D101: =IF(O100=0,"",'Со снижением'!I99) -> 0.30% | E101: =IF(O100=0,"",'Со снижением'!L99) -> 4,267,020.30 | F101: =IF(O100=0,"",'Со снижением'!M99) -> 0.00 | G101: =IF(O100=0,"",'Со снижением'!J99) -> 15,946.00 | H101: =IF(O100=0,"",'Со снижением'!N99) -> 1,052.14 | I101: =IF(O100=0,"",'Со снижением'!P99) -> 1,052.14 | J101: =IF(O100=0,"",'Со снижением'!O99) -> 14,893.86 | K101: =IF(O100=0,"",'Со снижением'!Q99) -> 0.00 | L101: =IF(O100=0,"",'Со снижением'!R99) -> 0.00 | M101: =IF(O100=0,"",'Со снижением'!S99) -> 4,252,126.44 | N101: =IF(O100=0,"",'Со снижением'!T99) -> 0.00 | O101: 4,252,126.44
A102: 84 | B102: =IF(O101=0,"",'Со снижением'!G100) -> 2029-07-31 | C102: =IF(O101=0,"",'Со снижением'!H100) -> 31 | D102: =IF(O101=0,"",'Со снижением'!I100) -> 0.30% | E102: =IF(O101=0,"",'Со снижением'!L100) -> 4,252,126.44 | F102: =IF(O101=0,"",'Со снижением'!M100) -> 0.00 | G102: =IF(O101=0,"",'Со снижением'!J100) -> 15,946.00 | H102: =IF(O101=0,"",'Со снижением'!N100) -> 1,083.42 | I102: =IF(O101=0,"",'Со снижением'!P100) -> 1,083.42 | J102: =IF(O101=0,"",'Со снижением'!O100) -> 14,862.58 | K102: =IF(O101=0,"",'Со снижением'!Q100) -> 0.00 | L102: =IF(O101=0,"",'Со снижением'!R100) -> 0.00 | M102: =IF(O101=0,"",'Со снижением'!S100) -> 4,237,263.86 | N102: =IF(O101=0,"",'Со снижением'!T100) -> 0.00 | O102: 4,237,263.86
A103: 85 | B103: =IF(O102=0,"",'Со снижением'!G101) -> 2029-08-31 | C103: =IF(O102=0,"",'Со снижением'!H101) -> 31 | D103: =IF(O102=0,"",'Со снижением'!I101) -> 0.30% | E103: =IF(O102=0,"",'Со снижением'!L101) -> 4,237,263.86 | F103: =IF(O102=0,"",'Со снижением'!M101) -> 0.00 | G103: =IF(O102=0,"",'Со снижением'!J101) -> 15,946.00 | H103: =IF(O102=0,"",'Со снижением'!N101) -> 1,079.63 | I103: =IF(O102=0,"",'Со снижением'!P101) -> 1,079.63 | J103: =IF(O102=0,"",'Со снижением'!O101) -> 14,866.37 | K103: =IF(O102=0,"",'Со снижением'!Q101) -> 0.00 | L103: =IF(O102=0,"",'Со снижением'!R101) -> 0.00 | M103: =IF(O102=0,"",'Со снижением'!S101) -> 4,222,397.49 | N103: =IF(O102=0,"",'Со снижением'!T101) -> 0.00 | O103: 4,222,397.49
A104: 86 | B104: =IF(O103=0,"",'Со снижением'!G102) -> 2029-09-30 | C104: =IF(O103=0,"",'Со снижением'!H102) -> 30 | D104: =IF(O103=0,"",'Со снижением'!I102) -> 0.30% | E104: =IF(O103=0,"",'Со снижением'!L102) -> 4,222,397.49 | F104: =IF(O103=0,"",'Со снижением'!M102) -> 0.00 | G104: =IF(O103=0,"",'Со снижением'!J102) -> 15,946.00 | H104: =IF(O103=0,"",'Со снижением'!N102) -> 1,041.14 | I104: =IF(O103=0,"",'Со снижением'!P102) -> 1,041.14 | J104: =IF(O103=0,"",'Со снижением'!O102) -> 14,904.86 | K104: =IF(O103=0,"",'Со снижением'!Q102) -> 0.00 | L104: =IF(O103=0,"",'Со снижением'!R102) -> 0.00 | M104: =IF(O103=0,"",'Со снижением'!S102) -> 4,207,492.63 | N104: =IF(O103=0,"",'Со снижением'!T102) -> 0.00 | O104: 4,207,492.63
A105: 87 | B105: =IF(O104=0,"",'Со снижением'!G103) -> 2029-10-31 | C105: =IF(O104=0,"",'Со снижением'!H103) -> 31 | D105: =IF(O104=0,"",'Со снижением'!I103) -> 0.30% | E105: =IF(O104=0,"",'Со снижением'!L103) -> 4,207,492.63 | F105: =IF(O104=0,"",'Со снижением'!M103) -> 0.00 | G105: =IF(O104=0,"",'Со снижением'!J103) -> 15,946.00 | H105: =IF(O104=0,"",'Со снижением'!N103) -> 1,072.05 | I105: =IF(O104=0,"",'Со снижением'!P103) -> 1,072.05 | J105: =IF(O104=0,"",'Со снижением'!O103) -> 14,873.95 | K105: =IF(O104=0,"",'Со снижением'!Q103) -> 0.00 | L105: =IF(O104=0,"",'Со снижением'!R103) -> 0.00 | M105: =IF(O104=0,"",'Со снижением'!S103) -> 4,192,618.68 | N105: =IF(O104=0,"",'Со снижением'!T103) -> 0.00 | O105: 4,192,618.68
A106: 88 | B106: =IF(O105=0,"",'Со снижением'!G104) -> 2029-11-30 | C106: =IF(O105=0,"",'Со снижением'!H104) -> 30 | D106: =IF(O105=0,"",'Со снижением'!I104) -> 0.30% | E106: =IF(O105=0,"",'Со снижением'!L104) -> 4,192,618.68 | F106: =IF(O105=0,"",'Со снижением'!M104) -> 0.00 | G106: =IF(O105=0,"",'Со снижением'!J104) -> 15,946.00 | H106: =IF(O105=0,"",'Со снижением'!N104) -> 1,033.80 | I106: =IF(O105=0,"",'Со снижением'!P104) -> 1,033.80 | J106: =IF(O105=0,"",'Со снижением'!O104) -> 14,912.20 | K106: =IF(O105=0,"",'Со снижением'!Q104) -> 0.00 | L106: =IF(O105=0,"",'Со снижением'!R104) -> 0.00 | M106: =IF(O105=0,"",'Со снижением'!S104) -> 4,177,706.48 | N106: =IF(O105=0,"",'Со снижением'!T104) -> 0.00 | O106: 4,177,706.48
A107: 89 | B107: =IF(O106=0,"",'Со снижением'!G105) -> 2029-12-31 | C107: =IF(O106=0,"",'Со снижением'!H105) -> 31 | D107: =IF(O106=0,"",'Со снижением'!I105) -> 0.30% | E107: =IF(O106=0,"",'Со снижением'!L105) -> 4,177,706.48 | F107: =IF(O106=0,"",'Со снижением'!M105) -> 0.00 | G107: =IF(O106=0,"",'Со снижением'!J105) -> 15,946.00 | H107: =IF(O106=0,"",'Со снижением'!N105) -> 1,064.46 | I107: =IF(O106=0,"",'Со снижением'!P105) -> 1,064.46 | J107: =IF(O106=0,"",'Со снижением'!O105) -> 14,881.54 | K107: =IF(O106=0,"",'Со снижением'!Q105) -> 0.00 | L107: =IF(O106=0,"",'Со снижением'!R105) -> 0.00 | M107: =IF(O106=0,"",'Со снижением'!S105) -> 4,162,824.94 | N107: =IF(O106=0,"",'Со снижением'!T105) -> 0.00 | O107: 4,162,824.94
A108: 90 | B108: =IF(O107=0,"",'Со снижением'!G106) -> 2030-01-31 | C108: =IF(O107=0,"",'Со снижением'!H106) -> 31 | D108: =IF(O107=0,"",'Со снижением'!I106) -> 0.30% | E108: =IF(O107=0,"",'Со снижением'!L106) -> 4,162,824.94 | F108: =IF(O107=0,"",'Со снижением'!M106) -> 0.00 | G108: =IF(O107=0,"",'Со снижением'!J106) -> 15,946.00 | H108: =IF(O107=0,"",'Со снижением'!N106) -> 1,060.66 | I108: =IF(O107=0,"",'Со снижением'!P106) -> 1,060.66 | J108: =IF(O107=0,"",'Со снижением'!O106) -> 14,885.34 | K108: =IF(O107=0,"",'Со снижением'!Q106) -> 0.00 | L108: =IF(O107=0,"",'Со снижением'!R106) -> 0.00 | M108: =IF(O107=0,"",'Со снижением'!S106) -> 4,147,939.60 | N108: =IF(O107=0,"",'Со снижением'!T106) -> 0.00 | O108: 4,147,939.60
A109: 91 | B109: =IF(O108=0,"",'Со снижением'!G107) -> 2030-02-28 | C109: =IF(O108=0,"",'Со снижением'!H107) -> 28 | D109: =IF(O108=0,"",'Со снижением'!I107) -> 0.30% | E109: =IF(O108=0,"",'Со снижением'!L107) -> 4,147,939.60 | F109: =IF(O108=0,"",'Со снижением'!M107) -> 0.00 | G109: =IF(O108=0,"",'Со снижением'!J107) -> 15,946.00 | H109: =IF(O108=0,"",'Со снижением'!N107) -> 954.59 | I109: =IF(O108=0,"",'Со снижением'!P107) -> 954.59 | J109: =IF(O108=0,"",'Со снижением'!O107) -> 14,991.41 | K109: =IF(O108=0,"",'Со снижением'!Q107) -> 0.00 | L109: =IF(O108=0,"",'Со снижением'!R107) -> 0.00 | M109: =IF(O108=0,"",'Со снижением'!S107) -> 4,132,948.19 | N109: =IF(O108=0,"",'Со снижением'!T107) -> 0.00 | O109: 4,132,948.19
A110: 92 | B110: =IF(O109=0,"",'Со снижением'!G108) -> 2030-03-31 | C110: =IF(O109=0,"",'Со снижением'!H108) -> 31 | D110: =IF(O109=0,"",'Со снижением'!I108) -> 0.30% | E110: =IF(O109=0,"",'Со снижением'!L108) -> 4,132,948.19 | F110: =IF(O109=0,"",'Со снижением'!M108) -> 0.00 | G110: =IF(O109=0,"",'Со снижением'!J108) -> 15,946.00 | H110: =IF(O109=0,"",'Со снижением'!N108) -> 1,053.05 | I110: =IF(O109=0,"",'Со снижением'!P108) -> 1,053.05 | J110: =IF(O109=0,"",'Со снижением'!O108) -> 14,892.95 | K110: =IF(O109=0,"",'Со снижением'!Q108) -> 0.00 | L110: =IF(O109=0,"",'Со снижением'!R108) -> 0.00 | M110: =IF(O109=0,"",'Со снижением'!S108) -> 4,118,055.24 | N110: =IF(O109=0,"",'Со снижением'!T108) -> 0.00 | O110: 4,118,055.24
A111: 93 | B111: =IF(O110=0,"",'Со снижением'!G109) -> 2030-04-30 | C111: =IF(O110=0,"",'Со снижением'!H109) -> 30 | D111: =IF(O110=0,"",'Со снижением'!I109) -> 0.30% | E111: =IF(O110=0,"",'Со снижением'!L109) -> 4,118,055.24 | F111: =IF(O110=0,"",'Со снижением'!M109) -> 0.00 | G111: =IF(O110=0,"",'Со снижением'!J109) -> 15,946.00 | H111: =IF(O110=0,"",'Со снижением'!N109) -> 1,015.41 | I111: =IF(O110=0,"",'Со снижением'!P109) -> 1,015.41 | J111: =IF(O110=0,"",'Со снижением'!O109) -> 14,930.59 | K111: =IF(O110=0,"",'Со снижением'!Q109) -> 0.00 | L111: =IF(O110=0,"",'Со снижением'!R109) -> 0.00 | M111: =IF(O110=0,"",'Со снижением'!S109) -> 4,103,124.65 | N111: =IF(O110=0,"",'Со снижением'!T109) -> 0.00 | O111: 4,103,124.65
A112: 94 | B112: =IF(O111=0,"",'Со снижением'!G110) -> 2030-05-31 | C112: =IF(O111=0,"",'Со снижением'!H110) -> 31 | D112: =IF(O111=0,"",'Со снижением'!I110) -> 0.30% | E112: =IF(O111=0,"",'Со снижением'!L110) -> 4,103,124.65 | F112: =IF(O111=0,"",'Со снижением'!M110) -> 0.00 | G112: =IF(O111=0,"",'Со снижением'!J110) -> 15,946.00 | H112: =IF(O111=0,"",'Со снижением'!N110) -> 1,045.45 | I112: =IF(O111=0,"",'Со снижением'!P110) -> 1,045.45 | J112: =IF(O111=0,"",'Со снижением'!O110) -> 14,900.55 | K112: =IF(O111=0,"",'Со снижением'!Q110) -> 0.00 | L112: =IF(O111=0,"",'Со снижением'!R110) -> 0.00 | M112: =IF(O111=0,"",'Со снижением'!S110) -> 4,088,224.10 | N112: =IF(O111=0,"",'Со снижением'!T110) -> 0.00 | O112: 4,088,224.10
A113: 95 | B113: =IF(O112=0,"",'Со снижением'!G111) -> 2030-06-30 | C113: =IF(O112=0,"",'Со снижением'!H111) -> 30 | D113: =IF(O112=0,"",'Со снижением'!I111) -> 0.30% | E113: =IF(O112=0,"",'Со снижением'!L111) -> 4,088,224.10 | F113: =IF(O112=0,"",'Со снижением'!M111) -> 0.00 | G113: =IF(O112=0,"",'Со снижением'!J111) -> 15,946.00 | H113: =IF(O112=0,"",'Со снижением'!N111) -> 1,008.06 | I113: =IF(O112=0,"",'Со снижением'!P111) -> 1,008.06 | J113: =IF(O112=0,"",'Со снижением'!O111) -> 14,937.94 | K113: =IF(O112=0,"",'Со снижением'!Q111) -> 0.00 | L113: =IF(O112=0,"",'Со снижением'!R111) -> 0.00 | M113: =IF(O112=0,"",'Со снижением'!S111) -> 4,073,286.16 | N113: =IF(O112=0,"",'Со снижением'!T111) -> 0.00 | O113: 4,073,286.16
A114: 96 | B114: =IF(O113=0,"",'Со снижением'!G112) -> 2030-07-31 | C114: =IF(O113=0,"",'Со снижением'!H112) -> 31 | D114: =IF(O113=0,"",'Со снижением'!I112) -> 0.30% | E114: =IF(O113=0,"",'Со снижением'!L112) -> 4,073,286.16 | F114: =IF(O113=0,"",'Со снижением'!M112) -> 0.00 | G114: =IF(O113=0,"",'Со снижением'!J112) -> 15,946.00 | H114: =IF(O113=0,"",'Со снижением'!N112) -> 1,037.85 | I114: =IF(O113=0,"",'Со снижением'!P112) -> 1,037.85 | J114: =IF(O113=0,"",'Со снижением'!O112) -> 14,908.15 | K114: =IF(O113=0,"",'Со снижением'!Q112) -> 0.00 | L114: =IF(O113=0,"",'Со снижением'!R112) -> 0.00 | M114: =IF(O113=0,"",'Со снижением'!S112) -> 4,058,378.01 | N114: =IF(O113=0,"",'Со снижением'!T112) -> 0.00 | O114: 4,058,378.01
A115: 97 | B115: =IF(O114=0,"",'Со снижением'!G113) -> 2030-08-31 | C115: =IF(O114=0,"",'Со снижением'!H113) -> 31 | D115: =IF(O114=0,"",'Со снижением'!I113) -> 0.30% | E115: =IF(O114=0,"",'Со снижением'!L113) -> 4,058,378.01 | F115: =IF(O114=0,"",'Со снижением'!M113) -> 0.00 | G115: =IF(O114=0,"",'Со снижением'!J113) -> 15,946.00 | H115: =IF(O114=0,"",'Со снижением'!N113) -> 1,034.05 | I115: =IF(O114=0,"",'Со снижением'!P113) -> 1,034.05 | J115: =IF(O114=0,"",'Со снижением'!O113) -> 14,911.95 | K115: =IF(O114=0,"",'Со снижением'!Q113) -> 0.00 | L115: =IF(O114=0,"",'Со снижением'!R113) -> 0.00 | M115: =IF(O114=0,"",'Со снижением'!S113) -> 4,043,466.06 | N115: =IF(O114=0,"",'Со снижением'!T113) -> 0.00 | O115: 4,043,466.06
A116: 98 | B116: =IF(O115=0,"",'Со снижением'!G114) -> 2030-09-30 | C116: =IF(O115=0,"",'Со снижением'!H114) -> 30 | D116: =IF(O115=0,"",'Со снижением'!I114) -> 0.30% | E116: =IF(O115=0,"",'Со снижением'!L114) -> 4,043,466.06 | F116: =IF(O115=0,"",'Со снижением'!M114) -> 0.00 | G116: =IF(O115=0,"",'Со снижением'!J114) -> 15,946.00 | H116: =IF(O115=0,"",'Со снижением'!N114) -> 997.02 | I116: =IF(O115=0,"",'Со снижением'!P114) -> 997.02 | J116: =IF(O115=0,"",'Со снижением'!O114) -> 14,948.98 | K116: =IF(O115=0,"",'Со снижением'!Q114) -> 0.00 | L116: =IF(O115=0,"",'Со снижением'!R114) -> 0.00 | M116: =IF(O115=0,"",'Со снижением'!S114) -> 4,028,517.08 | N116: =IF(O115=0,"",'Со снижением'!T114) -> 0.00 | O116: 4,028,517.08
A117: 99 | B117: =IF(O116=0,"",'Со снижением'!G115) -> 2030-10-31 | C117: =IF(O116=0,"",'Со снижением'!H115) -> 31 | D117: =IF(O116=0,"",'Со снижением'!I115) -> 0.30% | E117: =IF(O116=0,"",'Со снижением'!L115) -> 4,028,517.08 | F117: =IF(O116=0,"",'Со снижением'!M115) -> 0.00 | G117: =IF(O116=0,"",'Со снижением'!J115) -> 15,946.00 | H117: =IF(O116=0,"",'Со снижением'!N115) -> 1,026.44 | I117: =IF(O116=0,"",'Со снижением'!P115) -> 1,026.44 | J117: =IF(O116=0,"",'Со снижением'!O115) -> 14,919.56 | K117: =IF(O116=0,"",'Со снижением'!Q115) -> 0.00 | L117: =IF(O116=0,"",'Со снижением'!R115) -> 0.00 | M117: =IF(O116=0,"",'Со снижением'!S115) -> 4,013,597.52 | N117: =IF(O116=0,"",'Со снижением'!T115) -> 0.00 | O117: 4,013,597.52
A118: 100 | B118: =IF(O117=0,"",'Со снижением'!G116) -> 2030-11-30 | C118: =IF(O117=0,"",'Со снижением'!H116) -> 30 | D118: =IF(O117=0,"",'Со снижением'!I116) -> 0.30% | E118: =IF(O117=0,"",'Со снижением'!L116) -> 4,013,597.52 | F118: =IF(O117=0,"",'Со снижением'!M116) -> 0.00 | G118: =IF(O117=0,"",'Со снижением'!J116) -> 15,946.00 | H118: =IF(O117=0,"",'Со снижением'!N116) -> 989.65 | I118: =IF(O117=0,"",'Со снижением'!P116) -> 989.65 | J118: =IF(O117=0,"",'Со снижением'!O116) -> 14,956.35 | K118: =IF(O117=0,"",'Со снижением'!Q116) -> 0.00 | L118: =IF(O117=0,"",'Со снижением'!R116) -> 0.00 | M118: =IF(O117=0,"",'Со снижением'!S116) -> 3,998,641.17 | N118: =IF(O117=0,"",'Со снижением'!T116) -> 0.00 | O118: 3,998,641.17
A119: 101 | B119: =IF(O118=0,"",'Со снижением'!G117) -> 2030-12-31 | C119: =IF(O118=0,"",'Со снижением'!H117) -> 31 | D119: =IF(O118=0,"",'Со снижением'!I117) -> 0.30% | E119: =IF(O118=0,"",'Со снижением'!L117) -> 3,998,641.17 | F119: =IF(O118=0,"",'Со снижением'!M117) -> 0.00 | G119: =IF(O118=0,"",'Со снижением'!J117) -> 15,946.00 | H119: =IF(O118=0,"",'Со снижением'!N117) -> 1,018.83 | I119: =IF(O118=0,"",'Со снижением'!P117) -> 1,018.83 | J119: =IF(O118=0,"",'Со снижением'!O117) -> 14,927.17 | K119: =IF(O118=0,"",'Со снижением'!Q117) -> 0.00 | L119: =IF(O118=0,"",'Со снижением'!R117) -> 0.00 | M119: =IF(O118=0,"",'Со снижением'!S117) -> 3,983,714.00 | N119: =IF(O118=0,"",'Со снижением'!T117) -> 0.00 | O119: 3,983,714.00
A120: 102 | B120: =IF(O119=0,"",'Со снижением'!G118) -> 2031-01-31 | C120: =IF(O119=0,"",'Со снижением'!H118) -> 31 | D120: =IF(O119=0,"",'Со снижением'!I118) -> 0.30% | E120: =IF(O119=0,"",'Со снижением'!L118) -> 3,983,714.00 | F120: =IF(O119=0,"",'Со снижением'!M118) -> 0.00 | G120: =IF(O119=0,"",'Со снижением'!J118) -> 15,946.00 | H120: =IF(O119=0,"",'Со снижением'!N118) -> 1,015.03 | I120: =IF(O119=0,"",'Со снижением'!P118) -> 1,015.03 | J120: =IF(O119=0,"",'Со снижением'!O118) -> 14,930.97 | K120: =IF(O119=0,"",'Со снижением'!Q118) -> 0.00 | L120: =IF(O119=0,"",'Со снижением'!R118) -> 0.00 | M120: =IF(O119=0,"",'Со снижением'!S118) -> 3,968,783.03 | N120: =IF(O119=0,"",'Со снижением'!T118) -> 0.00 | O120: 3,968,783.03
A121: 103 | B121: =IF(O120=0,"",'Со снижением'!G119) -> 2031-02-28 | C121: =IF(O120=0,"",'Со снижением'!H119) -> 28 | D121: =IF(O120=0,"",'Со снижением'!I119) -> 0.30% | E121: =IF(O120=0,"",'Со снижением'!L119) -> 3,968,783.03 | F121: =IF(O120=0,"",'Со снижением'!M119) -> 0.00 | G121: =IF(O120=0,"",'Со снижением'!J119) -> 15,946.00 | H121: =IF(O120=0,"",'Со снижением'!N119) -> 913.36 | I121: =IF(O120=0,"",'Со снижением'!P119) -> 913.36 | J121: =IF(O120=0,"",'Со снижением'!O119) -> 15,032.64 | K121: =IF(O120=0,"",'Со снижением'!Q119) -> 0.00 | L121: =IF(O120=0,"",'Со снижением'!R119) -> 0.00 | M121: =IF(O120=0,"",'Со снижением'!S119) -> 3,953,750.39 | N121: =IF(O120=0,"",'Со снижением'!T119) -> 0.00 | O121: 3,953,750.39
A122: 104 | B122: =IF(O121=0,"",'Со снижением'!G120) -> 2031-03-31 | C122: =IF(O121=0,"",'Со снижением'!H120) -> 31 | D122: =IF(O121=0,"",'Со снижением'!I120) -> 0.30% | E122: =IF(O121=0,"",'Со снижением'!L120) -> 3,953,750.39 | F122: =IF(O121=0,"",'Со снижением'!M120) -> 0.00 | G122: =IF(O121=0,"",'Со снижением'!J120) -> 15,946.00 | H122: =IF(O121=0,"",'Со снижением'!N120) -> 1,007.39 | I122: =IF(O121=0,"",'Со снижением'!P120) -> 1,007.39 | J122: =IF(O121=0,"",'Со снижением'!O120) -> 14,938.61 | K122: =IF(O121=0,"",'Со снижением'!Q120) -> 0.00 | L122: =IF(O121=0,"",'Со снижением'!R120) -> 0.00 | M122: =IF(O121=0,"",'Со снижением'!S120) -> 3,938,811.78 | N122: =IF(O121=0,"",'Со снижением'!T120) -> 0.00 | O122: 3,938,811.78
A123: 105 | B123: =IF(O122=0,"",'Со снижением'!G121) -> 2031-04-30 | C123: =IF(O122=0,"",'Со снижением'!H121) -> 30 | D123: =IF(O122=0,"",'Со снижением'!I121) -> 0.30% | E123: =IF(O122=0,"",'Со снижением'!L121) -> 3,938,811.78 | F123: =IF(O122=0,"",'Со снижением'!M121) -> 0.00 | G123: =IF(O122=0,"",'Со снижением'!J121) -> 15,946.00 | H123: =IF(O122=0,"",'Со снижением'!N121) -> 971.21 | I123: =IF(O122=0,"",'Со снижением'!P121) -> 971.21 | J123: =IF(O122=0,"",'Со снижением'!O121) -> 14,974.79 | K123: =IF(O122=0,"",'Со снижением'!Q121) -> 0.00 | L123: =IF(O122=0,"",'Со снижением'!R121) -> 0.00 | M123: =IF(O122=0,"",'Со снижением'!S121) -> 3,923,836.99 | N123: =IF(O122=0,"",'Со снижением'!T121) -> 0.00 | O123: 3,923,836.99
A124: 106 | B124: =IF(O123=0,"",'Со снижением'!G122) -> 2031-05-31 | C124: =IF(O123=0,"",'Со снижением'!H122) -> 31 | D124: =IF(O123=0,"",'Со снижением'!I122) -> 0.30% | E124: =IF(O123=0,"",'Со снижением'!L122) -> 3,923,836.99 | F124: =IF(O123=0,"",'Со снижением'!M122) -> 0.00 | G124: =IF(O123=0,"",'Со снижением'!J122) -> 15,946.00 | H124: =IF(O123=0,"",'Со снижением'!N122) -> 999.77 | I124: =IF(O123=0,"",'Со снижением'!P122) -> 999.77 | J124: =IF(O123=0,"",'Со снижением'!O122) -> 14,946.23 | K124: =IF(O123=0,"",'Со снижением'!Q122) -> 0.00 | L124: =IF(O123=0,"",'Со снижением'!R122) -> 0.00 | M124: =IF(O123=0,"",'Со снижением'!S122) -> 3,908,890.76 | N124: =IF(O123=0,"",'Со снижением'!T122) -> 0.00 | O124: 3,908,890.76
A125: 107 | B125: =IF(O124=0,"",'Со снижением'!G123) -> 2031-06-30 | C125: =IF(O124=0,"",'Со снижением'!H123) -> 30 | D125: =IF(O124=0,"",'Со снижением'!I123) -> 0.30% | E125: =IF(O124=0,"",'Со снижением'!L123) -> 3,908,890.76 | F125: =IF(O124=0,"",'Со снижением'!M123) -> 0.00 | G125: =IF(O124=0,"",'Со снижением'!J123) -> 15,946.00 | H125: =IF(O124=0,"",'Со снижением'!N123) -> 963.84 | I125: =IF(O124=0,"",'Со снижением'!P123) -> 963.84 | J125: =IF(O124=0,"",'Со снижением'!O123) -> 14,982.16 | K125: =IF(O124=0,"",'Со снижением'!Q123) -> 0.00 | L125: =IF(O124=0,"",'Со снижением'!R123) -> 0.00 | M125: =IF(O124=0,"",'Со снижением'!S123) -> 3,893,908.60 | N125: =IF(O124=0,"",'Со снижением'!T123) -> 0.00 | O125: 3,893,908.60
A126: 108 | B126: =IF(O125=0,"",'Со снижением'!G124) -> 2031-07-31 | C126: =IF(O125=0,"",'Со снижением'!H124) -> 31 | D126: =IF(O125=0,"",'Со снижением'!I124) -> 0.30% | E126: =IF(O125=0,"",'Со снижением'!L124) -> 3,893,908.60 | F126: =IF(O125=0,"",'Со снижением'!M124) -> 0.00 | G126: =IF(O125=0,"",'Со снижением'!J124) -> 15,946.00 | H126: =IF(O125=0,"",'Со снижением'!N124) -> 992.15 | I126: =IF(O125=0,"",'Со снижением'!P124) -> 992.15 | J126: =IF(O125=0,"",'Со снижением'!O124) -> 14,953.85 | K126: =IF(O125=0,"",'Со снижением'!Q124) -> 0.00 | L126: =IF(O125=0,"",'Со снижением'!R124) -> 0.00 | M126: =IF(O125=0,"",'Со снижением'!S124) -> 3,878,954.75 | N126: =IF(O125=0,"",'Со снижением'!T124) -> 0.00 | O126: 3,878,954.75
A127: 109 | B127: =IF(O126=0,"",'Со снижением'!G125) -> 2031-08-31 | C127: =IF(O126=0,"",'Со снижением'!H125) -> 31 | D127: =IF(O126=0,"",'Со снижением'!I125) -> 0.30% | E127: =IF(O126=0,"",'Со снижением'!L125) -> 3,878,954.75 | F127: =IF(O126=0,"",'Со снижением'!M125) -> 0.00 | G127: =IF(O126=0,"",'Со снижением'!J125) -> 15,946.00 | H127: =IF(O126=0,"",'Со снижением'!N125) -> 988.34 | I127: =IF(O126=0,"",'Со снижением'!P125) -> 988.34 | J127: =IF(O126=0,"",'Со снижением'!O125) -> 14,957.66 | K127: =IF(O126=0,"",'Со снижением'!Q125) -> 0.00 | L127: =IF(O126=0,"",'Со снижением'!R125) -> 0.00 | M127: =IF(O126=0,"",'Со снижением'!S125) -> 3,863,997.09 | N127: =IF(O126=0,"",'Со снижением'!T125) -> 0.00 | O127: 3,863,997.09
A128: 110 | B128: =IF(O127=0,"",'Со снижением'!G126) -> 2031-09-30 | C128: =IF(O127=0,"",'Со снижением'!H126) -> 30 | D128: =IF(O127=0,"",'Со снижением'!I126) -> 0.30% | E128: =IF(O127=0,"",'Со снижением'!L126) -> 3,863,997.09 | F128: =IF(O127=0,"",'Со снижением'!M126) -> 0.00 | G128: =IF(O127=0,"",'Со снижением'!J126) -> 15,946.00 | H128: =IF(O127=0,"",'Со снижением'!N126) -> 952.77 | I128: =IF(O127=0,"",'Со снижением'!P126) -> 952.77 | J128: =IF(O127=0,"",'Со снижением'!O126) -> 14,993.23 | K128: =IF(O127=0,"",'Со снижением'!Q126) -> 0.00 | L128: =IF(O127=0,"",'Со снижением'!R126) -> 0.00 | M128: =IF(O127=0,"",'Со снижением'!S126) -> 3,849,003.86 | N128: =IF(O127=0,"",'Со снижением'!T126) -> 0.00 | O128: 3,849,003.86
A129: 111 | B129: =IF(O128=0,"",'Со снижением'!G127) -> 2031-10-31 | C129: =IF(O128=0,"",'Со снижением'!H127) -> 31 | D129: =IF(O128=0,"",'Со снижением'!I127) -> 0.30% | E129: =IF(O128=0,"",'Со снижением'!L127) -> 3,849,003.86 | F129: =IF(O128=0,"",'Со снижением'!M127) -> 0.00 | G129: =IF(O128=0,"",'Со снижением'!J127) -> 15,946.00 | H129: =IF(O128=0,"",'Со снижением'!N127) -> 980.71 | I129: =IF(O128=0,"",'Со снижением'!P127) -> 980.71 | J129: =IF(O128=0,"",'Со снижением'!O127) -> 14,965.29 | K129: =IF(O128=0,"",'Со снижением'!Q127) -> 0.00 | L129: =IF(O128=0,"",'Со снижением'!R127) -> 0.00 | M129: =IF(O128=0,"",'Со снижением'!S127) -> 3,834,038.57 | N129: =IF(O128=0,"",'Со снижением'!T127) -> 0.00 | O129: 3,834,038.57
A130: 112 | B130: =IF(O129=0,"",'Со снижением'!G128) -> 2031-11-30 | C130: =IF(O129=0,"",'Со снижением'!H128) -> 30 | D130: =IF(O129=0,"",'Со снижением'!I128) -> 0.30% | E130: =IF(O129=0,"",'Со снижением'!L128) -> 3,834,038.57 | F130: =IF(O129=0,"",'Со снижением'!M128) -> 0.00 | G130: =IF(O129=0,"",'Со снижением'!J128) -> 15,946.00 | H130: =IF(O129=0,"",'Со снижением'!N128) -> 945.38 | I130: =IF(O129=0,"",'Со снижением'!P128) -> 945.38 | J130: =IF(O129=0,"",'Со снижением'!O128) -> 15,000.62 | K130: =IF(O129=0,"",'Со снижением'!Q128) -> 0.00 | L130: =IF(O129=0,"",'Со снижением'!R128) -> 0.00 | M130: =IF(O129=0,"",'Со снижением'!S128) -> 3,819,037.95 | N130: =IF(O129=0,"",'Со снижением'!T128) -> 0.00 | O130: 3,819,037.95
A131: 113 | B131: =IF(O130=0,"",'Со снижением'!G129) -> 2031-12-31 | C131: =IF(O130=0,"",'Со снижением'!H129) -> 31 | D131: =IF(O130=0,"",'Со снижением'!I129) -> 0.30% | E131: =IF(O130=0,"",'Со снижением'!L129) -> 3,819,037.95 | F131: =IF(O130=0,"",'Со снижением'!M129) -> 0.00 | G131: =IF(O130=0,"",'Со снижением'!J129) -> 15,946.00 | H131: =IF(O130=0,"",'Со снижением'!N129) -> 973.07 | I131: =IF(O130=0,"",'Со снижением'!P129) -> 973.07 | J131: =IF(O130=0,"",'Со снижением'!O129) -> 14,972.93 | K131: =IF(O130=0,"",'Со снижением'!Q129) -> 0.00 | L131: =IF(O130=0,"",'Со снижением'!R129) -> 0.00 | M131: =IF(O130=0,"",'Со снижением'!S129) -> 3,804,065.02 | N131: =IF(O130=0,"",'Со снижением'!T129) -> 0.00 | O131: 3,804,065.02
A132: 114 | B132: =IF(O131=0,"",'Со снижением'!G130) -> 2032-01-31 | C132: =IF(O131=0,"",'Со снижением'!H130) -> 31 | D132: =IF(O131=0,"",'Со снижением'!I130) -> 0.30% | E132: =IF(O131=0,"",'Со снижением'!L130) -> 3,804,065.02 | F132: =IF(O131=0,"",'Со снижением'!M130) -> 0.00 | G132: =IF(O131=0,"",'Со снижением'!J130) -> 15,946.00 | H132: =IF(O131=0,"",'Со снижением'!N130) -> 966.61 | I132: =IF(O131=0,"",'Со снижением'!P130) -> 966.61 | J132: =IF(O131=0,"",'Со снижением'!O130) -> 14,979.39 | K132: =IF(O131=0,"",'Со снижением'!Q130) -> 0.00 | L132: =IF(O131=0,"",'Со снижением'!R130) -> 0.00 | M132: =IF(O131=0,"",'Со снижением'!S130) -> 3,789,085.63 | N132: =IF(O131=0,"",'Со снижением'!T130) -> 0.00 | O132: 3,789,085.63
A133: 115 | B133: =IF(O132=0,"",'Со снижением'!G131) -> 2032-02-29 | C133: =IF(O132=0,"",'Со снижением'!H131) -> 29 | D133: =IF(O132=0,"",'Со снижением'!I131) -> 0.30% | E133: =IF(O132=0,"",'Со снижением'!L131) -> 3,789,085.63 | F133: =IF(O132=0,"",'Со снижением'!M131) -> 0.00 | G133: =IF(O132=0,"",'Со снижением'!J131) -> 15,946.00 | H133: =IF(O132=0,"",'Со снижением'!N131) -> 900.68 | I133: =IF(O132=0,"",'Со снижением'!P131) -> 900.68 | J133: =IF(O132=0,"",'Со снижением'!O131) -> 15,045.32 | K133: =IF(O132=0,"",'Со снижением'!Q131) -> 0.00 | L133: =IF(O132=0,"",'Со снижением'!R131) -> 0.00 | M133: =IF(O132=0,"",'Со снижением'!S131) -> 3,774,040.31 | N133: =IF(O132=0,"",'Со снижением'!T131) -> 0.00 | O133: 3,774,040.31
A134: 116 | B134: =IF(O133=0,"",'Со снижением'!G132) -> 2032-03-31 | C134: =IF(O133=0,"",'Со снижением'!H132) -> 31 | D134: =IF(O133=0,"",'Со снижением'!I132) -> 0.30% | E134: =IF(O133=0,"",'Со снижением'!L132) -> 3,774,040.31 | F134: =IF(O133=0,"",'Со снижением'!M132) -> 0.00 | G134: =IF(O133=0,"",'Со снижением'!J132) -> 15,946.00 | H134: =IF(O133=0,"",'Со снижением'!N132) -> 958.98 | I134: =IF(O133=0,"",'Со снижением'!P132) -> 958.98 | J134: =IF(O133=0,"",'Со снижением'!O132) -> 14,987.02 | K134: =IF(O133=0,"",'Со снижением'!Q132) -> 0.00 | L134: =IF(O133=0,"",'Со снижением'!R132) -> 0.00 | M134: =IF(O133=0,"",'Со снижением'!S132) -> 3,759,053.29 | N134: =IF(O133=0,"",'Со снижением'!T132) -> 0.00 | O134: 3,759,053.29
A135: 117 | B135: =IF(O134=0,"",'Со снижением'!G133) -> 2032-04-30 | C135: =IF(O134=0,"",'Со снижением'!H133) -> 30 | D135: =IF(O134=0,"",'Со снижением'!I133) -> 0.30% | E135: =IF(O134=0,"",'Со снижением'!L133) -> 3,759,053.29 | F135: =IF(O134=0,"",'Со снижением'!M133) -> 0.00 | G135: =IF(O134=0,"",'Со снижением'!J133) -> 15,946.00 | H135: =IF(O134=0,"",'Со снижением'!N133) -> 924.36 | I135: =IF(O134=0,"",'Со снижением'!P133) -> 924.36 | J135: =IF(O134=0,"",'Со снижением'!O133) -> 15,021.64 | K135: =IF(O134=0,"",'Со снижением'!Q133) -> 0.00 | L135: =IF(O134=0,"",'Со снижением'!R133) -> 0.00 | M135: =IF(O134=0,"",'Со снижением'!S133) -> 3,744,031.65 | N135: =IF(O134=0,"",'Со снижением'!T133) -> 0.00 | O135: 3,744,031.65
A136: 118 | B136: =IF(O135=0,"",'Со снижением'!G134) -> 2032-05-31 | C136: =IF(O135=0,"",'Со снижением'!H134) -> 31 | D136: =IF(O135=0,"",'Со снижением'!I134) -> 0.30% | E136: =IF(O135=0,"",'Со снижением'!L134) -> 3,744,031.65 | F136: =IF(O135=0,"",'Со снижением'!M134) -> 0.00 | G136: =IF(O135=0,"",'Со снижением'!J134) -> 15,946.00 | H136: =IF(O135=0,"",'Со снижением'!N134) -> 951.35 | I136: =IF(O135=0,"",'Со снижением'!P134) -> 951.35 | J136: =IF(O135=0,"",'Со снижением'!O134) -> 14,994.65 | K136: =IF(O135=0,"",'Со снижением'!Q134) -> 0.00 | L136: =IF(O135=0,"",'Со снижением'!R134) -> 0.00 | M136: =IF(O135=0,"",'Со снижением'!S134) -> 3,729,037.00 | N136: =IF(O135=0,"",'Со снижением'!T134) -> 0.00 | O136: 3,729,037.00
A137: 119 | B137: =IF(O136=0,"",'Со снижением'!G135) -> 2032-06-30 | C137: =IF(O136=0,"",'Со снижением'!H135) -> 30 | D137: =IF(O136=0,"",'Со снижением'!I135) -> 0.30% | E137: =IF(O136=0,"",'Со снижением'!L135) -> 3,729,037.00 | F137: =IF(O136=0,"",'Со снижением'!M135) -> 0.00 | G137: =IF(O136=0,"",'Со снижением'!J135) -> 15,946.00 | H137: =IF(O136=0,"",'Со снижением'!N135) -> 916.98 | I137: =IF(O136=0,"",'Со снижением'!P135) -> 916.98 | J137: =IF(O136=0,"",'Со снижением'!O135) -> 15,029.02 | K137: =IF(O136=0,"",'Со снижением'!Q135) -> 0.00 | L137: =IF(O136=0,"",'Со снижением'!R135) -> 0.00 | M137: =IF(O136=0,"",'Со снижением'!S135) -> 3,714,007.98 | N137: =IF(O136=0,"",'Со снижением'!T135) -> 0.00 | O137: 3,714,007.98
A138: 120 | B138: =IF(O137=0,"",'Со снижением'!G136) -> 2032-07-31 | C138: =IF(O137=0,"",'Со снижением'!H136) -> 31 | D138: =IF(O137=0,"",'Со снижением'!I136) -> 0.30% | E138: =IF(O137=0,"",'Со снижением'!L136) -> 3,714,007.98 | F138: =IF(O137=0,"",'Со снижением'!M136) -> 0.00 | G138: =IF(O137=0,"",'Со снижением'!J136) -> 15,946.00 | H138: =IF(O137=0,"",'Со снижением'!N136) -> 943.72 | I138: =IF(O137=0,"",'Со снижением'!P136) -> 943.72 | J138: =IF(O137=0,"",'Со снижением'!O136) -> 15,002.28 | K138: =IF(O137=0,"",'Со снижением'!Q136) -> 0.00 | L138: =IF(O137=0,"",'Со снижением'!R136) -> 0.00 | M138: =IF(O137=0,"",'Со снижением'!S136) -> 3,699,005.70 | N138: =IF(O137=0,"",'Со снижением'!T136) -> 0.00 | O138: 3,699,005.70
A139: 121 | B139: =IF(O138=0,"",'Со снижением'!G137) -> 2032-08-31 | C139: =IF(O138=0,"",'Со снижением'!H137) -> 31 | D139: =IF(O138=0,"",'Со снижением'!I137) -> 0.30% | E139: =IF(O138=0,"",'Со снижением'!L137) -> 3,699,005.70 | F139: =IF(O138=0,"",'Со снижением'!M137) -> 0.00 | G139: =IF(O138=0,"",'Со снижением'!J137) -> 15,946.00 | H139: =IF(O138=0,"",'Со снижением'!N137) -> 939.91 | I139: =IF(O138=0,"",'Со снижением'!P137) -> 939.91 | J139: =IF(O138=0,"",'Со снижением'!O137) -> 15,006.09 | K139: =IF(O138=0,"",'Со снижением'!Q137) -> 0.00 | L139: =IF(O138=0,"",'Со снижением'!R137) -> 0.00 | M139: =IF(O138=0,"",'Со снижением'!S137) -> 3,683,999.61 | N139: =IF(O138=0,"",'Со снижением'!T137) -> 0.00 | O139: 3,683,999.61
A140: 122 | B140: =IF(O139=0,"",'Со снижением'!G138) -> 2032-09-30 | C140: =IF(O139=0,"",'Со снижением'!H138) -> 30 | D140: =IF(O139=0,"",'Со снижением'!I138) -> 0.30% | E140: =IF(O139=0,"",'Со снижением'!L138) -> 3,683,999.61 | F140: =IF(O139=0,"",'Со снижением'!M138) -> 0.00 | G140: =IF(O139=0,"",'Со снижением'!J138) -> 15,946.00 | H140: =IF(O139=0,"",'Со снижением'!N138) -> 905.90 | I140: =IF(O139=0,"",'Со снижением'!P138) -> 905.90 | J140: =IF(O139=0,"",'Со снижением'!O138) -> 15,040.10 | K140: =IF(O139=0,"",'Со снижением'!Q138) -> 0.00 | L140: =IF(O139=0,"",'Со снижением'!R138) -> 0.00 | M140: =IF(O139=0,"",'Со снижением'!S138) -> 3,668,959.51 | N140: =IF(O139=0,"",'Со снижением'!T138) -> 0.00 | O140: 3,668,959.51
A141: 123 | B141: =IF(O140=0,"",'Со снижением'!G139) -> 2032-10-31 | C141: =IF(O140=0,"",'Со снижением'!H139) -> 31 | D141: =IF(O140=0,"",'Со снижением'!I139) -> 0.30% | E141: =IF(O140=0,"",'Со снижением'!L139) -> 3,668,959.51 | F141: =IF(O140=0,"",'Со снижением'!M139) -> 0.00 | G141: =IF(O140=0,"",'Со снижением'!J139) -> 15,946.00 | H141: =IF(O140=0,"",'Со снижением'!N139) -> 932.28 | I141: =IF(O140=0,"",'Со снижением'!P139) -> 932.28 | J141: =IF(O140=0,"",'Со снижением'!O139) -> 15,013.72 | K141: =IF(O140=0,"",'Со снижением'!Q139) -> 0.00 | L141: =IF(O140=0,"",'Со снижением'!R139) -> 0.00 | M141: =IF(O140=0,"",'Со снижением'!S139) -> 3,653,945.79 | N141: =IF(O140=0,"",'Со снижением'!T139) -> 0.00 | O141: 3,653,945.79
A142: 124 | B142: =IF(O141=0,"",'Со снижением'!G140) -> 2032-11-30 | C142: =IF(O141=0,"",'Со снижением'!H140) -> 30 | D142: =IF(O141=0,"",'Со снижением'!I140) -> 0.30% | E142: =IF(O141=0,"",'Со снижением'!L140) -> 3,653,945.79 | F142: =IF(O141=0,"",'Со снижением'!M140) -> 0.00 | G142: =IF(O141=0,"",'Со снижением'!J140) -> 15,946.00 | H142: =IF(O141=0,"",'Со снижением'!N140) -> 898.51 | I142: =IF(O141=0,"",'Со снижением'!P140) -> 898.51 | J142: =IF(O141=0,"",'Со снижением'!O140) -> 15,047.49 | K142: =IF(O141=0,"",'Со снижением'!Q140) -> 0.00 | L142: =IF(O141=0,"",'Со снижением'!R140) -> 0.00 | M142: =IF(O141=0,"",'Со снижением'!S140) -> 3,638,898.30 | N142: =IF(O141=0,"",'Со снижением'!T140) -> 0.00 | O142: 3,638,898.30
A143: 125 | B143: =IF(O142=0,"",'Со снижением'!G141) -> 2032-12-31 | C143: =IF(O142=0,"",'Со снижением'!H141) -> 31 | D143: =IF(O142=0,"",'Со снижением'!I141) -> 0.30% | E143: =IF(O142=0,"",'Со снижением'!L141) -> 3,638,898.30 | F143: =IF(O142=0,"",'Со снижением'!M141) -> 0.00 | G143: =IF(O142=0,"",'Со снижением'!J141) -> 15,946.00 | H143: =IF(O142=0,"",'Со снижением'!N141) -> 924.64 | I143: =IF(O142=0,"",'Со снижением'!P141) -> 924.64 | J143: =IF(O142=0,"",'Со снижением'!O141) -> 15,021.36 | K143: =IF(O142=0,"",'Со снижением'!Q141) -> 0.00 | L143: =IF(O142=0,"",'Со снижением'!R141) -> 0.00 | M143: =IF(O142=0,"",'Со снижением'!S141) -> 3,623,876.94 | N143: =IF(O142=0,"",'Со снижением'!T141) -> 0.00 | O143: 3,623,876.94
A144: 126 | B144: =IF(O143=0,"",'Со снижением'!G142) -> 2033-01-31 | C144: =IF(O143=0,"",'Со снижением'!H142) -> 31 | D144: =IF(O143=0,"",'Со снижением'!I142) -> 0.30% | E144: =IF(O143=0,"",'Со снижением'!L142) -> 3,623,876.94 | F144: =IF(O143=0,"",'Со снижением'!M142) -> 0.00 | G144: =IF(O143=0,"",'Со снижением'!J142) -> 15,946.00 | H144: =IF(O143=0,"",'Со снижением'!N142) -> 923.34 | I144: =IF(O143=0,"",'Со снижением'!P142) -> 923.34 | J144: =IF(O143=0,"",'Со снижением'!O142) -> 15,022.66 | K144: =IF(O143=0,"",'Со снижением'!Q142) -> 0.00 | L144: =IF(O143=0,"",'Со снижением'!R142) -> 0.00 | M144: =IF(O143=0,"",'Со снижением'!S142) -> 3,608,854.28 | N144: =IF(O143=0,"",'Со снижением'!T142) -> 0.00 | O144: 3,608,854.28
A145: 127 | B145: =IF(O144=0,"",'Со снижением'!G143) -> 2033-02-28 | C145: =IF(O144=0,"",'Со снижением'!H143) -> 28 | D145: =IF(O144=0,"",'Со снижением'!I143) -> 0.30% | E145: =IF(O144=0,"",'Со снижением'!L143) -> 3,608,854.28 | F145: =IF(O144=0,"",'Со снижением'!M143) -> 0.00 | G145: =IF(O144=0,"",'Со снижением'!J143) -> 15,946.00 | H145: =IF(O144=0,"",'Со снижением'!N143) -> 830.53 | I145: =IF(O144=0,"",'Со снижением'!P143) -> 830.53 | J145: =IF(O144=0,"",'Со снижением'!O143) -> 15,115.47 | K145: =IF(O144=0,"",'Со снижением'!Q143) -> 0.00 | L145: =IF(O144=0,"",'Со снижением'!R143) -> 0.00 | M145: =IF(O144=0,"",'Со снижением'!S143) -> 3,593,738.81 | N145: =IF(O144=0,"",'Со снижением'!T143) -> 0.00 | O145: 3,593,738.81
A146: 128 | B146: =IF(O145=0,"",'Со снижением'!G144) -> 2033-03-31 | C146: =IF(O145=0,"",'Со снижением'!H144) -> 31 | D146: =IF(O145=0,"",'Со снижением'!I144) -> 0.30% | E146: =IF(O145=0,"",'Со снижением'!L144) -> 3,593,738.81 | F146: =IF(O145=0,"",'Со снижением'!M144) -> 0.00 | G146: =IF(O145=0,"",'Со снижением'!J144) -> 15,946.00 | H146: =IF(O145=0,"",'Со снижением'!N144) -> 915.66 | I146: =IF(O145=0,"",'Со снижением'!P144) -> 915.66 | J146: =IF(O145=0,"",'Со снижением'!O144) -> 15,030.34 | K146: =IF(O145=0,"",'Со снижением'!Q144) -> 0.00 | L146: =IF(O145=0,"",'Со снижением'!R144) -> 0.00 | M146: =IF(O145=0,"",'Со снижением'!S144) -> 3,578,708.47 | N146: =IF(O145=0,"",'Со снижением'!T144) -> 0.00 | O146: 3,578,708.47
A147: 129 | B147: =IF(O146=0,"",'Со снижением'!G145) -> 2033-04-30 | C147: =IF(O146=0,"",'Со снижением'!H145) -> 30 | D147: =IF(O146=0,"",'Со снижением'!I145) -> 0.30% | E147: =IF(O146=0,"",'Со снижением'!L145) -> 3,578,708.47 | F147: =IF(O146=0,"",'Со снижением'!M145) -> 0.00 | G147: =IF(O146=0,"",'Со снижением'!J145) -> 15,946.00 | H147: =IF(O146=0,"",'Со снижением'!N145) -> 882.42 | I147: =IF(O146=0,"",'Со снижением'!P145) -> 882.42 | J147: =IF(O146=0,"",'Со снижением'!O145) -> 15,063.58 | K147: =IF(O146=0,"",'Со снижением'!Q145) -> 0.00 | L147: =IF(O146=0,"",'Со снижением'!R145) -> 0.00 | M147: =IF(O146=0,"",'Со снижением'!S145) -> 3,563,644.89 | N147: =IF(O146=0,"",'Со снижением'!T145) -> 0.00 | O147: 3,563,644.89
A148: 130 | B148: =IF(O147=0,"",'Со снижением'!G146) -> 2033-05-31 | C148: =IF(O147=0,"",'Со снижением'!H146) -> 31 | D148: =IF(O147=0,"",'Со снижением'!I146) -> 0.30% | E148: =IF(O147=0,"",'Со снижением'!L146) -> 3,563,644.89 | F148: =IF(O147=0,"",'Со снижением'!M146) -> 0.00 | G148: =IF(O147=0,"",'Со снижением'!J146) -> 15,946.00 | H148: =IF(O147=0,"",'Со снижением'!N146) -> 908.00 | I148: =IF(O147=0,"",'Со снижением'!P146) -> 908.00 | J148: =IF(O147=0,"",'Со снижением'!O146) -> 15,038.00 | K148: =IF(O147=0,"",'Со снижением'!Q146) -> 0.00 | L148: =IF(O147=0,"",'Со снижением'!R146) -> 0.00 | M148: =IF(O147=0,"",'Со снижением'!S146) -> 3,548,606.89 | N148: =IF(O147=0,"",'Со снижением'!T146) -> 0.00 | O148: 3,548,606.89
A149: =IF(O148=0,"",A148+1) -> 131 | B149: =IF(O148=0,"",'Со снижением'!G147) -> 2033-06-30 | C149: =IF(O148=0,"",'Со снижением'!H147) -> 30 | D149: =IF(O148=0,"",'Со снижением'!I147) -> 0.30% | E149: =IF(O148=0,"",'Со снижением'!L147) -> 3,548,606.89 | F149: =IF(O148=0,"",'Со снижением'!M147) -> 0.00 | G149: =IF(O148=0,"",'Со снижением'!J147) -> 15,946.00 | H149: =IF(O148=0,"",'Со снижением'!N147) -> 875.00 | I149: =IF(O148=0,"",'Со снижением'!P147) -> 875.00 | J149: =IF(O148=0,"",'Со снижением'!O147) -> 15,071.00 | K149: =IF(O148=0,"",'Со снижением'!Q147) -> 0.00 | L149: =IF(O148=0,"",'Со снижением'!R147) -> 0.00 | M149: =IF(O148=0,"",'Со снижением'!S147) -> 3,533,535.89 | N149: =IF(O148=0,"",'Со снижением'!T147) -> 0.00 | O149: =IFERROR(M149+N149,0) -> 3,533,535.89
A150: 132 | B150: =IF(O149=0,"",'Со снижением'!G148) -> 2033-07-31 | C150: =IF(O149=0,"",'Со снижением'!H148) -> 31 | D150: =IF(O149=0,"",'Со снижением'!I148) -> 0.30% | E150: =IF(O149=0,"",'Со снижением'!L148) -> 3,533,535.89 | F150: =IF(O149=0,"",'Со снижением'!M148) -> 0.00 | G150: =IF(O149=0,"",'Со снижением'!J148) -> 15,946.00 | H150: =IF(O149=0,"",'Со снижением'!N148) -> 900.33 | I150: =IF(O149=0,"",'Со снижением'!P148) -> 900.33 | J150: =IF(O149=0,"",'Со снижением'!O148) -> 15,045.67 | K150: =IF(O149=0,"",'Со снижением'!Q148) -> 0.00 | L150: =IF(O149=0,"",'Со снижением'!R148) -> 0.00 | M150: =IF(O149=0,"",'Со снижением'!S148) -> 3,518,490.22 | N150: =IF(O149=0,"",'Со снижением'!T148) -> 0.00 | O150: 3,518,490.22
A151: 133 | B151: =IF(O150=0,"",'Со снижением'!G149) -> 2033-08-31 | C151: =IF(O150=0,"",'Со снижением'!H149) -> 31 | D151: =IF(O150=0,"",'Со снижением'!I149) -> 0.30% | E151: =IF(O150=0,"",'Со снижением'!L149) -> 3,518,490.22 | F151: =IF(O150=0,"",'Со снижением'!M149) -> 0.00 | G151: =IF(O150=0,"",'Со снижением'!J149) -> 15,946.00 | H151: =IF(O150=0,"",'Со снижением'!N149) -> 896.49 | I151: =IF(O150=0,"",'Со снижением'!P149) -> 896.49 | J151: =IF(O150=0,"",'Со снижением'!O149) -> 15,049.51 | K151: =IF(O150=0,"",'Со снижением'!Q149) -> 0.00 | L151: =IF(O150=0,"",'Со снижением'!R149) -> 0.00 | M151: =IF(O150=0,"",'Со снижением'!S149) -> 3,503,440.71 | N151: =IF(O150=0,"",'Со снижением'!T149) -> 0.00 | O151: 3,503,440.71
A152: 134 | B152: =IF(O151=0,"",'Со снижением'!G150) -> 2033-09-30 | C152: =IF(O151=0,"",'Со снижением'!H150) -> 30 | D152: =IF(O151=0,"",'Со снижением'!I150) -> 0.30% | E152: =IF(O151=0,"",'Со снижением'!L150) -> 3,503,440.71 | F152: =IF(O151=0,"",'Со снижением'!M150) -> 0.00 | G152: =IF(O151=0,"",'Со снижением'!J150) -> 15,946.00 | H152: =IF(O151=0,"",'Со снижением'!N150) -> 863.86 | I152: =IF(O151=0,"",'Со снижением'!P150) -> 863.86 | J152: =IF(O151=0,"",'Со снижением'!O150) -> 15,082.14 | K152: =IF(O151=0,"",'Со снижением'!Q150) -> 0.00 | L152: =IF(O151=0,"",'Со снижением'!R150) -> 0.00 | M152: =IF(O151=0,"",'Со снижением'!S150) -> 3,488,358.57 | N152: =IF(O151=0,"",'Со снижением'!T150) -> 0.00 | O152: 3,488,358.57
A153: 135 | B153: =IF(O152=0,"",'Со снижением'!G151) -> 2033-10-31 | C153: =IF(O152=0,"",'Со снижением'!H151) -> 31 | D153: =IF(O152=0,"",'Со снижением'!I151) -> 0.30% | E153: =IF(O152=0,"",'Со снижением'!L151) -> 3,488,358.57 | F153: =IF(O152=0,"",'Со снижением'!M151) -> 0.00 | G153: =IF(O152=0,"",'Со снижением'!J151) -> 15,946.00 | H153: =IF(O152=0,"",'Со снижением'!N151) -> 888.81 | I153: =IF(O152=0,"",'Со снижением'!P151) -> 888.81 | J153: =IF(O152=0,"",'Со снижением'!O151) -> 15,057.19 | K153: =IF(O152=0,"",'Со снижением'!Q151) -> 0.00 | L153: =IF(O152=0,"",'Со снижением'!R151) -> 0.00 | M153: =IF(O152=0,"",'Со снижением'!S151) -> 3,473,301.38 | N153: =IF(O152=0,"",'Со снижением'!T151) -> 0.00 | O153: 3,473,301.38
A154: 136 | B154: =IF(O153=0,"",'Со снижением'!G152) -> 2033-11-30 | C154: =IF(O153=0,"",'Со снижением'!H152) -> 30 | D154: =IF(O153=0,"",'Со снижением'!I152) -> 0.30% | E154: =IF(O153=0,"",'Со снижением'!L152) -> 3,473,301.38 | F154: =IF(O153=0,"",'Со снижением'!M152) -> 0.00 | G154: =IF(O153=0,"",'Со снижением'!J152) -> 15,946.00 | H154: =IF(O153=0,"",'Со снижением'!N152) -> 856.43 | I154: =IF(O153=0,"",'Со снижением'!P152) -> 856.43 | J154: =IF(O153=0,"",'Со снижением'!O152) -> 15,089.57 | K154: =IF(O153=0,"",'Со снижением'!Q152) -> 0.00 | L154: =IF(O153=0,"",'Со снижением'!R152) -> 0.00 | M154: =IF(O153=0,"",'Со снижением'!S152) -> 3,458,211.81 | N154: =IF(O153=0,"",'Со снижением'!T152) -> 0.00 | O154: 3,458,211.81
A155: 137 | B155: =IF(O154=0,"",'Со снижением'!G153) -> 2033-12-31 | C155: =IF(O154=0,"",'Со снижением'!H153) -> 31 | D155: =IF(O154=0,"",'Со снижением'!I153) -> 0.30% | E155: =IF(O154=0,"",'Со снижением'!L153) -> 3,458,211.81 | F155: =IF(O154=0,"",'Со снижением'!M153) -> 0.00 | G155: =IF(O154=0,"",'Со снижением'!J153) -> 15,946.00 | H155: =IF(O154=0,"",'Со снижением'!N153) -> 881.13 | I155: =IF(O154=0,"",'Со снижением'!P153) -> 881.13 | J155: =IF(O154=0,"",'Со снижением'!O153) -> 15,064.87 | K155: =IF(O154=0,"",'Со снижением'!Q153) -> 0.00 | L155: =IF(O154=0,"",'Со снижением'!R153) -> 0.00 | M155: =IF(O154=0,"",'Со снижением'!S153) -> 3,443,146.94 | N155: =IF(O154=0,"",'Со снижением'!T153) -> 0.00 | O155: 3,443,146.94
A156: 138 | B156: =IF(O155=0,"",'Со снижением'!G154) -> 2034-01-31 | C156: =IF(O155=0,"",'Со снижением'!H154) -> 31 | D156: =IF(O155=0,"",'Со снижением'!I154) -> 0.30% | E156: =IF(O155=0,"",'Со снижением'!L154) -> 3,443,146.94 | F156: =IF(O155=0,"",'Со снижением'!M154) -> 0.00 | G156: =IF(O155=0,"",'Со снижением'!J154) -> 15,946.00 | H156: =IF(O155=0,"",'Со снижением'!N154) -> 877.29 | I156: =IF(O155=0,"",'Со снижением'!P154) -> 877.29 | J156: =IF(O155=0,"",'Со снижением'!O154) -> 15,068.71 | K156: =IF(O155=0,"",'Со снижением'!Q154) -> 0.00 | L156: =IF(O155=0,"",'Со снижением'!R154) -> 0.00 | M156: =IF(O155=0,"",'Со снижением'!S154) -> 3,428,078.23 | N156: =IF(O155=0,"",'Со снижением'!T154) -> 0.00 | O156: 3,428,078.23
A157: 139 | B157: =IF(O156=0,"",'Со снижением'!G155) -> 2034-02-28 | C157: =IF(O156=0,"",'Со снижением'!H155) -> 28 | D157: =IF(O156=0,"",'Со снижением'!I155) -> 0.30% | E157: =IF(O156=0,"",'Со снижением'!L155) -> 3,428,078.23 | F157: =IF(O156=0,"",'Со снижением'!M155) -> 0.00 | G157: =IF(O156=0,"",'Со снижением'!J155) -> 15,946.00 | H157: =IF(O156=0,"",'Со снижением'!N155) -> 788.93 | I157: =IF(O156=0,"",'Со снижением'!P155) -> 788.93 | J157: =IF(O156=0,"",'Со снижением'!O155) -> 15,157.07 | K157: =IF(O156=0,"",'Со снижением'!Q155) -> 0.00 | L157: =IF(O156=0,"",'Со снижением'!R155) -> 0.00 | M157: =IF(O156=0,"",'Со снижением'!S155) -> 3,412,921.16 | N157: =IF(O156=0,"",'Со снижением'!T155) -> 0.00 | O157: 3,412,921.16
A158: 140 | B158: =IF(O157=0,"",'Со снижением'!G156) -> 2034-03-31 | C158: =IF(O157=0,"",'Со снижением'!H156) -> 31 | D158: =IF(O157=0,"",'Со снижением'!I156) -> 0.30% | E158: =IF(O157=0,"",'Со снижением'!L156) -> 3,412,921.16 | F158: =IF(O157=0,"",'Со снижением'!M156) -> 0.00 | G158: =IF(O157=0,"",'Со снижением'!J156) -> 15,946.00 | H158: =IF(O157=0,"",'Со снижением'!N156) -> 869.59 | I158: =IF(O157=0,"",'Со снижением'!P156) -> 869.59 | J158: =IF(O157=0,"",'Со снижением'!O156) -> 15,076.41 | K158: =IF(O157=0,"",'Со снижением'!Q156) -> 0.00 | L158: =IF(O157=0,"",'Со снижением'!R156) -> 0.00 | M158: =IF(O157=0,"",'Со снижением'!S156) -> 3,397,844.75 | N158: =IF(O157=0,"",'Со снижением'!T156) -> 0.00 | O158: 3,397,844.75
A159: 141 | B159: =IF(O158=0,"",'Со снижением'!G157) -> 2034-04-30 | C159: =IF(O158=0,"",'Со снижением'!H157) -> 30 | D159: =IF(O158=0,"",'Со снижением'!I157) -> 0.30% | E159: =IF(O158=0,"",'Со снижением'!L157) -> 3,397,844.75 | F159: =IF(O158=0,"",'Со снижением'!M157) -> 0.00 | G159: =IF(O158=0,"",'Со снижением'!J157) -> 15,946.00 | H159: =IF(O158=0,"",'Со снижением'!N157) -> 837.82 | I159: =IF(O158=0,"",'Со снижением'!P157) -> 837.82 | J159: =IF(O158=0,"",'Со снижением'!O157) -> 15,108.18 | K159: =IF(O158=0,"",'Со снижением'!Q157) -> 0.00 | L159: =IF(O158=0,"",'Со снижением'!R157) -> 0.00 | M159: =IF(O158=0,"",'Со снижением'!S157) -> 3,382,736.57 | N159: =IF(O158=0,"",'Со снижением'!T157) -> 0.00 | O159: 3,382,736.57
A160: 142 | B160: =IF(O159=0,"",'Со снижением'!G158) -> 2034-05-31 | C160: =IF(O159=0,"",'Со снижением'!H158) -> 31 | D160: =IF(O159=0,"",'Со снижением'!I158) -> 0.30% | E160: =IF(O159=0,"",'Со снижением'!L158) -> 3,382,736.57 | F160: =IF(O159=0,"",'Со снижением'!M158) -> 0.00 | G160: =IF(O159=0,"",'Со снижением'!J158) -> 15,946.00 | H160: =IF(O159=0,"",'Со снижением'!N158) -> 861.90 | I160: =IF(O159=0,"",'Со снижением'!P158) -> 861.90 | J160: =IF(O159=0,"",'Со снижением'!O158) -> 15,084.10 | K160: =IF(O159=0,"",'Со снижением'!Q158) -> 0.00 | L160: =IF(O159=0,"",'Со снижением'!R158) -> 0.00 | M160: =IF(O159=0,"",'Со снижением'!S158) -> 3,367,652.47 | N160: =IF(O159=0,"",'Со снижением'!T158) -> 0.00 | O160: 3,367,652.47
A161: 143 | B161: =IF(O160=0,"",'Со снижением'!G159) -> 2034-06-30 | C161: =IF(O160=0,"",'Со снижением'!H159) -> 30 | D161: =IF(O160=0,"",'Со снижением'!I159) -> 0.30% | E161: =IF(O160=0,"",'Со снижением'!L159) -> 3,367,652.47 | F161: =IF(O160=0,"",'Со снижением'!M159) -> 0.00 | G161: =IF(O160=0,"",'Со снижением'!J159) -> 15,946.00 | H161: =IF(O160=0,"",'Со снижением'!N159) -> 830.38 | I161: =IF(O160=0,"",'Со снижением'!P159) -> 830.38 | J161: =IF(O160=0,"",'Со снижением'!O159) -> 15,115.62 | K161: =IF(O160=0,"",'Со снижением'!Q159) -> 0.00 | L161: =IF(O160=0,"",'Со снижением'!R159) -> 0.00 | M161: =IF(O160=0,"",'Со снижением'!S159) -> 3,352,536.85 | N161: =IF(O160=0,"",'Со снижением'!T159) -> 0.00 | O161: 3,352,536.85
A162: 144 | B162: =IF(O161=0,"",'Со снижением'!G160) -> 2034-07-31 | C162: =IF(O161=0,"",'Со снижением'!H160) -> 31 | D162: =IF(O161=0,"",'Со снижением'!I160) -> 0.30% | E162: =IF(O161=0,"",'Со снижением'!L160) -> 3,352,536.85 | F162: =IF(O161=0,"",'Со снижением'!M160) -> 0.00 | G162: =IF(O161=0,"",'Со снижением'!J160) -> 15,946.00 | H162: =IF(O161=0,"",'Со снижением'!N160) -> 854.21 | I162: =IF(O161=0,"",'Со снижением'!P160) -> 854.21 | J162: =IF(O161=0,"",'Со снижением'!O160) -> 15,091.79 | K162: =IF(O161=0,"",'Со снижением'!Q160) -> 0.00 | L162: =IF(O161=0,"",'Со снижением'!R160) -> 0.00 | M162: =IF(O161=0,"",'Со снижением'!S160) -> 3,337,445.06 | N162: =IF(O161=0,"",'Со снижением'!T160) -> 0.00 | O162: 3,337,445.06
A163: 145 | B163: =IF(O162=0,"",'Со снижением'!G161) -> 2034-08-31 | C163: =IF(O162=0,"",'Со снижением'!H161) -> 31 | D163: =IF(O162=0,"",'Со снижением'!I161) -> 0.30% | E163: =IF(O162=0,"",'Со снижением'!L161) -> 3,337,445.06 | F163: =IF(O162=0,"",'Со снижением'!M161) -> 0.00 | G163: =IF(O162=0,"",'Со снижением'!J161) -> 15,946.00 | H163: =IF(O162=0,"",'Со снижением'!N161) -> 850.36 | I163: =IF(O162=0,"",'Со снижением'!P161) -> 850.36 | J163: =IF(O162=0,"",'Со снижением'!O161) -> 15,095.64 | K163: =IF(O162=0,"",'Со снижением'!Q161) -> 0.00 | L163: =IF(O162=0,"",'Со снижением'!R161) -> 0.00 | M163: =IF(O162=0,"",'Со снижением'!S161) -> 3,322,349.42 | N163: =IF(O162=0,"",'Со снижением'!T161) -> 0.00 | O163: 3,322,349.42
A164: 146 | B164: =IF(O163=0,"",'Со снижением'!G162) -> 2034-09-30 | C164: =IF(O163=0,"",'Со снижением'!H162) -> 30 | D164: =IF(O163=0,"",'Со снижением'!I162) -> 0.30% | E164: =IF(O163=0,"",'Со снижением'!L162) -> 3,322,349.42 | F164: =IF(O163=0,"",'Со снижением'!M162) -> 0.00 | G164: =IF(O163=0,"",'Со снижением'!J162) -> 15,946.00 | H164: =IF(O163=0,"",'Со снижением'!N162) -> 819.21 | I164: =IF(O163=0,"",'Со снижением'!P162) -> 819.21 | J164: =IF(O163=0,"",'Со снижением'!O162) -> 15,126.79 | K164: =IF(O163=0,"",'Со снижением'!Q162) -> 0.00 | L164: =IF(O163=0,"",'Со снижением'!R162) -> 0.00 | M164: =IF(O163=0,"",'Со снижением'!S162) -> 3,307,222.63 | N164: =IF(O163=0,"",'Со снижением'!T162) -> 0.00 | O164: 3,307,222.63
A165: 147 | B165: =IF(O164=0,"",'Со снижением'!G163) -> 2034-10-31 | C165: =IF(O164=0,"",'Со снижением'!H163) -> 31 | D165: =IF(O164=0,"",'Со снижением'!I163) -> 0.30% | E165: =IF(O164=0,"",'Со снижением'!L163) -> 3,307,222.63 | F165: =IF(O164=0,"",'Со снижением'!M163) -> 0.00 | G165: =IF(O164=0,"",'Со снижением'!J163) -> 15,946.00 | H165: =IF(O164=0,"",'Со снижением'!N163) -> 842.66 | I165: =IF(O164=0,"",'Со снижением'!P163) -> 842.66 | J165: =IF(O164=0,"",'Со снижением'!O163) -> 15,103.34 | K165: =IF(O164=0,"",'Со снижением'!Q163) -> 0.00 | L165: =IF(O164=0,"",'Со снижением'!R163) -> 0.00 | M165: =IF(O164=0,"",'Со снижением'!S163) -> 3,292,119.29 | N165: =IF(O164=0,"",'Со снижением'!T163) -> 0.00 | O165: 3,292,119.29
A166: 148 | B166: =IF(O165=0,"",'Со снижением'!G164) -> 2034-11-30 | C166: =IF(O165=0,"",'Со снижением'!H164) -> 30 | D166: =IF(O165=0,"",'Со снижением'!I164) -> 0.30% | E166: =IF(O165=0,"",'Со снижением'!L164) -> 3,292,119.29 | F166: =IF(O165=0,"",'Со снижением'!M164) -> 0.00 | G166: =IF(O165=0,"",'Со снижением'!J164) -> 15,946.00 | H166: =IF(O165=0,"",'Со снижением'!N164) -> 811.76 | I166: =IF(O165=0,"",'Со снижением'!P164) -> 811.76 | J166: =IF(O165=0,"",'Со снижением'!O164) -> 15,134.24 | K166: =IF(O165=0,"",'Со снижением'!Q164) -> 0.00 | L166: =IF(O165=0,"",'Со снижением'!R164) -> 0.00 | M166: =IF(O165=0,"",'Со снижением'!S164) -> 3,276,985.05 | N166: =IF(O165=0,"",'Со снижением'!T164) -> 0.00 | O166: 3,276,985.05
A167: 149 | B167: =IF(O166=0,"",'Со снижением'!G165) -> 2034-12-31 | C167: =IF(O166=0,"",'Со снижением'!H165) -> 31 | D167: =IF(O166=0,"",'Со снижением'!I165) -> 0.30% | E167: =IF(O166=0,"",'Со снижением'!L165) -> 3,276,985.05 | F167: =IF(O166=0,"",'Со снижением'!M165) -> 0.00 | G167: =IF(O166=0,"",'Со снижением'!J165) -> 15,946.00 | H167: =IF(O166=0,"",'Со снижением'!N165) -> 834.96 | I167: =IF(O166=0,"",'Со снижением'!P165) -> 834.96 | J167: =IF(O166=0,"",'Со снижением'!O165) -> 15,111.04 | K167: =IF(O166=0,"",'Со снижением'!Q165) -> 0.00 | L167: =IF(O166=0,"",'Со снижением'!R165) -> 0.00 | M167: =IF(O166=0,"",'Со снижением'!S165) -> 3,261,874.01 | N167: =IF(O166=0,"",'Со снижением'!T165) -> 0.00 | O167: 3,261,874.01
A168: 150 | B168: =IF(O167=0,"",'Со снижением'!G166) -> 2035-01-31 | C168: =IF(O167=0,"",'Со снижением'!H166) -> 31 | D168: =IF(O167=0,"",'Со снижением'!I166) -> 0.30% | E168: =IF(O167=0,"",'Со снижением'!L166) -> 3,261,874.01 | F168: =IF(O167=0,"",'Со снижением'!M166) -> 0.00 | G168: =IF(O167=0,"",'Со снижением'!J166) -> 15,946.00 | H168: =IF(O167=0,"",'Со снижением'!N166) -> 831.11 | I168: =IF(O167=0,"",'Со снижением'!P166) -> 831.11 | J168: =IF(O167=0,"",'Со снижением'!O166) -> 15,114.89 | K168: =IF(O167=0,"",'Со снижением'!Q166) -> 0.00 | L168: =IF(O167=0,"",'Со снижением'!R166) -> 0.00 | M168: =IF(O167=0,"",'Со снижением'!S166) -> 3,246,759.12 | N168: =IF(O167=0,"",'Со снижением'!T166) -> 0.00 | O168: 3,246,759.12
A169: 151 | B169: =IF(O168=0,"",'Со снижением'!G167) -> 2035-02-28 | C169: =IF(O168=0,"",'Со снижением'!H167) -> 28 | D169: =IF(O168=0,"",'Со снижением'!I167) -> 0.30% | E169: =IF(O168=0,"",'Со снижением'!L167) -> 3,246,759.12 | F169: =IF(O168=0,"",'Со снижением'!M167) -> 0.00 | G169: =IF(O168=0,"",'Со снижением'!J167) -> 15,946.00 | H169: =IF(O168=0,"",'Со снижением'!N167) -> 747.20 | I169: =IF(O168=0,"",'Со снижением'!P167) -> 747.20 | J169: =IF(O168=0,"",'Со снижением'!O167) -> 15,198.80 | K169: =IF(O168=0,"",'Со снижением'!Q167) -> 0.00 | L169: =IF(O168=0,"",'Со снижением'!R167) -> 0.00 | M169: =IF(O168=0,"",'Со снижением'!S167) -> 3,231,560.32 | N169: =IF(O168=0,"",'Со снижением'!T167) -> 0.00 | O169: 3,231,560.32
A170: 152 | B170: =IF(O169=0,"",'Со снижением'!G168) -> 2035-03-31 | C170: =IF(O169=0,"",'Со снижением'!H168) -> 31 | D170: =IF(O169=0,"",'Со снижением'!I168) -> 0.30% | E170: =IF(O169=0,"",'Со снижением'!L168) -> 3,231,560.32 | F170: =IF(O169=0,"",'Со снижением'!M168) -> 0.00 | G170: =IF(O169=0,"",'Со снижением'!J168) -> 15,946.00 | H170: =IF(O169=0,"",'Со снижением'!N168) -> 823.38 | I170: =IF(O169=0,"",'Со снижением'!P168) -> 823.38 | J170: =IF(O169=0,"",'Со снижением'!O168) -> 15,122.62 | K170: =IF(O169=0,"",'Со снижением'!Q168) -> 0.00 | L170: =IF(O169=0,"",'Со снижением'!R168) -> 0.00 | M170: =IF(O169=0,"",'Со снижением'!S168) -> 3,216,437.70 | N170: =IF(O169=0,"",'Со снижением'!T168) -> 0.00 | O170: 3,216,437.70
A171: 153 | B171: =IF(O170=0,"",'Со снижением'!G169) -> 2035-04-30 | C171: =IF(O170=0,"",'Со снижением'!H169) -> 30 | D171: =IF(O170=0,"",'Со снижением'!I169) -> 0.30% | E171: =IF(O170=0,"",'Со снижением'!L169) -> 3,216,437.70 | F171: =IF(O170=0,"",'Со снижением'!M169) -> 0.00 | G171: =IF(O170=0,"",'Со снижением'!J169) -> 15,946.00 | H171: =IF(O170=0,"",'Со снижением'!N169) -> 793.09 | I171: =IF(O170=0,"",'Со снижением'!P169) -> 793.09 | J171: =IF(O170=0,"",'Со снижением'!O169) -> 15,152.91 | K171: =IF(O170=0,"",'Со снижением'!Q169) -> 0.00 | L171: =IF(O170=0,"",'Со снижением'!R169) -> 0.00 | M171: =IF(O170=0,"",'Со снижением'!S169) -> 3,201,284.79 | N171: =IF(O170=0,"",'Со снижением'!T169) -> 0.00 | O171: 3,201,284.79
A172: 154 | B172: =IF(O171=0,"",'Со снижением'!G170) -> 2035-05-31 | C172: =IF(O171=0,"",'Со снижением'!H170) -> 31 | D172: =IF(O171=0,"",'Со снижением'!I170) -> 0.30% | E172: =IF(O171=0,"",'Со снижением'!L170) -> 3,201,284.79 | F172: =IF(O171=0,"",'Со снижением'!M170) -> 0.00 | G172: =IF(O171=0,"",'Со снижением'!J170) -> 15,946.00 | H172: =IF(O171=0,"",'Со снижением'!N170) -> 815.67 | I172: =IF(O171=0,"",'Со снижением'!P170) -> 815.67 | J172: =IF(O171=0,"",'Со снижением'!O170) -> 15,130.33 | K172: =IF(O171=0,"",'Со снижением'!Q170) -> 0.00 | L172: =IF(O171=0,"",'Со снижением'!R170) -> 0.00 | M172: =IF(O171=0,"",'Со снижением'!S170) -> 3,186,154.46 | N172: =IF(O171=0,"",'Со снижением'!T170) -> 0.00 | O172: 3,186,154.46
A173: 155 | B173: =IF(O172=0,"",'Со снижением'!G171) -> 2035-06-30 | C173: =IF(O172=0,"",'Со снижением'!H171) -> 30 | D173: =IF(O172=0,"",'Со снижением'!I171) -> 0.30% | E173: =IF(O172=0,"",'Со снижением'!L171) -> 3,186,154.46 | F173: =IF(O172=0,"",'Со снижением'!M171) -> 0.00 | G173: =IF(O172=0,"",'Со снижением'!J171) -> 15,946.00 | H173: =IF(O172=0,"",'Со снижением'!N171) -> 785.63 | I173: =IF(O172=0,"",'Со снижением'!P171) -> 785.63 | J173: =IF(O172=0,"",'Со снижением'!O171) -> 15,160.37 | K173: =IF(O172=0,"",'Со снижением'!Q171) -> 0.00 | L173: =IF(O172=0,"",'Со снижением'!R171) -> 0.00 | M173: =IF(O172=0,"",'Со снижением'!S171) -> 3,170,994.09 | N173: =IF(O172=0,"",'Со снижением'!T171) -> 0.00 | O173: 3,170,994.09
A174: 156 | B174: =IF(O173=0,"",'Со снижением'!G172) -> 2035-07-31 | C174: =IF(O173=0,"",'Со снижением'!H172) -> 31 | D174: =IF(O173=0,"",'Со снижением'!I172) -> 0.30% | E174: =IF(O173=0,"",'Со снижением'!L172) -> 3,170,994.09 | F174: =IF(O173=0,"",'Со снижением'!M172) -> 0.00 | G174: =IF(O173=0,"",'Со снижением'!J172) -> 15,946.00 | H174: =IF(O173=0,"",'Со снижением'!N172) -> 807.95 | I174: =IF(O173=0,"",'Со снижением'!P172) -> 807.95 | J174: =IF(O173=0,"",'Со снижением'!O172) -> 15,138.05 | K174: =IF(O173=0,"",'Со снижением'!Q172) -> 0.00 | L174: =IF(O173=0,"",'Со снижением'!R172) -> 0.00 | M174: =IF(O173=0,"",'Со снижением'!S172) -> 3,155,856.04 | N174: =IF(O173=0,"",'Со снижением'!T172) -> 0.00 | O174: 3,155,856.04
A175: 157 | B175: =IF(O174=0,"",'Со снижением'!G173) -> 2035-08-31 | C175: =IF(O174=0,"",'Со снижением'!H173) -> 31 | D175: =IF(O174=0,"",'Со снижением'!I173) -> 0.30% | E175: =IF(O174=0,"",'Со снижением'!L173) -> 3,155,856.04 | F175: =IF(O174=0,"",'Со снижением'!M173) -> 0.00 | G175: =IF(O174=0,"",'Со снижением'!J173) -> 15,946.00 | H175: =IF(O174=0,"",'Со снижением'!N173) -> 804.09 | I175: =IF(O174=0,"",'Со снижением'!P173) -> 804.09 | J175: =IF(O174=0,"",'Со снижением'!O173) -> 15,141.91 | K175: =IF(O174=0,"",'Со снижением'!Q173) -> 0.00 | L175: =IF(O174=0,"",'Со снижением'!R173) -> 0.00 | M175: =IF(O174=0,"",'Со снижением'!S173) -> 3,140,714.13 | N175: =IF(O174=0,"",'Со снижением'!T173) -> 0.00 | O175: 3,140,714.13
A176: 158 | B176: =IF(O175=0,"",'Со снижением'!G174) -> 2035-09-30 | C176: =IF(O175=0,"",'Со снижением'!H174) -> 30 | D176: =IF(O175=0,"",'Со снижением'!I174) -> 0.30% | E176: =IF(O175=0,"",'Со снижением'!L174) -> 3,140,714.13 | F176: =IF(O175=0,"",'Со снижением'!M174) -> 0.00 | G176: =IF(O175=0,"",'Со снижением'!J174) -> 15,946.00 | H176: =IF(O175=0,"",'Со снижением'!N174) -> 774.42 | I176: =IF(O175=0,"",'Со снижением'!P174) -> 774.42 | J176: =IF(O175=0,"",'Со снижением'!O174) -> 15,171.58 | K176: =IF(O175=0,"",'Со снижением'!Q174) -> 0.00 | L176: =IF(O175=0,"",'Со снижением'!R174) -> 0.00 | M176: =IF(O175=0,"",'Со снижением'!S174) -> 3,125,542.55 | N176: =IF(O175=0,"",'Со снижением'!T174) -> 0.00 | O176: 3,125,542.55
A177: 159 | B177: =IF(O176=0,"",'Со снижением'!G175) -> 2035-10-31 | C177: =IF(O176=0,"",'Со снижением'!H175) -> 31 | D177: =IF(O176=0,"",'Со снижением'!I175) -> 0.30% | E177: =IF(O176=0,"",'Со снижением'!L175) -> 3,125,542.55 | F177: =IF(O176=0,"",'Со снижением'!M175) -> 0.00 | G177: =IF(O176=0,"",'Со снижением'!J175) -> 15,946.00 | H177: =IF(O176=0,"",'Со снижением'!N175) -> 796.37 | I177: =IF(O176=0,"",'Со снижением'!P175) -> 796.37 | J177: =IF(O176=0,"",'Со снижением'!O175) -> 15,149.63 | K177: =IF(O176=0,"",'Со снижением'!Q175) -> 0.00 | L177: =IF(O176=0,"",'Со снижением'!R175) -> 0.00 | M177: =IF(O176=0,"",'Со снижением'!S175) -> 3,110,392.92 | N177: =IF(O176=0,"",'Со снижением'!T175) -> 0.00 | O177: 3,110,392.92
A178: 160 | B178: =IF(O177=0,"",'Со снижением'!G176) -> 2035-11-30 | C178: =IF(O177=0,"",'Со снижением'!H176) -> 30 | D178: =IF(O177=0,"",'Со снижением'!I176) -> 0.30% | E178: =IF(O177=0,"",'Со снижением'!L176) -> 3,110,392.92 | F178: =IF(O177=0,"",'Со снижением'!M176) -> 0.00 | G178: =IF(O177=0,"",'Со снижением'!J176) -> 15,946.00 | H178: =IF(O177=0,"",'Со снижением'!N176) -> 766.95 | I178: =IF(O177=0,"",'Со снижением'!P176) -> 766.95 | J178: =IF(O177=0,"",'Со снижением'!O176) -> 15,179.05 | K178: =IF(O177=0,"",'Со снижением'!Q176) -> 0.00 | L178: =IF(O177=0,"",'Со снижением'!R176) -> 0.00 | M178: =IF(O177=0,"",'Со снижением'!S176) -> 3,095,213.87 | N178: =IF(O177=0,"",'Со снижением'!T176) -> 0.00 | O178: 3,095,213.87
A179: 161 | B179: =IF(O178=0,"",'Со снижением'!G177) -> 2035-12-31 | C179: =IF(O178=0,"",'Со снижением'!H177) -> 31 | D179: =IF(O178=0,"",'Со снижением'!I177) -> 0.30% | E179: =IF(O178=0,"",'Со снижением'!L177) -> 3,095,213.87 | F179: =IF(O178=0,"",'Со снижением'!M177) -> 0.00 | G179: =IF(O178=0,"",'Со снижением'!J177) -> 15,946.00 | H179: =IF(O178=0,"",'Со снижением'!N177) -> 788.64 | I179: =IF(O178=0,"",'Со снижением'!P177) -> 788.64 | J179: =IF(O178=0,"",'Со снижением'!O177) -> 15,157.36 | K179: =IF(O178=0,"",'Со снижением'!Q177) -> 0.00 | L179: =IF(O178=0,"",'Со снижением'!R177) -> 0.00 | M179: =IF(O178=0,"",'Со снижением'!S177) -> 3,080,056.51 | N179: =IF(O178=0,"",'Со снижением'!T177) -> 0.00 | O179: 3,080,056.51
A180: 162 | B180: =IF(O179=0,"",'Со снижением'!G178) -> 2036-01-31 | C180: =IF(O179=0,"",'Со снижением'!H178) -> 31 | D180: =IF(O179=0,"",'Со снижением'!I178) -> 0.30% | E180: =IF(O179=0,"",'Со снижением'!L178) -> 3,080,056.51 | F180: =IF(O179=0,"",'Со снижением'!M178) -> 0.00 | G180: =IF(O179=0,"",'Со снижением'!J178) -> 15,946.00 | H180: =IF(O179=0,"",'Со снижением'!N178) -> 782.64 | I180: =IF(O179=0,"",'Со снижением'!P178) -> 782.64 | J180: =IF(O179=0,"",'Со снижением'!O178) -> 15,163.36 | K180: =IF(O179=0,"",'Со снижением'!Q178) -> 0.00 | L180: =IF(O179=0,"",'Со снижением'!R178) -> 0.00 | M180: =IF(O179=0,"",'Со снижением'!S178) -> 3,064,893.15 | N180: =IF(O179=0,"",'Со снижением'!T178) -> 0.00 | O180: 3,064,893.15
A181: 163 | B181: =IF(O180=0,"",'Со снижением'!G179) -> 2036-02-29 | C181: =IF(O180=0,"",'Со снижением'!H179) -> 29 | D181: =IF(O180=0,"",'Со снижением'!I179) -> 0.30% | E181: =IF(O180=0,"",'Со снижением'!L179) -> 3,064,893.15 | F181: =IF(O180=0,"",'Со снижением'!M179) -> 0.00 | G181: =IF(O180=0,"",'Со снижением'!J179) -> 15,946.00 | H181: =IF(O180=0,"",'Со снижением'!N179) -> 728.54 | I181: =IF(O180=0,"",'Со снижением'!P179) -> 728.54 | J181: =IF(O180=0,"",'Со снижением'!O179) -> 15,217.46 | K181: =IF(O180=0,"",'Со снижением'!Q179) -> 0.00 | L181: =IF(O180=0,"",'Со снижением'!R179) -> 0.00 | M181: =IF(O180=0,"",'Со снижением'!S179) -> 3,049,675.69 | N181: =IF(O180=0,"",'Со снижением'!T179) -> 0.00 | O181: 3,049,675.69
A182: 164 | B182: =IF(O181=0,"",'Со снижением'!G180) -> 2036-03-31 | C182: =IF(O181=0,"",'Со снижением'!H180) -> 31 | D182: =IF(O181=0,"",'Со снижением'!I180) -> 0.30% | E182: =IF(O181=0,"",'Со снижением'!L180) -> 3,049,675.69 | F182: =IF(O181=0,"",'Со снижением'!M180) -> 0.00 | G182: =IF(O181=0,"",'Со снижением'!J180) -> 15,946.00 | H182: =IF(O181=0,"",'Со снижением'!N180) -> 774.92 | I182: =IF(O181=0,"",'Со снижением'!P180) -> 774.92 | J182: =IF(O181=0,"",'Со снижением'!O180) -> 15,171.08 | K182: =IF(O181=0,"",'Со снижением'!Q180) -> 0.00 | L182: =IF(O181=0,"",'Со снижением'!R180) -> 0.00 | M182: =IF(O181=0,"",'Со снижением'!S180) -> 3,034,504.61 | N182: =IF(O181=0,"",'Со снижением'!T180) -> 0.00 | O182: 3,034,504.61
A183: 165 | B183: =IF(O182=0,"",'Со снижением'!G181) -> 2036-04-30 | C183: =IF(O182=0,"",'Со снижением'!H181) -> 30 | D183: =IF(O182=0,"",'Со снижением'!I181) -> 0.30% | E183: =IF(O182=0,"",'Со снижением'!L181) -> 3,034,504.61 | F183: =IF(O182=0,"",'Со снижением'!M181) -> 0.00 | G183: =IF(O182=0,"",'Со снижением'!J181) -> 15,946.00 | H183: =IF(O182=0,"",'Со снижением'!N181) -> 746.19 | I183: =IF(O182=0,"",'Со снижением'!P181) -> 746.19 | J183: =IF(O182=0,"",'Со снижением'!O181) -> 15,199.81 | K183: =IF(O182=0,"",'Со снижением'!Q181) -> 0.00 | L183: =IF(O182=0,"",'Со снижением'!R181) -> 0.00 | M183: =IF(O182=0,"",'Со снижением'!S181) -> 3,019,304.80 | N183: =IF(O182=0,"",'Со снижением'!T181) -> 0.00 | O183: 3,019,304.80
A184: 166 | B184: =IF(O183=0,"",'Со снижением'!G182) -> 2036-05-31 | C184: =IF(O183=0,"",'Со снижением'!H182) -> 31 | D184: =IF(O183=0,"",'Со снижением'!I182) -> 0.30% | E184: =IF(O183=0,"",'Со снижением'!L182) -> 3,019,304.80 | F184: =IF(O183=0,"",'Со снижением'!M182) -> 0.00 | G184: =IF(O183=0,"",'Со снижением'!J182) -> 15,946.00 | H184: =IF(O183=0,"",'Со снижением'!N182) -> 767.20 | I184: =IF(O183=0,"",'Со снижением'!P182) -> 767.20 | J184: =IF(O183=0,"",'Со снижением'!O182) -> 15,178.80 | K184: =IF(O183=0,"",'Со снижением'!Q182) -> 0.00 | L184: =IF(O183=0,"",'Со снижением'!R182) -> 0.00 | M184: =IF(O183=0,"",'Со снижением'!S182) -> 3,004,126.00 | N184: =IF(O183=0,"",'Со снижением'!T182) -> 0.00 | O184: 3,004,126.00
A185: 167 | B185: =IF(O184=0,"",'Со снижением'!G183) -> 2036-06-30 | C185: =IF(O184=0,"",'Со снижением'!H183) -> 30 | D185: =IF(O184=0,"",'Со снижением'!I183) -> 0.30% | E185: =IF(O184=0,"",'Со снижением'!L183) -> 3,004,126.00 | F185: =IF(O184=0,"",'Со снижением'!M183) -> 0.00 | G185: =IF(O184=0,"",'Со снижением'!J183) -> 15,946.00 | H185: =IF(O184=0,"",'Со снижением'!N183) -> 738.72 | I185: =IF(O184=0,"",'Со снижением'!P183) -> 738.72 | J185: =IF(O184=0,"",'Со снижением'!O183) -> 15,207.28 | K185: =IF(O184=0,"",'Со снижением'!Q183) -> 0.00 | L185: =IF(O184=0,"",'Со снижением'!R183) -> 0.00 | M185: =IF(O184=0,"",'Со снижением'!S183) -> 2,988,918.72 | N185: =IF(O184=0,"",'Со снижением'!T183) -> 0.00 | O185: 2,988,918.72
A186: 168 | B186: =IF(O185=0,"",'Со снижением'!G184) -> 2036-07-31 | C186: =IF(O185=0,"",'Со снижением'!H184) -> 31 | D186: =IF(O185=0,"",'Со снижением'!I184) -> 0.30% | E186: =IF(O185=0,"",'Со снижением'!L184) -> 2,988,918.72 | F186: =IF(O185=0,"",'Со снижением'!M184) -> 0.00 | G186: =IF(O185=0,"",'Со снижением'!J184) -> 15,946.00 | H186: =IF(O185=0,"",'Со снижением'!N184) -> 759.48 | I186: =IF(O185=0,"",'Со снижением'!P184) -> 759.48 | J186: =IF(O185=0,"",'Со снижением'!O184) -> 15,186.52 | K186: =IF(O185=0,"",'Со снижением'!Q184) -> 0.00 | L186: =IF(O185=0,"",'Со снижением'!R184) -> 0.00 | M186: =IF(O185=0,"",'Со снижением'!S184) -> 2,973,732.20 | N186: =IF(O185=0,"",'Со снижением'!T184) -> 0.00 | O186: 2,973,732.20
A187: 169 | B187: =IF(O186=0,"",'Со снижением'!G185) -> 2036-08-31 | C187: =IF(O186=0,"",'Со снижением'!H185) -> 31 | D187: =IF(O186=0,"",'Со снижением'!I185) -> 0.30% | E187: =IF(O186=0,"",'Со снижением'!L185) -> 2,973,732.20 | F187: =IF(O186=0,"",'Со снижением'!M185) -> 0.00 | G187: =IF(O186=0,"",'Со снижением'!J185) -> 15,946.00 | H187: =IF(O186=0,"",'Со снижением'!N185) -> 755.62 | I187: =IF(O186=0,"",'Со снижением'!P185) -> 755.62 | J187: =IF(O186=0,"",'Со снижением'!O185) -> 15,190.38 | K187: =IF(O186=0,"",'Со снижением'!Q185) -> 0.00 | L187: =IF(O186=0,"",'Со снижением'!R185) -> 0.00 | M187: =IF(O186=0,"",'Со снижением'!S185) -> 2,958,541.82 | N187: =IF(O186=0,"",'Со снижением'!T185) -> 0.00 | O187: 2,958,541.82
A188: 170 | B188: =IF(O187=0,"",'Со снижением'!G186) -> 2036-09-30 | C188: =IF(O187=0,"",'Со снижением'!H186) -> 30 | D188: =IF(O187=0,"",'Со снижением'!I186) -> 0.30% | E188: =IF(O187=0,"",'Со снижением'!L186) -> 2,958,541.82 | F188: =IF(O187=0,"",'Со снижением'!M186) -> 0.00 | G188: =IF(O187=0,"",'Со снижением'!J186) -> 15,946.00 | H188: =IF(O187=0,"",'Со снижением'!N186) -> 727.51 | I188: =IF(O187=0,"",'Со снижением'!P186) -> 727.51 | J188: =IF(O187=0,"",'Со снижением'!O186) -> 15,218.49 | K188: =IF(O187=0,"",'Со снижением'!Q186) -> 0.00 | L188: =IF(O187=0,"",'Со снижением'!R186) -> 0.00 | M188: =IF(O187=0,"",'Со снижением'!S186) -> 2,943,323.33 | N188: =IF(O187=0,"",'Со снижением'!T186) -> 0.00 | O188: 2,943,323.33
A189: 171 | B189: =IF(O188=0,"",'Со снижением'!G187) -> 2036-10-31 | C189: =IF(O188=0,"",'Со снижением'!H187) -> 31 | D189: =IF(O188=0,"",'Со снижением'!I187) -> 0.30% | E189: =IF(O188=0,"",'Со снижением'!L187) -> 2,943,323.33 | F189: =IF(O188=0,"",'Со снижением'!M187) -> 0.00 | G189: =IF(O188=0,"",'Со снижением'!J187) -> 15,946.00 | H189: =IF(O188=0,"",'Со снижением'!N187) -> 747.89 | I189: =IF(O188=0,"",'Со снижением'!P187) -> 747.89 | J189: =IF(O188=0,"",'Со снижением'!O187) -> 15,198.11 | K189: =IF(O188=0,"",'Со снижением'!Q187) -> 0.00 | L189: =IF(O188=0,"",'Со снижением'!R187) -> 0.00 | M189: =IF(O188=0,"",'Со снижением'!S187) -> 2,928,125.22 | N189: =IF(O188=0,"",'Со снижением'!T187) -> 0.00 | O189: 2,928,125.22
A190: 172 | B190: =IF(O189=0,"",'Со снижением'!G188) -> 2036-11-30 | C190: =IF(O189=0,"",'Со снижением'!H188) -> 30 | D190: =IF(O189=0,"",'Со снижением'!I188) -> 0.30% | E190: =IF(O189=0,"",'Со снижением'!L188) -> 2,928,125.22 | F190: =IF(O189=0,"",'Со снижением'!M188) -> 0.00 | G190: =IF(O189=0,"",'Со снижением'!J188) -> 15,946.00 | H190: =IF(O189=0,"",'Со снижением'!N188) -> 720.03 | I190: =IF(O189=0,"",'Со снижением'!P188) -> 720.03 | J190: =IF(O189=0,"",'Со снижением'!O188) -> 15,225.97 | K190: =IF(O189=0,"",'Со снижением'!Q188) -> 0.00 | L190: =IF(O189=0,"",'Со снижением'!R188) -> 0.00 | M190: =IF(O189=0,"",'Со снижением'!S188) -> 2,912,899.25 | N190: =IF(O189=0,"",'Со снижением'!T188) -> 0.00 | O190: 2,912,899.25
A191: 173 | B191: =IF(O190=0,"",'Со снижением'!G189) -> 2036-12-31 | C191: =IF(O190=0,"",'Со снижением'!H189) -> 31 | D191: =IF(O190=0,"",'Со снижением'!I189) -> 0.30% | E191: =IF(O190=0,"",'Со снижением'!L189) -> 2,912,899.25 | F191: =IF(O190=0,"",'Со снижением'!M189) -> 0.00 | G191: =IF(O190=0,"",'Со снижением'!J189) -> 15,946.00 | H191: =IF(O190=0,"",'Со снижением'!N189) -> 740.16 | I191: =IF(O190=0,"",'Со снижением'!P189) -> 740.16 | J191: =IF(O190=0,"",'Со снижением'!O189) -> 15,205.84 | K191: =IF(O190=0,"",'Со снижением'!Q189) -> 0.00 | L191: =IF(O190=0,"",'Со снижением'!R189) -> 0.00 | M191: =IF(O190=0,"",'Со снижением'!S189) -> 2,897,693.41 | N191: =IF(O190=0,"",'Со снижением'!T189) -> 0.00 | O191: 2,897,693.41
A192: 174 | B192: =IF(O191=0,"",'Со снижением'!G190) -> 2037-01-31 | C192: =IF(O191=0,"",'Со снижением'!H190) -> 31 | D192: =IF(O191=0,"",'Со снижением'!I190) -> 0.30% | E192: =IF(O191=0,"",'Со снижением'!L190) -> 2,897,693.41 | F192: =IF(O191=0,"",'Со снижением'!M190) -> 0.00 | G192: =IF(O191=0,"",'Со снижением'!J190) -> 15,946.00 | H192: =IF(O191=0,"",'Со снижением'!N190) -> 738.32 | I192: =IF(O191=0,"",'Со снижением'!P190) -> 738.32 | J192: =IF(O191=0,"",'Со снижением'!O190) -> 15,207.68 | K192: =IF(O191=0,"",'Со снижением'!Q190) -> 0.00 | L192: =IF(O191=0,"",'Со снижением'!R190) -> 0.00 | M192: =IF(O191=0,"",'Со снижением'!S190) -> 2,882,485.73 | N192: =IF(O191=0,"",'Со снижением'!T190) -> 0.00 | O192: 2,882,485.73
A193: 175 | B193: =IF(O192=0,"",'Со снижением'!G191) -> 2037-02-28 | C193: =IF(O192=0,"",'Со снижением'!H191) -> 28 | D193: =IF(O192=0,"",'Со снижением'!I191) -> 0.30% | E193: =IF(O192=0,"",'Со снижением'!L191) -> 2,882,485.73 | F193: =IF(O192=0,"",'Со снижением'!M191) -> 0.00 | G193: =IF(O192=0,"",'Со снижением'!J191) -> 15,946.00 | H193: =IF(O192=0,"",'Со снижением'!N191) -> 663.37 | I193: =IF(O192=0,"",'Со снижением'!P191) -> 663.37 | J193: =IF(O192=0,"",'Со снижением'!O191) -> 15,282.63 | K193: =IF(O192=0,"",'Со снижением'!Q191) -> 0.00 | L193: =IF(O192=0,"",'Со снижением'!R191) -> 0.00 | M193: =IF(O192=0,"",'Со снижением'!S191) -> 2,867,203.10 | N193: =IF(O192=0,"",'Со снижением'!T191) -> 0.00 | O193: 2,867,203.10
A194: 176 | B194: =IF(O193=0,"",'Со снижением'!G192) -> 2037-03-31 | C194: =IF(O193=0,"",'Со снижением'!H192) -> 31 | D194: =IF(O193=0,"",'Со снижением'!I192) -> 0.30% | E194: =IF(O193=0,"",'Со снижением'!L192) -> 2,867,203.10 | F194: =IF(O193=0,"",'Со снижением'!M192) -> 0.00 | G194: =IF(O193=0,"",'Со снижением'!J192) -> 15,946.00 | H194: =IF(O193=0,"",'Со снижением'!N192) -> 730.55 | I194: =IF(O193=0,"",'Со снижением'!P192) -> 730.55 | J194: =IF(O193=0,"",'Со снижением'!O192) -> 15,215.45 | K194: =IF(O193=0,"",'Со снижением'!Q192) -> 0.00 | L194: =IF(O193=0,"",'Со снижением'!R192) -> 0.00 | M194: =IF(O193=0,"",'Со снижением'!S192) -> 2,851,987.65 | N194: =IF(O193=0,"",'Со снижением'!T192) -> 0.00 | O194: 2,851,987.65
A195: 177 | B195: =IF(O194=0,"",'Со снижением'!G193) -> 2037-04-30 | C195: =IF(O194=0,"",'Со снижением'!H193) -> 30 | D195: =IF(O194=0,"",'Со снижением'!I193) -> 0.30% | E195: =IF(O194=0,"",'Со снижением'!L193) -> 2,851,987.65 | F195: =IF(O194=0,"",'Со снижением'!M193) -> 0.00 | G195: =IF(O194=0,"",'Со снижением'!J193) -> 15,946.00 | H195: =IF(O194=0,"",'Со снижением'!N193) -> 703.23 | I195: =IF(O194=0,"",'Со снижением'!P193) -> 703.23 | J195: =IF(O194=0,"",'Со снижением'!O193) -> 15,242.77 | K195: =IF(O194=0,"",'Со снижением'!Q193) -> 0.00 | L195: =IF(O194=0,"",'Со снижением'!R193) -> 0.00 | M195: =IF(O194=0,"",'Со снижением'!S193) -> 2,836,744.88 | N195: =IF(O194=0,"",'Со снижением'!T193) -> 0.00 | O195: 2,836,744.88
A196: 178 | B196: =IF(O195=0,"",'Со снижением'!G194) -> 2037-05-31 | C196: =IF(O195=0,"",'Со снижением'!H194) -> 31 | D196: =IF(O195=0,"",'Со снижением'!I194) -> 0.30% | E196: =IF(O195=0,"",'Со снижением'!L194) -> 2,836,744.88 | F196: =IF(O195=0,"",'Со снижением'!M194) -> 0.00 | G196: =IF(O195=0,"",'Со снижением'!J194) -> 15,946.00 | H196: =IF(O195=0,"",'Со снижением'!N194) -> 722.79 | I196: =IF(O195=0,"",'Со снижением'!P194) -> 722.79 | J196: =IF(O195=0,"",'Со снижением'!O194) -> 15,223.21 | K196: =IF(O195=0,"",'Со снижением'!Q194) -> 0.00 | L196: =IF(O195=0,"",'Со снижением'!R194) -> 0.00 | M196: =IF(O195=0,"",'Со снижением'!S194) -> 2,821,521.67 | N196: =IF(O195=0,"",'Со снижением'!T194) -> 0.00 | O196: 2,821,521.67
A197: 179 | B197: =IF(O196=0,"",'Со снижением'!G195) -> 2037-06-30 | C197: =IF(O196=0,"",'Со снижением'!H195) -> 30 | D197: =IF(O196=0,"",'Со снижением'!I195) -> 0.30% | E197: =IF(O196=0,"",'Со снижением'!L195) -> 2,821,521.67 | F197: =IF(O196=0,"",'Со снижением'!M195) -> 0.00 | G197: =IF(O196=0,"",'Со снижением'!J195) -> 15,946.00 | H197: =IF(O196=0,"",'Со снижением'!N195) -> 695.72 | I197: =IF(O196=0,"",'Со снижением'!P195) -> 695.72 | J197: =IF(O196=0,"",'Со снижением'!O195) -> 15,250.28 | K197: =IF(O196=0,"",'Со снижением'!Q195) -> 0.00 | L197: =IF(O196=0,"",'Со снижением'!R195) -> 0.00 | M197: =IF(O196=0,"",'Со снижением'!S195) -> 2,806,271.39 | N197: =IF(O196=0,"",'Со снижением'!T195) -> 0.00 | O197: 2,806,271.39
A198: 180 | B198: =IF(O197=0,"",'Со снижением'!G196) -> 2037-07-31 | C198: =IF(O197=0,"",'Со снижением'!H196) -> 31 | D198: =IF(O197=0,"",'Со снижением'!I196) -> 0.30% | E198: =IF(O197=0,"",'Со снижением'!L196) -> 2,806,271.39 | F198: =IF(O197=0,"",'Со снижением'!M196) -> 0.00 | G198: =IF(O197=0,"",'Со снижением'!J196) -> 15,946.00 | H198: =IF(O197=0,"",'Со снижением'!N196) -> 715.02 | I198: =IF(O197=0,"",'Со снижением'!P196) -> 715.02 | J198: =IF(O197=0,"",'Со снижением'!O196) -> 15,230.98 | K198: =IF(O197=0,"",'Со снижением'!Q196) -> 0.00 | L198: =IF(O197=0,"",'Со снижением'!R196) -> 0.00 | M198: =IF(O197=0,"",'Со снижением'!S196) -> 2,791,040.41 | N198: =IF(O197=0,"",'Со снижением'!T196) -> 0.00 | O198: 2,791,040.41
A199: 181 | B199: =IF(O198=0,"",'Со снижением'!G197) -> 2037-08-31 | C199: =IF(O198=0,"",'Со снижением'!H197) -> 31 | D199: =IF(O198=0,"",'Со снижением'!I197) -> 0.30% | E199: =IF(O198=0,"",'Со снижением'!L197) -> 2,791,040.41 | F199: =IF(O198=0,"",'Со снижением'!M197) -> 0.00 | G199: =IF(O198=0,"",'Со снижением'!J197) -> 15,946.00 | H199: =IF(O198=0,"",'Со снижением'!N197) -> 711.14 | I199: =IF(O198=0,"",'Со снижением'!P197) -> 711.14 | J199: =IF(O198=0,"",'Со снижением'!O197) -> 15,234.86 | K199: =IF(O198=0,"",'Со снижением'!Q197) -> 0.00 | L199: =IF(O198=0,"",'Со снижением'!R197) -> 0.00 | M199: =IF(O198=0,"",'Со снижением'!S197) -> 2,775,805.55 | N199: =IF(O198=0,"",'Со снижением'!T197) -> 0.00 | O199: 2,775,805.55
A200: 182 | B200: =IF(O199=0,"",'Со снижением'!G198) -> 2037-09-30 | C200: =IF(O199=0,"",'Со снижением'!H198) -> 30 | D200: =IF(O199=0,"",'Со снижением'!I198) -> 0.30% | E200: =IF(O199=0,"",'Со снижением'!L198) -> 2,775,805.55 | F200: =IF(O199=0,"",'Со снижением'!M198) -> 0.00 | G200: =IF(O199=0,"",'Со снижением'!J198) -> 15,946.00 | H200: =IF(O199=0,"",'Со снижением'!N198) -> 684.45 | I200: =IF(O199=0,"",'Со снижением'!P198) -> 684.45 | J200: =IF(O199=0,"",'Со снижением'!O198) -> 15,261.55 | K200: =IF(O199=0,"",'Со снижением'!Q198) -> 0.00 | L200: =IF(O199=0,"",'Со снижением'!R198) -> 0.00 | M200: =IF(O199=0,"",'Со снижением'!S198) -> 2,760,544.00 | N200: =IF(O199=0,"",'Со снижением'!T198) -> 0.00 | O200: 2,760,544.00
A201: 183 | B201: =IF(O200=0,"",'Со снижением'!G199) -> 2037-10-31 | C201: =IF(O200=0,"",'Со снижением'!H199) -> 31 | D201: =IF(O200=0,"",'Со снижением'!I199) -> 0.30% | E201: =IF(O200=0,"",'Со снижением'!L199) -> 2,760,544.00 | F201: =IF(O200=0,"",'Со снижением'!M199) -> 0.00 | G201: =IF(O200=0,"",'Со снижением'!J199) -> 15,946.00 | H201: =IF(O200=0,"",'Со снижением'!N199) -> 703.37 | I201: =IF(O200=0,"",'Со снижением'!P199) -> 703.37 | J201: =IF(O200=0,"",'Со снижением'!O199) -> 15,242.63 | K201: =IF(O200=0,"",'Со снижением'!Q199) -> 0.00 | L201: =IF(O200=0,"",'Со снижением'!R199) -> 0.00 | M201: =IF(O200=0,"",'Со снижением'!S199) -> 2,745,301.37 | N201: =IF(O200=0,"",'Со снижением'!T199) -> 0.00 | O201: 2,745,301.37
A202: 184 | B202: =IF(O201=0,"",'Со снижением'!G200) -> 2037-11-30 | C202: =IF(O201=0,"",'Со снижением'!H200) -> 30 | D202: =IF(O201=0,"",'Со снижением'!I200) -> 0.30% | E202: =IF(O201=0,"",'Со снижением'!L200) -> 2,745,301.37 | F202: =IF(O201=0,"",'Со снижением'!M200) -> 0.00 | G202: =IF(O201=0,"",'Со снижением'!J200) -> 15,946.00 | H202: =IF(O201=0,"",'Со снижением'!N200) -> 676.92 | I202: =IF(O201=0,"",'Со снижением'!P200) -> 676.92 | J202: =IF(O201=0,"",'Со снижением'!O200) -> 15,269.08 | K202: =IF(O201=0,"",'Со снижением'!Q200) -> 0.00 | L202: =IF(O201=0,"",'Со снижением'!R200) -> 0.00 | M202: =IF(O201=0,"",'Со снижением'!S200) -> 2,730,032.29 | N202: =IF(O201=0,"",'Со снижением'!T200) -> 0.00 | O202: 2,730,032.29
A203: 185 | B203: =IF(O202=0,"",'Со снижением'!G201) -> 2037-12-31 | C203: =IF(O202=0,"",'Со снижением'!H201) -> 31 | D203: =IF(O202=0,"",'Со снижением'!I201) -> 0.30% | E203: =IF(O202=0,"",'Со снижением'!L201) -> 2,730,032.29 | F203: =IF(O202=0,"",'Со снижением'!M201) -> 0.00 | G203: =IF(O202=0,"",'Со снижением'!J201) -> 15,946.00 | H203: =IF(O202=0,"",'Со снижением'!N201) -> 695.60 | I203: =IF(O202=0,"",'Со снижением'!P201) -> 695.60 | J203: =IF(O202=0,"",'Со снижением'!O201) -> 15,250.40 | K203: =IF(O202=0,"",'Со снижением'!Q201) -> 0.00 | L203: =IF(O202=0,"",'Со снижением'!R201) -> 0.00 | M203: =IF(O202=0,"",'Со снижением'!S201) -> 2,714,781.89 | N203: =IF(O202=0,"",'Со снижением'!T201) -> 0.00 | O203: 2,714,781.89
... 175 more rows

Sheet Расчет (hidden)
A1: Кредит (займ) по ЦЖЗ
A2: Номер процентного периода | B2: Кол-во дней в процентном периоде | C2: Последняя дата процентного периода | D2: ООД на начало периода | E2: Платеж по кредиту (займу) | F2: Начисленные проценты по основному долгу | G2: Уплаченные проценты по основному долгу | H2: Аморти-зация основного долга | I2: ООД на конец периода | J2: Плановая накопленная процентная задолженность на начало периода | K2: Начисленные проценты по накопленной процентной задолжен-ности | L2: Уплаченные проценты по накоплен-ной процентной задолжен-ности | M2: Рост (+) / погашение (-) задолженности | N2: Плановая накопленная процентная задолжен-ность на конец периода
A3: 1 | B3: 2 | C3: 3 | D3: 4 | E3: 5 | F3: 6 | G3: 7 | H3: 8 | I3: 9 | J3: 10 | K3: 11 | L3: 12 | M3: 13 | N3: 14
A4: 1 | B4: 16 | C4: 2017-01-31 | D4: 1,000,000.00 | E4: 0.00 | F4: 4,721.10 | I4: 1,000,000.00 | J4: 0.00 | K4: 0.00 | N4: 0.00 | Z4: =IF(M4>0,0,-M4) -> 0
A5: 2 | B5: 28 | C5: 2017-02-28 | D5: 1,000,000.00 | E5: 15,636.10 | F5: 8,261.92 | G5: 12,983.02 | H5: 2,653.08 | I5: 997,346.92 | J5: 0.00 | K5: 0.00 | L5: 0.00 | M5: 0.00 | N5: 0.00 | Z5: 0
A6: 3 | B6: 31 | C6: 2017-03-31 | D6: 997,346.92 | E6: 10,915.00 | F6: 9,122.86 | G6: 9,122.86 | H6: 1,792.14 | I6: 995,554.78 | J6: 0.00 | K6: 0.00 | L6: 0.00 | M6: 0.00 | N6: 0.00 | Z6: 0
A7: 4 | B7: 30 | C7: 2017-04-30 | D7: 995,554.78 | E7: 10,915.00 | F7: 8,812.71 | G7: 8,812.71 | H7: 2,102.29 | I7: 993,452.49 | J7: 0.00 | K7: 0.00 | L7: 0.00 | M7: 0.00 | N7: 0.00 | Z7: 0
A8: 5 | B8: 31 | C8: 2017-05-31 | D8: 993,452.49 | E8: 10,915.00 | F8: 9,087.23 | G8: 9,087.23 | H8: 1,827.77 | I8: 991,624.72 | J8: 0.00 | K8: 0.00 | L8: 0.00 | M8: 0.00 | N8: 0.00 | Z8: 0
A9: 6 | B9: 30 | C9: 2017-06-30 | D9: 991,624.72 | E9: 10,915.00 | F9: 8,777.92 | G9: 8,777.92 | H9: 2,137.08 | I9: 989,487.64 | J9: 0.00 | K9: 0.00 | L9: 0.00 | M9: 0.00 | N9: 0.00 | Z9: 0
A10: 7 | B10: 31 | C10: 2017-07-31 | D10: 989,487.64 | E10: 10,915.00 | F10: 9,050.97 | G10: 9,050.97 | H10: 1,864.03 | I10: 987,623.61 | J10: 0.00 | K10: 0.00 | L10: 0.00 | M10: 0.00 | N10: 0.00 | Z10: 0
A11: 8 | B11: 31 | C11: 2017-08-31 | D11: 987,623.61 | E11: 10,915.00 | F11: 9,033.91 | G11: 9,033.91 | H11: 1,881.09 | I11: 985,742.52 | J11: 0.00 | K11: 0.00 | L11: 0.00 | M11: 0.00 | N11: 0.00 | Z11: 0
A12: 9 | B12: 30 | C12: 2017-09-30 | D12: 985,742.52 | E12: 10,915.00 | F12: 8,725.85 | G12: 8,725.85 | H12: 2,189.15 | I12: 983,553.37 | J12: 0.00 | K12: 0.00 | L12: 0.00 | M12: 0.00 | N12: 0.00 | Z12: 0
A13: 10 | B13: 31 | C13: 2017-10-31 | D13: 983,553.37 | E13: 10,915.00 | F13: 8,996.68 | G13: 8,996.68 | H13: 1,918.32 | I13: 981,635.05 | J13: 0.00 | K13: 0.00 | L13: 0.00 | M13: 0.00 | N13: 0.00 | Z13: 0
A14: 11 | B14: 30 | C14: 2017-11-30 | D14: 981,635.05 | E14: 10,915.00 | F14: 8,689.49 | G14: 8,689.49 | H14: 2,225.51 | I14: 979,409.54 | J14: 0.00 | K14: 0.00 | L14: 0.00 | M14: 0.00 | N14: 0.00 | Z14: 0
A15: 12 | B15: 31 | C15: 2017-12-31 | D15: 979,409.54 | E15: 10,915.00 | F15: 8,958.78 | G15: 8,958.78 | H15: 1,956.22 | I15: 977,453.32 | J15: 0.00 | K15: 0.00 | L15: 0.00 | M15: 0.00 | N15: 0.00 | Z15: 0
A16: 13 | B16: 31 | C16: 2018-01-31 | D16: 977,453.32 | E16: 10,915.00 | F16: 8,799.76 | G16: 8,799.76 | H16: 2,115.24 | I16: 975,338.08 | J16: 0.00 | K16: 0.00 | L16: 0.00 | M16: 0.00 | N16: 0.00 | Z16: 0
A17: 14 | B17: 28 | C17: 2018-02-28 | D17: 975,338.08 | E17: 10,915.00 | F17: 7,930.97 | G17: 7,930.97 | H17: 2,984.03 | I17: 972,354.05 | J17: 0.00 | K17: 0.00 | L17: 0.00 | M17: 0.00 | N17: 0.00 | Z17: 0
A18: 15 | B18: 31 | C18: 2018-03-31 | D18: 972,354.05 | E18: 10,915.00 | F18: 8,753.85 | G18: 8,753.85 | H18: 2,161.15 | I18: 970,192.90 | J18: 0.00 | K18: 0.00 | L18: 0.00 | M18: 0.00 | N18: 0.00 | Z18: 0
A19: 16 | B19: 30 | C19: 2018-04-30 | D19: 970,192.90 | E19: 10,915.00 | F19: 8,452.64 | G19: 8,452.64 | H19: 2,462.36 | I19: 967,730.54 | J19: 0.00 | K19: 0.00 | L19: 0.00 | M19: 0.00 | N19: 0.00 | Z19: 0
A20: 17 | B20: 31 | C20: 2018-05-31 | D20: 967,730.54 | E20: 10,915.00 | F20: 8,712.23 | G20: 8,712.23 | H20: 2,202.77 | I20: 965,527.77 | J20: 0.00 | K20: 0.00 | L20: 0.00 | M20: 0.00 | N20: 0.00 | Z20: 0
A21: 18 | B21: 30 | C21: 2018-06-30 | D21: 965,527.77 | E21: 10,915.00 | F21: 8,412.00 | G21: 8,412.00 | H21: 2,503.00 | I21: 963,024.77 | J21: 0.00 | K21: 0.00 | L21: 0.00 | M21: 0.00 | N21: 0.00 | Z21: 0
A22: 19 | B22: 31 | C22: 2018-07-31 | D22: 963,024.77 | E22: 10,915.00 | F22: 8,669.86 | G22: 8,669.86 | H22: 2,245.14 | I22: 960,779.63 | J22: 0.00 | K22: 0.00 | L22: 0.00 | M22: 0.00 | N22: 0.00 | Z22: 0
A23: 20 | B23: 31 | C23: 2018-08-31 | D23: 960,779.63 | E23: 10,915.00 | F23: 8,649.65 | G23: 8,649.65 | H23: 2,265.35 | I23: 958,514.28 | J23: 0.00 | K23: 0.00 | L23: 0.00 | M23: 0.00 | N23: 0.00 | Z23: 0
A24: 21 | B24: 30 | C24: 2018-09-30 | D24: 958,514.28 | E24: 10,915.00 | F24: 8,350.89 | G24: 8,350.89 | H24: 2,564.11 | I24: 955,950.17 | J24: 0.00 | K24: 0.00 | L24: 0.00 | M24: 0.00 | N24: 0.00 | Z24: 0
A25: 22 | B25: 31 | C25: 2018-10-31 | D25: 955,950.17 | E25: 10,915.00 | F25: 8,606.17 | G25: 8,606.17 | H25: 2,308.83 | I25: 953,641.34 | J25: 0.00 | K25: 0.00 | L25: 0.00 | M25: 0.00 | N25: 0.00 | Z25: 0
A26: 23 | B26: 30 | C26: 2018-11-30 | D26: 953,641.34 | E26: 10,915.00 | F26: 8,308.44 | G26: 8,308.44 | H26: 2,606.56 | I26: 951,034.78 | J26: 0.00 | K26: 0.00 | L26: 0.00 | M26: 0.00 | N26: 0.00 | Z26: 0
A27: 24 | B27: 31 | C27: 2018-12-31 | D27: 951,034.78 | E27: 10,915.00 | F27: 8,561.92 | G27: 8,561.92 | H27: 2,353.08 | I27: 948,681.70 | J27: 0.00 | K27: 0.00 | L27: 0.00 | M27: 0.00 | N27: 0.00 | Z27: 0
A28: 25 | B28: 31 | C28: 2019-01-31 | D28: 948,681.70 | E28: 10,915.00 | F28: 8,540.73 | G28: 8,540.73 | H28: 2,374.27 | I28: 946,307.43 | J28: 0.00 | K28: 0.00 | L28: 0.00 | M28: 0.00 | N28: 0.00 | Z28: 0
A29: 26 | B29: 28 | C29: 2019-02-28 | D29: 946,307.43 | E29: 10,915.00 | F29: 7,694.91 | G29: 7,694.91 | H29: 3,220.09 | I29: 943,087.34 | J29: 0.00 | K29: 0.00 | L29: 0.00 | M29: 0.00 | N29: 0.00 | Z29: 0
A30: 27 | B30: 31 | C30: 2019-03-31 | D30: 943,087.34 | E30: 10,915.00 | F30: 8,490.37 | G30: 8,490.37 | H30: 2,424.63 | I30: 940,662.71 | J30: 0.00 | K30: 0.00 | L30: 0.00 | M30: 0.00 | N30: 0.00 | Z30: 0
A31: 28 | B31: 30 | C31: 2019-04-30 | D31: 940,662.71 | E31: 10,915.00 | F31: 8,195.36 | G31: 8,195.36 | H31: 2,719.64 | I31: 937,943.07 | J31: 0.00 | K31: 0.00 | L31: 0.00 | M31: 0.00 | N31: 0.00 | Z31: 0
A32: 29 | B32: 31 | C32: 2019-05-31 | D32: 937,943.07 | E32: 10,915.00 | F32: 8,444.06 | G32: 8,444.06 | H32: 2,470.94 | I32: 935,472.13 | J32: 0.00 | K32: 0.00 | L32: 0.00 | M32: 0.00 | N32: 0.00 | Z32: 0
A33: 30 | B33: 30 | C33: 2019-06-30 | D33: 935,472.13 | E33: 10,915.00 | F33: 8,150.14 | G33: 8,150.14 | H33: 2,764.86 | I33: 932,707.27 | J33: 0.00 | K33: 0.00 | L33: 0.00 | M33: 0.00 | N33: 0.00 | Z33: 0
A34: 31 | B34: 31 | C34: 2019-07-31 | D34: 932,707.27 | E34: 10,915.00 | F34: 8,396.92 | G34: 8,396.92 | H34: 2,518.08 | I34: 930,189.19 | J34: 0.00 | K34: 0.00 | L34: 0.00 | M34: 0.00 | N34: 0.00 | Z34: 0
A35: 32 | B35: 31 | C35: 2019-08-31 | D35: 930,189.19 | E35: 10,915.00 | F35: 8,374.25 | G35: 8,374.25 | H35: 2,540.75 | I35: 927,648.44 | J35: 0.00 | K35: 0.00 | L35: 0.00 | M35: 0.00 | N35: 0.00 | Z35: 0
A36: 33 | B36: 30 | C36: 2019-09-30 | D36: 927,648.44 | E36: 10,915.00 | F36: 8,081.98 | G36: 8,081.98 | H36: 2,833.02 | I36: 924,815.42 | J36: 0.00 | K36: 0.00 | L36: 0.00 | M36: 0.00 | N36: 0.00 | Z36: 0
A37: 34 | B37: 31 | C37: 2019-10-31 | D37: 924,815.42 | E37: 10,915.00 | F37: 8,325.87 | G37: 8,325.87 | H37: 2,589.13 | I37: 922,226.29 | J37: 0.00 | K37: 0.00 | L37: 0.00 | M37: 0.00 | N37: 0.00 | Z37: 0
A38: 35 | B38: 30 | C38: 2019-11-30 | D38: 922,226.29 | E38: 10,915.00 | F38: 8,034.74 | G38: 8,034.74 | H38: 2,880.26 | I38: 919,346.03 | J38: 0.00 | K38: 0.00 | L38: 0.00 | M38: 0.00 | N38: 0.00 | Z38: 0
A39: 36 | B39: 31 | C39: 2019-12-31 | D39: 919,346.03 | E39: 10,915.00 | F39: 8,276.63 | G39: 8,276.63 | H39: 2,638.37 | I39: 916,707.66 | J39: 0.00 | K39: 0.00 | L39: 0.00 | M39: 0.00 | N39: 0.00 | Z39: 0
A40: 37 | B40: 31 | C40: 2020-01-31 | D40: 916,707.66 | E40: 10,915.00 | F40: 8,230.33 | G40: 8,230.33 | H40: 2,684.67 | I40: 914,022.99 | J40: 0.00 | K40: 0.00 | L40: 0.00 | M40: 0.00 | N40: 0.00 | Z40: 0
A41: 38 | B41: 29 | C41: 2020-02-29 | D41: 914,022.99 | E41: 10,915.00 | F41: 7,676.79 | G41: 7,676.79 | H41: 3,238.21 | I41: 910,784.78 | J41: 0.00 | K41: 0.00 | L41: 0.00 | M41: 0.00 | N41: 0.00 | Z41: 0
A42: 39 | B42: 31 | C42: 2020-03-31 | D42: 910,784.78 | E42: 10,915.00 | F42: 8,177.16 | G42: 8,177.16 | H42: 2,737.84 | I42: 908,046.94 | J42: 0.00 | K42: 0.00 | L42: 0.00 | M42: 0.00 | N42: 0.00 | Z42: 0
A43: 40 | B43: 30 | C43: 2020-04-30 | D43: 908,046.94 | E43: 10,915.00 | F43: 7,889.59 | G43: 7,889.59 | H43: 3,025.41 | I43: 905,021.53 | J43: 0.00 | K43: 0.00 | L43: 0.00 | M43: 0.00 | N43: 0.00 | Z43: 0
A44: 41 | B44: 31 | C44: 2020-05-31 | D44: 905,021.53 | E44: 10,915.00 | F44: 8,125.41 | G44: 8,125.41 | H44: 2,789.59 | I44: 902,231.94 | J44: 0.00 | K44: 0.00 | L44: 0.00 | M44: 0.00 | N44: 0.00 | Z44: 0
A45: 42 | B45: 30 | C45: 2020-06-30 | D45: 902,231.94 | E45: 10,915.00 | F45: 7,839.06 | G45: 7,839.06 | H45: 3,075.94 | I45: 899,156.00 | J45: 0.00 | K45: 0.00 | L45: 0.00 | M45: 0.00 | N45: 0.00 | Z45: 0
A46: 43 | B46: 31 | C46: 2020-07-31 | D46: 899,156.00 | E46: 10,915.00 | F46: 8,072.75 | G46: 8,072.75 | H46: 2,842.25 | I46: 896,313.75 | J46: 0.00 | K46: 0.00 | L46: 0.00 | M46: 0.00 | N46: 0.00 | Z46: 0
A47: 44 | B47: 31 | C47: 2020-08-31 | D47: 896,313.75 | E47: 10,915.00 | F47: 8,047.23 | G47: 8,047.23 | H47: 2,867.77 | I47: 893,445.98 | J47: 0.00 | K47: 0.00 | L47: 0.00 | M47: 0.00 | N47: 0.00 | Z47: 0
A48: 45 | B48: 30 | C48: 2020-09-30 | D48: 893,445.98 | E48: 10,915.00 | F48: 7,762.73 | G48: 7,762.73 | H48: 3,152.27 | I48: 890,293.71 | J48: 0.00 | K48: 0.00 | L48: 0.00 | M48: 0.00 | N48: 0.00 | Z48: 0
A49: 46 | B49: 31 | C49: 2020-10-31 | D49: 890,293.71 | E49: 10,915.00 | F49: 7,993.18 | G49: 7,993.18 | H49: 2,921.82 | I49: 887,371.89 | J49: 0.00 | K49: 0.00 | L49: 0.00 | M49: 0.00 | N49: 0.00 | Z49: 0
A50: 47 | B50: 30 | C50: 2020-11-30 | D50: 887,371.89 | E50: 10,915.00 | F50: 7,709.95 | G50: 7,709.95 | H50: 3,205.05 | I50: 884,166.84 | J50: 0.00 | K50: 0.00 | L50: 0.00 | M50: 0.00 | N50: 0.00 | Z50: 0
A51: 48 | B51: 31 | C51: 2020-12-31 | D51: 884,166.84 | E51: 10,915.00 | F51: 7,938.18 | G51: 7,938.18 | H51: 2,976.82 | I51: 881,190.02 | J51: 0.00 | K51: 0.00 | L51: 0.00 | M51: 0.00 | N51: 0.00 | Z51: 0
A52: 49 | B52: 31 | C52: 2021-01-31 | D52: 881,190.02 | E52: 10,915.00 | F52: 7,933.12 | G52: 7,933.12 | H52: 2,981.88 | I52: 878,208.14 | J52: 0.00 | K52: 0.00 | L52: 0.00 | M52: 0.00 | N52: 0.00 | Z52: 0
A53: 50 | B53: 28 | C53: 2021-02-28 | D53: 878,208.14 | E53: 10,915.00 | F53: 7,141.16 | G53: 7,141.16 | H53: 3,773.84 | I53: 874,434.30 | J53: 0.00 | K53: 0.00 | L53: 0.00 | M53: 0.00 | N53: 0.00 | Z53: 0
A54: 51 | B54: 31 | C54: 2021-03-31 | D54: 874,434.30 | E54: 10,915.00 | F54: 7,872.30 | G54: 7,872.30 | H54: 3,042.70 | I54: 871,391.60 | J54: 0.00 | K54: 0.00 | L54: 0.00 | M54: 0.00 | N54: 0.00 | Z54: 0
A55: 52 | B55: 30 | C55: 2021-04-30 | D55: 871,391.60 | E55: 10,915.00 | F55: 7,591.85 | G55: 7,591.85 | H55: 3,323.15 | I55: 868,068.45 | J55: 0.00 | K55: 0.00 | L55: 0.00 | M55: 0.00 | N55: 0.00 | Z55: 0
A56: 53 | B56: 31 | C56: 2021-05-31 | D56: 868,068.45 | E56: 10,915.00 | F56: 7,814.99 | G56: 7,814.99 | H56: 3,100.01 | I56: 864,968.44 | J56: 0.00 | K56: 0.00 | L56: 0.00 | M56: 0.00 | N56: 0.00 | Z56: 0
A57: 54 | B57: 30 | C57: 2021-06-30 | D57: 864,968.44 | E57: 10,915.00 | F57: 7,535.89 | G57: 7,535.89 | H57: 3,379.11 | I57: 861,589.33 | J57: 0.00 | K57: 0.00 | L57: 0.00 | M57: 0.00 | N57: 0.00 | Z57: 0
A58: 55 | B58: 31 | C58: 2021-07-31 | D58: 861,589.33 | E58: 10,915.00 | F58: 7,756.66 | G58: 7,756.66 | H58: 3,158.34 | I58: 858,430.99 | J58: 0.00 | K58: 0.00 | L58: 0.00 | M58: 0.00 | N58: 0.00 | Z58: 0
A59: 56 | B59: 31 | C59: 2021-08-31 | D59: 858,430.99 | E59: 10,915.00 | F59: 7,728.23 | G59: 7,728.23 | H59: 3,186.77 | I59: 855,244.22 | J59: 0.00 | K59: 0.00 | L59: 0.00 | M59: 0.00 | N59: 0.00 | Z59: 0
A60: 57 | B60: 30 | C60: 2021-09-30 | D60: 855,244.22 | E60: 10,915.00 | F60: 7,451.17 | G60: 7,451.17 | H60: 3,463.83 | I60: 851,780.39 | J60: 0.00 | K60: 0.00 | L60: 0.00 | M60: 0.00 | N60: 0.00 | Z60: 0
A61: 58 | B61: 31 | C61: 2021-10-31 | D61: 851,780.39 | E61: 10,915.00 | F61: 7,668.36 | G61: 7,668.36 | H61: 3,246.64 | I61: 848,533.75 | J61: 0.00 | K61: 0.00 | L61: 0.00 | M61: 0.00 | N61: 0.00 | Z61: 0
A62: 59 | B62: 30 | C62: 2021-11-30 | D62: 848,533.75 | E62: 10,915.00 | F62: 7,392.71 | G62: 7,392.71 | H62: 3,522.29 | I62: 845,011.46 | J62: 0.00 | K62: 0.00 | L62: 0.00 | M62: 0.00 | N62: 0.00 | Z62: 0
A63: 60 | B63: 31 | C63: 2021-12-31 | D63: 845,011.46 | E63: 10,915.00 | F63: 7,607.42 | G63: 7,607.42 | H63: 3,307.58 | I63: 841,703.88 | J63: 0.00 | K63: 0.00 | L63: 0.00 | M63: 0.00 | N63: 0.00 | Z63: 0
A64: 61 | B64: 31 | C64: 2022-01-31 | D64: 841,703.88 | E64: 10,915.00 | F64: 7,577.64 | G64: 7,577.64 | H64: 3,337.36 | I64: 838,366.52 | J64: 0.00 | K64: 0.00 | L64: 0.00 | M64: 0.00 | N64: 0.00 | Z64: 0
A65: 62 | B65: 28 | C65: 2022-02-28 | D65: 838,366.52 | E65: 10,915.00 | F65: 6,817.18 | G65: 6,817.18 | H65: 4,097.82 | I65: 834,268.70 | J65: 0.00 | K65: 0.00 | L65: 0.00 | M65: 0.00 | N65: 0.00 | Z65: 0
A66: 63 | B66: 31 | C66: 2022-03-31 | D66: 834,268.70 | E66: 10,915.00 | F66: 7,510.70 | G66: 7,510.70 | H66: 3,404.30 | I66: 830,864.40 | J66: 0.00 | K66: 0.00 | L66: 0.00 | M66: 0.00 | N66: 0.00 | Z66: 0
A67: 64 | B67: 30 | C67: 2022-04-30 | D67: 830,864.40 | E67: 10,915.00 | F67: 7,238.76 | G67: 7,238.76 | H67: 3,676.24 | I67: 827,188.16 | J67: 0.00 | K67: 0.00 | L67: 0.00 | M67: 0.00 | N67: 0.00 | Z67: 0
A68: 65 | B68: 31 | C68: 2022-05-31 | D68: 827,188.16 | E68: 10,915.00 | F68: 7,446.96 | G68: 7,446.96 | H68: 3,468.04 | I68: 823,720.12 | J68: 0.00 | K68: 0.00 | L68: 0.00 | M68: 0.00 | N68: 0.00 | Z68: =IF(M68>0,0,-M68) -> 0
A69: 66 | B69: 30 | C69: 2022-06-30 | D69: 823,720.12 | E69: 10,915.00 | F69: 7,176.52 | G69: 7,176.52 | H69: 3,738.48 | I69: 819,981.64 | J69: 0.00 | K69: 0.00 | L69: 0.00 | M69: 0.00 | N69: 0.00 | Z69: 0
A70: 67 | B70: 31 | C70: 2022-07-31 | D70: 819,981.64 | E70: 10,915.00 | F70: 7,382.08 | G70: 7,382.08 | H70: 3,532.92 | I70: 816,448.72 | J70: 0.00 | K70: 0.00 | L70: 0.00 | M70: 0.00 | N70: 0.00 | Z70: 0
A71: 68 | B71: 31 | C71: 2022-08-31 | D71: 816,448.72 | E71: 10,915.00 | F71: 7,350.28 | G71: 7,350.28 | H71: 3,564.72 | I71: 812,884.00 | J71: 0.00 | K71: 0.00 | L71: 0.00 | M71: 0.00 | N71: 0.00 | Z71: 0
A72: 69 | B72: 30 | C72: 2022-09-30 | D72: 812,884.00 | E72: 10,915.00 | F72: 7,082.11 | G72: 7,082.11 | H72: 3,832.89 | I72: 809,051.11 | J72: 0.00 | K72: 0.00 | L72: 0.00 | M72: 0.00 | N72: 0.00 | Z72: 0
A73: 70 | B73: 31 | C73: 2022-10-31 | D73: 809,051.11 | E73: 10,915.00 | F73: 7,283.68 | G73: 7,283.68 | H73: 3,631.32 | I73: 805,419.79 | J73: 0.00 | K73: 0.00 | L73: 0.00 | M73: 0.00 | N73: 0.00 | Z73: 0
A74: 71 | B74: 30 | C74: 2022-11-30 | D74: 805,419.79 | E74: 10,915.00 | F74: 7,017.08 | G74: 7,017.08 | H74: 3,897.92 | I74: 801,521.87 | J74: 0.00 | K74: 0.00 | L74: 0.00 | M74: 0.00 | N74: 0.00 | Z74: 0
A75: 72 | B75: 31 | C75: 2022-12-31 | D75: 801,521.87 | E75: 10,915.00 | F75: 7,215.89 | G75: 7,215.89 | H75: 3,699.11 | I75: 797,822.76 | J75: 0.00 | K75: 0.00 | L75: 0.00 | M75: 0.00 | N75: 0.00 | Z75: 0
A76: 73 | B76: 31 | C76: 2023-01-31 | D76: 797,822.76 | E76: 10,915.00 | F76: 7,182.59 | G76: 7,182.59 | H76: 3,732.41 | I76: 794,090.35 | J76: 0.00 | K76: 0.00 | L76: 0.00 | M76: 0.00 | N76: 0.00 | Z76: 0
A77: 74 | B77: 28 | C77: 2023-02-28 | D77: 794,090.35 | E77: 10,915.00 | F77: 6,457.15 | G77: 6,457.15 | H77: 4,457.85 | I77: 789,632.50 | J77: 0.00 | K77: 0.00 | L77: 0.00 | M77: 0.00 | N77: 0.00 | Z77: 0
A78: 75 | B78: 31 | C78: 2023-03-31 | D78: 789,632.50 | E78: 10,915.00 | F78: 7,108.86 | G78: 7,108.86 | H78: 3,806.14 | I78: 785,826.36 | J78: 0.00 | K78: 0.00 | L78: 0.00 | M78: 0.00 | N78: 0.00 | Z78: 0
A79: 76 | B79: 30 | C79: 2023-04-30 | D79: 785,826.36 | E79: 10,915.00 | F79: 6,846.38 | G79: 6,846.38 | H79: 4,068.62 | I79: 781,757.74 | J79: 0.00 | K79: 0.00 | L79: 0.00 | M79: 0.00 | N79: 0.00 | Z79: 0
A80: 77 | B80: 31 | C80: 2023-05-31 | D80: 781,757.74 | E80: 10,915.00 | F80: 7,037.96 | G80: 7,037.96 | H80: 3,877.04 | I80: 777,880.70 | J80: 0.00 | K80: 0.00 | L80: 0.00 | M80: 0.00 | N80: 0.00 | Z80: 0
A81: 78 | B81: 30 | C81: 2023-06-30 | D81: 777,880.70 | E81: 10,915.00 | F81: 6,777.15 | G81: 6,777.15 | H81: 4,137.85 | I81: 773,742.85 | J81: 0.00 | K81: 0.00 | L81: 0.00 | M81: 0.00 | N81: 0.00 | Z81: 0
A82: 79 | B82: 31 | C82: 2023-07-31 | D82: 773,742.85 | E82: 10,915.00 | F82: 6,965.81 | G82: 6,965.81 | H82: 3,949.19 | I82: 769,793.66 | J82: 0.00 | K82: 0.00 | L82: 0.00 | M82: 0.00 | N82: 0.00 | Z82: 0
A83: 80 | B83: 31 | C83: 2023-08-31 | D83: 769,793.66 | E83: 10,915.00 | F83: 6,930.25 | G83: 6,930.25 | H83: 3,984.75 | I83: 765,808.91 | J83: 0.00 | K83: 0.00 | L83: 0.00 | M83: 0.00 | N83: 0.00 | Z83: 0
A84: 81 | B84: 30 | C84: 2023-09-30 | D84: 765,808.91 | E84: 10,915.00 | F84: 6,671.98 | G84: 6,671.98 | H84: 4,243.02 | I84: 761,565.89 | J84: 0.00 | K84: 0.00 | L84: 0.00 | M84: 0.00 | N84: 0.00 | Z84: 0
A85: 82 | B85: 31 | C85: 2023-10-31 | D85: 761,565.89 | E85: 10,915.00 | F85: 6,856.18 | G85: 6,856.18 | H85: 4,058.82 | I85: 757,507.07 | J85: 0.00 | K85: 0.00 | L85: 0.00 | M85: 0.00 | N85: 0.00 | Z85: 0
A86: 83 | B86: 30 | C86: 2023-11-30 | D86: 757,507.07 | E86: 10,915.00 | F86: 6,599.65 | G86: 6,599.65 | H86: 4,315.35 | I86: 753,191.72 | J86: 0.00 | K86: 0.00 | L86: 0.00 | M86: 0.00 | N86: 0.00 | Z86: 0
A87: 84 | B87: 31 | C87: 2023-12-31 | D87: 753,191.72 | E87: 10,915.00 | F87: 6,780.79 | G87: 6,780.79 | H87: 4,134.21 | I87: 749,057.51 | J87: 0.00 | K87: 0.00 | L87: 0.00 | M87: 0.00 | N87: 0.00 | Z87: 0
A88: 85 | B88: 31 | C88: 2024-01-31 | D88: 749,057.51 | E88: 10,915.00 | F88: 6,725.14 | G88: 6,725.14 | H88: 4,189.86 | I88: 744,867.65 | J88: 0.00 | K88: 0.00 | L88: 0.00 | M88: 0.00 | N88: 0.00 | Z88: 0
A89: 86 | B89: 29 | C89: 2024-02-29 | D89: 744,867.65 | E89: 10,915.00 | F89: 6,256.07 | G89: 6,256.07 | H89: 4,658.93 | I89: 740,208.72 | J89: 0.00 | K89: 0.00 | L89: 0.00 | M89: 0.00 | N89: 0.00 | Z89: 0
A90: 87 | B90: 31 | C90: 2024-03-31 | D90: 740,208.72 | E90: 10,915.00 | F90: 6,645.70 | G90: 6,645.70 | H90: 4,269.30 | I90: 735,939.42 | J90: 0.00 | K90: 0.00 | L90: 0.00 | M90: 0.00 | N90: 0.00 | Z90: 0
A91: 88 | B91: 30 | C91: 2024-04-30 | D91: 735,939.42 | E91: 10,915.00 | F91: 6,394.23 | G91: 6,394.23 | H91: 4,520.77 | I91: 731,418.65 | J91: 0.00 | K91: 0.00 | L91: 0.00 | M91: 0.00 | N91: 0.00 | Z91: 0
A92: 89 | B92: 31 | C92: 2024-05-31 | D92: 731,418.65 | E92: 10,915.00 | F92: 6,566.78 | G92: 6,566.78 | H92: 4,348.22 | I92: 727,070.43 | J92: 0.00 | K92: 0.00 | L92: 0.00 | M92: 0.00 | N92: 0.00 | Z92: 0
A93: 90 | B93: 30 | C93: 2024-06-30 | D93: 727,070.43 | E93: 10,915.00 | F93: 6,317.17 | G93: 6,317.17 | H93: 4,597.83 | I93: 722,472.60 | J93: 0.00 | K93: 0.00 | L93: 0.00 | M93: 0.00 | N93: 0.00 | Z93: 0
A94: 91 | B94: 31 | C94: 2024-07-31 | D94: 722,472.60 | E94: 10,915.00 | F94: 6,486.46 | G94: 6,486.46 | H94: 4,428.54 | I94: 718,044.06 | J94: 0.00 | K94: 0.00 | L94: 0.00 | M94: 0.00 | N94: 0.00 | Z94: 0
A95: 92 | B95: 31 | C95: 2024-08-31 | D95: 718,044.06 | E95: 10,915.00 | F95: 6,446.70 | G95: 6,446.70 | H95: 4,468.30 | I95: 713,575.76 | J95: 0.00 | K95: 0.00 | L95: 0.00 | M95: 0.00 | N95: 0.00 | Z95: 0
A96: 93 | B96: 30 | C96: 2024-09-30 | D96: 713,575.76 | E96: 10,915.00 | F96: 6,199.92 | G96: 6,199.92 | H96: 4,715.08 | I96: 708,860.68 | J96: 0.00 | K96: 0.00 | L96: 0.00 | M96: 0.00 | N96: 0.00 | Z96: 0
A97: 94 | B97: 31 | C97: 2024-10-31 | D97: 708,860.68 | E97: 10,915.00 | F97: 6,364.25 | G97: 6,364.25 | H97: 4,550.75 | I97: 704,309.93 | J97: 0.00 | K97: 0.00 | L97: 0.00 | M97: 0.00 | N97: 0.00 | Z97: 0
A98: 95 | B98: 30 | C98: 2024-11-30 | D98: 704,309.93 | E98: 10,915.00 | F98: 6,119.41 | G98: 6,119.41 | H98: 4,795.59 | I98: 699,514.34 | J98: 0.00 | K98: 0.00 | L98: 0.00 | M98: 0.00 | N98: 0.00 | Z98: 0
A99: 96 | B99: 31 | C99: 2024-12-31 | D99: 699,514.34 | E99: 10,915.00 | F99: 6,280.34 | G99: 6,280.34 | H99: 4,634.66 | I99: 694,879.68 | J99: 0.00 | K99: 0.00 | L99: 0.00 | M99: 0.00 | N99: 0.00 | Z99: 0
A100: 97 | B100: 31 | C100: 2025-01-31 | D100: 694,879.68 | E100: 10,915.00 | F100: 6,255.82 | G100: 6,255.82 | H100: 4,659.18 | I100: 690,220.50 | J100: 0.00 | K100: 0.00 | L100: 0.00 | M100: 0.00 | N100: 0.00 | Z100: 0
A101: 98 | B101: 28 | C101: 2025-02-28 | D101: 690,220.50 | E101: 10,915.00 | F101: 5,612.53 | G101: 5,612.53 | H101: 5,302.47 | I101: 684,918.03 | J101: 0.00 | K101: 0.00 | L101: 0.00 | M101: 0.00 | N101: 0.00 | Z101: 0
A102: 99 | B102: 31 | C102: 2025-03-31 | D102: 684,918.03 | E102: 10,915.00 | F102: 6,166.14 | G102: 6,166.14 | H102: 4,748.86 | I102: 680,169.17 | J102: 0.00 | K102: 0.00 | L102: 0.00 | M102: 0.00 | N102: 0.00 | Z102: 0
A103: 100 | B103: 30 | C103: 2025-04-30 | D103: 680,169.17 | E103: 10,915.00 | F103: 5,925.86 | G103: 5,925.86 | H103: 4,989.14 | I103: 675,180.03 | J103: 0.00 | K103: 0.00 | L103: 0.00 | M103: 0.00 | N103: 0.00 | Z103: 0
A104: 101 | B104: 31 | C104: 2025-05-31 | D104: 675,180.03 | E104: 10,915.00 | F104: 6,078.47 | G104: 6,078.47 | H104: 4,836.53 | I104: 670,343.50 | J104: 0.00 | K104: 0.00 | L104: 0.00 | M104: 0.00 | N104: 0.00 | Z104: 0
A105: 102 | B105: 30 | C105: 2025-06-30 | D105: 670,343.50 | E105: 10,915.00 | F105: 5,840.25 | G105: 5,840.25 | H105: 5,074.75 | I105: 665,268.75 | J105: 0.00 | K105: 0.00 | L105: 0.00 | M105: 0.00 | N105: 0.00 | Z105: 0
A106: 103 | B106: 31 | C106: 2025-07-31 | D106: 665,268.75 | E106: 10,915.00 | F106: 5,989.24 | G106: 5,989.24 | H106: 4,925.76 | I106: 660,342.99 | J106: 0.00 | K106: 0.00 | L106: 0.00 | M106: 0.00 | N106: 0.00 | Z106: 0
A107: 104 | B107: 31 | C107: 2025-08-31 | D107: 660,342.99 | E107: 10,915.00 | F107: 5,944.90 | G107: 5,944.90 | H107: 4,970.10 | I107: 655,372.89 | J107: 0.00 | K107: 0.00 | L107: 0.00 | M107: 0.00 | N107: 0.00 | Z107: 0
A108: 105 | B108: 30 | C108: 2025-09-30 | D108: 655,372.89 | E108: 10,915.00 | F108: 5,709.82 | G108: 5,709.82 | H108: 5,205.18 | I108: 650,167.71 | J108: 0.00 | K108: 0.00 | L108: 0.00 | M108: 0.00 | N108: 0.00 | Z108: 0
A109: 106 | B109: 31 | C109: 2025-10-31 | D109: 650,167.71 | E109: 10,915.00 | F109: 5,853.29 | G109: 5,853.29 | H109: 5,061.71 | I109: 645,106.00 | J109: 0.00 | K109: 0.00 | L109: 0.00 | M109: 0.00 | N109: 0.00 | Z109: 0
A110: 107 | B110: 30 | C110: 2025-11-30 | D110: 645,106.00 | E110: 10,915.00 | F110: 5,620.38 | G110: 5,620.38 | H110: 5,294.62 | I110: 639,811.38 | J110: 0.00 | K110: 0.00 | L110: 0.00 | M110: 0.00 | N110: 0.00 | Z110: 0
A111: 108 | B111: 31 | C111: 2025-12-31 | D111: 639,811.38 | E111: 10,915.00 | F111: 5,760.06 | G111: 5,760.06 | H111: 5,154.94 | I111: 634,656.44 | J111: 0.00 | K111: 0.00 | L111: 0.00 | M111: 0.00 | N111: 0.00 | Z111: 0
A112: 109 | B112: 31 | C112: 2026-01-31 | D112: 634,656.44 | E112: 10,915.00 | F112: 5,713.65 | G112: 5,713.65 | H112: 5,201.35 | I112: 629,455.09 | J112: 0.00 | K112: 0.00 | L112: 0.00 | M112: 0.00 | N112: 0.00 | Z112: 0
A113: 110 | B113: 28 | C113: 2026-02-28 | D113: 629,455.09 | E113: 10,915.00 | F113: 5,118.42 | G113: 5,118.42 | H113: 5,796.58 | I113: 623,658.51 | J113: 0.00 | K113: 0.00 | L113: 0.00 | M113: 0.00 | N113: 0.00 | Z113: 0
A114: 111 | B114: 31 | C114: 2026-03-31 | D114: 623,658.51 | E114: 10,915.00 | F114: 5,614.64 | G114: 5,614.64 | H114: 5,300.36 | I114: 618,358.15 | J114: 0.00 | K114: 0.00 | L114: 0.00 | M114: 0.00 | N114: 0.00 | Z114: 0
A115: 112 | B115: 30 | C115: 2026-04-30 | D115: 618,358.15 | E115: 10,915.00 | F115: 5,387.34 | G115: 5,387.34 | H115: 5,527.66 | I115: 612,830.49 | J115: 0.00 | K115: 0.00 | L115: 0.00 | M115: 0.00 | N115: 0.00 | Z115: 0
A116: 113 | B116: 31 | C116: 2026-05-31 | D116: 612,830.49 | E116: 10,915.00 | F116: 5,517.15 | G116: 5,517.15 | H116: 5,397.85 | I116: 607,432.64 | J116: 0.00 | K116: 0.00 | L116: 0.00 | M116: 0.00 | N116: 0.00 | Z116: 0
A117: 114 | B117: 30 | C117: 2026-06-30 | D117: 607,432.64 | E117: 10,915.00 | F117: 5,292.15 | G117: 5,292.15 | H117: 5,622.85 | I117: 601,809.79 | J117: 0.00 | K117: 0.00 | L117: 0.00 | M117: 0.00 | N117: 0.00 | Z117: 0
A118: 115 | B118: 31 | C118: 2026-07-31 | D118: 601,809.79 | E118: 10,915.00 | F118: 5,417.94 | G118: 5,417.94 | H118: 5,497.06 | I118: 596,312.73 | J118: 0.00 | K118: 0.00 | L118: 0.00 | M118: 0.00 | N118: 0.00 | Z118: 0
A119: 116 | B119: 31 | C119: 2026-08-31 | D119: 596,312.73 | E119: 10,915.00 | F119: 5,368.45 | G119: 5,368.45 | H119: 5,546.55 | I119: 590,766.18 | J119: 0.00 | K119: 0.00 | L119: 0.00 | M119: 0.00 | N119: 0.00 | Z119: 0
A120: 117 | B120: 30 | C120: 2026-09-30 | D120: 590,766.18 | E120: 10,915.00 | F120: 5,146.95 | G120: 5,146.95 | H120: 5,768.05 | I120: 584,998.13 | J120: 0.00 | K120: 0.00 | L120: 0.00 | M120: 0.00 | N120: 0.00 | Z120: 0
A121: 118 | B121: 31 | C121: 2026-10-31 | D121: 584,998.13 | E121: 10,915.00 | F121: 5,266.59 | G121: 5,266.59 | H121: 5,648.41 | I121: 579,349.72 | J121: 0.00 | K121: 0.00 | L121: 0.00 | M121: 0.00 | N121: 0.00 | Z121: 0
A122: 119 | B122: 30 | C122: 2026-11-30 | D122: 579,349.72 | E122: 10,915.00 | F122: 5,047.49 | G122: 5,047.49 | H122: 5,867.51 | I122: 573,482.21 | J122: 0.00 | K122: 0.00 | L122: 0.00 | M122: 0.00 | N122: 0.00 | Z122: 0
A123: 120 | B123: 31 | C123: 2026-12-31 | D123: 573,482.21 | E123: 10,915.00 | F123: 5,162.91 | G123: 5,162.91 | H123: 5,752.09 | I123: 567,730.12 | J123: 0.00 | K123: 0.00 | L123: 0.00 | M123: 0.00 | N123: 0.00 | Z123: 0
A124: 121 | B124: 31 | C124: 2027-01-31 | D124: 567,730.12 | E124: 10,915.00 | F124: 5,111.13 | G124: 5,111.13 | H124: 5,803.87 | I124: 561,926.25 | J124: 0.00 | K124: 0.00 | L124: 0.00 | M124: 0.00 | N124: 0.00 | Z124: 0
A125: 122 | B125: 28 | C125: 2027-02-28 | D125: 561,926.25 | E125: 10,915.00 | F125: 4,569.31 | G125: 4,569.31 | H125: 6,345.69 | I125: 555,580.56 | J125: 0.00 | K125: 0.00 | L125: 0.00 | M125: 0.00 | N125: 0.00 | Z125: 0
A126: 123 | B126: 31 | C126: 2027-03-31 | D126: 555,580.56 | E126: 10,915.00 | F126: 5,001.75 | G126: 5,001.75 | H126: 5,913.25 | I126: 549,667.31 | J126: 0.00 | K126: 0.00 | L126: 0.00 | M126: 0.00 | N126: 0.00 | Z126: 0
A127: 124 | B127: 30 | C127: 2027-04-30 | D127: 549,667.31 | E127: 10,915.00 | F127: 4,788.88 | G127: 4,788.88 | H127: 6,126.12 | I127: 543,541.19 | J127: 0.00 | K127: 0.00 | L127: 0.00 | M127: 0.00 | N127: 0.00 | Z127: 0
A128: 125 | B128: 31 | C128: 2027-05-31 | D128: 543,541.19 | E128: 10,915.00 | F128: 4,893.36 | G128: 4,893.36 | H128: 6,021.64 | I128: 537,519.55 | J128: 0.00 | K128: 0.00 | L128: 0.00 | M128: 0.00 | N128: 0.00 | Z128: 0
A129: 126 | B129: 30 | C129: 2027-06-30 | D129: 537,519.55 | E129: 10,915.00 | F129: 4,683.05 | G129: 4,683.05 | H129: 6,231.95 | I129: 531,287.60 | J129: 0.00 | K129: 0.00 | L129: 0.00 | M129: 0.00 | N129: 0.00 | Z129: 0
A130: 127 | B130: 31 | C130: 2027-07-31 | D130: 531,287.60 | E130: 10,915.00 | F130: 4,783.04 | G130: 4,783.04 | H130: 6,131.96 | I130: 525,155.64 | J130: 0.00 | K130: 0.00 | L130: 0.00 | M130: 0.00 | N130: 0.00 | Z130: 0
A131: 128 | B131: 31 | C131: 2027-08-31 | D131: 525,155.64 | E131: 10,915.00 | F131: 4,727.84 | G131: 4,727.84 | H131: 6,187.16 | I131: 518,968.48 | J131: 0.00 | K131: 0.00 | L131: 0.00 | M131: 0.00 | N131: 0.00 | Z131: 0
A132: 129 | B132: 30 | C132: 2027-09-30 | D132: 518,968.48 | E132: 10,915.00 | F132: 4,521.42 | G132: 4,521.42 | H132: 6,393.58 | I132: 512,574.90 | J132: 0.00 | K132: 0.00 | L132: 0.00 | M132: 0.00 | N132: 0.00 | Z132: =IF(M132>0,0,-M132) -> 0
A133: 130 | B133: 31 | C133: 2027-10-31 | D133: 512,574.90 | E133: 10,915.00 | F133: 4,614.58 | G133: 4,614.58 | H133: 6,300.42 | I133: 506,274.48 | J133: 0.00 | K133: 0.00 | L133: 0.00 | M133: 0.00 | N133: 0.00 | Z133: 0
A134: 131 | B134: 30 | C134: 2027-11-30 | D134: 506,274.48 | E134: 10,915.00 | F134: 4,410.83 | G134: 4,410.83 | H134: 6,504.17 | I134: 499,770.31 | J134: 0.00 | K134: 0.00 | L134: 0.00 | M134: 0.00 | N134: 0.00 | Z134: 0
A135: 132 | B135: 31 | C135: 2027-12-31 | D135: 499,770.31 | E135: 10,915.00 | F135: 4,499.30 | G135: 4,499.30 | H135: 6,415.70 | I135: 493,354.61 | J135: 0.00 | K135: 0.00 | L135: 0.00 | M135: 0.00 | N135: 0.00 | Z135: 0
A136: 133 | B136: 31 | C136: 2028-01-31 | D136: 493,354.61 | E136: 10,915.00 | F136: 4,429.41 | G136: 4,429.41 | H136: 6,485.59 | I136: 486,869.02 | J136: 0.00 | K136: 0.00 | L136: 0.00 | M136: 0.00 | N136: 0.00 | Z136: 0
A137: 134 | B137: 29 | C137: 2028-02-29 | D137: 486,869.02 | E137: 10,915.00 | F137: 4,089.17 | G137: 4,089.17 | H137: 6,825.83 | I137: 480,043.19 | J137: 0.00 | K137: 0.00 | L137: 0.00 | M137: 0.00 | N137: 0.00 | Z137: 0
A138: 135 | B138: 31 | C138: 2028-03-31 | D138: 480,043.19 | E138: 10,915.00 | F138: 4,309.90 | G138: 4,309.90 | H138: 6,605.10 | I138: 473,438.09 | J138: 0.00 | K138: 0.00 | L138: 0.00 | M138: 0.00 | N138: 0.00 | Z138: 0
A139: 136 | B139: 30 | C139: 2028-04-30 | D139: 473,438.09 | E139: 10,915.00 | F139: 4,113.48 | G139: 4,113.48 | H139: 6,801.52 | I139: 466,636.57 | J139: 0.00 | K139: 0.00 | L139: 0.00 | M139: 0.00 | N139: 0.00 | Z139: 0
A140: 137 | B140: 31 | C140: 2028-05-31 | D140: 466,636.57 | E140: 10,915.00 | F140: 4,189.53 | G140: 4,189.53 | H140: 6,725.47 | I140: 459,911.10 | J140: 0.00 | K140: 0.00 | L140: 0.00 | M140: 0.00 | N140: 0.00 | Z140: 0
A141: 138 | B141: 30 | C141: 2028-06-30 | D141: 459,911.10 | E141: 10,915.00 | F141: 3,995.95 | G141: 3,995.95 | H141: 6,919.05 | I141: 452,992.05 | J141: 0.00 | K141: 0.00 | L141: 0.00 | M141: 0.00 | N141: 0.00 | Z141: 0
A142: 139 | B142: 31 | C142: 2028-07-31 | D142: 452,992.05 | E142: 10,915.00 | F142: 4,067.03 | G142: 4,067.03 | H142: 6,847.97 | I142: 446,144.08 | J142: 0.00 | K142: 0.00 | L142: 0.00 | M142: 0.00 | N142: 0.00 | Z142: 0
A143: 140 | B143: 31 | C143: 2028-08-31 | D143: 446,144.08 | E143: 10,915.00 | F143: 4,005.54 | G143: 4,005.54 | H143: 6,909.46 | I143: 439,234.62 | J143: 0.00 | K143: 0.00 | L143: 0.00 | M143: 0.00 | N143: 0.00 | Z143: 0
A144: 141 | B144: 30 | C144: 2028-09-30 | D144: 439,234.62 | E144: 10,915.00 | F144: 3,816.30 | G144: 3,816.30 | H144: 7,098.70 | I144: 432,135.92 | J144: 0.00 | K144: 0.00 | L144: 0.00 | M144: 0.00 | N144: 0.00 | Z144: 0
A145: 142 | B145: 31 | C145: 2028-10-31 | D145: 432,135.92 | E145: 10,915.00 | F145: 3,879.78 | G145: 3,879.78 | H145: 7,035.22 | I145: 425,100.70 | J145: 0.00 | K145: 0.00 | L145: 0.00 | M145: 0.00 | N145: 0.00 | Z145: 0
A146: 143 | B146: 30 | C146: 2028-11-30 | D146: 425,100.70 | E146: 10,915.00 | F146: 3,693.50 | G146: 3,693.50 | H146: 7,221.50 | I146: 417,879.20 | J146: 0.00 | K146: 0.00 | L146: 0.00 | M146: 0.00 | N146: 0.00 | Z146: 0
A147: 144 | B147: 31 | C147: 2028-12-31 | D147: 417,879.20 | E147: 10,915.00 | F147: 3,751.78 | G147: 3,751.78 | H147: 7,163.22 | I147: 410,715.98 | J147: 0.00 | K147: 0.00 | L147: 0.00 | M147: 0.00 | N147: 0.00 | Z147: 0
A148: 145 | B148: 31 | C148: 2029-01-31 | D148: 410,715.98 | E148: 10,915.00 | F148: 3,697.57 | G148: 3,697.57 | H148: 7,217.43 | I148: 403,498.55 | J148: 0.00 | K148: 0.00 | L148: 0.00 | M148: 0.00 | N148: 0.00 | Z148: 0
A149: 146 | B149: 28 | C149: 2029-02-28 | D149: 403,498.55 | E149: 10,915.00 | F149: 3,281.05 | G149: 3,281.05 | H149: 7,633.95 | I149: 395,864.60 | J149: 0.00 | K149: 0.00 | L149: 0.00 | M149: 0.00 | N149: 0.00 | Z149: 0
A150: 147 | B150: 31 | C150: 2029-03-31 | D150: 395,864.60 | E150: 10,915.00 | F150: 3,563.87 | G150: 3,563.87 | H150: 7,351.13 | I150: 388,513.47 | J150: 0.00 | K150: 0.00 | L150: 0.00 | M150: 0.00 | N150: 0.00 | Z150: 0
A151: 148 | B151: 30 | C151: 2029-04-30 | D151: 388,513.47 | E151: 10,915.00 | F151: 3,384.86 | G151: 3,384.86 | H151: 7,530.14 | I151: 380,983.33 | J151: 0.00 | K151: 0.00 | L151: 0.00 | M151: 0.00 | N151: 0.00 | Z151: 0
A152: 149 | B152: 31 | C152: 2029-05-31 | D152: 380,983.33 | E152: 10,915.00 | F152: 3,429.89 | G152: 3,429.89 | H152: 7,485.11 | I152: 373,498.22 | J152: 0.00 | K152: 0.00 | L152: 0.00 | M152: 0.00 | N152: 0.00 | Z152: 0
A153: 150 | B153: 30 | C153: 2029-06-30 | D153: 373,498.22 | E153: 10,915.00 | F153: 3,254.04 | G153: 3,254.04 | H153: 7,660.96 | I153: 365,837.26 | J153: 0.00 | K153: 0.00 | L153: 0.00 | M153: 0.00 | N153: 0.00 | Z153: 0
A154: 151 | B154: 31 | C154: 2029-07-31 | D154: 365,837.26 | E154: 10,915.00 | F154: 3,293.54 | G154: 3,293.54 | H154: 7,621.46 | I154: 358,215.80 | J154: 0.00 | K154: 0.00 | L154: 0.00 | M154: 0.00 | N154: 0.00 | Z154: 0
A155: 152 | B155: 31 | C155: 2029-08-31 | D155: 358,215.80 | E155: 10,915.00 | F155: 3,224.92 | G155: 3,224.92 | H155: 7,690.08 | I155: 350,525.72 | J155: 0.00 | K155: 0.00 | L155: 0.00 | M155: 0.00 | N155: 0.00 | Z155: 0
A156: 153 | B156: 30 | C156: 2029-09-30 | D156: 350,525.72 | E156: 10,915.00 | F156: 3,053.90 | G156: 3,053.90 | H156: 7,861.10 | I156: 342,664.62 | J156: 0.00 | K156: 0.00 | L156: 0.00 | M156: 0.00 | N156: 0.00 | Z156: 0
A157: 154 | B157: 31 | C157: 2029-10-31 | D157: 342,664.62 | E157: 10,915.00 | F157: 3,084.92 | G157: 3,084.92 | H157: 7,830.08 | I157: 334,834.54 | J157: 0.00 | K157: 0.00 | L157: 0.00 | M157: 0.00 | N157: 0.00 | Z157: 0
A158: 155 | B158: 30 | C158: 2029-11-30 | D158: 334,834.54 | E158: 10,915.00 | F158: 2,917.19 | G158: 2,917.19 | H158: 7,997.81 | I158: 326,836.73 | J158: 0.00 | K158: 0.00 | L158: 0.00 | M158: 0.00 | N158: 0.00 | Z158: 0
A159: 156 | B159: 31 | C159: 2029-12-31 | D159: 326,836.73 | E159: 10,915.00 | F159: 2,942.43 | G159: 2,942.43 | H159: 7,972.57 | I159: 318,864.16 | J159: 0.00 | K159: 0.00 | L159: 0.00 | M159: 0.00 | N159: 0.00 | Z159: 0
A160: 157 | B160: 31 | C160: 2030-01-31 | D160: 318,864.16 | E160: 10,915.00 | F160: 2,870.65 | G160: 2,870.65 | H160: 8,044.35 | I160: 310,819.81 | J160: 0.00 | K160: 0.00 | L160: 0.00 | M160: 0.00 | N160: 0.00 | Z160: 0
A161: 158 | B161: 28 | C161: 2030-02-28 | D161: 310,819.81 | E161: 10,915.00 | F161: 2,527.43 | G161: 2,527.43 | H161: 8,387.57 | I161: 302,432.24 | J161: 0.00 | K161: 0.00 | L161: 0.00 | M161: 0.00 | N161: 0.00 | Z161: 0
A162: 159 | B162: 31 | C162: 2030-03-31 | D162: 302,432.24 | E162: 10,915.00 | F162: 2,722.72 | G162: 2,722.72 | H162: 8,192.28 | I162: 294,239.96 | J162: 0.00 | K162: 0.00 | L162: 0.00 | M162: 0.00 | N162: 0.00 | Z162: 0
A163: 160 | B163: 30 | C163: 2030-04-30 | D163: 294,239.96 | E163: 10,915.00 | F163: 2,563.52 | G163: 2,563.52 | H163: 8,351.48 | I163: 285,888.48 | J163: 0.00 | K163: 0.00 | L163: 0.00 | M163: 0.00 | N163: 0.00 | Z163: 0
A164: 161 | B164: 31 | C164: 2030-05-31 | D164: 285,888.48 | E164: 10,915.00 | F164: 2,573.78 | G164: 2,573.78 | H164: 8,341.22 | I164: 277,547.26 | J164: 0.00 | K164: 0.00 | L164: 0.00 | M164: 0.00 | N164: 0.00 | Z164: 0
A165: 162 | B165: 30 | C165: 2030-06-30 | D165: 277,547.26 | E165: 10,915.00 | F165: 2,418.08 | G165: 2,418.08 | H165: 8,496.92 | I165: 269,050.34 | J165: 0.00 | K165: 0.00 | L165: 0.00 | M165: 0.00 | N165: 0.00 | Z165: 0
A166: 163 | B166: 31 | C166: 2030-07-31 | D166: 269,050.34 | E166: 10,915.00 | F166: 2,422.19 | G166: 2,422.19 | H166: 8,492.81 | I166: 260,557.53 | J166: 0.00 | K166: 0.00 | L166: 0.00 | M166: 0.00 | N166: 0.00 | Z166: 0
A167: 164 | B167: 31 | C167: 2030-08-31 | D167: 260,557.53 | E167: 10,915.00 | F167: 2,345.73 | G167: 2,345.73 | H167: 8,569.27 | I167: 251,988.26 | J167: 0.00 | K167: 0.00 | L167: 0.00 | M167: 0.00 | N167: 0.00 | Z167: 0
A168: 165 | B168: 30 | C168: 2030-09-30 | D168: 251,988.26 | E168: 10,915.00 | F168: 2,195.40 | G168: 2,195.40 | H168: 8,719.60 | I168: 243,268.66 | J168: 0.00 | K168: 0.00 | L168: 0.00 | M168: 0.00 | N168: 0.00 | Z168: 0
A169: 166 | B169: 31 | C169: 2030-10-31 | D169: 243,268.66 | E169: 10,915.00 | F169: 2,190.08 | G169: 2,190.08 | H169: 8,724.92 | I169: 234,543.74 | J169: 0.00 | K169: 0.00 | L169: 0.00 | M169: 0.00 | N169: 0.00 | Z169: 0
A170: 167 | B170: 30 | C170: 2030-11-30 | D170: 234,543.74 | E170: 10,915.00 | F170: 2,043.42 | G170: 2,043.42 | H170: 8,871.58 | I170: 225,672.16 | J170: 0.00 | K170: 0.00 | L170: 0.00 | M170: 0.00 | N170: 0.00 | Z170: 0
A171: 168 | B171: 31 | C171: 2030-12-31 | D171: 225,672.16 | E171: 10,915.00 | F171: 2,031.67 | G171: 2,031.67 | H171: 8,883.33 | I171: 216,788.83 | J171: 0.00 | K171: 0.00 | L171: 0.00 | M171: 0.00 | N171: 0.00 | Z171: 0
A172: 169 | B172: 31 | C172: 2031-01-31 | D172: 216,788.83 | E172: 10,915.00 | F172: 1,951.69 | G172: 1,951.69 | H172: 8,963.31 | I172: 207,825.52 | J172: 0.00 | K172: 0.00 | L172: 0.00 | M172: 0.00 | N172: 0.00 | Z172: 0
A173: 170 | B173: 28 | C173: 2031-02-28 | D173: 207,825.52 | E173: 10,915.00 | F173: 1,689.93 | G173: 1,689.93 | H173: 9,225.07 | I173: 198,600.45 | J173: 0.00 | K173: 0.00 | L173: 0.00 | M173: 0.00 | N173: 0.00 | Z173: 0
A174: 171 | B174: 31 | C174: 2031-03-31 | D174: 198,600.45 | E174: 10,915.00 | F174: 1,787.95 | G174: 1,787.95 | H174: 9,127.05 | I174: 189,473.40 | J174: 0.00 | K174: 0.00 | L174: 0.00 | M174: 0.00 | N174: 0.00 | Z174: 0
A175: 172 | B175: 30 | C175: 2031-04-30 | D175: 189,473.40 | E175: 10,915.00 | F175: 1,650.75 | G175: 1,650.75 | H175: 9,264.25 | I175: 180,209.15 | J175: 0.00 | K175: 0.00 | L175: 0.00 | M175: 0.00 | N175: 0.00 | Z175: 0
A176: 173 | B176: 31 | C176: 2031-05-31 | D176: 180,209.15 | E176: 10,915.00 | F176: 1,622.38 | G176: 1,622.38 | H176: 9,292.62 | I176: 170,916.53 | J176: 0.00 | K176: 0.00 | L176: 0.00 | M176: 0.00 | N176: 0.00 | Z176: 0
A177: 174 | B177: 30 | C177: 2031-06-30 | D177: 170,916.53 | E177: 10,915.00 | F177: 1,489.08 | G177: 1,489.08 | H177: 9,425.92 | I177: 161,490.61 | J177: 0.00 | K177: 0.00 | L177: 0.00 | M177: 0.00 | N177: 0.00 | Z177: 0
A178: 175 | B178: 31 | C178: 2031-07-31 | D178: 161,490.61 | E178: 10,915.00 | F178: 1,453.86 | G178: 1,453.86 | H178: 9,461.14 | I178: 152,029.47 | J178: 0.00 | K178: 0.00 | L178: 0.00 | M178: 0.00 | N178: 0.00 | Z178: 0
A179: 176 | B179: 31 | C179: 2031-08-31 | D179: 152,029.47 | E179: 10,915.00 | F179: 1,368.68 | G179: 1,368.68 | H179: 9,546.32 | I179: 142,483.15 | J179: 0.00 | K179: 0.00 | L179: 0.00 | M179: 0.00 | N179: 0.00 | Z179: 0
A180: 177 | B180: 30 | C180: 2031-09-30 | D180: 142,483.15 | E180: 10,915.00 | F180: 1,241.36 | G180: 1,241.36 | H180: 9,673.64 | I180: 132,809.51 | J180: 0.00 | K180: 0.00 | L180: 0.00 | M180: 0.00 | N180: 0.00 | Z180: 0
A181: 178 | B181: 31 | C181: 2031-10-31 | D181: 132,809.51 | E181: 10,915.00 | F181: 1,195.65 | G181: 1,195.65 | H181: 9,719.35 | I181: 123,090.16 | J181: 0.00 | K181: 0.00 | L181: 0.00 | M181: 0.00 | N181: 0.00 | Z181: 0
A182: 179 | B182: 30 | C182: 2031-11-30 | D182: 123,090.16 | E182: 10,915.00 | F182: 1,072.40 | G182: 1,072.40 | H182: 9,842.60 | I182: 113,247.56 | J182: 0.00 | K182: 0.00 | L182: 0.00 | M182: 0.00 | N182: 0.00 | Z182: 0
A183: 180 | B183: 31 | C183: 2031-12-31 | D183: 113,247.56 | E183: 10,915.00 | F183: 1,019.54 | G183: 1,019.54 | H183: 9,895.46 | I183: 103,352.10 | J183: 0.00 | K183: 0.00 | L183: 0.00 | M183: 0.00 | N183: 0.00 | Z183: 0
A184: 181 | B184: 31 | C184: 2032-01-31 | D184: 103,352.10 | E184: 10,915.00 | F184: 927.91 | G184: 927.91 | H184: 9,987.09 | I184: 93,365.01 | J184: 0.00 | K184: 0.00 | L184: 0.00 | M184: 0.00 | N184: 0.00 | Z184: 0
A185: 182 | B185: 29 | C185: 2032-02-29 | D185: 93,365.01 | E185: 10,915.00 | F185: 784.16 | G185: 784.16 | H185: 10,130.84 | I185: 83,234.17 | J185: 0.00 | K185: 0.00 | L185: 0.00 | M185: 0.00 | N185: 0.00 | Z185: 0
A186: 183 | B186: 31 | C186: 2032-03-31 | D186: 83,234.17 | E186: 10,915.00 | F186: 747.29 | G186: 747.29 | H186: 10,167.71 | I186: 73,066.46 | J186: 0.00 | K186: 0.00 | L186: 0.00 | M186: 0.00 | N186: 0.00 | Z186: 0
A187: 184 | B187: 30 | C187: 2032-04-30 | D187: 73,066.46 | E187: 10,915.00 | F187: 634.84 | G187: 634.84 | H187: 10,280.16 | I187: 62,786.30 | J187: 0.00 | K187: 0.00 | L187: 0.00 | M187: 0.00 | N187: 0.00 | Z187: 0
A188: 185 | B188: 31 | C188: 2032-05-31 | D188: 62,786.30 | E188: 10,915.00 | F188: 563.70 | G188: 563.70 | H188: 10,351.30 | I188: 52,435.00 | J188: 0.00 | K188: 0.00 | L188: 0.00 | M188: 0.00 | N188: 0.00 | Z188: 0
A189: 186 | B189: 30 | C189: 2032-06-30 | D189: 52,435.00 | E189: 10,915.00 | F189: 455.58 | G189: 455.58 | H189: 10,459.42 | I189: 41,975.58 | J189: 0.00 | K189: 0.00 | L189: 0.00 | M189: 0.00 | N189: 0.00 | Z189: 0
A190: 187 | B190: 31 | C190: 2032-07-31 | D190: 41,975.58 | E190: 10,915.00 | F190: 376.86 | G190: 376.86 | H190: 10,538.14 | I190: 31,437.44 | J190: 0.00 | K190: 0.00 | L190: 0.00 | M190: 0.00 | N190: 0.00 | Z190: 0
A191: 188 | B191: 31 | C191: 2032-08-31 | D191: 31,437.44 | E191: 10,915.00 | F191: 282.25 | G191: 282.25 | H191: 10,632.75 | I191: 20,804.69 | J191: 0.00 | K191: 0.00 | L191: 0.00 | M191: 0.00 | N191: 0.00 | Z191: 0
A192: 189 | B192: 30 | C192: 2032-09-30 | D192: 20,804.69 | E192: 10,915.00 | F192: 180.76 | G192: 180.76 | H192: 10,734.24 | I192: 10,070.45 | J192: 0.00 | K192: 0.00 | L192: 0.00 | M192: 0.00 | N192: 0.00 | Z192: 0
A193: 190 | B193: 31 | C193: 2032-10-31 | D193: 10,070.45 | E193: 10,160.86 | F193: 90.41 | G193: 90.41 | H193: 10,070.45 | I193: 0.00 | J193: 0.00 | K193: 0.00 | L193: 0.00 | M193: 0.00 | N193: 0.00 | Z193: 0
Z194: 0
Z195: 0
Z196: =IF(M196>0,0,-M196) -> 0
Z197: 0
Z198: 0
Z199: 0
Z200: 0
... 204 more rows

Sheet Печать условий (hidden)
F4: Условия опции "Ставка ниже"
F5: Цена недвижимости | H5: Первоначальный взнос | J5: Первоначальный взнос, % цены недвижимости | L5: Сумма кредита | N5: Срок кредита
F6: =Параметры!$K$38 -> 7,800,000.00 ₽ | H6: =Параметры!$M$38 -> 2,340,000.00 ₽ | J6: =Параметры!O38 -> 30.00% | L6: =SubsCredSumm -> 5,460,000.00 ₽ | N6: =KD_period -> 360
F8: Стандартные условия (без применения опции)
F9: Ставка по кредиту | J9: Ежемесячный платеж | N9: Переплата за весь срок кредита
F10: =Параметры!K42 -> 10.30% | J10: =Параметры!O42 -> 49,151.00 ₽ | N10: =Параметры!S42 -> 12,190,751.70 ₽
F12: С использованием опции "Ставка ниже"
F13: ="Ставка "&(IF(Параметры!$O$19<>Справочник!#REF!,"на "&Параметры!O19&" мес.","на весь срок кредита")) ->  | H13: Ставка после периода снижения | J13: ="Платеж "&(IF(Параметры!$O$19<>Справочник!#REF!,"на "&Параметры!O19&" мес.","на весь срок кредита")) ->  | L13: Платеж после периода снижения | N13: Переплата за весь срок кредита
F14: =Параметры!K46 -> 0.30% | H14: =Параметры!M46 -> - | J14: =Параметры!O46 -> 15,946.00 ₽ | L14: =Параметры!Q46 -> 0.00 ₽ | N14: =Параметры!S46 -> 249,181.56 ₽
F15: Снижение ставки | H15: Снижение ставки после периода снижения | J15: Снижение платежа в период снижения ставки | L15: Снижение платежа после периода снижения ставки | N15: Снижение переплаты за весь срок
F16: =Параметры!K48 -> 10.00% | H16: =Параметры!M48 -> - | J16: =Параметры!O48 -> 33,205.00 ₽ | L16: =Параметры!Q48 -> - | N16: =Параметры!S48 -> 11,941,570.14 ₽
F18: =IF(Параметры!$O$5=Справочник!$C$3,"","Плата клиента за снижение ставки") -> Плата клиента за снижение ставки | J18: =IF(Параметры!$O$5=Справочник!$C$3,"",IF(J19>=0,"Выгода клиента за весь срок","Потери")) -> Выгода клиента за весь срок
F19: =IF(Параметры!$O$5=Справочник!$C$3,"",Параметры!$K$51) -> 0.00 ₽ | J19: =IF(Параметры!$O$5=Справочник!$C$3,"",Параметры!$O$51) -> 11,941,570.14 ₽

Sheet Параметры (партнер)
B2: Опция "Ставка ниже" (для партнера)
C4: Базовые параметры (без субсидирования): | J4: Параметры кредитования: | T4: Вариант расчета №1 (КВ за снижение ставки уплачивается отдельно):
L6: Плательщик комиссии за снижение ставки | P6: ФИЗИЧЕСКОЕ ЛИЦО
C8: Стоимость квартиры, руб.: | F8: 14,450,000.00 ₽ | J8: Кредитный продукт: | L8: Приобретение квартиры на этапе строительства | T8: =IF($P$6=Справочник!$C$3,"КВ за снижение ставки, %:","КВ за снижение ставки, %:") -> КВ за снижение ставки, %: | W8: =IFERROR(IF(OR(L23="Без отсрочки",L8="Дальневосточная ипотека"),Справочник!$G$3,IF(AND(N23="Застройщик на ПФ",OR(L8=Справочник!J11,L8=Справочник!J12,L8=Справочник!J13,L8=Справочник!J14,L8=Справочник!J15,L8=Справочник!J16,L8=Справочник!J17,L8=Справочник!J18)),Справочник!$G$3*VLOOKUP(L23,Справочник!M12:O46,2,0),Справочник!$G$3*VLOOKUP(L23,Справочник!M12:O46,3,0))),"изменить срок/размер опции/вариант расчета") -> 0.20% | X8: =IF(W8="изменить срок/размер опции/вариант расчета","Внимание!","") -> 
C10: Первоначальный взнос, руб.: | F10: 3,000,000.00 ₽ | J10: Дата выдачи кредита: | L10: 2023-08-01 | T10: =IF($P$6=Справочник!C3,"КВ за снижение ставки, руб.:","КВ за снижение ставки, руб.:") -> КВ за снижение ставки, руб.: | W10: =IFERROR(ROUND($W$8*IF($P$27=Справочник!$A$3,$L$58,F21),2),"-") -> 22,900.00 ₽
C12: Первоначальный взнос, %: | F12: =F10/F8 -> 20.76% | J12: Ставка до снижения, %: | L12: 15.60% | T12: Ставка на период/после периода снижения, %: | W12: =IF(L19<>"на_весь_срок",ROUND((L12-L21)*100,2)&"%"&" / "&ROUND(L12*100,2)&"%",ROUND((L12-L21)*100,2)&"%") -> 15,5% / 15,6%
C14: Срок кредитования, мес.: | F14: 360 | T14: Платеж на период/после периода снижения, руб.: | W14: =IF(L19<>"на_весь_срок",TEXT(ROUND(P66,2),"0 0,00")&" ₽ / "&TEXT(ROUND(R68,2),"0 0,00")&" ₽",TEXT(ROUND(P66,2),"0 0,00")&" ₽") -> 149 386,00 ₽ / 150 259,64 ₽
C17: Справочно: | J17: Параметры по опции "Ставка ниже": | T17: Расчет выгоды клиента по варианту №1:
C19: Базовый платеж в мес., руб.: | F19: =ROUND(PMT(L12/12,F14-1,-(F8-F10)),0) -> 150,306 ₽ | J19: Срок снижения, мес.: | L19: 36 | N19: =IF(AND(OR($L$19=60,$L$19="на_весь_срок"),OR($L$8=Справочник!$J$11,$L$8=Справочник!$J$12,$L$8=Справочник!$J$13,$L$8=Справочник!$J$14,$L$8=Справочник!$J$15,$L$8=Справочник!$J$18)),"",IF(OR($L$8=Справочник!$J$16,$L$8=Справочник!$J$17,$L$8=Справочник!$J$19),"","Исправьте срок снижения!")) -> Исправьте срок снижения! | T19: Расчетное ПСК с учетом КВ (без учета страховки и прочего), %: | W19: ='ПСК вар.№1'!D2 -> 15.585% | X19: =IF(W19<VLOOKUP(L8,Справочник!J11:L20,3,0),"Ниже допустимого!","") -> 
C21: Сумма кредита базовая, руб.: | F21: =F8-F10 -> 11,450,000 ₽ | J21: Размер снижения ставки, %: | L21: 0.10% | N21: =IF((L12-L21)<=0,"Нужен меньший размер скидки!","") ->  | T21: Переплата без субсидирования, руб.: | W21: =T66 -> 42,461,787.34 ₽
J23: Отсрочка уплаты КВ, мес.: | L23: Без отсрочки | N23: Застройщик не на ПФ | T23: Переплата с субсидированием, руб.: | W23: =T70 -> 42,554,875.24 ₽
J25: Как изменяется размер ПВ: | L25: Сохраняется базовая сумма ПВ | T25: Разница в переплате, руб.: | W25: =W21-W23 -> -93,087.90 ₽
L27: Вариант расчета комиссии | P27: от_суммы_кредита | T27: Итоговая выгода клиента, руб.: | W27: =W25-W10 -> -115,987.90 ₽
T30: Вариант расчета №2 (КВ за снижение ставки в стоимости квартиры):
T32: Стоимость квартиры (с учетом КВ), руб.: | W32: =IF(L25=Справочник!H22,ROUND((F8-F10)/(1-W8)+F10,2),ROUND((F8-F10)/(1-W8+F12*W8)/(1-W36),2)) -> 14,472,945.89 ₽
T34: =T10 -> КВ за снижение ставки, руб.: | W34: =ROUND(W40*W8,2) -> 22,945.89 ₽
T36: ПВ (c учетом субсидирования), %: | W36: =IF(L25=Справочник!H22,F10/W32,F12) -> 20.73%
T38: ПВ (c учетом субсидирования), руб: | W38: =IF(L25=Справочник!H22,F10,ROUND(W32*F12,2)) -> 3,000,000.00 ₽
C40: ЕСЛИ(ИЛИ($L$8=Справочник!$J$16;$L$8=Справочник!$J$17;$L$8=Справочник!$J$19);Справочник!$H$11:$H$18;Справочник!$H$19:$H$20) | T40: Размер кредита, руб.: | W40: =W32-W38 -> 11,472,945.89 ₽
T42: Ставка на период/после периода снижения, %: | W42: =IF(L19<>"на_весь_срок",ROUND((L12-L21)*100,2)&"%"&" / "&ROUND(L12*100,2)&"%",ROUND((L12-L21)*100,2)&"%") -> 15,5% / 15,6%
T44: Платеж на период/после периода снижения, руб.: | W44: =IF(L19<>"на_весь_срок",TEXT(ROUND('Со снижением (партнер 2)'!D5,2),"0 0,00")&" ₽ / "&TEXT(ROUND('Со снижением (партнер 2)'!D8,2),"0 0,00")&" ₽",TEXT(ROUND('Со снижением (партнер 2)'!D5,2),"0 0,00")&" ₽") -> 149 686,00 ₽ / 150 560,41 ₽
T46: Расчет выгоды клиента по варианту №2:
T48: Расчетное ПСК (без учета КВ, страховки и прочего), %: | W48: ='ПСК вар.№2'!D2 -> 15.766% | X48: =IF(W48<VLOOKUP(L8,Справочник!J11:L20,3,0),"Ниже допустимого!","") -> 
T50: Переплата без субсидирования, руб.: | W50: =W21 -> 42,461,787.34 ₽
T52: Переплата с субсидированием, руб.: | W52: ='Со снижением (партнер 2)'!$D$13 -> 42,640,017.02 ₽
T54: Итоговая выгода клиента, руб.: | W54: =W50-W52 -> -178,229.68 ₽
L56: Условия опции "Ставка ниже" | T56: Итоговая выгода клиента, руб.: | W56: =W54-W34 -> -201,175.57 ₽
L57: Цена недвижимости | N57: Первоначальный взнос | P57: Первоначальный взнос, % цены недвижимости
L58: =$F$8 -> 14,450,000.00 ₽ | N58: =$F$10 -> 3,000,000.00 ₽ | P58: =1-SubsCredSumm/$L$58 -> 20.76%
R59: Сумма кредита
L60: Стандартные условия (без применения опции) | R60: =$L$58-$N$58 -> 11,450,000.00 ₽
L61: Ставка по кредиту | P61: Ежемесячный платеж | T61: Срок кредита
L62: =$L$12 -> 15.60% | P62: ='Без изменений (партнер)'!$D$5 -> 150,306.00 ₽ | T62: =$F$14 -> 360
L64: С использованием опции "Ставка ниже"
L65: ="Ставка "&(IF($L$19<>"на_весь_срок","на "&'Параметры (партнер)'!L19&" мес.","на весь срок кредита")) -> Ставка на 36 мес. | N65: Ставка после периода снижения | P65: ="Платеж "&(IF($L$19<>"на_весь_срок","на "&'Параметры (партнер)'!L19&" мес.","на весь срок кредита")) -> Платеж на 36 мес. | T65: Переплата за весь срок кредита
L66: =$L$12-$L$21 -> 15.50% | N66: =IF(L19="на_весь_срок","-",'Со снижением (партнер)'!$D$9) -> 15.60% | P66: ='Со снижением (партнер)'!$D$5 -> 149,386.00 ₽ | T66: ='Без изменений (партнер)'!$D$13 -> 42,461,787.34 ₽
L67: Снижение ставки на | N67: Снижение ставки после периода снижения | P67: Снижение платежа в период снижения ставки | R67: Платеж после периода снижения ставки
L68: =L62-L66 -> 0.10% | N68: =IFERROR(L62-N66,"-") -> 0.00% | P68: =P62-P66 -> 920.00 ₽ | R68: ='Со снижением (партнер)'!$D$8 -> 150,259.64 ₽
R69: Снижение платежа после периода снижения ставки | T69: Переплата за весь срок кредита
L70: Плата за снижение ставки | P70: =IF($P$71>=0,"Выгода клиента за весь срок кредита","Потери клиента за весь срок кредита") -> Потери клиента за весь срок кредита | R70: =IF($L$19="на_весь_срок","-",$P$62-$R$68) -> 46.36 ₽ | T70: ='Со снижением (партнер)'!$D$13 -> 42,554,875.24 ₽
L71: =$W$10 -> 22,900.00 ₽ | P71: =IFERROR($T$72-$L$71,"-") -> -115,987.90 ₽ | T71: Снижение переплаты за весь срок кредита
T72: ='Без изменений (партнер)'!$D$13-'Со снижением (партнер)'!$D$13 -> -93,087.90 ₽

Sheet ПСК вар.№1 (hidden)
A1: Даты | B1: Суммы, руб.
A2: ='Печать графика (партнер вар.№1)'!B19 -> 2023-08-31 | B2: =-'Печать графика (партнер вар.№1)'!M19 -> -11,450,000.00 | D2: =IRR(B2:B365)*12 -> 15.585%
A3: ='Печать графика (партнер вар.№1)'!B19 -> 2023-08-31 | B3: ='Параметры (партнер)'!W10*1 -> 22,900.00
A4: ='Печать графика (партнер вар.№1)'!B20 -> 2023-09-30 | B4: ='Печать графика (партнер вар.№1)'!G20 -> 295,255.86
A5: ='Печать графика (партнер вар.№1)'!B21 -> 2023-10-31 | B5: ='Печать графика (партнер вар.№1)'!G21 -> 149,386.00
A6: ='Печать графика (партнер вар.№1)'!B22 -> 2023-11-30 | B6: ='Печать графика (партнер вар.№1)'!G22 -> 149,386.00
A7: ='Печать графика (партнер вар.№1)'!B23 -> 2023-12-31 | B7: ='Печать графика (партнер вар.№1)'!G23 -> 149,386.00
A8: ='Печать графика (партнер вар.№1)'!B24 -> 2024-01-31 | B8: ='Печать графика (партнер вар.№1)'!G24 -> 149,386.00
A9: ='Печать графика (партнер вар.№1)'!B25 -> 2024-02-29 | B9: ='Печать графика (партнер вар.№1)'!G25 -> 149,386.00
A10: ='Печать графика (партнер вар.№1)'!B26 -> 2024-03-31 | B10: ='Печать графика (партнер вар.№1)'!G26 -> 149,386.00
A11: ='Печать графика (партнер вар.№1)'!B27 -> 2024-04-30 | B11: ='Печать графика (партнер вар.№1)'!G27 -> 149,386.00
A12: ='Печать графика (партнер вар.№1)'!B28 -> 2024-05-31 | B12: ='Печать графика (партнер вар.№1)'!G28 -> 149,386.00
A13: ='Печать графика (партнер вар.№1)'!B29 -> 2024-06-30 | B13: ='Печать графика (партнер вар.№1)'!G29 -> 149,386.00
A14: ='Печать графика (партнер вар.№1)'!B30 -> 2024-07-31 | B14: ='Печать графика (партнер вар.№1)'!G30 -> 149,386.00
A15: ='Печать графика (партнер вар.№1)'!B31 -> 2024-08-31 | B15: ='Печать графика (партнер вар.№1)'!G31 -> 149,386.00
A16: ='Печать графика (партнер вар.№1)'!B32 -> 2024-09-30 | B16: ='Печать графика (партнер вар.№1)'!G32 -> 149,386.00
A17: ='Печать графика (партнер вар.№1)'!B33 -> 2024-10-31 | B17: ='Печать графика (партнер вар.№1)'!G33 -> 149,386.00
A18: ='Печать графика (партнер вар.№1)'!B34 -> 2024-11-30 | B18: ='Печать графика (партнер вар.№1)'!G34 -> 149,386.00
A19: ='Печать графика (партнер вар.№1)'!B35 -> 2024-12-31 | B19: ='Печать графика (партнер вар.№1)'!G35 -> 149,386.00
A20: ='Печать графика (партнер вар.№1)'!B36 -> 2025-01-31 | B20: ='Печать графика (партнер вар.№1)'!G36 -> 149,386.00
A21: ='Печать графика (партнер вар.№1)'!B37 -> 2025-02-28 | B21: ='Печать графика (партнер вар.№1)'!G37 -> 149,386.00
A22: ='Печать графика (партнер вар.№1)'!B38 -> 2025-03-31 | B22: ='Печать графика (партнер вар.№1)'!G38 -> 149,386.00
A23: ='Печать графика (партнер вар.№1)'!B39 -> 2025-04-30 | B23: ='Печать графика (партнер вар.№1)'!G39 -> 149,386.00
A24: ='Печать графика (партнер вар.№1)'!B40 -> 2025-05-31 | B24: ='Печать графика (партнер вар.№1)'!G40 -> 149,386.00
A25: ='Печать графика (партнер вар.№1)'!B41 -> 2025-06-30 | B25: ='Печать графика (партнер вар.№1)'!G41 -> 149,386.00
A26: ='Печать графика (партнер вар.№1)'!B42 -> 2025-07-31 | B26: ='Печать графика (партнер вар.№1)'!G42 -> 149,386.00
A27: ='Печать графика (партнер вар.№1)'!B43 -> 2025-08-31 | B27: ='Печать графика (партнер вар.№1)'!G43 -> 149,386.00
A28: ='Печать графика (партнер вар.№1)'!B44 -> 2025-09-30 | B28: ='Печать графика (партнер вар.№1)'!G44 -> 149,386.00
A29: ='Печать графика (партнер вар.№1)'!B45 -> 2025-10-31 | B29: ='Печать графика (партнер вар.№1)'!G45 -> 149,386.00
A30: ='Печать графика (партнер вар.№1)'!B46 -> 2025-11-30 | B30: ='Печать графика (партнер вар.№1)'!G46 -> 149,386.00
A31: ='Печать графика (партнер вар.№1)'!B47 -> 2025-12-31 | B31: ='Печать графика (партнер вар.№1)'!G47 -> 149,386.00
A32: ='Печать графика (партнер вар.№1)'!B48 -> 2026-01-31 | B32: ='Печать графика (партнер вар.№1)'!G48 -> 149,386.00
A33: ='Печать графика (партнер вар.№1)'!B49 -> 2026-02-28 | B33: ='Печать графика (партнер вар.№1)'!G49 -> 149,386.00
A34: ='Печать графика (партнер вар.№1)'!B50 -> 2026-03-31 | B34: ='Печать графика (партнер вар.№1)'!G50 -> 149,386.00
A35: ='Печать графика (партнер вар.№1)'!B51 -> 2026-04-30 | B35: ='Печать графика (партнер вар.№1)'!G51 -> 149,386.00
A36: ='Печать графика (партнер вар.№1)'!B52 -> 2026-05-31 | B36: ='Печать графика (партнер вар.№1)'!G52 -> 149,386.00
A37: ='Печать графика (партнер вар.№1)'!B53 -> 2026-06-30 | B37: ='Печать графика (партнер вар.№1)'!G53 -> 149,386.00
A38: ='Печать графика (партнер вар.№1)'!B54 -> 2026-07-31 | B38: ='Печать графика (партнер вар.№1)'!G54 -> 149,386.00
A39: ='Печать графика (партнер вар.№1)'!B55 -> 2026-08-31 | B39: ='Печать графика (партнер вар.№1)'!G55 -> 150,259.64
A40: ='Печать графика (партнер вар.№1)'!B56 -> 2026-09-30 | B40: ='Печать графика (партнер вар.№1)'!G56 -> 150,259.64
A41: ='Печать графика (партнер вар.№1)'!B57 -> 2026-10-31 | B41: ='Печать графика (партнер вар.№1)'!G57 -> 150,259.64
A42: ='Печать графика (партнер вар.№1)'!B58 -> 2026-11-30 | B42: ='Печать графика (партнер вар.№1)'!G58 -> 150,259.64
A43: ='Печать графика (партнер вар.№1)'!B59 -> 2026-12-31 | B43: ='Печать графика (партнер вар.№1)'!G59 -> 150,259.64
A44: ='Печать графика (партнер вар.№1)'!B60 -> 2027-01-31 | B44: ='Печать графика (партнер вар.№1)'!G60 -> 150,259.64
A45: ='Печать графика (партнер вар.№1)'!B61 -> 2027-02-28 | B45: ='Печать графика (партнер вар.№1)'!G61 -> 150,259.64
A46: ='Печать графика (партнер вар.№1)'!B62 -> 2027-03-31 | B46: ='Печать графика (партнер вар.№1)'!G62 -> 150,259.64
A47: ='Печать графика (партнер вар.№1)'!B63 -> 2027-04-30 | B47: ='Печать графика (партнер вар.№1)'!G63 -> 150,259.64
A48: ='Печать графика (партнер вар.№1)'!B64 -> 2027-05-31 | B48: ='Печать графика (партнер вар.№1)'!G64 -> 150,259.64
A49: ='Печать графика (партнер вар.№1)'!B65 -> 2027-06-30 | B49: ='Печать графика (партнер вар.№1)'!G65 -> 150,259.64
A50: ='Печать графика (партнер вар.№1)'!B66 -> 2027-07-31 | B50: ='Печать графика (партнер вар.№1)'!G66 -> 150,259.64
A51: ='Печать графика (партнер вар.№1)'!B67 -> 2027-08-31 | B51: ='Печать графика (партнер вар.№1)'!G67 -> 150,259.64
A52: ='Печать графика (партнер вар.№1)'!B68 -> 2027-09-30 | B52: ='Печать графика (партнер вар.№1)'!G68 -> 150,259.64
A53: ='Печать графика (партнер вар.№1)'!B69 -> 2027-10-31 | B53: ='Печать графика (партнер вар.№1)'!G69 -> 150,259.64
A54: ='Печать графика (партнер вар.№1)'!B70 -> 2027-11-30 | B54: ='Печать графика (партнер вар.№1)'!G70 -> 150,259.64
A55: ='Печать графика (партнер вар.№1)'!B71 -> 2027-12-31 | B55: ='Печать графика (партнер вар.№1)'!G71 -> 150,259.64
A56: ='Печать графика (партнер вар.№1)'!B72 -> 2028-01-31 | B56: ='Печать графика (партнер вар.№1)'!G72 -> 150,259.64
A57: ='Печать графика (партнер вар.№1)'!B73 -> 2028-02-29 | B57: ='Печать графика (партнер вар.№1)'!G73 -> 150,259.64
A58: ='Печать графика (партнер вар.№1)'!B74 -> 2028-03-31 | B58: ='Печать графика (партнер вар.№1)'!G74 -> 150,259.64
A59: ='Печать графика (партнер вар.№1)'!B75 -> 2028-04-30 | B59: ='Печать графика (партнер вар.№1)'!G75 -> 150,259.64
A60: ='Печать графика (партнер вар.№1)'!B76 -> 2028-05-31 | B60: ='Печать графика (партнер вар.№1)'!G76 -> 150,259.64
A61: ='Печать графика (партнер вар.№1)'!B77 -> 2028-06-30 | B61: ='Печать графика (партнер вар.№1)'!G77 -> 150,259.64
A62: ='Печать графика (партнер вар.№1)'!B78 -> 2028-07-31 | B62: ='Печать графика (партнер вар.№1)'!G78 -> 150,259.64
A63: ='Печать графика (партнер вар.№1)'!B79 -> 2028-08-31 | B63: ='Печать графика (партнер вар.№1)'!G79 -> 150,259.64
A64: ='Печать графика (партнер вар.№1)'!B80 -> 2028-09-30 | B64: ='Печать графика (партнер вар.№1)'!G80 -> 150,259.64
A65: ='Печать графика (партнер вар.№1)'!B81 -> 2028-10-31 | B65: ='Печать графика (партнер вар.№1)'!G81 -> 150,259.64
A66: ='Печать графика (партнер вар.№1)'!B82 -> 2028-11-30 | B66: ='Печать графика (партнер вар.№1)'!G82 -> 150,259.64
A67: ='Печать графика (партнер вар.№1)'!B83 -> 2028-12-31 | B67: ='Печать графика (партнер вар.№1)'!G83 -> 150,259.64
A68: ='Печать графика (партнер вар.№1)'!B84 -> 2029-01-31 | B68: ='Печать графика (партнер вар.№1)'!G84 -> 150,259.64
A69: ='Печать графика (партнер вар.№1)'!B85 -> 2029-02-28 | B69: ='Печать графика (партнер вар.№1)'!G85 -> 150,259.64
A70: ='Печать графика (партнер вар.№1)'!B86 -> 2029-03-31 | B70: ='Печать графика (партнер вар.№1)'!G86 -> 150,259.64
A71: ='Печать графика (партнер вар.№1)'!B87 -> 2029-04-30 | B71: ='Печать графика (партнер вар.№1)'!G87 -> 150,259.64
A72: ='Печать графика (партнер вар.№1)'!B88 -> 2029-05-31 | B72: ='Печать графика (партнер вар.№1)'!G88 -> 150,259.64
A73: ='Печать графика (партнер вар.№1)'!B89 -> 2029-06-30 | B73: ='Печать графика (партнер вар.№1)'!G89 -> 150,259.64
A74: ='Печать графика (партнер вар.№1)'!B90 -> 2029-07-31 | B74: ='Печать графика (партнер вар.№1)'!G90 -> 150,259.64
A75: ='Печать графика (партнер вар.№1)'!B91 -> 2029-08-31 | B75: ='Печать графика (партнер вар.№1)'!G91 -> 150,259.64
A76: ='Печать графика (партнер вар.№1)'!B92 -> 2029-09-30 | B76: ='Печать графика (партнер вар.№1)'!G92 -> 150,259.64
A77: ='Печать графика (партнер вар.№1)'!B93 -> 2029-10-31 | B77: ='Печать графика (партнер вар.№1)'!G93 -> 150,259.64
A78: ='Печать графика (партнер вар.№1)'!B94 -> 2029-11-30 | B78: ='Печать графика (партнер вар.№1)'!G94 -> 150,259.64
A79: ='Печать графика (партнер вар.№1)'!B95 -> 2029-12-31 | B79: ='Печать графика (партнер вар.№1)'!G95 -> 150,259.64
A80: ='Печать графика (партнер вар.№1)'!B96 -> 2030-01-31 | B80: ='Печать графика (партнер вар.№1)'!G96 -> 150,259.64
A81: ='Печать графика (партнер вар.№1)'!B97 -> 2030-02-28 | B81: ='Печать графика (партнер вар.№1)'!G97 -> 150,259.64
A82: ='Печать графика (партнер вар.№1)'!B98 -> 2030-03-31 | B82: ='Печать графика (партнер вар.№1)'!G98 -> 150,259.64
A83: ='Печать графика (партнер вар.№1)'!B99 -> 2030-04-30 | B83: ='Печать графика (партнер вар.№1)'!G99 -> 150,259.64
A84: ='Печать графика (партнер вар.№1)'!B100 -> 2030-05-31 | B84: ='Печать графика (партнер вар.№1)'!G100 -> 150,259.64
A85: ='Печать графика (партнер вар.№1)'!B101 -> 2030-06-30 | B85: ='Печать графика (партнер вар.№1)'!G101 -> 150,259.64
A86: ='Печать графика (партнер вар.№1)'!B102 -> 2030-07-31 | B86: ='Печать графика (партнер вар.№1)'!G102 -> 150,259.64
A87: ='Печать графика (партнер вар.№1)'!B103 -> 2030-08-31 | B87: ='Печать графика (партнер вар.№1)'!G103 -> 150,259.64
A88: ='Печать графика (партнер вар.№1)'!B104 -> 2030-09-30 | B88: ='Печать графика (партнер вар.№1)'!G104 -> 150,259.64
A89: ='Печать графика (партнер вар.№1)'!B105 -> 2030-10-31 | B89: ='Печать графика (партнер вар.№1)'!G105 -> 150,259.64
A90: ='Печать графика (партнер вар.№1)'!B106 -> 2030-11-30 | B90: ='Печать графика (партнер вар.№1)'!G106 -> 150,259.64
A91: ='Печать графика (партнер вар.№1)'!B107 -> 2030-12-31 | B91: ='Печать графика (партнер вар.№1)'!G107 -> 150,259.64
A92: ='Печать графика (партнер вар.№1)'!B108 -> 2031-01-31 | B92: ='Печать графика (партнер вар.№1)'!G108 -> 150,259.64
A93: ='Печать графика (партнер вар.№1)'!B109 -> 2031-02-28 | B93: ='Печать графика (партнер вар.№1)'!G109 -> 150,259.64
A94: ='Печать графика (партнер вар.№1)'!B110 -> 2031-03-31 | B94: ='Печать графика (партнер вар.№1)'!G110 -> 150,259.64
A95: ='Печать графика (партнер вар.№1)'!B111 -> 2031-04-30 | B95: ='Печать графика (партнер вар.№1)'!G111 -> 150,259.64
A96: ='Печать графика (партнер вар.№1)'!B112 -> 2031-05-31 | B96: ='Печать графика (партнер вар.№1)'!G112 -> 150,259.64
A97: ='Печать графика (партнер вар.№1)'!B113 -> 2031-06-30 | B97: ='Печать графика (партнер вар.№1)'!G113 -> 150,259.64
A98: ='Печать графика (партнер вар.№1)'!B114 -> 2031-07-31 | B98: ='Печать графика (партнер вар.№1)'!G114 -> 150,259.64
A99: ='Печать графика (партнер вар.№1)'!B115 -> 2031-08-31 | B99: ='Печать графика (партнер вар.№1)'!G115 -> 150,259.64
A100: ='Печать графика (партнер вар.№1)'!B116 -> 2031-09-30 | B100: ='Печать графика (партнер вар.№1)'!G116 -> 150,259.64
A101: ='Печать графика (партнер вар.№1)'!B117 -> 2031-10-31 | B101: ='Печать графика (партнер вар.№1)'!G117 -> 150,259.64
A102: ='Печать графика (партнер вар.№1)'!B118 -> 2031-11-30 | B102: ='Печать графика (партнер вар.№1)'!G118 -> 150,259.64
A103: ='Печать графика (партнер вар.№1)'!B119 -> 2031-12-31 | B103: ='Печать графика (партнер вар.№1)'!G119 -> 150,259.64
A104: ='Печать графика (партнер вар.№1)'!B120 -> 2032-01-31 | B104: ='Печать графика (партнер вар.№1)'!G120 -> 150,259.64
A105: ='Печать графика (партнер вар.№1)'!B121 -> 2032-02-29 | B105: ='Печать графика (партнер вар.№1)'!G121 -> 150,259.64
A106: ='Печать графика (партнер вар.№1)'!B122 -> 2032-03-31 | B106: ='Печать графика (партнер вар.№1)'!G122 -> 150,259.64
A107: ='Печать графика (партнер вар.№1)'!B123 -> 2032-04-30 | B107: ='Печать графика (партнер вар.№1)'!G123 -> 150,259.64
A108: ='Печать графика (партнер вар.№1)'!B124 -> 2032-05-31 | B108: ='Печать графика (партнер вар.№1)'!G124 -> 150,259.64
A109: ='Печать графика (партнер вар.№1)'!B125 -> 2032-06-30 | B109: ='Печать графика (партнер вар.№1)'!G125 -> 150,259.64
A110: ='Печать графика (партнер вар.№1)'!B126 -> 2032-07-31 | B110: ='Печать графика (партнер вар.№1)'!G126 -> 150,259.64
A111: ='Печать графика (партнер вар.№1)'!B127 -> 2032-08-31 | B111: ='Печать графика (партнер вар.№1)'!G127 -> 150,259.64
A112: ='Печать графика (партнер вар.№1)'!B128 -> 2032-09-30 | B112: ='Печать графика (партнер вар.№1)'!G128 -> 150,259.64
A113: ='Печать графика (партнер вар.№1)'!B129 -> 2032-10-31 | B113: ='Печать графика (партнер вар.№1)'!G129 -> 150,259.64
A114: ='Печать графика (партнер вар.№1)'!B130 -> 2032-11-30 | B114: ='Печать графика (партнер вар.№1)'!G130 -> 150,259.64
A115: ='Печать графика (партнер вар.№1)'!B131 -> 2032-12-31 | B115: ='Печать графика (партнер вар.№1)'!G131 -> 150,259.64
A116: ='Печать графика (партнер вар.№1)'!B132 -> 2033-01-31 | B116: ='Печать графика (партнер вар.№1)'!G132 -> 150,259.64
A117: ='Печать графика (партнер вар.№1)'!B133 -> 2033-02-28 | B117: ='Печать графика (партнер вар.№1)'!G133 -> 150,259.64
A118: ='Печать графика (партнер вар.№1)'!B134 -> 2033-03-31 | B118: ='Печать графика (партнер вар.№1)'!G134 -> 150,259.64
A119: ='Печать графика (партнер вар.№1)'!B135 -> 2033-04-30 | B119: ='Печать графика (партнер вар.№1)'!G135 -> 150,259.64
A120: ='Печать графика (партнер вар.№1)'!B136 -> 2033-05-31 | B120: ='Печать графика (партнер вар.№1)'!G136 -> 150,259.64
A121: ='Печать графика (партнер вар.№1)'!B137 -> 2033-06-30 | B121: ='Печать графика (партнер вар.№1)'!G137 -> 150,259.64
A122: ='Печать графика (партнер вар.№1)'!B138 -> 2033-07-31 | B122: ='Печать графика (партнер вар.№1)'!G138 -> 150,259.64
A123: ='Печать графика (партнер вар.№1)'!B139 -> 2033-08-31 | B123: ='Печать графика (партнер вар.№1)'!G139 -> 150,259.64
A124: ='Печать графика (партнер вар.№1)'!B140 -> 2033-09-30 | B124: ='Печать графика (партнер вар.№1)'!G140 -> 150,259.64
A125: ='Печать графика (партнер вар.№1)'!B141 -> 2033-10-31 | B125: ='Печать графика (партнер вар.№1)'!G141 -> 150,259.64
A126: ='Печать графика (партнер вар.№1)'!B142 -> 2033-11-30 | B126: ='Печать графика (партнер вар.№1)'!G142 -> 150,259.64
A127: ='Печать графика (партнер вар.№1)'!B143 -> 2033-12-31 | B127: ='Печать графика (партнер вар.№1)'!G143 -> 150,259.64
A128: ='Печать графика (партнер вар.№1)'!B144 -> 2034-01-31 | B128: ='Печать графика (партнер вар.№1)'!G144 -> 150,259.64
A129: ='Печать графика (партнер вар.№1)'!B145 -> 2034-02-28 | B129: ='Печать графика (партнер вар.№1)'!G145 -> 150,259.64
A130: ='Печать графика (партнер вар.№1)'!B146 -> 2034-03-31 | B130: ='Печать графика (партнер вар.№1)'!G146 -> 150,259.64
A131: ='Печать графика (партнер вар.№1)'!B147 -> 2034-04-30 | B131: ='Печать графика (партнер вар.№1)'!G147 -> 150,259.64
A132: ='Печать графика (партнер вар.№1)'!B148 -> 2034-05-31 | B132: ='Печать графика (партнер вар.№1)'!G148 -> 150,259.64
A133: ='Печать графика (партнер вар.№1)'!B149 -> 2034-06-30 | B133: ='Печать графика (партнер вар.№1)'!G149 -> 150,259.64
A134: ='Печать графика (партнер вар.№1)'!B150 -> 2034-07-31 | B134: ='Печать графика (партнер вар.№1)'!G150 -> 150,259.64
A135: ='Печать графика (партнер вар.№1)'!B151 -> 2034-08-31 | B135: ='Печать графика (партнер вар.№1)'!G151 -> 150,259.64
A136: ='Печать графика (партнер вар.№1)'!B152 -> 2034-09-30 | B136: ='Печать графика (партнер вар.№1)'!G152 -> 150,259.64
A137: ='Печать графика (партнер вар.№1)'!B153 -> 2034-10-31 | B137: ='Печать графика (партнер вар.№1)'!G153 -> 150,259.64
A138: ='Печать графика (партнер вар.№1)'!B154 -> 2034-11-30 | B138: ='Печать графика (партнер вар.№1)'!G154 -> 150,259.64
A139: ='Печать графика (партнер вар.№1)'!B155 -> 2034-12-31 | B139: ='Печать графика (партнер вар.№1)'!G155 -> 150,259.64
A140: ='Печать графика (партнер вар.№1)'!B156 -> 2035-01-31 | B140: ='Печать графика (партнер вар.№1)'!G156 -> 150,259.64
A141: ='Печать графика (партнер вар.№1)'!B157 -> 2035-02-28 | B141: ='Печать графика (партнер вар.№1)'!G157 -> 150,259.64
A142: ='Печать графика (партнер вар.№1)'!B158 -> 2035-03-31 | B142: ='Печать графика (партнер вар.№1)'!G158 -> 150,259.64
A143: ='Печать графика (партнер вар.№1)'!B159 -> 2035-04-30 | B143: ='Печать графика (партнер вар.№1)'!G159 -> 150,259.64
A144: ='Печать графика (партнер вар.№1)'!B160 -> 2035-05-31 | B144: ='Печать графика (партнер вар.№1)'!G160 -> 150,259.64
A145: ='Печать графика (партнер вар.№1)'!B161 -> 2035-06-30 | B145: ='Печать графика (партнер вар.№1)'!G161 -> 150,259.64
A146: ='Печать графика (партнер вар.№1)'!B162 -> 2035-07-31 | B146: ='Печать графика (партнер вар.№1)'!G162 -> 150,259.64
A147: ='Печать графика (партнер вар.№1)'!B163 -> 2035-08-31 | B147: ='Печать графика (партнер вар.№1)'!G163 -> 150,259.64
A148: ='Печать графика (партнер вар.№1)'!B164 -> 2035-09-30 | B148: ='Печать графика (партнер вар.№1)'!G164 -> 150,259.64
A149: ='Печать графика (партнер вар.№1)'!B165 -> 2035-10-31 | B149: ='Печать графика (партнер вар.№1)'!G165 -> 150,259.64
A150: ='Печать графика (партнер вар.№1)'!B166 -> 2035-11-30 | B150: ='Печать графика (партнер вар.№1)'!G166 -> 150,259.64
A151: ='Печать графика (партнер вар.№1)'!B167 -> 2035-12-31 | B151: ='Печать графика (партнер вар.№1)'!G167 -> 150,259.64
A152: ='Печать графика (партнер вар.№1)'!B168 -> 2036-01-31 | B152: ='Печать графика (партнер вар.№1)'!G168 -> 150,259.64
A153: ='Печать графика (партнер вар.№1)'!B169 -> 2036-02-29 | B153: ='Печать графика (партнер вар.№1)'!G169 -> 150,259.64
A154: ='Печать графика (партнер вар.№1)'!B170 -> 2036-03-31 | B154: ='Печать графика (партнер вар.№1)'!G170 -> 150,259.64
A155: ='Печать графика (партнер вар.№1)'!B171 -> 2036-04-30 | B155: ='Печать графика (партнер вар.№1)'!G171 -> 150,259.64
A156: ='Печать графика (партнер вар.№1)'!B172 -> 2036-05-31 | B156: ='Печать графика (партнер вар.№1)'!G172 -> 150,259.64
A157: ='Печать графика (партнер вар.№1)'!B173 -> 2036-06-30 | B157: ='Печать графика (партнер вар.№1)'!G173 -> 150,259.64
A158: ='Печать графика (партнер вар.№1)'!B174 -> 2036-07-31 | B158: ='Печать графика (партнер вар.№1)'!G174 -> 150,259.64
A159: ='Печать графика (партнер вар.№1)'!B175 -> 2036-08-31 | B159: ='Печать графика (партнер вар.№1)'!G175 -> 150,259.64
A160: ='Печать графика (партнер вар.№1)'!B176 -> 2036-09-30 | B160: ='Печать графика (партнер вар.№1)'!G176 -> 150,259.64
A161: ='Печать графика (партнер вар.№1)'!B177 -> 2036-10-31 | B161: ='Печать графика (партнер вар.№1)'!G177 -> 150,259.64
A162: ='Печать графика (партнер вар.№1)'!B178 -> 2036-11-30 | B162: ='Печать графика (партнер вар.№1)'!G178 -> 150,259.64
A163: ='Печать графика (партнер вар.№1)'!B179 -> 2036-12-31 | B163: ='Печать графика (партнер вар.№1)'!G179 -> 150,259.64
A164: ='Печать графика (партнер вар.№1)'!B180 -> 2037-01-31 | B164: ='Печать графика (партнер вар.№1)'!G180 -> 150,259.64
A165: ='Печать графика (партнер вар.№1)'!B181 -> 2037-02-28 | B165: ='Печать графика (партнер вар.№1)'!G181 -> 150,259.64
A166: ='Печать графика (партнер вар.№1)'!B182 -> 2037-03-31 | B166: ='Печать графика (партнер вар.№1)'!G182 -> 150,259.64
A167: ='Печать графика (партнер вар.№1)'!B183 -> 2037-04-30 | B167: ='Печать графика (партнер вар.№1)'!G183 -> 150,259.64
A168: ='Печать графика (партнер вар.№1)'!B184 -> 2037-05-31 | B168: ='Печать графика (партнер вар.№1)'!G184 -> 150,259.64
A169: ='Печать графика (партнер вар.№1)'!B185 -> 2037-06-30 | B169: ='Печать графика (партнер вар.№1)'!G185 -> 150,259.64
A170: ='Печать графика (партнер вар.№1)'!B186 -> 2037-07-31 | B170: ='Печать графика (партнер вар.№1)'!G186 -> 150,259.64
A171: ='Печать графика (партнер вар.№1)'!B187 -> 2037-08-31 | B171: ='Печать графика (партнер вар.№1)'!G187 -> 150,259.64
A172: ='Печать графика (партнер вар.№1)'!B188 -> 2037-09-30 | B172: ='Печать графика (партнер вар.№1)'!G188 -> 150,259.64
A173: ='Печать графика (партнер вар.№1)'!B189 -> 2037-10-31 | B173: ='Печать графика (партнер вар.№1)'!G189 -> 150,259.64
A174: ='Печать графика (партнер вар.№1)'!B190 -> 2037-11-30 | B174: ='Печать графика (партнер вар.№1)'!G190 -> 150,259.64
A175: ='Печать графика (партнер вар.№1)'!B191 -> 2037-12-31 | B175: ='Печать графика (партнер вар.№1)'!G191 -> 150,259.64
A176: ='Печать графика (партнер вар.№1)'!B192 -> 2038-01-31 | B176: ='Печать графика (партнер вар.№1)'!G192 -> 150,259.64
A177: ='Печать графика (партнер вар.№1)'!B193 -> 2038-02-28 | B177: ='Печать графика (партнер вар.№1)'!G193 -> 150,259.64
A178: ='Печать графика (партнер вар.№1)'!B194 -> 2038-03-31 | B178: ='Печать графика (партнер вар.№1)'!G194 -> 150,259.64
A179: ='Печать графика (партнер вар.№1)'!B195 -> 2038-04-30 | B179: ='Печать графика (партнер вар.№1)'!G195 -> 150,259.64
A180: ='Печать графика (партнер вар.№1)'!B196 -> 2038-05-31 | B180: ='Печать графика (партнер вар.№1)'!G196 -> 150,259.64
A181: ='Печать графика (партнер вар.№1)'!B197 -> 2038-06-30 | B181: ='Печать графика (партнер вар.№1)'!G197 -> 150,259.64
A182: ='Печать графика (партнер вар.№1)'!B198 -> 2038-07-31 | B182: ='Печать графика (партнер вар.№1)'!G198 -> 150,259.64
A183: ='Печать графика (партнер вар.№1)'!B199 -> 2038-08-31 | B183: ='Печать графика (партнер вар.№1)'!G199 -> 150,259.64
A184: ='Печать графика (партнер вар.№1)'!B200 -> 2038-09-30 | B184: ='Печать графика (партнер вар.№1)'!G200 -> 150,259.64
A185: ='Печать графика (партнер вар.№1)'!B201 -> 2038-10-31 | B185: ='Печать графика (партнер вар.№1)'!G201 -> 150,259.64
A186: ='Печать графика (партнер вар.№1)'!B202 -> 2038-11-30 | B186: ='Печать графика (партнер вар.№1)'!G202 -> 150,259.64
A187: ='Печать графика (партнер вар.№1)'!B203 -> 2038-12-31 | B187: ='Печать графика (партнер вар.№1)'!G203 -> 150,259.64
A188: ='Печать графика (партнер вар.№1)'!B204 -> 2039-01-31 | B188: ='Печать графика (партнер вар.№1)'!G204 -> 150,259.64
A189: ='Печать графика (партнер вар.№1)'!B205 -> 2039-02-28 | B189: ='Печать графика (партнер вар.№1)'!G205 -> 150,259.64
A190: ='Печать графика (партнер вар.№1)'!B206 -> 2039-03-31 | B190: ='Печать графика (партнер вар.№1)'!G206 -> 150,259.64
A191: ='Печать графика (партнер вар.№1)'!B207 -> 2039-04-30 | B191: ='Печать графика (партнер вар.№1)'!G207 -> 150,259.64
A192: ='Печать графика (партнер вар.№1)'!B208 -> 2039-05-31 | B192: ='Печать графика (партнер вар.№1)'!G208 -> 150,259.64
A193: ='Печать графика (партнер вар.№1)'!B209 -> 2039-06-30 | B193: ='Печать графика (партнер вар.№1)'!G209 -> 150,259.64
A194: ='Печать графика (партнер вар.№1)'!B210 -> 2039-07-31 | B194: ='Печать графика (партнер вар.№1)'!G210 -> 150,259.64
A195: ='Печать графика (партнер вар.№1)'!B211 -> 2039-08-31 | B195: ='Печать графика (партнер вар.№1)'!G211 -> 150,259.64
A196: ='Печать графика (партнер вар.№1)'!B212 -> 2039-09-30 | B196: ='Печать графика (партнер вар.№1)'!G212 -> 150,259.64
A197: ='Печать графика (партнер вар.№1)'!B213 -> 2039-10-31 | B197: ='Печать графика (партнер вар.№1)'!G213 -> 150,259.64
A198: ='Печать графика (партнер вар.№1)'!B214 -> 2039-11-30 | B198: ='Печать графика (партнер вар.№1)'!G214 -> 150,259.64
A199: ='Печать графика (партнер вар.№1)'!B215 -> 2039-12-31 | B199: ='Печать графика (партнер вар.№1)'!G215 -> 150,259.64
A200: ='Печать графика (партнер вар.№1)'!B216 -> 2040-01-31 | B200: ='Печать графика (партнер вар.№1)'!G216 -> 150,259.64
... 165 more rows

Sheet ПСК вар.№2 (hidden)
A1: Даты | B1: Суммы, руб.
A2: ='Печать графика (партнер вар.№2)'!B19 -> 2023-08-31 | B2: =-'Печать графика (партнер вар.№2)'!M19 -> -11,472,945.89 | D2: =IRR(B2:B365)*12 -> 15.766%
A3: ='Печать графика (партнер вар.№2)'!B20 -> 2023-09-30 | B3: ='Печать графика (партнер вар.№2)'!G20 -> 295,848.19
A4: ='Печать графика (партнер вар.№2)'!B21 -> 2023-10-31 | B4: ='Печать графика (партнер вар.№2)'!G21 -> 149,686.00
A5: ='Печать графика (партнер вар.№2)'!B22 -> 2023-11-30 | B5: ='Печать графика (партнер вар.№2)'!G22 -> 149,686.00
A6: ='Печать графика (партнер вар.№2)'!B23 -> 2023-12-31 | B6: ='Печать графика (партнер вар.№2)'!G23 -> 149,686.00
A7: ='Печать графика (партнер вар.№2)'!B24 -> 2024-01-31 | B7: ='Печать графика (партнер вар.№2)'!G24 -> 149,686.00
A8: ='Печать графика (партнер вар.№2)'!B25 -> 2024-02-29 | B8: ='Печать графика (партнер вар.№2)'!G25 -> 149,686.00
A9: ='Печать графика (партнер вар.№2)'!B26 -> 2024-03-31 | B9: ='Печать графика (партнер вар.№2)'!G26 -> 149,686.00
A10: ='Печать графика (партнер вар.№2)'!B27 -> 2024-04-30 | B10: ='Печать графика (партнер вар.№2)'!G27 -> 149,686.00
A11: ='Печать графика (партнер вар.№2)'!B28 -> 2024-05-31 | B11: ='Печать графика (партнер вар.№2)'!G28 -> 149,686.00
A12: ='Печать графика (партнер вар.№2)'!B29 -> 2024-06-30 | B12: ='Печать графика (партнер вар.№2)'!G29 -> 149,686.00
A13: ='Печать графика (партнер вар.№2)'!B30 -> 2024-07-31 | B13: ='Печать графика (партнер вар.№2)'!G30 -> 149,686.00
A14: ='Печать графика (партнер вар.№2)'!B31 -> 2024-08-31 | B14: ='Печать графика (партнер вар.№2)'!G31 -> 149,686.00
A15: ='Печать графика (партнер вар.№2)'!B32 -> 2024-09-30 | B15: ='Печать графика (партнер вар.№2)'!G32 -> 149,686.00
A16: ='Печать графика (партнер вар.№2)'!B33 -> 2024-10-31 | B16: ='Печать графика (партнер вар.№2)'!G33 -> 149,686.00
A17: ='Печать графика (партнер вар.№2)'!B34 -> 2024-11-30 | B17: ='Печать графика (партнер вар.№2)'!G34 -> 149,686.00
A18: ='Печать графика (партнер вар.№2)'!B35 -> 2024-12-31 | B18: ='Печать графика (партнер вар.№2)'!G35 -> 149,686.00
A19: ='Печать графика (партнер вар.№2)'!B36 -> 2025-01-31 | B19: ='Печать графика (партнер вар.№2)'!G36 -> 149,686.00
A20: ='Печать графика (партнер вар.№2)'!B37 -> 2025-02-28 | B20: ='Печать графика (партнер вар.№2)'!G37 -> 149,686.00
A21: ='Печать графика (партнер вар.№2)'!B38 -> 2025-03-31 | B21: ='Печать графика (партнер вар.№2)'!G38 -> 149,686.00
A22: ='Печать графика (партнер вар.№2)'!B39 -> 2025-04-30 | B22: ='Печать графика (партнер вар.№2)'!G39 -> 149,686.00
A23: ='Печать графика (партнер вар.№2)'!B40 -> 2025-05-31 | B23: ='Печать графика (партнер вар.№2)'!G40 -> 149,686.00
A24: ='Печать графика (партнер вар.№2)'!B41 -> 2025-06-30 | B24: ='Печать графика (партнер вар.№2)'!G41 -> 149,686.00
A25: ='Печать графика (партнер вар.№2)'!B42 -> 2025-07-31 | B25: ='Печать графика (партнер вар.№2)'!G42 -> 149,686.00
A26: ='Печать графика (партнер вар.№2)'!B43 -> 2025-08-31 | B26: ='Печать графика (партнер вар.№2)'!G43 -> 149,686.00
A27: ='Печать графика (партнер вар.№2)'!B44 -> 2025-09-30 | B27: ='Печать графика (партнер вар.№2)'!G44 -> 149,686.00
A28: ='Печать графика (партнер вар.№2)'!B45 -> 2025-10-31 | B28: ='Печать графика (партнер вар.№2)'!G45 -> 149,686.00
A29: ='Печать графика (партнер вар.№2)'!B46 -> 2025-11-30 | B29: ='Печать графика (партнер вар.№2)'!G46 -> 149,686.00
A30: ='Печать графика (партнер вар.№2)'!B47 -> 2025-12-31 | B30: ='Печать графика (партнер вар.№2)'!G47 -> 149,686.00
A31: ='Печать графика (партнер вар.№2)'!B48 -> 2026-01-31 | B31: ='Печать графика (партнер вар.№2)'!G48 -> 149,686.00
A32: ='Печать графика (партнер вар.№2)'!B49 -> 2026-02-28 | B32: ='Печать графика (партнер вар.№2)'!G49 -> 149,686.00
A33: ='Печать графика (партнер вар.№2)'!B50 -> 2026-03-31 | B33: ='Печать графика (партнер вар.№2)'!G50 -> 149,686.00
A34: ='Печать графика (партнер вар.№2)'!B51 -> 2026-04-30 | B34: ='Печать графика (партнер вар.№2)'!G51 -> 149,686.00
A35: ='Печать графика (партнер вар.№2)'!B52 -> 2026-05-31 | B35: ='Печать графика (партнер вар.№2)'!G52 -> 149,686.00
A36: ='Печать графика (партнер вар.№2)'!B53 -> 2026-06-30 | B36: ='Печать графика (партнер вар.№2)'!G53 -> 149,686.00
A37: ='Печать графика (партнер вар.№2)'!B54 -> 2026-07-31 | B37: ='Печать графика (партнер вар.№2)'!G54 -> 149,686.00
A38: ='Печать графика (партнер вар.№2)'!B55 -> 2026-08-31 | B38: ='Печать графика (партнер вар.№2)'!G55 -> 150,560.41
A39: ='Печать графика (партнер вар.№2)'!B56 -> 2026-09-30 | B39: ='Печать графика (партнер вар.№2)'!G56 -> 150,560.41
A40: ='Печать графика (партнер вар.№2)'!B57 -> 2026-10-31 | B40: ='Печать графика (партнер вар.№2)'!G57 -> 150,560.41
A41: ='Печать графика (партнер вар.№2)'!B58 -> 2026-11-30 | B41: ='Печать графика (партнер вар.№2)'!G58 -> 150,560.41
A42: ='Печать графика (партнер вар.№2)'!B59 -> 2026-12-31 | B42: ='Печать графика (партнер вар.№2)'!G59 -> 150,560.41
A43: ='Печать графика (партнер вар.№2)'!B60 -> 2027-01-31 | B43: ='Печать графика (партнер вар.№2)'!G60 -> 150,560.41
A44: ='Печать графика (партнер вар.№2)'!B61 -> 2027-02-28 | B44: ='Печать графика (партнер вар.№2)'!G61 -> 150,560.41
A45: ='Печать графика (партнер вар.№2)'!B62 -> 2027-03-31 | B45: ='Печать графика (партнер вар.№2)'!G62 -> 150,560.41
A46: ='Печать графика (партнер вар.№2)'!B63 -> 2027-04-30 | B46: ='Печать графика (партнер вар.№2)'!G63 -> 150,560.41
A47: ='Печать графика (партнер вар.№2)'!B64 -> 2027-05-31 | B47: ='Печать графика (партнер вар.№2)'!G64 -> 150,560.41
A48: ='Печать графика (партнер вар.№2)'!B65 -> 2027-06-30 | B48: ='Печать графика (партнер вар.№2)'!G65 -> 150,560.41
A49: ='Печать графика (партнер вар.№2)'!B66 -> 2027-07-31 | B49: ='Печать графика (партнер вар.№2)'!G66 -> 150,560.41
A50: ='Печать графика (партнер вар.№2)'!B67 -> 2027-08-31 | B50: ='Печать графика (партнер вар.№2)'!G67 -> 150,560.41
A51: ='Печать графика (партнер вар.№2)'!B68 -> 2027-09-30 | B51: ='Печать графика (партнер вар.№2)'!G68 -> 150,560.41
A52: ='Печать графика (партнер вар.№2)'!B69 -> 2027-10-31 | B52: ='Печать графика (партнер вар.№2)'!G69 -> 150,560.41
A53: ='Печать графика (партнер вар.№2)'!B70 -> 2027-11-30 | B53: ='Печать графика (партнер вар.№2)'!G70 -> 150,560.41
A54: ='Печать графика (партнер вар.№2)'!B71 -> 2027-12-31 | B54: ='Печать графика (партнер вар.№2)'!G71 -> 150,560.41
A55: ='Печать графика (партнер вар.№2)'!B72 -> 2028-01-31 | B55: ='Печать графика (партнер вар.№2)'!G72 -> 150,560.41
A56: ='Печать графика (партнер вар.№2)'!B73 -> 2028-02-29 | B56: ='Печать графика (партнер вар.№2)'!G73 -> 150,560.41
A57: ='Печать графика (партнер вар.№2)'!B74 -> 2028-03-31 | B57: ='Печать графика (партнер вар.№2)'!G74 -> 150,560.41
A58: ='Печать графика (партнер вар.№2)'!B75 -> 2028-04-30 | B58: ='Печать графика (партнер вар.№2)'!G75 -> 150,560.41
A59: ='Печать графика (партнер вар.№2)'!B76 -> 2028-05-31 | B59: ='Печать графика (партнер вар.№2)'!G76 -> 150,560.41
A60: ='Печать графика (партнер вар.№2)'!B77 -> 2028-06-30 | B60: ='Печать графика (партнер вар.№2)'!G77 -> 150,560.41
A61: ='Печать графика (партнер вар.№2)'!B78 -> 2028-07-31 | B61: ='Печать графика (партнер вар.№2)'!G78 -> 150,560.41
A62: ='Печать графика (партнер вар.№2)'!B79 -> 2028-08-31 | B62: ='Печать графика (партнер вар.№2)'!G79 -> 150,560.41
A63: ='Печать графика (партнер вар.№2)'!B80 -> 2028-09-30 | B63: ='Печать графика (партнер вар.№2)'!G80 -> 150,560.41
A64: ='Печать графика (партнер вар.№2)'!B81 -> 2028-10-31 | B64: ='Печать графика (партнер вар.№2)'!G81 -> 150,560.41
A65: ='Печать графика (партнер вар.№2)'!B82 -> 2028-11-30 | B65: ='Печать графика (партнер вар.№2)'!G82 -> 150,560.41
A66: ='Печать графика (партнер вар.№2)'!B83 -> 2028-12-31 | B66: ='Печать графика (партнер вар.№2)'!G83 -> 150,560.41
A67: ='Печать графика (партнер вар.№2)'!B84 -> 2029-01-31 | B67: ='Печать графика (партнер вар.№2)'!G84 -> 150,560.41
A68: ='Печать графика (партнер вар.№2)'!B85 -> 2029-02-28 | B68: ='Печать графика (партнер вар.№2)'!G85 -> 150,560.41
A69: ='Печать графика (партнер вар.№2)'!B86 -> 2029-03-31 | B69: ='Печать графика (партнер вар.№2)'!G86 -> 150,560.41
A70: ='Печать графика (партнер вар.№2)'!B87 -> 2029-04-30 | B70: ='Печать графика (партнер вар.№2)'!G87 -> 150,560.41
A71: ='Печать графика (партнер вар.№2)'!B88 -> 2029-05-31 | B71: ='Печать графика (партнер вар.№2)'!G88 -> 150,560.41
A72: ='Печать графика (партнер вар.№2)'!B89 -> 2029-06-30 | B72: ='Печать графика (партнер вар.№2)'!G89 -> 150,560.41
A73: ='Печать графика (партнер вар.№2)'!B90 -> 2029-07-31 | B73: ='Печать графика (партнер вар.№2)'!G90 -> 150,560.41
A74: ='Печать графика (партнер вар.№2)'!B91 -> 2029-08-31 | B74: ='Печать графика (партнер вар.№2)'!G91 -> 150,560.41
A75: ='Печать графика (партнер вар.№2)'!B92 -> 2029-09-30 | B75: ='Печать графика (партнер вар.№2)'!G92 -> 150,560.41
A76: ='Печать графика (партнер вар.№2)'!B93 -> 2029-10-31 | B76: ='Печать графика (партнер вар.№2)'!G93 -> 150,560.41
A77: ='Печать графика (партнер вар.№2)'!B94 -> 2029-11-30 | B77: ='Печать графика (партнер вар.№2)'!G94 -> 150,560.41
A78: ='Печать графика (партнер вар.№2)'!B95 -> 2029-12-31 | B78: ='Печать графика (партнер вар.№2)'!G95 -> 150,560.41
A79: ='Печать графика (партнер вар.№2)'!B96 -> 2030-01-31 | B79: ='Печать графика (партнер вар.№2)'!G96 -> 150,560.41
A80: ='Печать графика (партнер вар.№2)'!B97 -> 2030-02-28 | B80: ='Печать графика (партнер вар.№2)'!G97 -> 150,560.41
A81: ='Печать графика (партнер вар.№2)'!B98 -> 2030-03-31 | B81: ='Печать графика (партнер вар.№2)'!G98 -> 150,560.41
A82: ='Печать графика (партнер вар.№2)'!B99 -> 2030-04-30 | B82: ='Печать графика (партнер вар.№2)'!G99 -> 150,560.41
A83: ='Печать графика (партнер вар.№2)'!B100 -> 2030-05-31 | B83: ='Печать графика (партнер вар.№2)'!G100 -> 150,560.41
A84: ='Печать графика (партнер вар.№2)'!B101 -> 2030-06-30 | B84: ='Печать графика (партнер вар.№2)'!G101 -> 150,560.41
A85: ='Печать графика (партнер вар.№2)'!B102 -> 2030-07-31 | B85: ='Печать графика (партнер вар.№2)'!G102 -> 150,560.41
A86: ='Печать графика (партнер вар.№2)'!B103 -> 2030-08-31 | B86: ='Печать графика (партнер вар.№2)'!G103 -> 150,560.41
A87: ='Печать графика (партнер вар.№2)'!B104 -> 2030-09-30 | B87: ='Печать графика (партнер вар.№2)'!G104 -> 150,560.41
A88: ='Печать графика (партнер вар.№2)'!B105 -> 2030-10-31 | B88: ='Печать графика (партнер вар.№2)'!G105 -> 150,560.41
A89: ='Печать графика (партнер вар.№2)'!B106 -> 2030-11-30 | B89: ='Печать графика (партнер вар.№2)'!G106 -> 150,560.41
A90: ='Печать графика (партнер вар.№2)'!B107 -> 2030-12-31 | B90: ='Печать графика (партнер вар.№2)'!G107 -> 150,560.41
A91: ='Печать графика (партнер вар.№2)'!B108 -> 2031-01-31 | B91: ='Печать графика (партнер вар.№2)'!G108 -> 150,560.41
A92: ='Печать графика (партнер вар.№2)'!B109 -> 2031-02-28 | B92: ='Печать графика (партнер вар.№2)'!G109 -> 150,560.41
A93: ='Печать графика (партнер вар.№2)'!B110 -> 2031-03-31 | B93: ='Печать графика (партнер вар.№2)'!G110 -> 150,560.41
A94: ='Печать графика (партнер вар.№2)'!B111 -> 2031-04-30 | B94: ='Печать графика (партнер вар.№2)'!G111 -> 150,560.41
A95: ='Печать графика (партнер вар.№2)'!B112 -> 2031-05-31 | B95: ='Печать графика (партнер вар.№2)'!G112 -> 150,560.41
A96: ='Печать графика (партнер вар.№2)'!B113 -> 2031-06-30 | B96: ='Печать графика (партнер вар.№2)'!G113 -> 150,560.41
A97: ='Печать графика (партнер вар.№2)'!B114 -> 2031-07-31 | B97: ='Печать графика (партнер вар.№2)'!G114 -> 150,560.41
A98: ='Печать графика (партнер вар.№2)'!B115 -> 2031-08-31 | B98: ='Печать графика (партнер вар.№2)'!G115 -> 150,560.41
A99: ='Печать графика (партнер вар.№2)'!B116 -> 2031-09-30 | B99: ='Печать графика (партнер вар.№2)'!G116 -> 150,560.41
A100: ='Печать графика (партнер вар.№2)'!B117 -> 2031-10-31 | B100: ='Печать графика (партнер вар.№2)'!G117 -> 150,560.41
A101: ='Печать графика (партнер вар.№2)'!B118 -> 2031-11-30 | B101: ='Печать графика (партнер вар.№2)'!G118 -> 150,560.41
A102: ='Печать графика (партнер вар.№2)'!B119 -> 2031-12-31 | B102: ='Печать графика (партнер вар.№2)'!G119 -> 150,560.41
A103: ='Печать графика (партнер вар.№2)'!B120 -> 2032-01-31 | B103: ='Печать графика (партнер вар.№2)'!G120 -> 150,560.41
A104: ='Печать графика (партнер вар.№2)'!B121 -> 2032-02-29 | B104: ='Печать графика (партнер вар.№2)'!G121 -> 150,560.41
A105: ='Печать графика (партнер вар.№2)'!B122 -> 2032-03-31 | B105: ='Печать графика (партнер вар.№2)'!G122 -> 150,560.41
A106: ='Печать графика (партнер вар.№2)'!B123 -> 2032-04-30 | B106: ='Печать графика (партнер вар.№2)'!G123 -> 150,560.41
A107: ='Печать графика (партнер вар.№2)'!B124 -> 2032-05-31 | B107: ='Печать графика (партнер вар.№2)'!G124 -> 150,560.41
A108: ='Печать графика (партнер вар.№2)'!B125 -> 2032-06-30 | B108: ='Печать графика (партнер вар.№2)'!G125 -> 150,560.41
A109: ='Печать графика (партнер вар.№2)'!B126 -> 2032-07-31 | B109: ='Печать графика (партнер вар.№2)'!G126 -> 150,560.41
A110: ='Печать графика (партнер вар.№2)'!B127 -> 2032-08-31 | B110: ='Печать графика (партнер вар.№2)'!G127 -> 150,560.41
A111: ='Печать графика (партнер вар.№2)'!B128 -> 2032-09-30 | B111: ='Печать графика (партнер вар.№2)'!G128 -> 150,560.41
A112: ='Печать графика (партнер вар.№2)'!B129 -> 2032-10-31 | B112: ='Печать графика (партнер вар.№2)'!G129 -> 150,560.41
A113: ='Печать графика (партнер вар.№2)'!B130 -> 2032-11-30 | B113: ='Печать графика (партнер вар.№2)'!G130 -> 150,560.41
A114: ='Печать графика (партнер вар.№2)'!B131 -> 2032-12-31 | B114: ='Печать графика (партнер вар.№2)'!G131 -> 150,560.41
A115: ='Печать графика (партнер вар.№2)'!B132 -> 2033-01-31 | B115: ='Печать графика (партнер вар.№2)'!G132 -> 150,560.41
A116: ='Печать графика (партнер вар.№2)'!B133 -> 2033-02-28 | B116: ='Печать графика (партнер вар.№2)'!G133 -> 150,560.41
A117: ='Печать графика (партнер вар.№2)'!B134 -> 2033-03-31 | B117: ='Печать графика (партнер вар.№2)'!G134 -> 150,560.41
A118: ='Печать графика (партнер вар.№2)'!B135 -> 2033-04-30 | B118: ='Печать графика (партнер вар.№2)'!G135 -> 150,560.41
A119: ='Печать графика (партнер вар.№2)'!B136 -> 2033-05-31 | B119: ='Печать графика (партнер вар.№2)'!G136 -> 150,560.41
A120: ='Печать графика (партнер вар.№2)'!B137 -> 2033-06-30 | B120: ='Печать графика (партнер вар.№2)'!G137 -> 150,560.41
A121: ='Печать графика (партнер вар.№2)'!B138 -> 2033-07-31 | B121: ='Печать графика (партнер вар.№2)'!G138 -> 150,560.41
A122: ='Печать графика (партнер вар.№2)'!B139 -> 2033-08-31 | B122: ='Печать графика (партнер вар.№2)'!G139 -> 150,560.41
A123: ='Печать графика (партнер вар.№2)'!B140 -> 2033-09-30 | B123: ='Печать графика (партнер вар.№2)'!G140 -> 150,560.41
A124: ='Печать графика (партнер вар.№2)'!B141 -> 2033-10-31 | B124: ='Печать графика (партнер вар.№2)'!G141 -> 150,560.41
A125: ='Печать графика (партнер вар.№2)'!B142 -> 2033-11-30 | B125: ='Печать графика (партнер вар.№2)'!G142 -> 150,560.41
A126: ='Печать графика (партнер вар.№2)'!B143 -> 2033-12-31 | B126: ='Печать графика (партнер вар.№2)'!G143 -> 150,560.41
A127: ='Печать графика (партнер вар.№2)'!B144 -> 2034-01-31 | B127: ='Печать графика (партнер вар.№2)'!G144 -> 150,560.41
A128: ='Печать графика (партнер вар.№2)'!B145 -> 2034-02-28 | B128: ='Печать графика (партнер вар.№2)'!G145 -> 150,560.41
A129: ='Печать графика (партнер вар.№2)'!B146 -> 2034-03-31 | B129: ='Печать графика (партнер вар.№2)'!G146 -> 150,560.41
A130: ='Печать графика (партнер вар.№2)'!B147 -> 2034-04-30 | B130: ='Печать графика (партнер вар.№2)'!G147 -> 150,560.41
A131: ='Печать графика (партнер вар.№2)'!B148 -> 2034-05-31 | B131: ='Печать графика (партнер вар.№2)'!G148 -> 150,560.41
A132: ='Печать графика (партнер вар.№2)'!B149 -> 2034-06-30 | B132: ='Печать графика (партнер вар.№2)'!G149 -> 150,560.41
A133: ='Печать графика (партнер вар.№2)'!B150 -> 2034-07-31 | B133: ='Печать графика (партнер вар.№2)'!G150 -> 150,560.41
A134: ='Печать графика (партнер вар.№2)'!B151 -> 2034-08-31 | B134: ='Печать графика (партнер вар.№2)'!G151 -> 150,560.41
A135: ='Печать графика (партнер вар.№2)'!B152 -> 2034-09-30 | B135: ='Печать графика (партнер вар.№2)'!G152 -> 150,560.41
A136: ='Печать графика (партнер вар.№2)'!B153 -> 2034-10-31 | B136: ='Печать графика (партнер вар.№2)'!G153 -> 150,560.41
A137: ='Печать графика (партнер вар.№2)'!B154 -> 2034-11-30 | B137: ='Печать графика (партнер вар.№2)'!G154 -> 150,560.41
A138: ='Печать графика (партнер вар.№2)'!B155 -> 2034-12-31 | B138: ='Печать графика (партнер вар.№2)'!G155 -> 150,560.41
A139: ='Печать графика (партнер вар.№2)'!B156 -> 2035-01-31 | B139: ='Печать графика (партнер вар.№2)'!G156 -> 150,560.41
A140: ='Печать графика (партнер вар.№2)'!B157 -> 2035-02-28 | B140: ='Печать графика (партнер вар.№2)'!G157 -> 150,560.41
A141: ='Печать графика (партнер вар.№2)'!B158 -> 2035-03-31 | B141: ='Печать графика (партнер вар.№2)'!G158 -> 150,560.41
A142: ='Печать графика (партнер вар.№2)'!B159 -> 2035-04-30 | B142: ='Печать графика (партнер вар.№2)'!G159 -> 150,560.41
A143: ='Печать графика (партнер вар.№2)'!B160 -> 2035-05-31 | B143: ='Печать графика (партнер вар.№2)'!G160 -> 150,560.41
A144: ='Печать графика (партнер вар.№2)'!B161 -> 2035-06-30 | B144: ='Печать графика (партнер вар.№2)'!G161 -> 150,560.41
A145: ='Печать графика (партнер вар.№2)'!B162 -> 2035-07-31 | B145: ='Печать графика (партнер вар.№2)'!G162 -> 150,560.41
A146: ='Печать графика (партнер вар.№2)'!B163 -> 2035-08-31 | B146: ='Печать графика (партнер вар.№2)'!G163 -> 150,560.41
A147: ='Печать графика (партнер вар.№2)'!B164 -> 2035-09-30 | B147: ='Печать графика (партнер вар.№2)'!G164 -> 150,560.41
A148: ='Печать графика (партнер вар.№2)'!B165 -> 2035-10-31 | B148: ='Печать графика (партнер вар.№2)'!G165 -> 150,560.41
A149: ='Печать графика (партнер вар.№2)'!B166 -> 2035-11-30 | B149: ='Печать графика (партнер вар.№2)'!G166 -> 150,560.41
A150: ='Печать графика (партнер вар.№2)'!B167 -> 2035-12-31 | B150: ='Печать графика (партнер вар.№2)'!G167 -> 150,560.41
A151: ='Печать графика (партнер вар.№2)'!B168 -> 2036-01-31 | B151: ='Печать графика (партнер вар.№2)'!G168 -> 150,560.41
A152: ='Печать графика (партнер вар.№2)'!B169 -> 2036-02-29 | B152: ='Печать графика (партнер вар.№2)'!G169 -> 150,560.41
A153: ='Печать графика (партнер вар.№2)'!B170 -> 2036-03-31 | B153: ='Печать графика (партнер вар.№2)'!G170 -> 150,560.41
A154: ='Печать графика (партнер вар.№2)'!B171 -> 2036-04-30 | B154: ='Печать графика (партнер вар.№2)'!G171 -> 150,560.41
A155: ='Печать графика (партнер вар.№2)'!B172 -> 2036-05-31 | B155: ='Печать графика (партнер вар.№2)'!G172 -> 150,560.41
A156: ='Печать графика (партнер вар.№2)'!B173 -> 2036-06-30 | B156: ='Печать графика (партнер вар.№2)'!G173 -> 150,560.41
A157: ='Печать графика (партнер вар.№2)'!B174 -> 2036-07-31 | B157: ='Печать графика (партнер вар.№2)'!G174 -> 150,560.41
A158: ='Печать графика (партнер вар.№2)'!B175 -> 2036-08-31 | B158: ='Печать графика (партнер вар.№2)'!G175 -> 150,560.41
A159: ='Печать графика (партнер вар.№2)'!B176 -> 2036-09-30 | B159: ='Печать графика (партнер вар.№2)'!G176 -> 150,560.41
A160: ='Печать графика (партнер вар.№2)'!B177 -> 2036-10-31 | B160: ='Печать графика (партнер вар.№2)'!G177 -> 150,560.41
A161: ='Печать графика (партнер вар.№2)'!B178 -> 2036-11-30 | B161: ='Печать графика (партнер вар.№2)'!G178 -> 150,560.41
A162: ='Печать графика (партнер вар.№2)'!B179 -> 2036-12-31 | B162: ='Печать графика (партнер вар.№2)'!G179 -> 150,560.41
A163: ='Печать графика (партнер вар.№2)'!B180 -> 2037-01-31 | B163: ='Печать графика (партнер вар.№2)'!G180 -> 150,560.41
A164: ='Печать графика (партнер вар.№2)'!B181 -> 2037-02-28 | B164: ='Печать графика (партнер вар.№2)'!G181 -> 150,560.41
A165: ='Печать графика (партнер вар.№2)'!B182 -> 2037-03-31 | B165: ='Печать графика (партнер вар.№2)'!G182 -> 150,560.41
A166: ='Печать графика (партнер вар.№2)'!B183 -> 2037-04-30 | B166: ='Печать графика (партнер вар.№2)'!G183 -> 150,560.41
A167: ='Печать графика (партнер вар.№2)'!B184 -> 2037-05-31 | B167: ='Печать графика (партнер вар.№2)'!G184 -> 150,560.41
A168: ='Печать графика (партнер вар.№2)'!B185 -> 2037-06-30 | B168: ='Печать графика (партнер вар.№2)'!G185 -> 150,560.41
A169: ='Печать графика (партнер вар.№2)'!B186 -> 2037-07-31 | B169: ='Печать графика (партнер вар.№2)'!G186 -> 150,560.41
A170: ='Печать графика (партнер вар.№2)'!B187 -> 2037-08-31 | B170: ='Печать графика (партнер вар.№2)'!G187 -> 150,560.41
A171: ='Печать графика (партнер вар.№2)'!B188 -> 2037-09-30 | B171: ='Печать графика (партнер вар.№2)'!G188 -> 150,560.41
A172: ='Печать графика (партнер вар.№2)'!B189 -> 2037-10-31 | B172: ='Печать графика (партнер вар.№2)'!G189 -> 150,560.41
A173: ='Печать графика (партнер вар.№2)'!B190 -> 2037-11-30 | B173: ='Печать графика (партнер вар.№2)'!G190 -> 150,560.41
A174: ='Печать графика (партнер вар.№2)'!B191 -> 2037-12-31 | B174: ='Печать графика (партнер вар.№2)'!G191 -> 150,560.41
A175: ='Печать графика (партнер вар.№2)'!B192 -> 2038-01-31 | B175: ='Печать графика (партнер вар.№2)'!G192 -> 150,560.41
A176: ='Печать графика (партнер вар.№2)'!B193 -> 2038-02-28 | B176: ='Печать графика (партнер вар.№2)'!G193 -> 150,560.41
A177: ='Печать графика (партнер вар.№2)'!B194 -> 2038-03-31 | B177: ='Печать графика (партнер вар.№2)'!G194 -> 150,560.41
A178: ='Печать графика (партнер вар.№2)'!B195 -> 2038-04-30 | B178: ='Печать графика (партнер вар.№2)'!G195 -> 150,560.41
A179: ='Печать графика (партнер вар.№2)'!B196 -> 2038-05-31 | B179: ='Печать графика (партнер вар.№2)'!G196 -> 150,560.41
A180: ='Печать графика (партнер вар.№2)'!B197 -> 2038-06-30 | B180: ='Печать графика (партнер вар.№2)'!G197 -> 150,560.41
A181: ='Печать графика (партнер вар.№2)'!B198 -> 2038-07-31 | B181: ='Печать графика (партнер вар.№2)'!G198 -> 150,560.41
A182: ='Печать графика (партнер вар.№2)'!B199 -> 2038-08-31 | B182: ='Печать графика (партнер вар.№2)'!G199 -> 150,560.41
A183: ='Печать графика (партнер вар.№2)'!B200 -> 2038-09-30 | B183: ='Печать графика (партнер вар.№2)'!G200 -> 150,560.41
A184: ='Печать графика (партнер вар.№2)'!B201 -> 2038-10-31 | B184: ='Печать графика (партнер вар.№2)'!G201 -> 150,560.41
A185: ='Печать графика (партнер вар.№2)'!B202 -> 2038-11-30 | B185: ='Печать графика (партнер вар.№2)'!G202 -> 150,560.41
A186: ='Печать графика (партнер вар.№2)'!B203 -> 2038-12-31 | B186: ='Печать графика (партнер вар.№2)'!G203 -> 150,560.41
A187: ='Печать графика (партнер вар.№2)'!B204 -> 2039-01-31 | B187: ='Печать графика (партнер вар.№2)'!G204 -> 150,560.41
A188: ='Печать графика (партнер вар.№2)'!B205 -> 2039-02-28 | B188: ='Печать графика (партнер вар.№2)'!G205 -> 150,560.41
A189: ='Печать графика (партнер вар.№2)'!B206 -> 2039-03-31 | B189: ='Печать графика (партнер вар.№2)'!G206 -> 150,560.41
A190: ='Печать графика (партнер вар.№2)'!B207 -> 2039-04-30 | B190: ='Печать графика (партнер вар.№2)'!G207 -> 150,560.41
A191: ='Печать графика (партнер вар.№2)'!B208 -> 2039-05-31 | B191: ='Печать графика (партнер вар.№2)'!G208 -> 150,560.41
A192: ='Печать графика (партнер вар.№2)'!B209 -> 2039-06-30 | B192: ='Печать графика (партнер вар.№2)'!G209 -> 150,560.41
A193: ='Печать графика (партнер вар.№2)'!B210 -> 2039-07-31 | B193: ='Печать графика (партнер вар.№2)'!G210 -> 150,560.41
A194: ='Печать графика (партнер вар.№2)'!B211 -> 2039-08-31 | B194: ='Печать графика (партнер вар.№2)'!G211 -> 150,560.41
A195: ='Печать графика (партнер вар.№2)'!B212 -> 2039-09-30 | B195: ='Печать графика (партнер вар.№2)'!G212 -> 150,560.41
A196: ='Печать графика (партнер вар.№2)'!B213 -> 2039-10-31 | B196: ='Печать графика (партнер вар.№2)'!G213 -> 150,560.41
A197: ='Печать графика (партнер вар.№2)'!B214 -> 2039-11-30 | B197: ='Печать графика (партнер вар.№2)'!G214 -> 150,560.41
A198: ='Печать графика (партнер вар.№2)'!B215 -> 2039-12-31 | B198: ='Печать графика (партнер вар.№2)'!G215 -> 150,560.41
A199: ='Печать графика (партнер вар.№2)'!B216 -> 2040-01-31 | B199: ='Печать графика (партнер вар.№2)'!G216 -> 150,560.41
A200: ='Печать графика (партнер вар.№2)'!B217 -> 2040-02-29 | B200: ='Печать графика (партнер вар.№2)'!G217 -> 150,560.41
... 165 more rows

Sheet ПСК вар.№1 (2) (hidden)
A1: Даты | B1: Суммы, руб.
A2: ='Печать графика (партнер вар.№1)'!B19 -> 2023-08-31 | B2: =-'Печать графика (партнер вар.№1)'!M19 -> -11,450,000.00 | D2: =IRR(B2:B365)*12 -> 15.766%
A3: ='Печать графика (партнер вар.№1)'!B20 -> 2023-09-30 | B3: ='Печать графика (партнер вар.№1)'!G20 -> 295,255.86
A4: ='Печать графика (партнер вар.№1)'!B21 -> 2023-10-31 | B4: ='Печать графика (партнер вар.№1)'!G21 -> 149,386.00
A5: ='Печать графика (партнер вар.№1)'!B22 -> 2023-11-30 | B5: ='Печать графика (партнер вар.№1)'!G22 -> 149,386.00
A6: ='Печать графика (партнер вар.№1)'!B23 -> 2023-12-31 | B6: ='Печать графика (партнер вар.№1)'!G23 -> 149,386.00
A7: ='Печать графика (партнер вар.№1)'!B24 -> 2024-01-31 | B7: ='Печать графика (партнер вар.№1)'!G24 -> 149,386.00
A8: ='Печать графика (партнер вар.№1)'!B25 -> 2024-02-29 | B8: ='Печать графика (партнер вар.№1)'!G25 -> 149,386.00
A9: ='Печать графика (партнер вар.№1)'!B26 -> 2024-03-31 | B9: ='Печать графика (партнер вар.№1)'!G26 -> 149,386.00
A10: ='Печать графика (партнер вар.№1)'!B27 -> 2024-04-30 | B10: ='Печать графика (партнер вар.№1)'!G27 -> 149,386.00
A11: ='Печать графика (партнер вар.№1)'!B28 -> 2024-05-31 | B11: ='Печать графика (партнер вар.№1)'!G28 -> 149,386.00
A12: ='Печать графика (партнер вар.№1)'!B29 -> 2024-06-30 | B12: ='Печать графика (партнер вар.№1)'!G29 -> 149,386.00
A13: ='Печать графика (партнер вар.№1)'!B30 -> 2024-07-31 | B13: ='Печать графика (партнер вар.№1)'!G30 -> 149,386.00
A14: ='Печать графика (партнер вар.№1)'!B31 -> 2024-08-31 | B14: ='Печать графика (партнер вар.№1)'!G31 -> 149,386.00
A15: ='Печать графика (партнер вар.№1)'!B32 -> 2024-09-30 | B15: ='Печать графика (партнер вар.№1)'!G32 -> 149,386.00
A16: ='Печать графика (партнер вар.№1)'!B33 -> 2024-10-31 | B16: ='Печать графика (партнер вар.№1)'!G33 -> 149,386.00
A17: ='Печать графика (партнер вар.№1)'!B34 -> 2024-11-30 | B17: ='Печать графика (партнер вар.№1)'!G34 -> 149,386.00
A18: ='Печать графика (партнер вар.№1)'!B35 -> 2024-12-31 | B18: ='Печать графика (партнер вар.№1)'!G35 -> 149,386.00
A19: ='Печать графика (партнер вар.№1)'!B36 -> 2025-01-31 | B19: ='Печать графика (партнер вар.№1)'!G36 -> 149,386.00
A20: ='Печать графика (партнер вар.№1)'!B37 -> 2025-02-28 | B20: ='Печать графика (партнер вар.№1)'!G37 -> 149,386.00
A21: ='Печать графика (партнер вар.№1)'!B38 -> 2025-03-31 | B21: ='Печать графика (партнер вар.№1)'!G38 -> 149,386.00
A22: ='Печать графика (партнер вар.№1)'!B39 -> 2025-04-30 | B22: ='Печать графика (партнер вар.№1)'!G39 -> 149,386.00
A23: ='Печать графика (партнер вар.№1)'!B40 -> 2025-05-31 | B23: ='Печать графика (партнер вар.№1)'!G40 -> 149,386.00
A24: ='Печать графика (партнер вар.№1)'!B41 -> 2025-06-30 | B24: ='Печать графика (партнер вар.№1)'!G41 -> 149,386.00
A25: ='Печать графика (партнер вар.№1)'!B42 -> 2025-07-31 | B25: ='Печать графика (партнер вар.№1)'!G42 -> 149,386.00
A26: ='Печать графика (партнер вар.№1)'!B43 -> 2025-08-31 | B26: ='Печать графика (партнер вар.№1)'!G43 -> 149,386.00
A27: ='Печать графика (партнер вар.№1)'!B44 -> 2025-09-30 | B27: ='Печать графика (партнер вар.№1)'!G44 -> 149,386.00
A28: ='Печать графика (партнер вар.№1)'!B45 -> 2025-10-31 | B28: ='Печать графика (партнер вар.№1)'!G45 -> 149,386.00
A29: ='Печать графика (партнер вар.№1)'!B46 -> 2025-11-30 | B29: ='Печать графика (партнер вар.№1)'!G46 -> 149,386.00
A30: ='Печать графика (партнер вар.№1)'!B47 -> 2025-12-31 | B30: ='Печать графика (партнер вар.№1)'!G47 -> 149,386.00
A31: ='Печать графика (партнер вар.№1)'!B48 -> 2026-01-31 | B31: ='Печать графика (партнер вар.№1)'!G48 -> 149,386.00
A32: ='Печать графика (партнер вар.№1)'!B49 -> 2026-02-28 | B32: ='Печать графика (партнер вар.№1)'!G49 -> 149,386.00
A33: ='Печать графика (партнер вар.№1)'!B50 -> 2026-03-31 | B33: ='Печать графика (партнер вар.№1)'!G50 -> 149,386.00
A34: ='Печать графика (партнер вар.№1)'!B51 -> 2026-04-30 | B34: ='Печать графика (партнер вар.№1)'!G51 -> 149,386.00
A35: ='Печать графика (партнер вар.№1)'!B52 -> 2026-05-31 | B35: ='Печать графика (партнер вар.№1)'!G52 -> 149,386.00
A36: ='Печать графика (партнер вар.№1)'!B53 -> 2026-06-30 | B36: ='Печать графика (партнер вар.№1)'!G53 -> 149,386.00
A37: ='Печать графика (партнер вар.№1)'!B54 -> 2026-07-31 | B37: ='Печать графика (партнер вар.№1)'!G54 -> 149,386.00
A38: ='Печать графика (партнер вар.№1)'!B55 -> 2026-08-31 | B38: ='Печать графика (партнер вар.№1)'!G55 -> 150,259.64
A39: ='Печать графика (партнер вар.№1)'!B56 -> 2026-09-30 | B39: ='Печать графика (партнер вар.№1)'!G56 -> 150,259.64
A40: ='Печать графика (партнер вар.№1)'!B57 -> 2026-10-31 | B40: ='Печать графика (партнер вар.№1)'!G57 -> 150,259.64
A41: ='Печать графика (партнер вар.№1)'!B58 -> 2026-11-30 | B41: ='Печать графика (партнер вар.№1)'!G58 -> 150,259.64
A42: ='Печать графика (партнер вар.№1)'!B59 -> 2026-12-31 | B42: ='Печать графика (партнер вар.№1)'!G59 -> 150,259.64
A43: ='Печать графика (партнер вар.№1)'!B60 -> 2027-01-31 | B43: ='Печать графика (партнер вар.№1)'!G60 -> 150,259.64
A44: ='Печать графика (партнер вар.№1)'!B61 -> 2027-02-28 | B44: ='Печать графика (партнер вар.№1)'!G61 -> 150,259.64
A45: ='Печать графика (партнер вар.№1)'!B62 -> 2027-03-31 | B45: ='Печать графика (партнер вар.№1)'!G62 -> 150,259.64
A46: ='Печать графика (партнер вар.№1)'!B63 -> 2027-04-30 | B46: ='Печать графика (партнер вар.№1)'!G63 -> 150,259.64
A47: ='Печать графика (партнер вар.№1)'!B64 -> 2027-05-31 | B47: ='Печать графика (партнер вар.№1)'!G64 -> 150,259.64
A48: ='Печать графика (партнер вар.№1)'!B65 -> 2027-06-30 | B48: ='Печать графика (партнер вар.№1)'!G65 -> 150,259.64
A49: ='Печать графика (партнер вар.№1)'!B66 -> 2027-07-31 | B49: ='Печать графика (партнер вар.№1)'!G66 -> 150,259.64
A50: ='Печать графика (партнер вар.№1)'!B67 -> 2027-08-31 | B50: ='Печать графика (партнер вар.№1)'!G67 -> 150,259.64
A51: ='Печать графика (партнер вар.№1)'!B68 -> 2027-09-30 | B51: ='Печать графика (партнер вар.№1)'!G68 -> 150,259.64
A52: ='Печать графика (партнер вар.№1)'!B69 -> 2027-10-31 | B52: ='Печать графика (партнер вар.№1)'!G69 -> 150,259.64
A53: ='Печать графика (партнер вар.№1)'!B70 -> 2027-11-30 | B53: ='Печать графика (партнер вар.№1)'!G70 -> 150,259.64
A54: ='Печать графика (партнер вар.№1)'!B71 -> 2027-12-31 | B54: ='Печать графика (партнер вар.№1)'!G71 -> 150,259.64
A55: ='Печать графика (партнер вар.№1)'!B72 -> 2028-01-31 | B55: ='Печать графика (партнер вар.№1)'!G72 -> 150,259.64
A56: ='Печать графика (партнер вар.№1)'!B73 -> 2028-02-29 | B56: ='Печать графика (партнер вар.№1)'!G73 -> 150,259.64
A57: ='Печать графика (партнер вар.№1)'!B74 -> 2028-03-31 | B57: ='Печать графика (партнер вар.№1)'!G74 -> 150,259.64
A58: ='Печать графика (партнер вар.№1)'!B75 -> 2028-04-30 | B58: ='Печать графика (партнер вар.№1)'!G75 -> 150,259.64
A59: ='Печать графика (партнер вар.№1)'!B76 -> 2028-05-31 | B59: ='Печать графика (партнер вар.№1)'!G76 -> 150,259.64
A60: ='Печать графика (партнер вар.№1)'!B77 -> 2028-06-30 | B60: ='Печать графика (партнер вар.№1)'!G77 -> 150,259.64
A61: ='Печать графика (партнер вар.№1)'!B78 -> 2028-07-31 | B61: ='Печать графика (партнер вар.№1)'!G78 -> 150,259.64
A62: ='Печать графика (партнер вар.№1)'!B79 -> 2028-08-31 | B62: ='Печать графика (партнер вар.№1)'!G79 -> 150,259.64
A63: ='Печать графика (партнер вар.№1)'!B80 -> 2028-09-30 | B63: ='Печать графика (партнер вар.№1)'!G80 -> 150,259.64
A64: ='Печать графика (партнер вар.№1)'!B81 -> 2028-10-31 | B64: ='Печать графика (партнер вар.№1)'!G81 -> 150,259.64
A65: ='Печать графика (партнер вар.№1)'!B82 -> 2028-11-30 | B65: ='Печать графика (партнер вар.№1)'!G82 -> 150,259.64
A66: ='Печать графика (партнер вар.№1)'!B83 -> 2028-12-31 | B66: ='Печать графика (партнер вар.№1)'!G83 -> 150,259.64
A67: ='Печать графика (партнер вар.№1)'!B84 -> 2029-01-31 | B67: ='Печать графика (партнер вар.№1)'!G84 -> 150,259.64
A68: ='Печать графика (партнер вар.№1)'!B85 -> 2029-02-28 | B68: ='Печать графика (партнер вар.№1)'!G85 -> 150,259.64
A69: ='Печать графика (партнер вар.№1)'!B86 -> 2029-03-31 | B69: ='Печать графика (партнер вар.№1)'!G86 -> 150,259.64
A70: ='Печать графика (партнер вар.№1)'!B87 -> 2029-04-30 | B70: ='Печать графика (партнер вар.№1)'!G87 -> 150,259.64
A71: ='Печать графика (партнер вар.№1)'!B88 -> 2029-05-31 | B71: ='Печать графика (партнер вар.№1)'!G88 -> 150,259.64
A72: ='Печать графика (партнер вар.№1)'!B89 -> 2029-06-30 | B72: ='Печать графика (партнер вар.№1)'!G89 -> 150,259.64
A73: ='Печать графика (партнер вар.№1)'!B90 -> 2029-07-31 | B73: ='Печать графика (партнер вар.№1)'!G90 -> 150,259.64
A74: ='Печать графика (партнер вар.№1)'!B91 -> 2029-08-31 | B74: ='Печать графика (партнер вар.№1)'!G91 -> 150,259.64
A75: ='Печать графика (партнер вар.№1)'!B92 -> 2029-09-30 | B75: ='Печать графика (партнер вар.№1)'!G92 -> 150,259.64
A76: ='Печать графика (партнер вар.№1)'!B93 -> 2029-10-31 | B76: ='Печать графика (партнер вар.№1)'!G93 -> 150,259.64
A77: ='Печать графика (партнер вар.№1)'!B94 -> 2029-11-30 | B77: ='Печать графика (партнер вар.№1)'!G94 -> 150,259.64
A78: ='Печать графика (партнер вар.№1)'!B95 -> 2029-12-31 | B78: ='Печать графика (партнер вар.№1)'!G95 -> 150,259.64
A79: ='Печать графика (партнер вар.№1)'!B96 -> 2030-01-31 | B79: ='Печать графика (партнер вар.№1)'!G96 -> 150,259.64
A80: ='Печать графика (партнер вар.№1)'!B97 -> 2030-02-28 | B80: ='Печать графика (партнер вар.№1)'!G97 -> 150,259.64
A81: ='Печать графика (партнер вар.№1)'!B98 -> 2030-03-31 | B81: ='Печать графика (партнер вар.№1)'!G98 -> 150,259.64
A82: ='Печать графика (партнер вар.№1)'!B99 -> 2030-04-30 | B82: ='Печать графика (партнер вар.№1)'!G99 -> 150,259.64
A83: ='Печать графика (партнер вар.№1)'!B100 -> 2030-05-31 | B83: ='Печать графика (партнер вар.№1)'!G100 -> 150,259.64
A84: ='Печать графика (партнер вар.№1)'!B101 -> 2030-06-30 | B84: ='Печать графика (партнер вар.№1)'!G101 -> 150,259.64
A85: ='Печать графика (партнер вар.№1)'!B102 -> 2030-07-31 | B85: ='Печать графика (партнер вар.№1)'!G102 -> 150,259.64
A86: ='Печать графика (партнер вар.№1)'!B103 -> 2030-08-31 | B86: ='Печать графика (партнер вар.№1)'!G103 -> 150,259.64
A87: ='Печать графика (партнер вар.№1)'!B104 -> 2030-09-30 | B87: ='Печать графика (партнер вар.№1)'!G104 -> 150,259.64
A88: ='Печать графика (партнер вар.№1)'!B105 -> 2030-10-31 | B88: ='Печать графика (партнер вар.№1)'!G105 -> 150,259.64
A89: ='Печать графика (партнер вар.№1)'!B106 -> 2030-11-30 | B89: ='Печать графика (партнер вар.№1)'!G106 -> 150,259.64
A90: ='Печать графика (партнер вар.№1)'!B107 -> 2030-12-31 | B90: ='Печать графика (партнер вар.№1)'!G107 -> 150,259.64
A91: ='Печать графика (партнер вар.№1)'!B108 -> 2031-01-31 | B91: ='Печать графика (партнер вар.№1)'!G108 -> 150,259.64
A92: ='Печать графика (партнер вар.№1)'!B109 -> 2031-02-28 | B92: ='Печать графика (партнер вар.№1)'!G109 -> 150,259.64
A93: ='Печать графика (партнер вар.№1)'!B110 -> 2031-03-31 | B93: ='Печать графика (партнер вар.№1)'!G110 -> 150,259.64
A94: ='Печать графика (партнер вар.№1)'!B111 -> 2031-04-30 | B94: ='Печать графика (партнер вар.№1)'!G111 -> 150,259.64
A95: ='Печать графика (партнер вар.№1)'!B112 -> 2031-05-31 | B95: ='Печать графика (партнер вар.№1)'!G112 -> 150,259.64
A96: ='Печать графика (партнер вар.№1)'!B113 -> 2031-06-30 | B96: ='Печать графика (партнер вар.№1)'!G113 -> 150,259.64
A97: ='Печать графика (партнер вар.№1)'!B114 -> 2031-07-31 | B97: ='Печать графика (партнер вар.№1)'!G114 -> 150,259.64
A98: ='Печать графика (партнер вар.№1)'!B115 -> 2031-08-31 | B98: ='Печать графика (партнер вар.№1)'!G115 -> 150,259.64
A99: ='Печать графика (партнер вар.№1)'!B116 -> 2031-09-30 | B99: ='Печать графика (партнер вар.№1)'!G116 -> 150,259.64
A100: ='Печать графика (партнер вар.№1)'!B117 -> 2031-10-31 | B100: ='Печать графика (партнер вар.№1)'!G117 -> 150,259.64
A101: ='Печать графика (партнер вар.№1)'!B118 -> 2031-11-30 | B101: ='Печать графика (партнер вар.№1)'!G118 -> 150,259.64
A102: ='Печать графика (партнер вар.№1)'!B119 -> 2031-12-31 | B102: ='Печать графика (партнер вар.№1)'!G119 -> 150,259.64
A103: ='Печать графика (партнер вар.№1)'!B120 -> 2032-01-31 | B103: ='Печать графика (партнер вар.№1)'!G120 -> 150,259.64
A104: ='Печать графика (партнер вар.№1)'!B121 -> 2032-02-29 | B104: ='Печать графика (партнер вар.№1)'!G121 -> 150,259.64
A105: ='Печать графика (партнер вар.№1)'!B122 -> 2032-03-31 | B105: ='Печать графика (партнер вар.№1)'!G122 -> 150,259.64
A106: ='Печать графика (партнер вар.№1)'!B123 -> 2032-04-30 | B106: ='Печать графика (партнер вар.№1)'!G123 -> 150,259.64
A107: ='Печать графика (партнер вар.№1)'!B124 -> 2032-05-31 | B107: ='Печать графика (партнер вар.№1)'!G124 -> 150,259.64
A108: ='Печать графика (партнер вар.№1)'!B125 -> 2032-06-30 | B108: ='Печать графика (партнер вар.№1)'!G125 -> 150,259.64
A109: ='Печать графика (партнер вар.№1)'!B126 -> 2032-07-31 | B109: ='Печать графика (партнер вар.№1)'!G126 -> 150,259.64
A110: ='Печать графика (партнер вар.№1)'!B127 -> 2032-08-31 | B110: ='Печать графика (партнер вар.№1)'!G127 -> 150,259.64
A111: ='Печать графика (партнер вар.№1)'!B128 -> 2032-09-30 | B111: ='Печать графика (партнер вар.№1)'!G128 -> 150,259.64
A112: ='Печать графика (партнер вар.№1)'!B129 -> 2032-10-31 | B112: ='Печать графика (партнер вар.№1)'!G129 -> 150,259.64
A113: ='Печать графика (партнер вар.№1)'!B130 -> 2032-11-30 | B113: ='Печать графика (партнер вар.№1)'!G130 -> 150,259.64
A114: ='Печать графика (партнер вар.№1)'!B131 -> 2032-12-31 | B114: ='Печать графика (партнер вар.№1)'!G131 -> 150,259.64
A115: ='Печать графика (партнер вар.№1)'!B132 -> 2033-01-31 | B115: ='Печать графика (партнер вар.№1)'!G132 -> 150,259.64
A116: ='Печать графика (партнер вар.№1)'!B133 -> 2033-02-28 | B116: ='Печать графика (партнер вар.№1)'!G133 -> 150,259.64
A117: ='Печать графика (партнер вар.№1)'!B134 -> 2033-03-31 | B117: ='Печать графика (партнер вар.№1)'!G134 -> 150,259.64
A118: ='Печать графика (партнер вар.№1)'!B135 -> 2033-04-30 | B118: ='Печать графика (партнер вар.№1)'!G135 -> 150,259.64
A119: ='Печать графика (партнер вар.№1)'!B136 -> 2033-05-31 | B119: ='Печать графика (партнер вар.№1)'!G136 -> 150,259.64
A120: ='Печать графика (партнер вар.№1)'!B137 -> 2033-06-30 | B120: ='Печать графика (партнер вар.№1)'!G137 -> 150,259.64
A121: ='Печать графика (партнер вар.№1)'!B138 -> 2033-07-31 | B121: ='Печать графика (партнер вар.№1)'!G138 -> 150,259.64
A122: ='Печать графика (партнер вар.№1)'!B139 -> 2033-08-31 | B122: ='Печать графика (партнер вар.№1)'!G139 -> 150,259.64
A123: ='Печать графика (партнер вар.№1)'!B140 -> 2033-09-30 | B123: ='Печать графика (партнер вар.№1)'!G140 -> 150,259.64
A124: ='Печать графика (партнер вар.№1)'!B141 -> 2033-10-31 | B124: ='Печать графика (партнер вар.№1)'!G141 -> 150,259.64
A125: ='Печать графика (партнер вар.№1)'!B142 -> 2033-11-30 | B125: ='Печать графика (партнер вар.№1)'!G142 -> 150,259.64
A126: ='Печать графика (партнер вар.№1)'!B143 -> 2033-12-31 | B126: ='Печать графика (партнер вар.№1)'!G143 -> 150,259.64
A127: ='Печать графика (партнер вар.№1)'!B144 -> 2034-01-31 | B127: ='Печать графика (партнер вар.№1)'!G144 -> 150,259.64
A128: ='Печать графика (партнер вар.№1)'!B145 -> 2034-02-28 | B128: ='Печать графика (партнер вар.№1)'!G145 -> 150,259.64
A129: ='Печать графика (партнер вар.№1)'!B146 -> 2034-03-31 | B129: ='Печать графика (партнер вар.№1)'!G146 -> 150,259.64
A130: ='Печать графика (партнер вар.№1)'!B147 -> 2034-04-30 | B130: ='Печать графика (партнер вар.№1)'!G147 -> 150,259.64
A131: ='Печать графика (партнер вар.№1)'!B148 -> 2034-05-31 | B131: ='Печать графика (партнер вар.№1)'!G148 -> 150,259.64
A132: ='Печать графика (партнер вар.№1)'!B149 -> 2034-06-30 | B132: ='Печать графика (партнер вар.№1)'!G149 -> 150,259.64
A133: ='Печать графика (партнер вар.№1)'!B150 -> 2034-07-31 | B133: ='Печать графика (партнер вар.№1)'!G150 -> 150,259.64
A134: ='Печать графика (партнер вар.№1)'!B151 -> 2034-08-31 | B134: ='Печать графика (партнер вар.№1)'!G151 -> 150,259.64
A135: ='Печать графика (партнер вар.№1)'!B152 -> 2034-09-30 | B135: ='Печать графика (партнер вар.№1)'!G152 -> 150,259.64
A136: ='Печать графика (партнер вар.№1)'!B153 -> 2034-10-31 | B136: ='Печать графика (партнер вар.№1)'!G153 -> 150,259.64
A137: ='Печать графика (партнер вар.№1)'!B154 -> 2034-11-30 | B137: ='Печать графика (партнер вар.№1)'!G154 -> 150,259.64
A138: ='Печать графика (партнер вар.№1)'!B155 -> 2034-12-31 | B138: ='Печать графика (партнер вар.№1)'!G155 -> 150,259.64
A139: ='Печать графика (партнер вар.№1)'!B156 -> 2035-01-31 | B139: ='Печать графика (партнер вар.№1)'!G156 -> 150,259.64
A140: ='Печать графика (партнер вар.№1)'!B157 -> 2035-02-28 | B140: ='Печать графика (партнер вар.№1)'!G157 -> 150,259.64
A141: ='Печать графика (партнер вар.№1)'!B158 -> 2035-03-31 | B141: ='Печать графика (партнер вар.№1)'!G158 -> 150,259.64
A142: ='Печать графика (партнер вар.№1)'!B159 -> 2035-04-30 | B142: ='Печать графика (партнер вар.№1)'!G159 -> 150,259.64
A143: ='Печать графика (партнер вар.№1)'!B160 -> 2035-05-31 | B143: ='Печать графика (партнер вар.№1)'!G160 -> 150,259.64
A144: ='Печать графика (партнер вар.№1)'!B161 -> 2035-06-30 | B144: ='Печать графика (партнер вар.№1)'!G161 -> 150,259.64
A145: ='Печать графика (партнер вар.№1)'!B162 -> 2035-07-31 | B145: ='Печать графика (партнер вар.№1)'!G162 -> 150,259.64
A146: ='Печать графика (партнер вар.№1)'!B163 -> 2035-08-31 | B146: ='Печать графика (партнер вар.№1)'!G163 -> 150,259.64
A147: ='Печать графика (партнер вар.№1)'!B164 -> 2035-09-30 | B147: ='Печать графика (партнер вар.№1)'!G164 -> 150,259.64
A148: ='Печать графика (партнер вар.№1)'!B165 -> 2035-10-31 | B148: ='Печать графика (партнер вар.№1)'!G165 -> 150,259.64
A149: ='Печать графика (партнер вар.№1)'!B166 -> 2035-11-30 | B149: ='Печать графика (партнер вар.№1)'!G166 -> 150,259.64
A150: ='Печать графика (партнер вар.№1)'!B167 -> 2035-12-31 | B150: ='Печать графика (партнер вар.№1)'!G167 -> 150,259.64
A151: ='Печать графика (партнер вар.№1)'!B168 -> 2036-01-31 | B151: ='Печать графика (партнер вар.№1)'!G168 -> 150,259.64
A152: ='Печать графика (партнер вар.№1)'!B169 -> 2036-02-29 | B152: ='Печать графика (партнер вар.№1)'!G169 -> 150,259.64
A153: ='Печать графика (партнер вар.№1)'!B170 -> 2036-03-31 | B153: ='Печать графика (партнер вар.№1)'!G170 -> 150,259.64
A154: ='Печать графика (партнер вар.№1)'!B171 -> 2036-04-30 | B154: ='Печать графика (партнер вар.№1)'!G171 -> 150,259.64
A155: ='Печать графика (партнер вар.№1)'!B172 -> 2036-05-31 | B155: ='Печать графика (партнер вар.№1)'!G172 -> 150,259.64
A156: ='Печать графика (партнер вар.№1)'!B173 -> 2036-06-30 | B156: ='Печать графика (партнер вар.№1)'!G173 -> 150,259.64
A157: ='Печать графика (партнер вар.№1)'!B174 -> 2036-07-31 | B157: ='Печать графика (партнер вар.№1)'!G174 -> 150,259.64
A158: ='Печать графика (партнер вар.№1)'!B175 -> 2036-08-31 | B158: ='Печать графика (партнер вар.№1)'!G175 -> 150,259.64
A159: ='Печать графика (партнер вар.№1)'!B176 -> 2036-09-30 | B159: ='Печать графика (партнер вар.№1)'!G176 -> 150,259.64
A160: ='Печать графика (партнер вар.№1)'!B177 -> 2036-10-31 | B160: ='Печать графика (партнер вар.№1)'!G177 -> 150,259.64
A161: ='Печать графика (партнер вар.№1)'!B178 -> 2036-11-30 | B161: ='Печать графика (партнер вар.№1)'!G178 -> 150,259.64
A162: ='Печать графика (партнер вар.№1)'!B179 -> 2036-12-31 | B162: ='Печать графика (партнер вар.№1)'!G179 -> 150,259.64
A163: ='Печать графика (партнер вар.№1)'!B180 -> 2037-01-31 | B163: ='Печать графика (партнер вар.№1)'!G180 -> 150,259.64
A164: ='Печать графика (партнер вар.№1)'!B181 -> 2037-02-28 | B164: ='Печать графика (партнер вар.№1)'!G181 -> 150,259.64
A165: ='Печать графика (партнер вар.№1)'!B182 -> 2037-03-31 | B165: ='Печать графика (партнер вар.№1)'!G182 -> 150,259.64
A166: ='Печать графика (партнер вар.№1)'!B183 -> 2037-04-30 | B166: ='Печать графика (партнер вар.№1)'!G183 -> 150,259.64
A167: ='Печать графика (партнер вар.№1)'!B184 -> 2037-05-31 | B167: ='Печать графика (партнер вар.№1)'!G184 -> 150,259.64
A168: ='Печать графика (партнер вар.№1)'!B185 -> 2037-06-30 | B168: ='Печать графика (партнер вар.№1)'!G185 -> 150,259.64
A169: ='Печать графика (партнер вар.№1)'!B186 -> 2037-07-31 | B169: ='Печать графика (партнер вар.№1)'!G186 -> 150,259.64
A170: ='Печать графика (партнер вар.№1)'!B187 -> 2037-08-31 | B170: ='Печать графика (партнер вар.№1)'!G187 -> 150,259.64
A171: ='Печать графика (партнер вар.№1)'!B188 -> 2037-09-30 | B171: ='Печать графика (партнер вар.№1)'!G188 -> 150,259.64
A172: ='Печать графика (партнер вар.№1)'!B189 -> 2037-10-31 | B172: ='Печать графика (партнер вар.№1)'!G189 -> 150,259.64
A173: ='Печать графика (партнер вар.№1)'!B190 -> 2037-11-30 | B173: ='Печать графика (партнер вар.№1)'!G190 -> 150,259.64
A174: ='Печать графика (партнер вар.№1)'!B191 -> 2037-12-31 | B174: ='Печать графика (партнер вар.№1)'!G191 -> 150,259.64
A175: ='Печать графика (партнер вар.№1)'!B192 -> 2038-01-31 | B175: ='Печать графика (партнер вар.№1)'!G192 -> 150,259.64
A176: ='Печать графика (партнер вар.№1)'!B193 -> 2038-02-28 | B176: ='Печать графика (партнер вар.№1)'!G193 -> 150,259.64
A177: ='Печать графика (партнер вар.№1)'!B194 -> 2038-03-31 | B177: ='Печать графика (партнер вар.№1)'!G194 -> 150,259.64
A178: ='Печать графика (партнер вар.№1)'!B195 -> 2038-04-30 | B178: ='Печать графика (партнер вар.№1)'!G195 -> 150,259.64
A179: ='Печать графика (партнер вар.№1)'!B196 -> 2038-05-31 | B179: ='Печать графика (партнер вар.№1)'!G196 -> 150,259.64
A180: ='Печать графика (партнер вар.№1)'!B197 -> 2038-06-30 | B180: ='Печать графика (партнер вар.№1)'!G197 -> 150,259.64
A181: ='Печать графика (партнер вар.№1)'!B198 -> 2038-07-31 | B181: ='Печать графика (партнер вар.№1)'!G198 -> 150,259.64
A182: ='Печать графика (партнер вар.№1)'!B199 -> 2038-08-31 | B182: ='Печать графика (партнер вар.№1)'!G199 -> 150,259.64
A183: ='Печать графика (партнер вар.№1)'!B200 -> 2038-09-30 | B183: ='Печать графика (партнер вар.№1)'!G200 -> 150,259.64
A184: ='Печать графика (партнер вар.№1)'!B201 -> 2038-10-31 | B184: ='Печать графика (партнер вар.№1)'!G201 -> 150,259.64
A185: ='Печать графика (партнер вар.№1)'!B202 -> 2038-11-30 | B185: ='Печать графика (партнер вар.№1)'!G202 -> 150,259.64
A186: ='Печать графика (партнер вар.№1)'!B203 -> 2038-12-31 | B186: ='Печать графика (партнер вар.№1)'!G203 -> 150,259.64
A187: ='Печать графика (партнер вар.№1)'!B204 -> 2039-01-31 | B187: ='Печать графика (партнер вар.№1)'!G204 -> 150,259.64
A188: ='Печать графика (партнер вар.№1)'!B205 -> 2039-02-28 | B188: ='Печать графика (партнер вар.№1)'!G205 -> 150,259.64
A189: ='Печать графика (партнер вар.№1)'!B206 -> 2039-03-31 | B189: ='Печать графика (партнер вар.№1)'!G206 -> 150,259.64
A190: ='Печать графика (партнер вар.№1)'!B207 -> 2039-04-30 | B190: ='Печать графика (партнер вар.№1)'!G207 -> 150,259.64
A191: ='Печать графика (партнер вар.№1)'!B208 -> 2039-05-31 | B191: ='Печать графика (партнер вар.№1)'!G208 -> 150,259.64
A192: ='Печать графика (партнер вар.№1)'!B209 -> 2039-06-30 | B192: ='Печать графика (партнер вар.№1)'!G209 -> 150,259.64
A193: ='Печать графика (партнер вар.№1)'!B210 -> 2039-07-31 | B193: ='Печать графика (партнер вар.№1)'!G210 -> 150,259.64
A194: ='Печать графика (партнер вар.№1)'!B211 -> 2039-08-31 | B194: ='Печать графика (партнер вар.№1)'!G211 -> 150,259.64
A195: ='Печать графика (партнер вар.№1)'!B212 -> 2039-09-30 | B195: ='Печать графика (партнер вар.№1)'!G212 -> 150,259.64
A196: ='Печать графика (партнер вар.№1)'!B213 -> 2039-10-31 | B196: ='Печать графика (партнер вар.№1)'!G213 -> 150,259.64
A197: ='Печать графика (партнер вар.№1)'!B214 -> 2039-11-30 | B197: ='Печать графика (партнер вар.№1)'!G214 -> 150,259.64
A198: ='Печать графика (партнер вар.№1)'!B215 -> 2039-12-31 | B198: ='Печать графика (партнер вар.№1)'!G215 -> 150,259.64
A199: ='Печать графика (партнер вар.№1)'!B216 -> 2040-01-31 | B199: ='Печать графика (партнер вар.№1)'!G216 -> 150,259.64
A200: ='Печать графика (партнер вар.№1)'!B217 -> 2040-02-29 | B200: ='Печать графика (партнер вар.№1)'!G217 -> 150,259.64
... 165 more rows

Sheet Печать графика (партнер вар.№1)
A1: ИНФОРМАЦИОННЫЙ РАСЧЕТ
D3: ФИО заемщика
D4: Договор №
D5: Дата договора
D6: Сумма кредита (займа) | H6: =SubsCredSumm -> 5,460,000 | J6: руб.
D7: Дата выдачи кредита (займа) | H7: =GiveDate -> 2022-08-19
D8: Ставка на льготный период | H8: ='Со снижением'!I17 -> 0.30% | J8: годовых
D9: Ставка после льготного периода
D10: Срок кредита (займа) | H10: =Параметры!S38 -> 360 | J10: мес.
D12: Расчетная дата | H12: ???
D13: Нак. взнос в 2017 году | H13: 0.00 | J13: руб.
D14: Размер ежемесячного платежа на льготный период | H14: ='Со снижением'!D5 -> 15,946.00 | J14: руб.
A16: Процентный период | B16: Последняя дата процентного периода | C16: Количес-тво дней в процент-ном периоде | D16: Процентная ставка на период | E16: Остаток долга на начало периода, руб. | G16: Ежемесяч-ный платеж | H16: Начислено процентов за период, руб. | I16: Погашение процентов, руб. | J16: Погашение, руб. | L16: Накоплено процентов за период, руб. | M16: Остаток долга на конец периода, руб. | N16: Остаток долга на конец периода, руб.
J17: Основного долга | K17: Накопленных процентов
A18: 1 | B18: 2 | C18: 3 | D18: 4 | E18: 5 | F18: 6 | G18: 7 | H18: 8 | I18: 9 | J18: 10 | K18: 11 | L18: 12 | M18: 13 | N18: 14 | O18: 15
A19: 1 | B19: ='Со снижением (партнер)'!G17 -> 2023-08-31 | C19: ='Со снижением (партнер)'!H17 -> 30 | D19: ='Со снижением (партнер)'!I17 -> 15.50% | E19: ='Со снижением (партнер)'!L17 -> 11,450,000.00 | F19: ='Со снижением (партнер)'!M17 -> 0.00 | G19: ='Со снижением (партнер)'!J17 -> 0.00 | H19: ='Со снижением (партнер)'!N17 -> 145,869.86 | I19: ='Со снижением (партнер)'!P17 -> 0.00 | J19: ='Со снижением (партнер)'!O17 -> 0.00 | K19: ='Со снижением (партнер)'!Q17 -> 0.00 | L19: ='Со снижением (партнер)'!R17 -> 145,869.86 | M19: ='Со снижением (партнер)'!S17 -> 11,450,000.00 | N19: ='Со снижением'!T17 -> 538.52 | O19: =M19+N19 -> 11,450,538.52
A20: =IF(O19=0,"",A19+1) -> 2 | B20: =IF(O19=0,"",'Со снижением (партнер)'!G18) -> 2023-09-30 | C20: =IF(O19=0,"",'Со снижением (партнер)'!H18) -> 30 | D20: =IF(O19=0,"",'Со снижением (партнер)'!I18) -> 15.50% | E20: =IF(O19=0,"",'Со снижением (партнер)'!L18) -> 11,450,000.00 | F20: =IF(O19=0,"",'Со снижением (партнер)'!M18) -> 145,869.86 | G20: =IF(O19=0,"",'Со снижением (партнер)'!J18) -> 295,255.86 | H20: =IF(O19=0,"",'Со снижением (партнер)'!N18) -> 145,869.86 | I20: =IF(O19=0,"",'Со снижением (партнер)'!P18) -> 145,869.86 | J20: =IF(O19=0,"",'Со снижением (партнер)'!O18) -> 3,516.14 | K20: =IF(O19=0,"",'Со снижением (партнер)'!Q18) -> 145,869.86 | L20: =IF(O19=0,"",'Со снижением (партнер)'!R18) -> 0.00 | M20: =IF(O19=0,"",'Со снижением (партнер)'!S18) -> 11,446,483.86 | N20: =IF(O19=0,"",'Со снижением'!T18) -> 0.00 | O20: =IFERROR(M20+N20,0) -> 11,446,483.86
A21: =IF(O20=0,"",A20+1) -> 3 | B21: =IF(O20=0,"",'Со снижением (партнер)'!G19) -> 2023-10-31 | C21: =IF(O20=0,"",'Со снижением (партнер)'!H19) -> 31 | D21: =IF(O20=0,"",'Со снижением (партнер)'!I19) -> 15.50% | E21: =IF(O20=0,"",'Со снижением (партнер)'!L19) -> 11,446,483.86 | F21: =IF(O20=0,"",'Со снижением (партнер)'!M19) -> 0.00 | G21: =IF(O20=0,"",'Со снижением (партнер)'!J19) -> 149,386.00 | H21: =IF(O20=0,"",'Со снижением (партнер)'!N19) -> 150,685.90 | I21: =IF(O20=0,"",'Со снижением (партнер)'!P19) -> 149,386.00 | J21: =IF(O20=0,"",'Со снижением (партнер)'!O19) -> 0.00 | K21: =IF(O20=0,"",'Со снижением (партнер)'!Q19) -> 0.00 | L21: =IF(O20=0,"",'Со снижением (партнер)'!R19) -> 1,299.90 | M21: =IF(O20=0,"",'Со снижением (партнер)'!S19) -> 11,446,483.86 | N21: =IF(O20=0,"",'Со снижением'!T19) -> 0.00 | O21: =IFERROR(M21+N21,0) -> 11,446,483.86
A22: 4 | B22: =IF(O21=0,"",'Со снижением (партнер)'!G20) -> 2023-11-30 | C22: =IF(O21=0,"",'Со снижением (партнер)'!H20) -> 30 | D22: =IF(O21=0,"",'Со снижением (партнер)'!I20) -> 15.50% | E22: =IF(O21=0,"",'Со снижением (партнер)'!L20) -> 11,446,483.86 | F22: =IF(O21=0,"",'Со снижением (партнер)'!M20) -> 1,299.90 | G22: =IF(O21=0,"",'Со снижением (партнер)'!J20) -> 149,386.00 | H22: =IF(O21=0,"",'Со снижением (партнер)'!N20) -> 145,825.07 | I22: =IF(O21=0,"",'Со снижением (партнер)'!P20) -> 145,825.07 | J22: =IF(O21=0,"",'Со снижением (партнер)'!O20) -> 2,261.03 | K22: =IF(O21=0,"",'Со снижением (партнер)'!Q20) -> 1,299.90 | L22: =IF(O21=0,"",'Со снижением (партнер)'!R20) -> 0.00 | M22: =IF(O21=0,"",'Со снижением (партнер)'!S20) -> 11,444,222.83 | N22: =IF(O21=0,"",'Со снижением'!T20) -> 0.00 | O22: 11,444,222.83
A23: 5 | B23: =IF(O22=0,"",'Со снижением (партнер)'!G21) -> 2023-12-31 | C23: =IF(O22=0,"",'Со снижением (партнер)'!H21) -> 31 | D23: =IF(O22=0,"",'Со снижением (партнер)'!I21) -> 15.50% | E23: =IF(O22=0,"",'Со снижением (партнер)'!L21) -> 11,444,222.83 | F23: =IF(O22=0,"",'Со снижением (партнер)'!M21) -> 0.00 | G23: =IF(O22=0,"",'Со снижением (партнер)'!J21) -> 149,386.00 | H23: =IF(O22=0,"",'Со снижением (партнер)'!N21) -> 150,656.14 | I23: =IF(O22=0,"",'Со снижением (партнер)'!P21) -> 149,386.00 | J23: =IF(O22=0,"",'Со снижением (партнер)'!O21) -> 0.00 | K23: =IF(O22=0,"",'Со снижением (партнер)'!Q21) -> 0.00 | L23: =IF(O22=0,"",'Со снижением (партнер)'!R21) -> 1,270.14 | M23: =IF(O22=0,"",'Со снижением (партнер)'!S21) -> 11,444,222.83 | N23: =IF(O22=0,"",'Со снижением'!T21) -> 0.00 | O23: 11,444,222.83
A24: 6 | B24: =IF(O23=0,"",'Со снижением (партнер)'!G22) -> 2024-01-31 | C24: =IF(O23=0,"",'Со снижением (партнер)'!H22) -> 31 | D24: =IF(O23=0,"",'Со снижением (партнер)'!I22) -> 15.50% | E24: =IF(O23=0,"",'Со снижением (партнер)'!L22) -> 11,444,222.83 | F24: =IF(O23=0,"",'Со снижением (партнер)'!M22) -> 1,270.14 | G24: =IF(O23=0,"",'Со снижением (партнер)'!J22) -> 149,386.00 | H24: =IF(O23=0,"",'Со снижением (партнер)'!N22) -> 150,244.51 | I24: =IF(O23=0,"",'Со снижением (партнер)'!P22) -> 148,115.86 | J24: =IF(O23=0,"",'Со снижением (партнер)'!O22) -> 0.00 | K24: =IF(O23=0,"",'Со снижением (партнер)'!Q22) -> 1,270.14 | L24: =IF(O23=0,"",'Со снижением (партнер)'!R22) -> 2,128.65 | M24: =IF(O23=0,"",'Со снижением (партнер)'!S22) -> 11,444,222.83 | N24: =IF(O23=0,"",'Со снижением'!T22) -> 0.00 | O24: 11,444,222.83
A25: 7 | B25: =IF(O24=0,"",'Со снижением (партнер)'!G23) -> 2024-02-29 | C25: =IF(O24=0,"",'Со снижением (партнер)'!H23) -> 29 | D25: =IF(O24=0,"",'Со снижением (партнер)'!I23) -> 15.50% | E25: =IF(O24=0,"",'Со снижением (партнер)'!L23) -> 11,444,222.83 | F25: =IF(O24=0,"",'Со снижением (партнер)'!M23) -> 2,128.65 | G25: =IF(O24=0,"",'Со снижением (партнер)'!J23) -> 149,386.00 | H25: =IF(O24=0,"",'Со снижением (партнер)'!N23) -> 140,551.32 | I25: =IF(O24=0,"",'Со снижением (партнер)'!P23) -> 140,551.32 | J25: =IF(O24=0,"",'Со снижением (партнер)'!O23) -> 6,706.03 | K25: =IF(O24=0,"",'Со снижением (партнер)'!Q23) -> 2,128.65 | L25: =IF(O24=0,"",'Со снижением (партнер)'!R23) -> 0.00 | M25: =IF(O24=0,"",'Со снижением (партнер)'!S23) -> 11,437,516.80 | N25: =IF(O24=0,"",'Со снижением'!T23) -> 0.00 | O25: 11,437,516.80
A26: 8 | B26: =IF(O25=0,"",'Со снижением (партнер)'!G24) -> 2024-03-31 | C26: =IF(O25=0,"",'Со снижением (партнер)'!H24) -> 31 | D26: =IF(O25=0,"",'Со снижением (партнер)'!I24) -> 15.50% | E26: =IF(O25=0,"",'Со снижением (партнер)'!L24) -> 11,437,516.80 | F26: =IF(O25=0,"",'Со снижением (партнер)'!M24) -> 0.00 | G26: =IF(O25=0,"",'Со снижением (партнер)'!J24) -> 149,386.00 | H26: =IF(O25=0,"",'Со снижением (партнер)'!N24) -> 150,156.47 | I26: =IF(O25=0,"",'Со снижением (партнер)'!P24) -> 149,386.00 | J26: =IF(O25=0,"",'Со снижением (партнер)'!O24) -> 0.00 | K26: =IF(O25=0,"",'Со снижением (партнер)'!Q24) -> 0.00 | L26: =IF(O25=0,"",'Со снижением (партнер)'!R24) -> 770.47 | M26: =IF(O25=0,"",'Со снижением (партнер)'!S24) -> 11,437,516.80 | N26: =IF(O25=0,"",'Со снижением'!T24) -> 0.00 | O26: 11,437,516.80
A27: 9 | B27: =IF(O26=0,"",'Со снижением (партнер)'!G25) -> 2024-04-30 | C27: =IF(O26=0,"",'Со снижением (партнер)'!H25) -> 30 | D27: =IF(O26=0,"",'Со снижением (партнер)'!I25) -> 15.50% | E27: =IF(O26=0,"",'Со снижением (партнер)'!L25) -> 11,437,516.80 | F27: =IF(O26=0,"",'Со снижением (партнер)'!M25) -> 770.47 | G27: =IF(O26=0,"",'Со снижением (партнер)'!J25) -> 149,386.00 | H27: =IF(O26=0,"",'Со снижением (партнер)'!N25) -> 145,312.71 | I27: =IF(O26=0,"",'Со снижением (партнер)'!P25) -> 145,312.71 | J27: =IF(O26=0,"",'Со снижением (партнер)'!O25) -> 3,302.82 | K27: =IF(O26=0,"",'Со снижением (партнер)'!Q25) -> 770.47 | L27: =IF(O26=0,"",'Со снижением (партнер)'!R25) -> 0.00 | M27: =IF(O26=0,"",'Со снижением (партнер)'!S25) -> 11,434,213.98 | N27: =IF(O26=0,"",'Со снижением'!T25) -> 0.00 | O27: 11,434,213.98
A28: 10 | B28: =IF(O27=0,"",'Со снижением (партнер)'!G26) -> 2024-05-31 | C28: =IF(O27=0,"",'Со снижением (партнер)'!H26) -> 31 | D28: =IF(O27=0,"",'Со снижением (партнер)'!I26) -> 15.50% | E28: =IF(O27=0,"",'Со снижением (партнер)'!L26) -> 11,434,213.98 | F28: =IF(O27=0,"",'Со снижением (партнер)'!M26) -> 0.00 | G28: =IF(O27=0,"",'Со снижением (партнер)'!J26) -> 149,386.00 | H28: =IF(O27=0,"",'Со снижением (партнер)'!N26) -> 150,113.11 | I28: =IF(O27=0,"",'Со снижением (партнер)'!P26) -> 149,386.00 | J28: =IF(O27=0,"",'Со снижением (партнер)'!O26) -> 0.00 | K28: =IF(O27=0,"",'Со снижением (партнер)'!Q26) -> 0.00 | L28: =IF(O27=0,"",'Со снижением (партнер)'!R26) -> 727.11 | M28: =IF(O27=0,"",'Со снижением (партнер)'!S26) -> 11,434,213.98 | N28: =IF(O27=0,"",'Со снижением'!T26) -> 0.00 | O28: 11,434,213.98
A29: 11 | B29: =IF(O28=0,"",'Со снижением (партнер)'!G27) -> 2024-06-30 | C29: =IF(O28=0,"",'Со снижением (партнер)'!H27) -> 30 | D29: =IF(O28=0,"",'Со снижением (партнер)'!I27) -> 15.50% | E29: =IF(O28=0,"",'Со снижением (партнер)'!L27) -> 11,434,213.98 | F29: =IF(O28=0,"",'Со снижением (партнер)'!M27) -> 727.11 | G29: =IF(O28=0,"",'Со снижением (партнер)'!J27) -> 149,386.00 | H29: =IF(O28=0,"",'Со снижением (партнер)'!N27) -> 145,270.75 | I29: =IF(O28=0,"",'Со снижением (партнер)'!P27) -> 145,270.75 | J29: =IF(O28=0,"",'Со снижением (партнер)'!O27) -> 3,388.14 | K29: =IF(O28=0,"",'Со снижением (партнер)'!Q27) -> 727.11 | L29: =IF(O28=0,"",'Со снижением (партнер)'!R27) -> 0.00 | M29: =IF(O28=0,"",'Со снижением (партнер)'!S27) -> 11,430,825.84 | N29: =IF(O28=0,"",'Со снижением'!T27) -> 0.00 | O29: 11,430,825.84
A30: 12 | B30: =IF(O29=0,"",'Со снижением (партнер)'!G28) -> 2024-07-31 | C30: =IF(O29=0,"",'Со снижением (партнер)'!H28) -> 31 | D30: =IF(O29=0,"",'Со снижением (партнер)'!I28) -> 15.50% | E30: =IF(O29=0,"",'Со снижением (партнер)'!L28) -> 11,430,825.84 | F30: =IF(O29=0,"",'Со снижением (партнер)'!M28) -> 0.00 | G30: =IF(O29=0,"",'Со снижением (партнер)'!J28) -> 149,386.00 | H30: =IF(O29=0,"",'Со снижением (партнер)'!N28) -> 150,068.63 | I30: =IF(O29=0,"",'Со снижением (партнер)'!P28) -> 149,386.00 | J30: =IF(O29=0,"",'Со снижением (партнер)'!O28) -> 0.00 | K30: =IF(O29=0,"",'Со снижением (партнер)'!Q28) -> 0.00 | L30: =IF(O29=0,"",'Со снижением (партнер)'!R28) -> 682.63 | M30: =IF(O29=0,"",'Со снижением (партнер)'!S28) -> 11,430,825.84 | N30: =IF(O29=0,"",'Со снижением'!T28) -> 0.00 | O30: 11,430,825.84
A31: 13 | B31: =IF(O30=0,"",'Со снижением (партнер)'!G29) -> 2024-08-31 | C31: =IF(O30=0,"",'Со снижением (партнер)'!H29) -> 31 | D31: =IF(O30=0,"",'Со снижением (партнер)'!I29) -> 15.50% | E31: =IF(O30=0,"",'Со снижением (партнер)'!L29) -> 11,430,825.84 | F31: =IF(O30=0,"",'Со снижением (партнер)'!M29) -> 682.63 | G31: =IF(O30=0,"",'Со снижением (партнер)'!J29) -> 149,386.00 | H31: =IF(O30=0,"",'Со снижением (партнер)'!N29) -> 150,068.63 | I31: =IF(O30=0,"",'Со снижением (партнер)'!P29) -> 148,703.37 | J31: =IF(O30=0,"",'Со снижением (партнер)'!O29) -> 0.00 | K31: =IF(O30=0,"",'Со снижением (партнер)'!Q29) -> 682.63 | L31: =IF(O30=0,"",'Со снижением (партнер)'!R29) -> 1,365.26 | M31: =IF(O30=0,"",'Со снижением (партнер)'!S29) -> 11,430,825.84 | N31: =IF(O30=0,"",'Со снижением'!T29) -> 0.00 | O31: 11,430,825.84
A32: 14 | B32: =IF(O31=0,"",'Со снижением (партнер)'!G30) -> 2024-09-30 | C32: =IF(O31=0,"",'Со снижением (партнер)'!H30) -> 30 | D32: =IF(O31=0,"",'Со снижением (партнер)'!I30) -> 15.50% | E32: =IF(O31=0,"",'Со снижением (партнер)'!L30) -> 11,430,825.84 | F32: =IF(O31=0,"",'Со снижением (партнер)'!M30) -> 1,365.26 | G32: =IF(O31=0,"",'Со снижением (партнер)'!J30) -> 149,386.00 | H32: =IF(O31=0,"",'Со снижением (партнер)'!N30) -> 145,227.71 | I32: =IF(O31=0,"",'Со снижением (партнер)'!P30) -> 145,227.71 | J32: =IF(O31=0,"",'Со снижением (партнер)'!O30) -> 2,793.03 | K32: =IF(O31=0,"",'Со снижением (партнер)'!Q30) -> 1,365.26 | L32: =IF(O31=0,"",'Со снижением (партнер)'!R30) -> 0.00 | M32: =IF(O31=0,"",'Со снижением (партнер)'!S30) -> 11,428,032.81 | N32: =IF(O31=0,"",'Со снижением'!T30) -> 0.00 | O32: 11,428,032.81
A33: 15 | B33: =IF(O32=0,"",'Со снижением (партнер)'!G31) -> 2024-10-31 | C33: =IF(O32=0,"",'Со снижением (партнер)'!H31) -> 31 | D33: =IF(O32=0,"",'Со снижением (партнер)'!I31) -> 15.50% | E33: =IF(O32=0,"",'Со снижением (партнер)'!L31) -> 11,428,032.81 | F33: =IF(O32=0,"",'Со снижением (партнер)'!M31) -> 0.00 | G33: =IF(O32=0,"",'Со снижением (партнер)'!J31) -> 149,386.00 | H33: =IF(O32=0,"",'Со снижением (партнер)'!N31) -> 150,031.96 | I33: =IF(O32=0,"",'Со снижением (партнер)'!P31) -> 149,386.00 | J33: =IF(O32=0,"",'Со снижением (партнер)'!O31) -> 0.00 | K33: =IF(O32=0,"",'Со снижением (партнер)'!Q31) -> 0.00 | L33: =IF(O32=0,"",'Со снижением (партнер)'!R31) -> 645.96 | M33: =IF(O32=0,"",'Со снижением (партнер)'!S31) -> 11,428,032.81 | N33: =IF(O32=0,"",'Со снижением'!T31) -> 0.00 | O33: 11,428,032.81
A34: 16 | B34: =IF(O33=0,"",'Со снижением (партнер)'!G32) -> 2024-11-30 | C34: =IF(O33=0,"",'Со снижением (партнер)'!H32) -> 30 | D34: =IF(O33=0,"",'Со снижением (партнер)'!I32) -> 15.50% | E34: =IF(O33=0,"",'Со снижением (партнер)'!L32) -> 11,428,032.81 | F34: =IF(O33=0,"",'Со снижением (партнер)'!M32) -> 645.96 | G34: =IF(O33=0,"",'Со снижением (партнер)'!J32) -> 149,386.00 | H34: =IF(O33=0,"",'Со снижением (партнер)'!N32) -> 145,192.22 | I34: =IF(O33=0,"",'Со снижением (партнер)'!P32) -> 145,192.22 | J34: =IF(O33=0,"",'Со снижением (партнер)'!O32) -> 3,547.82 | K34: =IF(O33=0,"",'Со снижением (партнер)'!Q32) -> 645.96 | L34: =IF(O33=0,"",'Со снижением (партнер)'!R32) -> 0.00 | M34: =IF(O33=0,"",'Со снижением (партнер)'!S32) -> 11,424,484.99 | N34: =IF(O33=0,"",'Со снижением'!T32) -> 0.00 | O34: 11,424,484.99
A35: 17 | B35: =IF(O34=0,"",'Со снижением (партнер)'!G33) -> 2024-12-31 | C35: =IF(O34=0,"",'Со снижением (партнер)'!H33) -> 31 | D35: =IF(O34=0,"",'Со снижением (партнер)'!I33) -> 15.50% | E35: =IF(O34=0,"",'Со снижением (партнер)'!L33) -> 11,424,484.99 | F35: =IF(O34=0,"",'Со снижением (партнер)'!M33) -> 0.00 | G35: =IF(O34=0,"",'Со снижением (партнер)'!J33) -> 149,386.00 | H35: =IF(O34=0,"",'Со снижением (партнер)'!N33) -> 149,985.38 | I35: =IF(O34=0,"",'Со снижением (партнер)'!P33) -> 149,386.00 | J35: =IF(O34=0,"",'Со снижением (партнер)'!O33) -> 0.00 | K35: =IF(O34=0,"",'Со снижением (партнер)'!Q33) -> 0.00 | L35: =IF(O34=0,"",'Со снижением (партнер)'!R33) -> 599.38 | M35: =IF(O34=0,"",'Со снижением (партнер)'!S33) -> 11,424,484.99 | N35: =IF(O34=0,"",'Со снижением'!T33) -> 0.00 | O35: 11,424,484.99
A36: 18 | B36: =IF(O35=0,"",'Со снижением (партнер)'!G34) -> 2025-01-31 | C36: =IF(O35=0,"",'Со снижением (партнер)'!H34) -> 31 | D36: =IF(O35=0,"",'Со снижением (партнер)'!I34) -> 15.50% | E36: =IF(O35=0,"",'Со снижением (партнер)'!L34) -> 11,424,484.99 | F36: =IF(O35=0,"",'Со снижением (партнер)'!M34) -> 599.38 | G36: =IF(O35=0,"",'Со снижением (партнер)'!J34) -> 149,386.00 | H36: =IF(O35=0,"",'Со снижением (партнер)'!N34) -> 150,396.30 | I36: =IF(O35=0,"",'Со снижением (партнер)'!P34) -> 148,786.62 | J36: =IF(O35=0,"",'Со снижением (партнер)'!O34) -> 0.00 | K36: =IF(O35=0,"",'Со снижением (партнер)'!Q34) -> 599.38 | L36: =IF(O35=0,"",'Со снижением (партнер)'!R34) -> 1,609.68 | M36: =IF(O35=0,"",'Со снижением (партнер)'!S34) -> 11,424,484.99 | N36: =IF(O35=0,"",'Со снижением'!T34) -> 0.00 | O36: 11,424,484.99
A37: 19 | B37: =IF(O36=0,"",'Со снижением (партнер)'!G35) -> 2025-02-28 | C37: =IF(O36=0,"",'Со снижением (партнер)'!H35) -> 28 | D37: =IF(O36=0,"",'Со снижением (партнер)'!I35) -> 15.50% | E37: =IF(O36=0,"",'Со снижением (партнер)'!L35) -> 11,424,484.99 | F37: =IF(O36=0,"",'Со снижением (партнер)'!M35) -> 1,609.68 | G37: =IF(O36=0,"",'Со снижением (партнер)'!J35) -> 149,386.00 | H37: =IF(O36=0,"",'Со снижением (партнер)'!N35) -> 135,841.82 | I37: =IF(O36=0,"",'Со снижением (партнер)'!P35) -> 135,841.82 | J37: =IF(O36=0,"",'Со снижением (партнер)'!O35) -> 11,934.50 | K37: =IF(O36=0,"",'Со снижением (партнер)'!Q35) -> 1,609.68 | L37: =IF(O36=0,"",'Со снижением (партнер)'!R35) -> 0.00 | M37: =IF(O36=0,"",'Со снижением (партнер)'!S35) -> 11,412,550.49 | N37: =IF(O36=0,"",'Со снижением'!T35) -> 0.00 | O37: 11,412,550.49
A38: 20 | B38: =IF(O37=0,"",'Со снижением (партнер)'!G36) -> 2025-03-31 | C38: =IF(O37=0,"",'Со снижением (партнер)'!H36) -> 31 | D38: =IF(O37=0,"",'Со снижением (партнер)'!I36) -> 15.50% | E38: =IF(O37=0,"",'Со снижением (партнер)'!L36) -> 11,412,550.49 | F38: =IF(O37=0,"",'Со снижением (партнер)'!M36) -> 0.00 | G38: =IF(O37=0,"",'Со снижением (партнер)'!J36) -> 149,386.00 | H38: =IF(O37=0,"",'Со снижением (партнер)'!N36) -> 150,239.19 | I38: =IF(O37=0,"",'Со снижением (партнер)'!P36) -> 149,386.00 | J38: =IF(O37=0,"",'Со снижением (партнер)'!O36) -> 0.00 | K38: =IF(O37=0,"",'Со снижением (партнер)'!Q36) -> 0.00 | L38: =IF(O37=0,"",'Со снижением (партнер)'!R36) -> 853.19 | M38: =IF(O37=0,"",'Со снижением (партнер)'!S36) -> 11,412,550.49 | N38: =IF(O37=0,"",'Со снижением'!T36) -> 0.00 | O38: 11,412,550.49
A39: 21 | B39: =IF(O38=0,"",'Со снижением (партнер)'!G37) -> 2025-04-30 | C39: =IF(O38=0,"",'Со снижением (партнер)'!H37) -> 30 | D39: =IF(O38=0,"",'Со снижением (партнер)'!I37) -> 15.50% | E39: =IF(O38=0,"",'Со снижением (партнер)'!L37) -> 11,412,550.49 | F39: =IF(O38=0,"",'Со снижением (партнер)'!M37) -> 853.19 | G39: =IF(O38=0,"",'Со снижением (партнер)'!J37) -> 149,386.00 | H39: =IF(O38=0,"",'Со снижением (партнер)'!N37) -> 145,392.77 | I39: =IF(O38=0,"",'Со снижением (партнер)'!P37) -> 145,392.77 | J39: =IF(O38=0,"",'Со снижением (партнер)'!O37) -> 3,140.04 | K39: =IF(O38=0,"",'Со снижением (партнер)'!Q37) -> 853.19 | L39: =IF(O38=0,"",'Со снижением (партнер)'!R37) -> 0.00 | M39: =IF(O38=0,"",'Со снижением (партнер)'!S37) -> 11,409,410.45 | N39: =IF(O38=0,"",'Со снижением'!T37) -> 0.00 | O39: 11,409,410.45
A40: 22 | B40: =IF(O39=0,"",'Со снижением (партнер)'!G38) -> 2025-05-31 | C40: =IF(O39=0,"",'Со снижением (партнер)'!H38) -> 31 | D40: =IF(O39=0,"",'Со снижением (партнер)'!I38) -> 15.50% | E40: =IF(O39=0,"",'Со снижением (партнер)'!L38) -> 11,409,410.45 | F40: =IF(O39=0,"",'Со снижением (партнер)'!M38) -> 0.00 | G40: =IF(O39=0,"",'Со снижением (партнер)'!J38) -> 149,386.00 | H40: =IF(O39=0,"",'Со снижением (партнер)'!N38) -> 150,197.86 | I40: =IF(O39=0,"",'Со снижением (партнер)'!P38) -> 149,386.00 | J40: =IF(O39=0,"",'Со снижением (партнер)'!O38) -> 0.00 | K40: =IF(O39=0,"",'Со снижением (партнер)'!Q38) -> 0.00 | L40: =IF(O39=0,"",'Со снижением (партнер)'!R38) -> 811.86 | M40: =IF(O39=0,"",'Со снижением (партнер)'!S38) -> 11,409,410.45 | N40: =IF(O39=0,"",'Со снижением'!T38) -> 0.00 | O40: 11,409,410.45
A41: 23 | B41: =IF(O40=0,"",'Со снижением (партнер)'!G39) -> 2025-06-30 | C41: =IF(O40=0,"",'Со снижением (партнер)'!H39) -> 30 | D41: =IF(O40=0,"",'Со снижением (партнер)'!I39) -> 15.50% | E41: =IF(O40=0,"",'Со снижением (партнер)'!L39) -> 11,409,410.45 | F41: =IF(O40=0,"",'Со снижением (партнер)'!M39) -> 811.86 | G41: =IF(O40=0,"",'Со снижением (партнер)'!J39) -> 149,386.00 | H41: =IF(O40=0,"",'Со снижением (партнер)'!N39) -> 145,352.76 | I41: =IF(O40=0,"",'Со снижением (партнер)'!P39) -> 145,352.76 | J41: =IF(O40=0,"",'Со снижением (партнер)'!O39) -> 3,221.38 | K41: =IF(O40=0,"",'Со снижением (партнер)'!Q39) -> 811.86 | L41: =IF(O40=0,"",'Со снижением (партнер)'!R39) -> 0.00 | M41: =IF(O40=0,"",'Со снижением (партнер)'!S39) -> 11,406,189.07 | N41: =IF(O40=0,"",'Со снижением'!T39) -> 0.00 | O41: 11,406,189.07
A42: 24 | B42: =IF(O41=0,"",'Со снижением (партнер)'!G40) -> 2025-07-31 | C42: =IF(O41=0,"",'Со снижением (партнер)'!H40) -> 31 | D42: =IF(O41=0,"",'Со снижением (партнер)'!I40) -> 15.50% | E42: =IF(O41=0,"",'Со снижением (партнер)'!L40) -> 11,406,189.07 | F42: =IF(O41=0,"",'Со снижением (партнер)'!M40) -> 0.00 | G42: =IF(O41=0,"",'Со снижением (партнер)'!J40) -> 149,386.00 | H42: =IF(O41=0,"",'Со снижением (партнер)'!N40) -> 150,155.45 | I42: =IF(O41=0,"",'Со снижением (партнер)'!P40) -> 149,386.00 | J42: =IF(O41=0,"",'Со снижением (партнер)'!O40) -> 0.00 | K42: =IF(O41=0,"",'Со снижением (партнер)'!Q40) -> 0.00 | L42: =IF(O41=0,"",'Со снижением (партнер)'!R40) -> 769.45 | M42: =IF(O41=0,"",'Со снижением (партнер)'!S40) -> 11,406,189.07 | N42: =IF(O41=0,"",'Со снижением'!T40) -> 0.00 | O42: 11,406,189.07
A43: 25 | B43: =IF(O42=0,"",'Со снижением (партнер)'!G41) -> 2025-08-31 | C43: =IF(O42=0,"",'Со снижением (партнер)'!H41) -> 31 | D43: =IF(O42=0,"",'Со снижением (партнер)'!I41) -> 15.50% | E43: =IF(O42=0,"",'Со снижением (партнер)'!L41) -> 11,406,189.07 | F43: =IF(O42=0,"",'Со снижением (партнер)'!M41) -> 769.45 | G43: =IF(O42=0,"",'Со снижением (партнер)'!J41) -> 149,386.00 | H43: =IF(O42=0,"",'Со снижением (партнер)'!N41) -> 150,155.45 | I43: =IF(O42=0,"",'Со снижением (партнер)'!P41) -> 148,616.55 | J43: =IF(O42=0,"",'Со снижением (партнер)'!O41) -> 0.00 | K43: =IF(O42=0,"",'Со снижением (партнер)'!Q41) -> 769.45 | L43: =IF(O42=0,"",'Со снижением (партнер)'!R41) -> 1,538.90 | M43: =IF(O42=0,"",'Со снижением (партнер)'!S41) -> 11,406,189.07 | N43: =IF(O42=0,"",'Со снижением'!T41) -> 0.00 | O43: 11,406,189.07
A44: 26 | B44: =IF(O43=0,"",'Со снижением (партнер)'!G42) -> 2025-09-30 | C44: =IF(O43=0,"",'Со снижением (партнер)'!H42) -> 30 | D44: =IF(O43=0,"",'Со снижением (партнер)'!I42) -> 15.50% | E44: =IF(O43=0,"",'Со снижением (партнер)'!L42) -> 11,406,189.07 | F44: =IF(O43=0,"",'Со снижением (партнер)'!M42) -> 1,538.90 | G44: =IF(O43=0,"",'Со снижением (партнер)'!J42) -> 149,386.00 | H44: =IF(O43=0,"",'Со снижением (партнер)'!N42) -> 145,311.72 | I44: =IF(O43=0,"",'Со снижением (партнер)'!P42) -> 145,311.72 | J44: =IF(O43=0,"",'Со снижением (партнер)'!O42) -> 2,535.38 | K44: =IF(O43=0,"",'Со снижением (партнер)'!Q42) -> 1,538.90 | L44: =IF(O43=0,"",'Со снижением (партнер)'!R42) -> 0.00 | M44: =IF(O43=0,"",'Со снижением (партнер)'!S42) -> 11,403,653.69 | N44: =IF(O43=0,"",'Со снижением'!T42) -> 0.00 | O44: 11,403,653.69
A45: 27 | B45: =IF(O44=0,"",'Со снижением (партнер)'!G43) -> 2025-10-31 | C45: =IF(O44=0,"",'Со снижением (партнер)'!H43) -> 31 | D45: =IF(O44=0,"",'Со снижением (партнер)'!I43) -> 15.50% | E45: =IF(O44=0,"",'Со снижением (партнер)'!L43) -> 11,403,653.69 | F45: =IF(O44=0,"",'Со снижением (партнер)'!M43) -> 0.00 | G45: =IF(O44=0,"",'Со снижением (партнер)'!J43) -> 149,386.00 | H45: =IF(O44=0,"",'Со снижением (партнер)'!N43) -> 150,122.07 | I45: =IF(O44=0,"",'Со снижением (партнер)'!P43) -> 149,386.00 | J45: =IF(O44=0,"",'Со снижением (партнер)'!O43) -> 0.00 | K45: =IF(O44=0,"",'Со снижением (партнер)'!Q43) -> 0.00 | L45: =IF(O44=0,"",'Со снижением (партнер)'!R43) -> 736.07 | M45: =IF(O44=0,"",'Со снижением (партнер)'!S43) -> 11,403,653.69 | N45: =IF(O44=0,"",'Со снижением'!T43) -> 0.00 | O45: 11,403,653.69
A46: 28 | B46: =IF(O45=0,"",'Со снижением (партнер)'!G44) -> 2025-11-30 | C46: =IF(O45=0,"",'Со снижением (партнер)'!H44) -> 30 | D46: =IF(O45=0,"",'Со снижением (партнер)'!I44) -> 15.50% | E46: =IF(O45=0,"",'Со снижением (партнер)'!L44) -> 11,403,653.69 | F46: =IF(O45=0,"",'Со снижением (партнер)'!M44) -> 736.07 | G46: =IF(O45=0,"",'Со снижением (партнер)'!J44) -> 149,386.00 | H46: =IF(O45=0,"",'Со снижением (партнер)'!N44) -> 145,279.42 | I46: =IF(O45=0,"",'Со снижением (партнер)'!P44) -> 145,279.42 | J46: =IF(O45=0,"",'Со снижением (партнер)'!O44) -> 3,370.51 | K46: =IF(O45=0,"",'Со снижением (партнер)'!Q44) -> 736.07 | L46: =IF(O45=0,"",'Со снижением (партнер)'!R44) -> 0.00 | M46: =IF(O45=0,"",'Со снижением (партнер)'!S44) -> 11,400,283.18 | N46: =IF(O45=0,"",'Со снижением'!T44) -> 0.00 | O46: 11,400,283.18
A47: 29 | B47: =IF(O46=0,"",'Со снижением (партнер)'!G45) -> 2025-12-31 | C47: =IF(O46=0,"",'Со снижением (партнер)'!H45) -> 31 | D47: =IF(O46=0,"",'Со снижением (партнер)'!I45) -> 15.50% | E47: =IF(O46=0,"",'Со снижением (партнер)'!L45) -> 11,400,283.18 | F47: =IF(O46=0,"",'Со снижением (партнер)'!M45) -> 0.00 | G47: =IF(O46=0,"",'Со снижением (партнер)'!J45) -> 149,386.00 | H47: =IF(O46=0,"",'Со снижением (партнер)'!N45) -> 150,077.70 | I47: =IF(O46=0,"",'Со снижением (партнер)'!P45) -> 149,386.00 | J47: =IF(O46=0,"",'Со снижением (партнер)'!O45) -> 0.00 | K47: =IF(O46=0,"",'Со снижением (партнер)'!Q45) -> 0.00 | L47: =IF(O46=0,"",'Со снижением (партнер)'!R45) -> 691.70 | M47: =IF(O46=0,"",'Со снижением (партнер)'!S45) -> 11,400,283.18 | N47: =IF(O46=0,"",'Со снижением'!T45) -> 0.00 | O47: 11,400,283.18
A48: 30 | B48: =IF(O47=0,"",'Со снижением (партнер)'!G46) -> 2026-01-31 | C48: =IF(O47=0,"",'Со снижением (партнер)'!H46) -> 31 | D48: =IF(O47=0,"",'Со снижением (партнер)'!I46) -> 15.50% | E48: =IF(O47=0,"",'Со снижением (партнер)'!L46) -> 11,400,283.18 | F48: =IF(O47=0,"",'Со снижением (партнер)'!M46) -> 691.70 | G48: =IF(O47=0,"",'Со снижением (партнер)'!J46) -> 149,386.00 | H48: =IF(O47=0,"",'Со снижением (партнер)'!N46) -> 150,077.70 | I48: =IF(O47=0,"",'Со снижением (партнер)'!P46) -> 148,694.30 | J48: =IF(O47=0,"",'Со снижением (партнер)'!O46) -> 0.00 | K48: =IF(O47=0,"",'Со снижением (партнер)'!Q46) -> 691.70 | L48: =IF(O47=0,"",'Со снижением (партнер)'!R46) -> 1,383.40 | M48: =IF(O47=0,"",'Со снижением (партнер)'!S46) -> 11,400,283.18 | N48: =IF(O47=0,"",'Со снижением'!T46) -> 0.00 | O48: 11,400,283.18
A49: 31 | B49: =IF(O48=0,"",'Со снижением (партнер)'!G47) -> 2026-02-28 | C49: =IF(O48=0,"",'Со снижением (партнер)'!H47) -> 28 | D49: =IF(O48=0,"",'Со снижением (партнер)'!I47) -> 15.50% | E49: =IF(O48=0,"",'Со снижением (партнер)'!L47) -> 11,400,283.18 | F49: =IF(O48=0,"",'Со снижением (партнер)'!M47) -> 1,383.40 | G49: =IF(O48=0,"",'Со снижением (партнер)'!J47) -> 149,386.00 | H49: =IF(O48=0,"",'Со снижением (партнер)'!N47) -> 135,554.05 | I49: =IF(O48=0,"",'Со снижением (партнер)'!P47) -> 135,554.05 | J49: =IF(O48=0,"",'Со снижением (партнер)'!O47) -> 12,448.55 | K49: =IF(O48=0,"",'Со снижением (партнер)'!Q47) -> 1,383.40 | L49: =IF(O48=0,"",'Со снижением (партнер)'!R47) -> 0.00 | M49: =IF(O48=0,"",'Со снижением (партнер)'!S47) -> 11,387,834.63 | N49: =IF(O48=0,"",'Со снижением'!T47) -> 0.00 | O49: 11,387,834.63
A50: 32 | B50: =IF(O49=0,"",'Со снижением (партнер)'!G48) -> 2026-03-31 | C50: =IF(O49=0,"",'Со снижением (партнер)'!H48) -> 31 | D50: =IF(O49=0,"",'Со снижением (партнер)'!I48) -> 15.50% | E50: =IF(O49=0,"",'Со снижением (партнер)'!L48) -> 11,387,834.63 | F50: =IF(O49=0,"",'Со снижением (партнер)'!M48) -> 0.00 | G50: =IF(O49=0,"",'Со снижением (партнер)'!J48) -> 149,386.00 | H50: =IF(O49=0,"",'Со снижением (партнер)'!N48) -> 149,913.82 | I50: =IF(O49=0,"",'Со снижением (партнер)'!P48) -> 149,386.00 | J50: =IF(O49=0,"",'Со снижением (партнер)'!O48) -> 0.00 | K50: =IF(O49=0,"",'Со снижением (партнер)'!Q48) -> 0.00 | L50: =IF(O49=0,"",'Со снижением (партнер)'!R48) -> 527.82 | M50: =IF(O49=0,"",'Со снижением (партнер)'!S48) -> 11,387,834.63 | N50: =IF(O49=0,"",'Со снижением'!T48) -> 0.00 | O50: 11,387,834.63
A51: 33 | B51: =IF(O50=0,"",'Со снижением (партнер)'!G49) -> 2026-04-30 | C51: =IF(O50=0,"",'Со снижением (партнер)'!H49) -> 30 | D51: =IF(O50=0,"",'Со снижением (партнер)'!I49) -> 15.50% | E51: =IF(O50=0,"",'Со снижением (партнер)'!L49) -> 11,387,834.63 | F51: =IF(O50=0,"",'Со снижением (партнер)'!M49) -> 527.82 | G51: =IF(O50=0,"",'Со снижением (партнер)'!J49) -> 149,386.00 | H51: =IF(O50=0,"",'Со снижением (партнер)'!N49) -> 145,077.89 | I51: =IF(O50=0,"",'Со снижением (партнер)'!P49) -> 145,077.89 | J51: =IF(O50=0,"",'Со снижением (партнер)'!O49) -> 3,780.29 | K51: =IF(O50=0,"",'Со снижением (партнер)'!Q49) -> 527.82 | L51: =IF(O50=0,"",'Со снижением (партнер)'!R49) -> 0.00 | M51: =IF(O50=0,"",'Со снижением (партнер)'!S49) -> 11,384,054.34 | N51: =IF(O50=0,"",'Со снижением'!T49) -> 0.00 | O51: 11,384,054.34
A52: 34 | B52: =IF(O51=0,"",'Со снижением (партнер)'!G50) -> 2026-05-31 | C52: =IF(O51=0,"",'Со снижением (партнер)'!H50) -> 31 | D52: =IF(O51=0,"",'Со снижением (партнер)'!I50) -> 15.50% | E52: =IF(O51=0,"",'Со снижением (партнер)'!L50) -> 11,384,054.34 | F52: =IF(O51=0,"",'Со снижением (партнер)'!M50) -> 0.00 | G52: =IF(O51=0,"",'Со снижением (партнер)'!J50) -> 149,386.00 | H52: =IF(O51=0,"",'Со снижением (партнер)'!N50) -> 149,864.06 | I52: =IF(O51=0,"",'Со снижением (партнер)'!P50) -> 149,386.00 | J52: =IF(O51=0,"",'Со снижением (партнер)'!O50) -> 0.00 | K52: =IF(O51=0,"",'Со снижением (партнер)'!Q50) -> 0.00 | L52: =IF(O51=0,"",'Со снижением (партнер)'!R50) -> 478.06 | M52: =IF(O51=0,"",'Со снижением (партнер)'!S50) -> 11,384,054.34 | N52: =IF(O51=0,"",'Со снижением'!T50) -> 0.00 | O52: 11,384,054.34
A53: 35 | B53: =IF(O52=0,"",'Со снижением (партнер)'!G51) -> 2026-06-30 | C53: =IF(O52=0,"",'Со снижением (партнер)'!H51) -> 30 | D53: =IF(O52=0,"",'Со снижением (партнер)'!I51) -> 15.50% | E53: =IF(O52=0,"",'Со снижением (партнер)'!L51) -> 11,384,054.34 | F53: =IF(O52=0,"",'Со снижением (партнер)'!M51) -> 478.06 | G53: =IF(O52=0,"",'Со снижением (партнер)'!J51) -> 149,386.00 | H53: =IF(O52=0,"",'Со снижением (партнер)'!N51) -> 145,029.73 | I53: =IF(O52=0,"",'Со снижением (партнер)'!P51) -> 145,029.73 | J53: =IF(O52=0,"",'Со снижением (партнер)'!O51) -> 3,878.21 | K53: =IF(O52=0,"",'Со снижением (партнер)'!Q51) -> 478.06 | L53: =IF(O52=0,"",'Со снижением (партнер)'!R51) -> 0.00 | M53: =IF(O52=0,"",'Со снижением (партнер)'!S51) -> 11,380,176.13 | N53: =IF(O52=0,"",'Со снижением'!T51) -> 0.00 | O53: 11,380,176.13
A54: 36 | B54: =IF(O53=0,"",'Со снижением (партнер)'!G52) -> 2026-07-31 | C54: =IF(O53=0,"",'Со снижением (партнер)'!H52) -> 31 | D54: =IF(O53=0,"",'Со снижением (партнер)'!I52) -> 15.50% | E54: =IF(O53=0,"",'Со снижением (партнер)'!L52) -> 11,380,176.13 | F54: =IF(O53=0,"",'Со снижением (партнер)'!M52) -> 0.00 | G54: =IF(O53=0,"",'Со снижением (партнер)'!J52) -> 149,386.00 | H54: =IF(O53=0,"",'Со снижением (партнер)'!N52) -> 149,813.00 | I54: =IF(O53=0,"",'Со снижением (партнер)'!P52) -> 149,386.00 | J54: =IF(O53=0,"",'Со снижением (партнер)'!O52) -> 0.00 | K54: =IF(O53=0,"",'Со снижением (партнер)'!Q52) -> 0.00 | L54: =IF(O53=0,"",'Со снижением (партнер)'!R52) -> 427.00 | M54: =IF(O53=0,"",'Со снижением (партнер)'!S52) -> 11,380,176.13 | N54: =IF(O53=0,"",'Со снижением'!T52) -> 0.00 | O54: 11,380,176.13
A55: 37 | B55: =IF(O54=0,"",'Со снижением (партнер)'!G53) -> 2026-08-31 | C55: =IF(O54=0,"",'Со снижением (партнер)'!H53) -> 31 | D55: =IF(O54=0,"",'Со снижением (партнер)'!I53) -> 15.60% | E55: =IF(O54=0,"",'Со снижением (партнер)'!L53) -> 11,380,176.13 | F55: =IF(O54=0,"",'Со снижением (партнер)'!M53) -> 427.00 | G55: =IF(O54=0,"",'Со снижением (партнер)'!J53) -> 150,259.64 | H55: =IF(O54=0,"",'Со снижением (партнер)'!N53) -> 150,779.54 | I55: =IF(O54=0,"",'Со снижением (партнер)'!P53) -> 149,832.64 | J55: =IF(O54=0,"",'Со снижением (партнер)'!O53) -> 0.00 | K55: =IF(O54=0,"",'Со снижением (партнер)'!Q53) -> 427.00 | L55: =IF(O54=0,"",'Со снижением (партнер)'!R53) -> 946.90 | M55: =IF(O54=0,"",'Со снижением (партнер)'!S53) -> 11,380,176.13 | N55: =IF(O54=0,"",'Со снижением'!T53) -> 0.00 | O55: 11,380,176.13
A56: 38 | B56: =IF(O55=0,"",'Со снижением (партнер)'!G54) -> 2026-09-30 | C56: =IF(O55=0,"",'Со снижением (партнер)'!H54) -> 30 | D56: =IF(O55=0,"",'Со снижением (партнер)'!I54) -> 15.60% | E56: =IF(O55=0,"",'Со снижением (партнер)'!L54) -> 11,380,176.13 | F56: =IF(O55=0,"",'Со снижением (партнер)'!M54) -> 946.90 | G56: =IF(O55=0,"",'Со снижением (партнер)'!J54) -> 150,259.64 | H56: =IF(O55=0,"",'Со снижением (партнер)'!N54) -> 145,915.68 | I56: =IF(O55=0,"",'Со снижением (партнер)'!P54) -> 145,915.68 | J56: =IF(O55=0,"",'Со снижением (партнер)'!O54) -> 3,397.06 | K56: =IF(O55=0,"",'Со снижением (партнер)'!Q54) -> 946.90 | L56: =IF(O55=0,"",'Со снижением (партнер)'!R54) -> 0.00 | M56: =IF(O55=0,"",'Со снижением (партнер)'!S54) -> 11,376,779.07 | N56: =IF(O55=0,"",'Со снижением'!T54) -> 0.00 | O56: 11,376,779.07
A57: 39 | B57: =IF(O56=0,"",'Со снижением (партнер)'!G55) -> 2026-10-31 | C57: =IF(O56=0,"",'Со снижением (партнер)'!H55) -> 31 | D57: =IF(O56=0,"",'Со снижением (партнер)'!I55) -> 15.60% | E57: =IF(O56=0,"",'Со снижением (партнер)'!L55) -> 11,376,779.07 | F57: =IF(O56=0,"",'Со снижением (партнер)'!M55) -> 0.00 | G57: =IF(O56=0,"",'Со снижением (партнер)'!J55) -> 150,259.64 | H57: =IF(O56=0,"",'Со снижением (партнер)'!N55) -> 150,734.53 | I57: =IF(O56=0,"",'Со снижением (партнер)'!P55) -> 150,259.64 | J57: =IF(O56=0,"",'Со снижением (партнер)'!O55) -> 0.00 | K57: =IF(O56=0,"",'Со снижением (партнер)'!Q55) -> 0.00 | L57: =IF(O56=0,"",'Со снижением (партнер)'!R55) -> 474.89 | M57: =IF(O56=0,"",'Со снижением (партнер)'!S55) -> 11,376,779.07 | N57: =IF(O56=0,"",'Со снижением'!T55) -> 0.00 | O57: 11,376,779.07
A58: 40 | B58: =IF(O57=0,"",'Со снижением (партнер)'!G56) -> 2026-11-30 | C58: =IF(O57=0,"",'Со снижением (партнер)'!H56) -> 30 | D58: =IF(O57=0,"",'Со снижением (партнер)'!I56) -> 15.60% | E58: =IF(O57=0,"",'Со снижением (партнер)'!L56) -> 11,376,779.07 | F58: =IF(O57=0,"",'Со снижением (партнер)'!M56) -> 474.89 | G58: =IF(O57=0,"",'Со снижением (партнер)'!J56) -> 150,259.64 | H58: =IF(O57=0,"",'Со снижением (партнер)'!N56) -> 145,872.13 | I58: =IF(O57=0,"",'Со снижением (партнер)'!P56) -> 145,872.13 | J58: =IF(O57=0,"",'Со снижением (партнер)'!O56) -> 3,912.62 | K58: =IF(O57=0,"",'Со снижением (партнер)'!Q56) -> 474.89 | L58: =IF(O57=0,"",'Со снижением (партнер)'!R56) -> 0.00 | M58: =IF(O57=0,"",'Со снижением (партнер)'!S56) -> 11,372,866.45 | N58: =IF(O57=0,"",'Со снижением'!T56) -> 0.00 | O58: 11,372,866.45
A59: 41 | B59: =IF(O58=0,"",'Со снижением (партнер)'!G57) -> 2026-12-31 | C59: =IF(O58=0,"",'Со снижением (партнер)'!H57) -> 31 | D59: =IF(O58=0,"",'Со снижением (партнер)'!I57) -> 15.60% | E59: =IF(O58=0,"",'Со снижением (партнер)'!L57) -> 11,372,866.45 | F59: =IF(O58=0,"",'Со снижением (партнер)'!M57) -> 0.00 | G59: =IF(O58=0,"",'Со снижением (партнер)'!J57) -> 150,259.64 | H59: =IF(O58=0,"",'Со снижением (партнер)'!N57) -> 150,682.69 | I59: =IF(O58=0,"",'Со снижением (партнер)'!P57) -> 150,259.64 | J59: =IF(O58=0,"",'Со снижением (партнер)'!O57) -> 0.00 | K59: =IF(O58=0,"",'Со снижением (партнер)'!Q57) -> 0.00 | L59: =IF(O58=0,"",'Со снижением (партнер)'!R57) -> 423.05 | M59: =IF(O58=0,"",'Со снижением (партнер)'!S57) -> 11,372,866.45 | N59: =IF(O58=0,"",'Со снижением'!T57) -> 0.00 | O59: 11,372,866.45
A60: 42 | B60: =IF(O59=0,"",'Со снижением (партнер)'!G58) -> 2027-01-31 | C60: =IF(O59=0,"",'Со снижением (партнер)'!H58) -> 31 | D60: =IF(O59=0,"",'Со снижением (партнер)'!I58) -> 15.60% | E60: =IF(O59=0,"",'Со снижением (партнер)'!L58) -> 11,372,866.45 | F60: =IF(O59=0,"",'Со снижением (партнер)'!M58) -> 423.05 | G60: =IF(O59=0,"",'Со снижением (партнер)'!J58) -> 150,259.64 | H60: =IF(O59=0,"",'Со снижением (партнер)'!N58) -> 150,682.69 | I60: =IF(O59=0,"",'Со снижением (партнер)'!P58) -> 149,836.59 | J60: =IF(O59=0,"",'Со снижением (партнер)'!O58) -> 0.00 | K60: =IF(O59=0,"",'Со снижением (партнер)'!Q58) -> 423.05 | L60: =IF(O59=0,"",'Со снижением (партнер)'!R58) -> 846.10 | M60: =IF(O59=0,"",'Со снижением (партнер)'!S58) -> 11,372,866.45 | N60: =IF(O59=0,"",'Со снижением'!T58) -> 0.00 | O60: 11,372,866.45
A61: 43 | B61: =IF(O60=0,"",'Со снижением (партнер)'!G59) -> 2027-02-28 | C61: =IF(O60=0,"",'Со снижением (партнер)'!H59) -> 28 | D61: =IF(O60=0,"",'Со снижением (партнер)'!I59) -> 15.60% | E61: =IF(O60=0,"",'Со снижением (партнер)'!L59) -> 11,372,866.45 | F61: =IF(O60=0,"",'Со снижением (партнер)'!M59) -> 846.10 | G61: =IF(O60=0,"",'Со снижением (партнер)'!J59) -> 150,259.64 | H61: =IF(O60=0,"",'Со снижением (партнер)'!N59) -> 136,100.49 | I61: =IF(O60=0,"",'Со снижением (партнер)'!P59) -> 136,100.49 | J61: =IF(O60=0,"",'Со снижением (партнер)'!O59) -> 13,313.05 | K61: =IF(O60=0,"",'Со снижением (партнер)'!Q59) -> 846.10 | L61: =IF(O60=0,"",'Со снижением (партнер)'!R59) -> 0.00 | M61: =IF(O60=0,"",'Со снижением (партнер)'!S59) -> 11,359,553.40 | N61: =IF(O60=0,"",'Со снижением'!T59) -> 0.00 | O61: 11,359,553.40
A62: 44 | B62: =IF(O61=0,"",'Со снижением (партнер)'!G60) -> 2027-03-31 | C62: =IF(O61=0,"",'Со снижением (партнер)'!H60) -> 31 | D62: =IF(O61=0,"",'Со снижением (партнер)'!I60) -> 15.60% | E62: =IF(O61=0,"",'Со снижением (партнер)'!L60) -> 11,359,553.40 | F62: =IF(O61=0,"",'Со снижением (партнер)'!M60) -> 0.00 | G62: =IF(O61=0,"",'Со снижением (партнер)'!J60) -> 150,259.64 | H62: =IF(O61=0,"",'Со снижением (партнер)'!N60) -> 150,506.30 | I62: =IF(O61=0,"",'Со снижением (партнер)'!P60) -> 150,259.64 | J62: =IF(O61=0,"",'Со снижением (партнер)'!O60) -> 0.00 | K62: =IF(O61=0,"",'Со снижением (партнер)'!Q60) -> 0.00 | L62: =IF(O61=0,"",'Со снижением (партнер)'!R60) -> 246.66 | M62: =IF(O61=0,"",'Со снижением (партнер)'!S60) -> 11,359,553.40 | N62: =IF(O61=0,"",'Со снижением'!T60) -> 0.00 | O62: 11,359,553.40
A63: 45 | B63: =IF(O62=0,"",'Со снижением (партнер)'!G61) -> 2027-04-30 | C63: =IF(O62=0,"",'Со снижением (партнер)'!H61) -> 30 | D63: =IF(O62=0,"",'Со снижением (партнер)'!I61) -> 15.60% | E63: =IF(O62=0,"",'Со снижением (партнер)'!L61) -> 11,359,553.40 | F63: =IF(O62=0,"",'Со снижением (партнер)'!M61) -> 246.66 | G63: =IF(O62=0,"",'Со снижением (партнер)'!J61) -> 150,259.64 | H63: =IF(O62=0,"",'Со снижением (партнер)'!N61) -> 145,651.26 | I63: =IF(O62=0,"",'Со снижением (партнер)'!P61) -> 145,651.26 | J63: =IF(O62=0,"",'Со снижением (партнер)'!O61) -> 4,361.72 | K63: =IF(O62=0,"",'Со снижением (партнер)'!Q61) -> 246.66 | L63: =IF(O62=0,"",'Со снижением (партнер)'!R61) -> 0.00 | M63: =IF(O62=0,"",'Со снижением (партнер)'!S61) -> 11,355,191.68 | N63: =IF(O62=0,"",'Со снижением'!T61) -> 0.00 | O63: 11,355,191.68
A64: 46 | B64: =IF(O63=0,"",'Со снижением (партнер)'!G62) -> 2027-05-31 | C64: =IF(O63=0,"",'Со снижением (партнер)'!H62) -> 31 | D64: =IF(O63=0,"",'Со снижением (партнер)'!I62) -> 15.60% | E64: =IF(O63=0,"",'Со снижением (партнер)'!L62) -> 11,355,191.68 | F64: =IF(O63=0,"",'Со снижением (партнер)'!M62) -> 0.00 | G64: =IF(O63=0,"",'Со снижением (партнер)'!J62) -> 150,259.64 | H64: =IF(O63=0,"",'Со снижением (партнер)'!N62) -> 150,448.51 | I64: =IF(O63=0,"",'Со снижением (партнер)'!P62) -> 150,259.64 | J64: =IF(O63=0,"",'Со снижением (партнер)'!O62) -> 0.00 | K64: =IF(O63=0,"",'Со снижением (партнер)'!Q62) -> 0.00 | L64: =IF(O63=0,"",'Со снижением (партнер)'!R62) -> 188.87 | M64: =IF(O63=0,"",'Со снижением (партнер)'!S62) -> 11,355,191.68 | N64: =IF(O63=0,"",'Со снижением'!T62) -> 0.00 | O64: 11,355,191.68
A65: 47 | B65: =IF(O64=0,"",'Со снижением (партнер)'!G63) -> 2027-06-30 | C65: =IF(O64=0,"",'Со снижением (партнер)'!H63) -> 30 | D65: =IF(O64=0,"",'Со снижением (партнер)'!I63) -> 15.60% | E65: =IF(O64=0,"",'Со снижением (партнер)'!L63) -> 11,355,191.68 | F65: =IF(O64=0,"",'Со снижением (партнер)'!M63) -> 188.87 | G65: =IF(O64=0,"",'Со снижением (партнер)'!J63) -> 150,259.64 | H65: =IF(O64=0,"",'Со снижением (партнер)'!N63) -> 145,595.33 | I65: =IF(O64=0,"",'Со снижением (партнер)'!P63) -> 145,595.33 | J65: =IF(O64=0,"",'Со снижением (партнер)'!O63) -> 4,475.44 | K65: =IF(O64=0,"",'Со снижением (партнер)'!Q63) -> 188.87 | L65: =IF(O64=0,"",'Со снижением (партнер)'!R63) -> 0.00 | M65: =IF(O64=0,"",'Со снижением (партнер)'!S63) -> 11,350,716.24 | N65: =IF(O64=0,"",'Со снижением'!T63) -> 0.00 | O65: 11,350,716.24
A66: 48 | B66: =IF(O65=0,"",'Со снижением (партнер)'!G64) -> 2027-07-31 | C66: =IF(O65=0,"",'Со снижением (партнер)'!H64) -> 31 | D66: =IF(O65=0,"",'Со снижением (партнер)'!I64) -> 15.60% | E66: =IF(O65=0,"",'Со снижением (партнер)'!L64) -> 11,350,716.24 | F66: =IF(O65=0,"",'Со снижением (партнер)'!M64) -> 0.00 | G66: =IF(O65=0,"",'Со снижением (партнер)'!J64) -> 150,259.64 | H66: =IF(O65=0,"",'Со снижением (партнер)'!N64) -> 150,389.22 | I66: =IF(O65=0,"",'Со снижением (партнер)'!P64) -> 150,259.64 | J66: =IF(O65=0,"",'Со снижением (партнер)'!O64) -> 0.00 | K66: =IF(O65=0,"",'Со снижением (партнер)'!Q64) -> 0.00 | L66: =IF(O65=0,"",'Со снижением (партнер)'!R64) -> 129.58 | M66: =IF(O65=0,"",'Со снижением (партнер)'!S64) -> 11,350,716.24 | N66: =IF(O65=0,"",'Со снижением'!T64) -> 0.00 | O66: 11,350,716.24
